Workbook

Sheet 1.1
A2: CUADRO 1.1 COSTA RICA: CANDIDATURAS EN PROPIEDAD Y SUPLENCIA, POR SEXO
A3: SEGÚN TIPO DE CANDIDATURAS, ELECCIONES MUNICIPALES FEBRERO 2020
A4: (cifras absolutas y relativas)
A6: TIPO DE CANDIDATURA | B6: TOTAL | G6: EN PROPIEDAD | L6: EN SUPLENCIA
B7: TOTAL | C7: MUJERES | E7: HOMBRES | G7: TOTAL | H7: MUJERES | J7: HOMBRES | L7: TOTAL | M7: MUJERES | O7: HOMBRES
C8: Absoluto | D8: % | E8: Absoluto | F8: % | H8: Absoluto | I8: % | J8: Absoluto | K8: % | M8: Absoluto | N8: % | O8: Absoluto | P8: %
A10: TOTAL | B10: =SUM(B11:B19) -> 33873 | C10: =SUM(C11:C19) -> 16696 | D10: =+C10/$B10*100 -> 49.28999498 | E10: =SUM(E11:E19) -> 17177 | F10: =+E10/$B10*100 -> 50.71000502 | G10: =SUM(G11:G19) -> 18554 | H10: =SUM(H11:H19) -> 8705 | I10: =+H10/$G10*100 -> 46.91710682 | J10: =SUM(J11:J19) -> 9849 | K10: =+J10/$G10*100 -> 53.08289318 | L10: =SUM(L11:L19) -> 15319 | M10: =SUM(M11:M19) -> 7991 | N10: =+M10/$L10*100 -> 52.16397937 | O10: =SUM(O11:O19) -> 7328 | P10: =+O10/$L10*100 -> 47.83602063
A11: ALCALDÍA | B11: =+G11+L11 -> 692 | C11: 159 | D11: =+C11/$B11*100 -> 22.97687861 | E11: =+J11+O11 -> 533 | F11: =+E11/$B11*100 -> 77.02312139 | G11: =+H11+J11 -> 692 | H11: 159 | I11: =+H11/$G11*100 -> 22.97687861 | J11: 533 | K11: =+J11/$G11*100 -> 77.02312139 | L11: =+M11+O11 -> 0 | M11: 0 | N11: 0 | O11: 0 | P11: 0
A12: VICEALCALDÍA PRIMERA | B12: 677 | C12: 523 | D12: =+C12/$B12*100 -> 77.25258493 | E12: 154 | F12: =+E12/$B12*100 -> 22.74741507 | G12: 677 | H12: 523 | I12: =+H12/$G12*100 -> 77.25258493 | J12: 154 | K12: =+J12/$G12*100 -> 22.74741507 | L12: 0 | M12: 0 | N12: 0 | O12: 0 | P12: 0
A13: VICEALCALDÍA SEGUNDA | B13: =+G13+L13 -> 649 | C13: =+H13+M13 -> 192 | D13: 29.58397535 | E13: =+J13+O13 -> 457 | F13: 70.41602465 | G13: 0 | H13: 0 | I13: 0 | J13: 0 | K13: 0 | L13: =+M13+O13 -> 649 | M13: 192 | N13: =+M13/L13*100 -> 29.58397535 | O13: 457 | P13: =+O13/L13*100 -> 70.41602465
A14: REGIDORÍA | B14: =+G14+L14 -> 7845 | C14: =+H14+M14 -> 3806 | D14: =+C14/$B14*100 -> 48.51497769 | E14: =+J14+O14 -> 4039 | F14: =+E14/$B14*100 -> 51.48502231 | G14: =+H14+J14 -> 4015 | H14: 1875 | I14: =+H14/$G14*100 -> 46.69987547 | J14: 2140 | K14: =+J14/$G14*100 -> 53.30012453 | L14: =+M14+O14 -> 3830 | M14: 1931 | N14: =+M14/$L14*100 -> 50.41775457 | O14: 1899 | P14: =+O14/$L14*100 -> 49.58224543
A15: CONCEJALÍA DE DISTRITO | B15: 16777 | C15: 8426 | D15: 50.2235203 | E15: 8351 | F15: 49.7764797 | G15: 9180 | H15: 4577 | I15: 49.8583878 | J15: 4603 | K15: 50.1416122 | L15: 7597 | M15: 3849 | N15: 50.66473608 | O15: 3748 | P15: 49.33526392
A16: CONCEJALÍA MUNICIPAL DE DISTRITO | B16: 367 | C16: 184 | D16: 50.13623978 | E16: 183 | F16: 49.86376022 | G16: 192 | H16: 96 | I16: 50 | J16: 96 | K16: 50 | L16: 175 | M16: 88 | N16: 50.28571429 | O16: 87 | P16: 49.71428571
A17: INTENDENCIA | B17: 54 | C17: 14 | D17: 25.92592593 | E17: 40 | F17: 74.07407407 | G17: 54 | H17: 14 | I17: 25.92592593 | J17: 40 | K17: 74.07407407 | L17: 0 | M17: 0 | N17: 0 | O17: 0 | P17: 0
A18: VICEINTENDENCIA | B18: 52 | C18: 38 | D18: 73.07692308 | E18: 14 | F18: 26.92307692 | G18: 52 | H18: 38 | I18: 73.07692308 | J18: 14 | K18: 26.92307692 | L18: 0 | M18: 0 | N18: 0 | O18: 0 | P18: 0
A19: SINDICATURA | B19: 6760 | C19: 3354 | D19: 49.61538462 | E19: 3406 | F19: 50.38461538 | G19: 3692 | H19: 1423 | I19: 38.54279523 | J19: 2269 | K19: 61.45720477 | L19: 3068 | M19: 1931 | N19: 62.94002608 | O19: 1137 | P19: 37.05997392
A22: Fuente: Tribunal Supremo de Elecciones.

Sheet 1.2
A2: CUADRO 1.2 COSTA RICA: CANDIDATURAS EN PROPIEDAD A ALCALDÍAS, REGIDURÍAS, SINDICATURAS, CONCEJALÍAS E INTENDENCIAS
A3: POR SEXO, SEGÚN PARTIDO POLÍTICO, ELECCIONES MUNICIPALES FEBRERO 2020
A4: (cifras absolutas y relativas)
A6: PARTIDO POLÍTICO | B6: ALCALDÍAS | G6: REGIDURÍAS | L6: SINDICATURAS | Q6: CONCEJALÍAS 1/ | V6: INTENDENCIAS
B7: TOTAL | C7: MUJERES | E7: HOMBRES | G7: TOTAL | H7: MUJERES | J7: HOMBRES | L7: TOTAL | M7: MUJERES | O7: HOMBRES | Q7: TOTAL | R7: MUJERES | T7: HOMBRES | V7: TOTAL | W7: MUJERES | Y7: HOMBRES
C8: Absoluto | D8: % | E8: Absoluto | F8: % | H8: Absoluto | I8: % | J8: Absoluto | K8: % | M8: Absoluto | N8: % | O8: Absoluto | P8: % | R8: Absoluto | S8: % | T8: Absoluto | U8: % | W8: Absoluto | X8: % | Y8: Absoluto | Z8: %
A10: TOTAL | B10: =SUM(B11:B96) -> 692 | C10: =SUM(C11:C96) -> 159 | D10: =+C10/$B10*100 -> 22.97687861 | E10: =SUM(E11:E96) -> 533 | F10: =+E10/$B10*100 -> 77.02312139 | G10: =SUM(G11:G96) -> 7845 | H10: =SUM(H11:H96) -> 3806 | I10: =+H10/$G10*100 -> 48.51497769 | J10: =SUM(J11:J96) -> 4039 | K10: =+J10/$G10*100 -> 51.48502231 | L10: =SUM(L11:L96) -> 6760 | M10: =SUM(M11:M96) -> 3354 | N10: =+M10/L10*100 -> 49.61538462 | O10: =SUM(O11:O96) -> 3406 | P10: =+O10/$L10*100 -> 50.38461538 | Q10: =SUM(Q11:Q96) -> 17144 | R10: =SUM(R11:R96) -> 8610 | S10: =+R10/$Q10*100 -> 50.22165189 | T10: =SUM(T11:T96) -> 8534 | U10: =+T10/$Q10*100 -> 49.77834811 | V10: =SUM(V11:V96) -> 54 | W10: =SUM(W11:W96) -> 14 | X10: =+W10/$V10*100 -> 25.92592593 | Y10: =SUM(Y11:Y96) -> 40 | Z10: =+Y10/$V10*100 -> 74.07407407
A11: ACCESIBILIDAD SIN EXCLUSIÓN | B11: =+C11+E11 -> 4 | C11: 0 | D11: =+C11/$B11*100 -> 0 | E11: 4 | F11: =+E11/$B11*100 -> 100 | G11: =+H11+J11 -> 59 | H11: 29 | I11: =+H11/$G11*100 -> 49.15254237 | J11: 30 | K11: =+J11/$G11*100 -> 50.84745763 | L11: =+M11+O11 -> 38 | M11: 19 | N11: =+M11/$L11*100 -> 50 | O11: 19 | P11: =+O11/$L11*100 -> 50 | Q11: =+R11+T11 -> 101 | R11: =52 -> 52 | S11: =+R11/$Q11*100 -> 51.48514851 | T11: =49 -> 49 | U11: =+T11/$Q11*100 -> 48.51485149 | V11: =+W11+Y11 -> 0 | W11: 0 | X11: 0 | Y11: 0 | Z11: 0
A12: ACCIÓN CANTONAL SIQUIRRES INDEPENDIENTE | B12: 1 | C12: 0 | D12: =+C12/$B12*100 -> 0 | E12: 1 | F12: =+E12/$B12*100 -> 100 | G12: 14 | H12: 7 | I12: =+H12/$G12*100 -> 50 | J12: 7 | K12: =+J12/$G12*100 -> 50 | L12: 14 | M12: 7 | N12: 50 | O12: 7 | P12: 50 | Q12: 33 | R12: =18 -> 18 | S12: 54.54545455 | T12: =15 -> 15 | U12: 45.45454545 | V12: 0 | W12: 0 | X12: 0 | Y12: 0 | Z12: 0
A13: ACCIÓN CIUDADANA | B13: 44 | C13: 14 | D13: 31.81818182 | E13: 30 | F13: 68.18181818 | G13: 558 | H13: 278 | I13: 49.82078853 | J13: 280 | K13: 50.17921147 | L13: 479 | M13: 241 | N13: 50.3131524 | O13: 238 | P13: 49.6868476 | Q13: 1105 | R13: =541+14 -> 555 | S13: 50.22624434 | T13: =538+12 -> 550 | U13: 49.77375566 | V13: 4 | W13: 1 | X13: =+W13/$V13*100 -> 25 | Y13: 3 | Z13: =+Y13/$V13*100 -> 75
A14: ACCIÓN NARANJEÑA | B14: 1 | C14: 0 | D14: 0 | E14: 1 | F14: 100 | G14: 10 | H14: 5 | I14: 50 | J14: 5 | K14: 50 | L14: 14 | M14: 7 | N14: 50 | O14: 7 | P14: 50 | Q14: 25 | R14: =14 -> 14 | S14: 56 | T14: =11 -> 11 | U14: 44 | V14: 0 | W14: 0 | X14: 0 | Y14: 0 | Z14: 0
A15: ACTUEMOS YA | B15: 7 | C15: 2 | D15: 28.57142857 | E15: 5 | F15: 71.42857143 | G15: 72 | H15: 36 | I15: 50 | J15: 36 | K15: 50 | L15: 62 | M15: 30 | N15: 48.38709677 | O15: 32 | P15: 51.61290323 | Q15: 122 | R15: =58+4 -> 62 | S15: 0 | T15: =56+4 -> 60 | U15: 0 | V15: 1 | W15: 0 | X15: =+W15/$V15*100 -> 0 | Y15: 1 | Z15: =+Y15/$V15*100 -> 100
A16: ACUERDO DE ALIANZA DE QUEPOS | B16: 1 | C16: 0 | D16: 0 | E16: 1 | F16: 100 | G16: 10 | H16: 5 | I16: 50 | J16: 5 | K16: 50 | L16: 5 | M16: 2 | N16: 40 | O16: 3 | P16: 60 | Q16: 23 | R16: =12 -> 12 | S16: 52.17391304 | T16: =11 -> 11 | U16: 47.82608696 | V16: 0 | W16: 0 | X16: 0 | Y16: 0 | Z16: 0
A17: ALIANZA DEMOCRATA CRISTIANA | B17: 16 | C17: 3 | D17: 18.75 | E17: 13 | F17: 81.25 | G17: 179 | H17: 89 | I17: 49.72067039 | J17: 90 | K17: 50.27932961 | L17: 168 | M17: 81 | N17: 48.21428571 | O17: 87 | P17: 51.78571429 | Q17: 325 | R17: =158+3 -> 161 | S17: 49.53846154 | T17: =162+2 -> 164 | U17: 50.46153846 | V17: 1 | W17: 1 | X17: =+W17/$V17*100 -> 100 | Y17: 0 | Z17: =+Y17/$V17*100 -> 0
A18: ALIANZA POR PALMARES | B18: 1 | C18: 0 | D18: 0 | E18: 1 | F18: 100 | G18: 8 | H18: 4 | I18: 50 | J18: 4 | K18: 50 | L18: 14 | M18: 7 | N18: 50 | O18: 7 | P18: 50 | Q18: 55 | R18: =28 -> 28 | S18: 50.90909091 | T18: =27 -> 27 | U18: 49.09090909 | V18: 0 | W18: 0 | X18: 0 | Y18: 0 | Z18: 0
A19: ALIANZA POR SAN JOSÉ | B19: 1 | C19: 1 | D19: 100 | E19: 0 | F19: 0 | G19: 20 | H19: 9 | I19: 45 | J19: 11 | K19: 55 | L19: 22 | M19: 11 | N19: 50 | O19: 11 | P19: 50 | Q19: 77 | R19: =40 -> 40 | S19: 51.94805195 | T19: =37 -> 37 | U19: 48.05194805 | V19: 0 | W19: 0 | X19: 0 | Y19: 0 | Z19: 0
A20: ALIANZA POR SARCHÍ | B20: 1 | C20: 0 | D20: 0 | E20: 1 | F20: 100 | G20: 10 | H20: 5 | I20: 50 | J20: 5 | K20: 50 | L20: 10 | M20: 5 | N20: 50 | O20: 5 | P20: 50 | Q20: 5 | R20: =2 -> 2 | S20: 40 | T20: =3 -> 3 | U20: 60 | V20: 0 | W20: 0 | X20: 0 | Y20: 0 | Z20: 0
A21: ALIANZA SOCIAL POR LA UNIÓN | B21: 1 | C21: 0 | D21: 0 | E21: 1 | F21: 100 | G21: 18 | H21: 9 | I21: 50 | J21: 9 | K21: 50 | L21: 15 | M21: 8 | N21: 53.33333333 | O21: 7 | P21: 46.66666667 | Q21: 26 | R21: =12 -> 12 | S21: 46.15384615 | T21: =14 -> 14 | U21: 53.84615385 | V21: 0 | W21: 0 | X21: 0 | Y21: 0 | Z21: 0
A22: ANTICORRUPCIÓN COSTARRICENSE | B22: 1 | C22: 0 | D22: 0 | E22: 1 | F22: 100 | G22: 12 | H22: 6 | I22: 50 | J22: 6 | K22: 50 | L22: 8 | M22: 4 | N22: 50 | O22: 4 | P22: 50 | Q22: 0 | R22: 0 | S22: 0 | T22: 0 | U22: 0 | V22: 0 | W22: 0 | X22: 0 | Y22: 0 | Z22: 0
A23: AUTÉNTICO LABRADOR DE CORONADO | B23: 1 | C23: 0 | D23: 0 | E23: 1 | F23: 100 | G23: 13 | H23: 7 | I23: 53.84615385 | J23: 6 | K23: 46.15384615 | L23: 8 | M23: 4 | N23: 50 | O23: 4 | P23: 50 | Q23: 6 | R23: =2 -> 2 | S23: 33.33333333 | T23: =4 -> 4 | U23: 66.66666667 | V23: 0 | W23: 0 | X23: 0 | Y23: 0 | Z23: 0
A24: AUTÉNTICO LIMONENSE | B24: 2 | C24: 0 | D24: 0 | E24: 2 | F24: 100 | G24: 31 | H24: 16 | I24: 51.61290323 | J24: 15 | K24: 48.38709677 | L24: 20 | M24: 10 | N24: 50 | O24: 10 | P24: 50 | Q24: 69 | R24: =36 -> 36 | S24: 52.17391304 | T24: =33 -> 33 | U24: 47.82608696 | V24: 0 | W24: 0 | X24: 0 | Y24: 0 | Z24: 0
A25: AUTÉNTICO NICOYANO | B25: 1 | C25: 0 | D25: 0 | E25: 1 | F25: 100 | G25: 14 | H25: 6 | I25: 42.85714286 | J25: 8 | K25: 57.14285714 | L25: 0 | M25: 0 | N25: 0 | O25: 0 | P25: 0 | Q25: 63 | R25: =32 -> 32 | S25: 50.79365079 | T25: =31 -> 31 | U25: 49.20634921 | V25: 0 | W25: 0 | X25: 0 | Y25: 0 | Z25: 0
A26: AUTÉNTICO SANTACRUCEÑO | B26: 1 | C26: 0 | D26: 0 | E26: 1 | F26: 100 | G26: 14 | H26: 7 | I26: 50 | J26: 7 | K26: 50 | L26: 18 | M26: 9 | N26: 50 | O26: 9 | P26: 50 | Q26: 0 | R26: 0 | S26: 0 | U26: 0 | V26: 0 | W26: 0 | X26: 0 | Y26: 0 | Z26: 0
A27: AUTÉNTICO SIQUIRREÑO | B27: 1 | C27: 0 | D27: 0 | E27: 1 | F27: 100 | G27: 14 | H27: 7 | I27: 50 | J27: 7 | K27: 50 | L27: 8 | M27: 4 | N27: 50 | O27: 4 | P27: 50 | Q27: 14 | R27: =8 -> 8 | S27: 57.14285714 | T27: =6 -> 6 | U27: 42.85714286 | V27: 0 | W27: 0 | X27: 0 | Y27: 0 | Z27: 0
A28: AUTONOMO OROMONTANO | B28: 0 | C28: 0 | D28: 0 | E28: 0 | F28: 0 | G28: 8 | H28: 4 | I28: 50 | J28: 4 | K28: 50 | L28: 6 | M28: 3 | N28: 50 | O28: 3 | P28: 50 | Q28: 9 | R28: =4 -> 4 | S28: 44.44444444 | T28: =5 -> 5 | U28: 55.55555556 | V28: 0 | W28: 0 | X28: 0 | Y28: 0 | Z28: 0
A29: AVANCE ISIDREÑO | B29: 1 | C29: 0 | D29: 0 | E29: 1 | F29: 100 | G29: 9 | H29: 5 | I29: 55.55555556 | J29: 4 | K29: 44.44444444 | L29: 0 | M29: 0 | N29: 0 | O29: 0 | P29: 0 | Q29: 0 | R29: 0 | S29: 0 | U29: 0 | V29: 0 | W29: 0 | X29: 0 | Y29: 0 | Z29: 0
A30: AVANCE MONTES DE OCA | B30: 1 | C30: 0 | D30: 0 | E30: 1 | F30: 100 | G30: 6 | H30: 3 | I30: 50 | J30: 3 | K30: 50 | L30: 6 | M30: 3 | N30: 50 | O30: 3 | P30: 50 | Q30: 1 | R30: =1 -> 1 | S30: 100 | T30: 0 | U30: 0 | V30: 0 | W30: 0 | X30: 0 | Y30: 0 | Z30: 0
A31: AVANTE POCOCÍ | B31: 1 | C31: 0 | D31: 0 | E31: 1 | F31: 100 | G31: 7 | H31: 3 | I31: 42.85714286 | J31: 4 | K31: 57.14285714 | L31: 11 | M31: 6 | N31: 54.54545455 | O31: 5 | P31: 45.45454545 | Q31: 3 | R31: =1 -> 1 | S31: 33.33333333 | T31: =2 -> 2 | U31: 66.66666667 | V31: 0 | W31: 0 | X31: 0 | Y31: 0 | Z31: 0
A32: BARVA UNIDA | B32: 1 | C32: 1 | D32: 100 | E32: 0 | F32: 0 | G32: 10 | H32: 5 | I32: 50 | J32: 5 | K32: 50 | L32: 10 | M32: 4 | N32: 40 | O32: 6 | P32: 60 | Q32: 0 | R32: 0 | S32: 0 | T32: 0 | U32: 0 | V32: 0 | W32: 0 | X32: 0 | Y32: 0 | Z32: 0
A33: CANTONAL DE CARRILLO | B33: 1 | C33: 1 | D33: 100 | E33: 0 | F33: 0 | G33: 8 | H33: 4 | I33: 50 | J33: 4 | K33: 50 | L33: 8 | M33: 4 | N33: 50 | O33: 4 | P33: 50 | Q33: 19 | R33: =9 -> 9 | S33: 47.36842105 | T33: =10 -> 10 | U33: 52.63157895 | V33: 0 | W33: 0 | X33: 0 | Y33: 0 | Z33: 0
A34: COALICIÓN ALIANZA POR NICOYA | B34: 1 | C34: 0 | D34: 0 | E34: 1 | F34: 100 | G34: 13 | H34: 6 | I34: 46.15384615 | J34: 7 | K34: 53.84615385 | L34: 12 | M34: 6 | N34: 50 | O34: 6 | P34: 50 | Q34: 32 | R34: =14 -> 14 | S34: 0 | T34: =18 -> 18 | U34: 0 | V34: 0 | W34: 0 | X34: 0 | Y34: 0 | Z34: 0
A35: COALICIÓN ASERRÍ DE TODOS | B35: 1 | C35: 1 | D35: 100 | E35: 0 | F35: 0 | G35: 6 | H35: 3 | I35: 50 | J35: 3 | K35: 50 | L35: 11 | M35: 5 | N35: 45.45454545 | O35: 6 | P35: 54.54545455 | Q35: 31 | R35: =15 -> 15 | S35: 48.38709677 | T35: =16 -> 16 | U35: 51.61290323 | V35: 0 | W35: 0 | X35: 0 | Y35: 0 | Z35: 0
A36: COALICIÓN GENTE MONTES DE OCA | B36: 1 | C36: 0 | D36: 0 | E36: 1 | F36: 100 | G36: 11 | H36: 5 | I36: 45.45454545 | J36: 6 | K36: 54.54545455 | L36: 5 | M36: 3 | N36: 60 | O36: 2 | P36: 40 | Q36: 15 | R36: =8 -> 8 | S36: 53.33333333 | T36: =7 -> 7 | U36: 46.66666667 | V36: 0 | W36: 0 | X36: 0 | Y36: 0 | Z36: 0
A37: COALICIÓN JUNTOS | B37: 1 | C37: 0 | D37: 0 | E37: 1 | F37: 100 | G37: 16 | H37: 8 | I37: 50 | J37: 8 | K37: 50 | L37: 17 | M37: 8 | N37: 47.05882353 | O37: 9 | P37: 52.94117647 | Q37: 46 | R37: =23 -> 23 | S37: 50 | T37: =23 -> 23 | U37: 50 | V37: 0 | W37: 0 | X37: 0 | Y37: 0 | Z37: 0
A38: COALICIÓN UNIDAD POR FLORES | B38: 1 | C38: 1 | D38: 100 | E38: 0 | F38: 0 | G38: 10 | H38: 5 | I38: 50 | J38: 5 | K38: 50 | L38: 6 | M38: 3 | N38: 50 | O38: 3 | P38: 50 | Q38: 17 | R38: =8 -> 8 | S38: 47.05882353 | T38: =9 -> 9 | U38: 52.94117647 | V38: 0 | W38: 0 | X38: 0 | Y38: 0 | Z38: 0
A39: COALICIÓN UNIÓN BELEMITA | B39: 1 | C39: 0 | D39: 0 | E39: 1 | F39: 100 | G39: 9 | H39: 5 | I39: 55.55555556 | J39: 4 | K39: 44.44444444 | L39: 6 | M39: 3 | N39: 50 | O39: 3 | P39: 50 | Q39: 10 | R39: =4 -> 4 | S39: 40 | T39: =6 -> 6 | U39: 60 | V39: 0 | W39: 0 | X39: 0 | Y39: 0 | Z39: 0
A40: COMUNAL UNIDO | B40: 9 | C40: 5 | D40: 55.55555556 | E40: 4 | F40: 44.44444444 | G40: 124 | H40: 60 | I40: 48.38709677 | J40: 64 | K40: 51.61290323 | L40: 115 | M40: 60 | N40: 52.17391304 | O40: 55 | P40: 47.82608696 | Q40: 236 | R40: =120 -> 120 | S40: 50.84745763 | T40: =116 -> 116 | U40: 49.15254237 | V40: 0 | W40: 0 | X40: 0 | Y40: 0 | Z40: 0
A41: CURRIDABAT SIGLO XXI | B41: 1 | C41: 0 | D41: 0 | E41: 1 | F41: 100 | G41: 13 | H41: 7 | I41: 53.84615385 | J41: 6 | K41: 46.15384615 | L41: 8 | M41: 4 | N41: 50 | O41: 4 | P41: 50 | Q41: 31 | R41: =16 -> 16 | S41: 51.61290323 | T41: =15 -> 15 | U41: 48.38709677 | V41: 0 | W41: 0 | X41: 0 | Y41: 0 | Z41: 0
A42: DEL SOL | B42: 1 | C42: 1 | D42: 100 | E42: 0 | F42: 0 | G42: 14 | H42: 7 | I42: 50 | J42: 7 | K42: 50 | L42: 9 | M42: 5 | N42: 55.55555556 | O42: 4 | P42: 44.44444444 | Q42: 26 | R42: =15 -> 15 | S42: 57.69230769 | T42: =11 -> 11 | U42: 42.30769231 | V42: 0 | W42: 0 | X42: 0 | Y42: 0 | Z42: 0
A43: DESARROLLO TALAMANQUEÑO | B43: 1 | C43: 0 | D43: 0 | E43: 1 | F43: 100 | G43: 10 | H43: 5 | I43: 50 | J43: 5 | K43: 50 | L43: 7 | M43: 3 | N43: 42.85714286 | O43: 4 | P43: 57.14285714 | Q43: 31 | R43: =16 -> 16 | S43: 51.61290323 | T43: =15 -> 15 | U43: 48.38709677 | V43: 0 | W43: 0 | X43: 0 | Y43: 0 | Z43: 0
A44: DESPERTAR ALAJUELENSE | B44: 1 | C44: 1 | D44: 100 | E44: 0 | F44: 0 | G44: 22 | H44: 11 | I44: 50 | J44: 11 | K44: 50 | L44: 28 | M44: 14 | N44: 50 | O44: 14 | P44: 50 | Q44: 105 | R44: =51 -> 51 | S44: 48.57142857 | T44: =54 -> 54 | U44: 51.42857143 | V44: 0 | W44: 0 | X44: 0 | Y44: 0 | Z44: 0
A45: ECOLÓGICO COMUNAL COSTARRICENSE | B45: 1 | C45: 0 | D45: 0 | E45: 1 | F45: 100 | G45: 21 | H45: 10 | I45: 47.61904762 | J45: 11 | K45: 52.38095238 | L45: 25 | M45: 12 | N45: 48 | O45: 13 | P45: 52 | Q45: 67 | R45: =35 -> 35 | S45: 52.23880597 | T45: =32 -> 32 | U45: 47.76119403 | V45: 0 | W45: 0 | X45: 0 | Y45: 0 | Z45: 0
A46: FRENTE AMPLIO | B46: 31 | C46: 13 | D46: 41.93548387 | E46: 18 | F46: 58.06451613 | G46: 363 | H46: 181 | I46: 49.86225895 | J46: 182 | K46: 50.13774105 | L46: 231 | M46: 115 | N46: 49.78354978 | O46: 116 | P46: 50.21645022 | Q46: 397 | R46: =197+2 -> 199 | S46: 50.12594458 | T46: =196+2 -> 198 | U46: 49.87405542 | V46: 1 | W46: 0 | X46: 0 | Y46: 1 | Z46: 0
A47: FUERZA SARCHÍSEÑA | B47: 1 | C47: 1 | D47: 100 | E47: 0 | F47: 0 | G47: 10 | H47: 5 | I47: 50 | J47: 5 | K47: 50 | L47: 8 | M47: 3 | N47: 37.5 | O47: 5 | P47: 62.5 | Q47: 0 | R47: 0 | S47: 0 | T47: 0 | U47: 0 | V47: 0 | W47: 0 | X47: 0 | Y47: 0 | Z47: 0
A48: GOICOECHEA EN ACCIÓN | B48: 1 | C48: 0 | D48: 0 | E48: 1 | F48: 100 | G48: 8 | H48: 4 | I48: 50 | J48: 4 | K48: 50 | L48: 13 | M48: 6 | N48: 46.15384615 | O48: 7 | P48: 53.84615385 | Q48: 0 | R48: 0 | S48: 0 | T48: 0 | U48: 0 | V48: 0 | W48: 0 | X48: 0 | Y48: 0 | Z48: 0
A49: GUANACASTE PRIMERO | B49: 1 | C49: 0 | D49: 0 | E49: 1 | F49: 100 | G49: 12 | H49: 5 | I49: 41.66666667 | J49: 7 | K49: 58.33333333 | L49: 7 | M49: 2 | N49: 28.57142857 | O49: 5 | P49: 71.42857143 | Q49: 2 | R49: =1 -> 1 | S49: 50 | T49: =1 -> 1 | U49: 50 | V49: 0 | W49: 0 | X49: 0 | Y49: 0 | Z49: 0
A50: INNOVACIÓN CANTONAL | B50: 1 | C50: 0 | D50: 0 | E50: 1 | F50: 100 | G50: 18 | H50: 8 | I50: 44.44444444 | J50: 10 | K50: 55.55555556 | L50: 270 | M50: 133 | N50: 49.25925926 | O50: 137 | P50: 50.74074074 | Q50: 9 | R50: =5 -> 5 | S50: 55.55555556 | T50: =4 -> 4 | U50: 44.44444444 | V50: 0 | W50: 0 | X50: 0 | Y50: 0 | Z50: 0
A51: INTEGRACIÓN NACIONAL | B51: 32 | C51: 4 | D51: 12.5 | E51: 28 | F51: 87.5 | G51: 294 | H51: 149 | I51: 50.68027211 | J51: 145 | K51: 49.31972789 | L51: 0 | M51: 0 | N51: 0 | O51: 0 | P51: 0 | Q51: 624 | R51: =294+20 -> 314 | S51: 50.32051282 | T51: =291+19 -> 310 | U51: 49.67948718 | V51: 6 | W51: 1 | X51: =+W51/$V51*100 -> 16.66666667 | Y51: 5 | Z51: =+Y51/$V51*100 -> 83.33333333
A52: IZQUIERDA COSTARRICENSE | B52: 6 | C52: 3 | D52: 50 | E52: 3 | F52: 50 | G52: 53 | H52: 27 | I52: 50.94339623 | J52: 26 | K52: 49.05660377 | L52: 14 | M52: 7 | N52: 50 | O52: 7 | P52: 50 | Q52: 7 | R52: =4 -> 4 | S52: 57.14285714 | T52: =3 -> 3 | U52: 42.85714286 | V52: 0 | W52: 0 | X52: 0 | Y52: 0 | Z52: 0
A53: JUSTICIA SOCIAL | B53: 1 | C53: 0 | D53: 0 | E53: 1 | F53: 100 | G53: 10 | H53: 4 | I53: 40 | J53: 6 | K53: 60 | L53: 6 | M53: 3 | N53: 50 | O53: 3 | P53: 50 | Q53: 12 | R53: =6 -> 6 | S53: 50 | T53: =6 -> 6 | U53: 50 | V53: 0 | W53: 0 | X53: 0 | Y53: 0 | Z53: 0
A54: JUSTICIA SOCIAL COSTARRICENSE | B54: 4 | C54: 2 | D54: 50 | E54: 2 | F54: 50 | G54: 50 | H54: 25 | I54: 50 | J54: 25 | K54: 50 | L54: 38 | M54: 18 | N54: 47.36842105 | O54: 20 | P54: 52.63157895 | Q54: 101 | R54: =50 -> 50 | S54: 49.5049505 | T54: =51 -> 51 | U54: 50.4950495 | V54: 0 | W54: 0 | X54: 0 | Y54: 0 | Z54: 0
A55: LA FUERZA DE LA UNIÓN | B55: 1 | C55: 0 | D55: 0 | E55: 1 | F55: 100 | G55: 6 | H55: 3 | I55: 50 | J55: 3 | K55: 50 | L55: 8 | M55: 4 | N55: 50 | O55: 4 | P55: 50 | Q55: 0 | R55: 0 | S55: 0 | T55: 0 | U55: 0 | V55: 0 | W55: 0 | X55: 0 | Y55: 0 | Z55: 0
A56: LA GRAN NICOYA | B56: 1 | C56: 0 | D56: 0 | E56: 1 | F56: 100 | G56: 14 | H56: 7 | I56: 50 | J56: 7 | K56: 50 | L56: 11 | M56: 6 | N56: 54.54545455 | O56: 5 | P56: 45.45454545 | Q56: 19 | R56: =9 -> 9 | S56: 47.36842105 | T56: =10 -> 10 | U56: 52.63157895 | V56: 0 | W56: 0 | X56: 0 | Y56: 0 | Z56: 0
A57: LIBERACIÓN NACIONAL | B57: 82 | C57: 16 | D57: 19.51219512 | E57: 66 | F57: 80.48780488 | G57: 977 | H57: 463 | I57: 47.38996929 | J57: 514 | K57: 52.61003071 | L57: 960 | M57: 479 | N57: 49.89583333 | O57: 481 | P57: 50.10416667 | Q57: 3470 | R57: =1705+31 -> 1736 | S57: 50.02881844 | T57: =1703+31 -> 1734 | U57: 49.97118156 | V57: 8 | W57: 5 | X57: =+W57/$V57*100 -> 62.5 | Y57: 3 | Z57: =+Y57/$V57*100 -> 37.5
A58: LIBERAL PROGRESISTA | B58: 7 | C58: 1 | D58: 14.28571429 | E58: 6 | F58: 85.71428571 | G58: 90 | H58: 43 | I58: 47.77777778 | J58: 47 | K58: 52.22222222 | L58: 61 | M58: 30 | N58: 49.18032787 | O58: 31 | P58: 50.81967213 | Q58: 120 | R58: =58+3 -> 61 | S58: 50.83333333 | T58: =56+3 -> 59 | U58: 49.16666667 | V58: 1 | W58: 0 | X58: =+W58/$V58*100 -> 0 | Y58: 1 | Z58: =+Y58/$V58*100 -> 100
A59: LIGA RAMONENSE | B59: 0 | C59: 0 | D59: 0 | E59: 0 | F59: 0 | G59: 14 | H59: 6 | I59: 42.85714286 | J59: 8 | K59: 57.14285714 | L59: 0 | M59: 0 | N59: 0 | O59: 0 | P59: 0 | Q59: 0 | R59: 0 | S59: 0 | T59: 0 | U59: 0 | V59: 0 | W59: 0 | X59: 0 | Y59: 0 | Z59: 0
A60: MOVIMIENTO AVANCE SANTO DOMINGO | B60: 1 | C60: 0 | D60: 0 | E60: 1 | F60: 100 | G60: 10 | H60: 5 | I60: 50 | J60: 5 | K60: 50 | L60: 13 | M60: 6 | N60: 46.15384615 | O60: 7 | P60: 53.84615385 | Q60: 48 | R60: =23 -> 23 | S60: 47.91666667 | T60: =25 -> 25 | U60: 52.08333333 | V60: 0 | W60: 0 | X60: 0 | Y60: 0 | Z60: 0
A61: NANDAYURE PROGRESA | B61: 1 | C61: 0 | D61: 0 | E61: 1 | F61: 100 | G61: 10 | H61: 5 | I61: 50 | J61: 5 | K61: 50 | L61: 11 | M61: 5 | N61: 45.45454545 | O61: 6 | P61: 54.54545455 | Q61: 37 | R61: =17 -> 17 | S61: 45.94594595 | T61: =20 -> 20 | U61: 54.05405405 | V61: 0 | W61: 0 | X61: 0 | Y61: 0 | Z61: 0
A62: NUESTRO PUEBLO | B62: 11 | C62: 3 | D62: 27.27272727 | E62: 8 | F62: 72.72727273 | G62: 171 | H62: 85 | I62: 49.70760234 | J62: 86 | K62: 50.29239766 | L62: 127 | M62: 66 | N62: 51.96850394 | O62: 61 | P62: 48.03149606 | Q62: 344 | R62: =176 -> 176 | S62: 51.1627907 | T62: =168 -> 168 | U62: 48.8372093 | V62: 0 | W62: 0 | X62: 0 | Y62: 0 | Z62: 0
A63: NUEVA GENERACIÓN | B63: 35 | C63: 6 | D63: 17.14285714 | E63: 29 | F63: 82.85714286 | G63: 392 | H63: 191 | I63: 48.7244898 | J63: 201 | K63: 51.2755102 | L63: 356 | M63: 180 | N63: 50.56179775 | O63: 176 | P63: 49.43820225 | Q63: 1001 | R63: =483+17 -> 500 | S63: 49.95004995 | T63: =482+19 -> 501 | U63: 50.04995005 | V63: 6 | W63: 0 | X63: =+W63/$V63*100 -> 0 | Y63: 6 | Z63: =+Y63/$V63*100 -> 100
A64: NUEVA MAYORIA GRIEGA | B64: 1 | C64: 0 | D64: 0 | E64: 1 | F64: 100 | G64: 12 | H64: 5 | I64: 41.66666667 | J64: 7 | K64: 58.33333333 | L64: 14 | M64: 7 | N64: 50 | O64: 7 | P64: 50 | Q64: 35 | R64: =18 -> 18 | S64: 51.42857143 | T64: =17 -> 17 | U64: 48.57142857 | V64: 0 | W64: 0 | X64: 0 | Y64: 0 | Z64: 0
A65: NUEVA REPÚBLICA | B65: 74 | C65: 19 | D65: 25.67567568 | E65: 55 | F65: 74.32432432 | G65: 784 | H65: 381 | I65: 48.59693878 | J65: 403 | K65: 51.40306122 | L65: 633 | M65: 301 | N65: 47.55134281 | O65: 332 | P65: 52.44865719 | Q65: 1146 | R65: =562+19 -> 581 | S65: 50.69808028 | T65: =545+20 -> 565 | U65: 49.30191972 | V65: 6 | W65: 1 | X65: =+W65/$V65*100 -> 16.66666667 | Y65: 5 | Z65: =+Y65/$V65*100 -> 83.33333333
A66: PALMARES PRIMERO | B66: 1 | C66: 1 | D66: 100 | E66: 0 | F66: 0 | G66: 10 | H66: 5 | I66: 50 | J66: 5 | K66: 50 | L66: 2 | M66: 1 | N66: 50 | O66: 1 | P66: 50 | Q66: 8 | R66: =4 -> 4 | S66: 50 | T66: =4 -> 4 | U66: 50 | V66: 0 | W66: 0 | X66: 0 | Y66: 0 | Z66: 0
A67: PROGRESER | B67: 1 | C67: 0 | D67: 0 | E67: 1 | F67: 100 | G67: 11 | H67: 6 | I67: 54.54545455 | J67: 5 | K67: 45.45454545 | L67: 26 | M67: 13 | N67: 50 | O67: 13 | P67: 50 | Q67: 98 | R67: =49 -> 49 | S67: 50 | T67: =49 -> 49 | U67: 50 | V67: 0 | W67: 0 | X67: 0 | Y67: 0 | Z67: 0
A68: PUEBLO GARABITO | B68: 1 | C68: 0 | D68: 0 | E68: 1 | F68: 100 | G68: 9 | H68: 4 | I68: 44.44444444 | J68: 5 | K68: 55.55555556 | L68: 0 | M68: 0 | N68: 0 | O68: 0 | P68: 0 | Q68: 11 | R68: =6 -> 6 | S68: 54.54545455 | T68: =5 -> 5 | U68: 45.45454545 | V68: 0 | W68: 0 | X68: 0 | Y68: 0 | Z68: 0
A69: PURISCAL EN MARCHA | B69: 1 | C69: 0 | D69: 0 | E69: 1 | F69: 100 | G69: 10 | H69: 4 | I69: 40 | J69: 6 | K69: 60 | L69: 18 | M69: 9 | N69: 50 | O69: 9 | P69: 50 | Q69: 72 | R69: =36 -> 36 | S69: 50 | T69: =36 -> 36 | U69: 50 | V69: 0 | W69: 0 | X69: 0 | Y69: 0 | Z69: 0
A70: RECUPERANDO VALORES | B70: 4 | C70: 1 | D70: 25 | E70: 3 | F70: 75 | G70: 52 | H70: 25 | I70: 48.07692308 | J70: 27 | K70: 51.92307692 | L70: 39 | M70: 20 | N70: 51.28205128 | O70: 19 | P70: 48.71794872 | Q70: 106 | R70: =54 -> 54 | S70: 50.94339623 | T70: =52 -> 52 | U70: 49.05660377 | V70: 0 | W70: 0 | X70: 0 | Y70: 0 | Z70: 0
A71: RENOVACIÓN COSTARRICENSE | B71: 5 | C71: 0 | D71: 0 | E71: 5 | F71: 100 | G71: 63 | H71: 29 | I71: 46.03174603 | J71: 34 | K71: 53.96825397 | L71: 36 | M71: 20 | N71: 55.55555556 | O71: 16 | P71: 44.44444444 | Q71: 102 | R71: =53 -> 53 | S71: 51.96078431 | T71: =49 -> 49 | U71: 48.03921569 | V71: 0 | W71: 0 | X71: 0 | Y71: 0 | Z71: 0
A72: REPÚBLICANO SOCIAL CRISTIANO | B72: 43 | C72: 5 | D72: 11.62790698 | E72: 38 | F72: 88.37209302 | G72: 535 | H72: 258 | I72: 48.22429907 | J72: 277 | K72: 51.77570093 | L72: 474 | M72: 238 | N72: 50.21097046 | O72: 236 | P72: 49.78902954 | Q72: 1146 | R72: =558+16 -> 574 | S72: 50.08726003 | T72: =556+16 -> 572 | U72: 49.91273997 | V72: 4 | W72: 0 | X72: =+W72/$V72*100 -> 0 | Y72: 4 | Z72: =+Y72/$V72*100 -> 100
A73: RESCATE CANTONAL LA UNIÓN | B73: 1 | C73: 0 | D73: 0 | E73: 1 | F73: 100 | G73: 18 | H73: 9 | I73: 50 | J73: 9 | K73: 50 | L73: 16 | M73: 8 | N73: 50 | O73: 8 | P73: 50 | Q73: 40 | R73: =21 -> 21 | S73: 52.5 | T73: =19 -> 19 | U73: 47.5 | V73: 0 | W73: 0 | X73: 0 | Y73: 0 | Z73: 0
A74: RESTAURACIÓN NACIONAL | B74: 79 | C74: 23 | D74: 29.11392405 | E74: 56 | F74: 70.88607595 | G74: 721 | H74: 340 | I74: 47.15672677 | J74: 381 | K74: 52.84327323 | L74: 565 | M74: 279 | N74: 49.38053097 | O74: 286 | P74: 50.61946903 | Q74: 1547 | R74: =769+8 -> 777 | S74: 50.22624434 | T74: =762+8 -> 770 | U74: 49.77375566 | V74: 3 | W74: 1 | X74: =+W74/$V74*100 -> 33.33333333 | Y74: 2 | Z74: =+Y74/$V74*100 -> 66.66666667
A75: RESTAURACIÓN PARRITEÑA | B75: 1 | C75: 0 | D75: 0 | E75: 1 | F75: 100 | G75: 8 | H75: 3 | I75: 37.5 | J75: 5 | K75: 62.5 | L75: 1 | M75: 0 | N75: 0 | O75: 1 | P75: 100 | Q75: 3 | R75: =1 -> 1 | S75: 33.33333333 | T75: =2 -> 2 | U75: 66.66666667 | V75: 0 | W75: 0 | X75: 0 | Y75: 0 | Z75: 0
A76: SENTIR HEREDIA | B76: 1 | C76: 0 | D76: 0 | E76: 1 | F76: 100 | G76: 18 | H76: 9 | I76: 50 | J76: 9 | K76: 50 | L76: 8 | M76: 4 | N76: 50 | O76: 4 | P76: 50 | Q76: 33 | R76: =18 -> 18 | S76: 54.54545455 | T76: =15 -> 15 | U76: 45.45454545 | V76: 0 | W76: 0 | X76: 0 | Y76: 0 | Z76: 0
A77: SOMOS MORAVIA | B77: 1 | C77: 0 | D77: 0 | E77: 1 | F77: 100 | G77: 14 | H77: 7 | I77: 50 | J77: 7 | K77: 50 | L77: 6 | M77: 3 | N77: 50 | O77: 3 | P77: 50 | Q77: 16 | R77: =8 -> 8 | S77: 50 | T77: =8 -> 8 | U77: 50 | V77: 0 | W77: 0 | X77: 0 | Y77: 0 | Z77: 0
A78: SOMOS SARCHÍ | B78: 1 | C78: 0 | D78: 0 | E78: 1 | F78: 100 | G78: 10 | H78: 5 | I78: 50 | J78: 5 | K78: 50 | L78: 8 | M78: 4 | N78: 50 | O78: 4 | P78: 50 | Q78: 34 | R78: =17 -> 17 | S78: 50 | T78: =17 -> 17 | U78: 50 | V78: 0 | W78: 0 | X78: 0 | Y78: 0 | Z78: 0
A79: TARRAZÚ PRIMERO | B79: 1 | C79: 0 | D79: 0 | E79: 1 | F79: 100 | G79: 9 | H79: 4 | I79: 44.44444444 | J79: 5 | K79: 55.55555556 | L79: 6 | M79: 3 | N79: 50 | O79: 3 | P79: 50 | Q79: 20 | R79: =8 -> 8 | S79: 40 | T79: =12 -> 12 | U79: 60 | V79: 0 | W79: 0 | X79: 0 | Y79: 0 | Z79: 0
A80: TERRA ESCAZÚ | B80: 1 | C80: 0 | D80: 0 | E80: 1 | F80: 100 | G80: 1 | H80: 0 | I80: 0 | J80: 1 | K80: 100 | L80: 0 | M80: 0 | N80: 0 | O80: 0 | P80: 0 | Q80: 12 | R80: =6 -> 6 | S80: 50 | T80: =6 -> 6 | U80: 50 | V80: 0 | W80: 0 | X80: 0 | Y80: 0 | Z80: 0
A81: TODOS POR GOICOECHEA | B81: 1 | C81: 1 | D81: 100 | E81: 0 | F81: 0 | G81: 10 | H81: 5 | I81: 50 | J81: 5 | K81: 50 | L81: 14 | M81: 7 | N81: 50 | O81: 7 | P81: 50 | Q81: 52 | R81: =25 -> 25 | S81: 0 | T81: =27 -> 27 | U81: 0 | V81: 0 | W81: 0 | X81: 0 | Y81: 0 | Z81: 0
A82: TURRIALBA PRIMERO | B82: 1 | C82: 0 | D82: 0 | E82: 1 | F82: 100 | G82: 14 | H82: 7 | I82: 50 | J82: 7 | K82: 50 | L82: 24 | M82: 12 | N82: 50 | O82: 12 | P82: 50 | Q82: 86 | R82: =44 -> 44 | S82: 51.1627907 | T82: =42 -> 42 | U82: 48.8372093 | V82: 0 | W82: 0 | X82: 0 | Y82: 0 | Z82: 0
A83: UNICO ABANGAREÑO | B83: 1 | C83: 0 | D83: 0 | E83: 1 | F83: 100 | G83: 10 | H83: 5 | I83: 50 | J83: 5 | K83: 50 | L83: 7 | M83: 3 | N83: 42.85714286 | O83: 4 | P83: 57.14285714 | Q83: 22 | R83: =7+4 -> 11 | S83: 50 | T83: =7+4 -> 11 | U83: 50 | V83: 1 | W83: 1 | X83: 0 | Y83: 0 | Z83: 0
A84: UNIDAD SOCIAL CRISTIANA | B84: 71 | C84: 11 | D84: 15.49295775 | E84: 60 | F84: 84.50704225 | G84: 770 | H84: 370 | I84: 48.05194805 | J84: 400 | K84: 51.94805195 | L84: 797 | M84: 397 | N84: 49.81179423 | O84: 400 | P84: 50.18820577 | Q84: 1917 | R84: =940+23 -> 963 | S84: 50.23474178 | T84: =931+23 -> 954 | U84: 49.76525822 | V84: 6 | W84: 1 | X84: =+W84/$V84*100 -> 16.66666667 | Y84: 5 | Z84: =+Y84/$V84*100 -> 83.33333333
A85: UNIDOS PARA EL DESARROLLO | B85: 1 | C85: 0 | D85: 0 | E85: 1 | F85: 100 | G85: 10 | H85: 4 | I85: 40 | J85: 6 | K85: 60 | L85: 12 | M85: 6 | N85: 50 | O85: 6 | P85: 50 | Q85: 12 | R85: =7 -> 7 | S85: 58.33333333 | T85: =5 -> 5 | U85: 41.66666667 | V85: 0 | W85: 0 | X85: 0 | Y85: 0 | Z85: 0
A86: UNIDOS PODEMOS | B86: 50 | C86: 14 | D86: 28 | E86: 36 | F86: 72 | G86: 637 | H86: 309 | I86: 48.50863422 | J86: 328 | K86: 51.49136578 | L86: 527 | M86: 262 | N86: 49.71537002 | O86: 265 | P86: 50.28462998 | Q86: 1174 | R86: =581+7 -> 588 | S86: 50.08517888 | T86: =579+7 -> 586 | U86: 49.91482112 | V86: 2 | W86: 1 | X86: =+W86/$V86*100 -> 50 | Y86: 1 | Z86: =+Y86/$V86*100 -> 50
A87: UNIDOS POR ESCAZÚ | B87: 1 | C87: 0 | D87: 0 | E87: 1 | F87: 100 | G87: 14 | H87: 6 | I87: 42.85714286 | J87: 8 | K87: 57.14285714 | L87: 5 | M87: 3 | N87: 60 | O87: 2 | P87: 40 | Q87: 12 | R87: =6 -> 6 | S87: 50 | T87: =6 -> 6 | U87: 50 | V87: 0 | W87: 0 | X87: 0 | Y87: 0 | Z87: 0
A88: UNIÓN ATENIENSE | B88: 1 | C88: 0 | D88: 0 | E88: 1 | F88: 100 | G88: 10 | H88: 5 | I88: 50 | J88: 5 | K88: 50 | L88: 16 | M88: 8 | N88: 50 | O88: 8 | P88: 50 | Q88: 61 | R88: =29 -> 29 | S88: 47.54098361 | T88: =32 -> 32 | U88: 52.45901639 | V88: 0 | W88: 0 | X88: 0 | Y88: 0 | Z88: 0
A89: UNIÓN DE PUNTARENENSES EMPRENDEDORES | B89: 1 | C89: 1 | D89: 100 | E89: 0 | F89: 0 | G89: 8 | H89: 4 | I89: 50 | J89: 4 | K89: 50 | L89: 24 | M89: 11 | N89: 45.83333333 | O89: 13 | P89: 54.16666667 | Q89: 81 | R89: =31+9 -> 40 | S89: 49.38271605 | T89: =31+10 -> 41 | U89: 50.61728395 | V89: 2 | W89: 1 | X89: 0 | Y89: 1 | Z89: 0
A90: UNIÓN DOMINGUEÑA | B90: 1 | C90: 0 | D90: 0 | E90: 1 | F90: 100 | G90: 7 | H90: 4 | I90: 57.14285714 | J90: 3 | K90: 42.85714286 | L90: 10 | M90: 4 | N90: 40 | O90: 6 | P90: 60 | Q90: 27 | R90: =13 -> 13 | S90: 48.14814815 | T90: =14 -> 14 | U90: 51.85185185 | V90: 0 | W90: 0 | X90: 0 | Y90: 0 | Z90: 0
A91: UNIÓN GRIEGA | B91: 1 | C91: 0 | D91: 0 | E91: 1 | F91: 100 | G91: 13 | H91: 6 | I91: 46.15384615 | J91: 7 | K91: 53.84615385 | L91: 12 | M91: 5 | N91: 41.66666667 | O91: 7 | P91: 58.33333333 | Q91: 46 | R91: =23 -> 23 | S91: 50 | T91: =23 -> 23 | U91: 50 | V91: 0 | W91: 0 | X91: 0 | Y91: 0 | Z91: 0
A92: UNIÓN GUANACASTECA | B92: 7 | C92: 2 | D92: 28.57142857 | E92: 5 | F92: 71.42857143 | G92: 79 | H92: 40 | I92: 50.63291139 | J92: 39 | K92: 49.36708861 | L92: 62 | M92: 32 | N92: 51.61290323 | O92: 30 | P92: 48.38709677 | Q92: 212 | R92: =108 -> 108 | S92: 50.94339623 | T92: =104 -> 104 | U92: 49.05660377 | V92: 0 | W92: 0 | X92: 0 | Y92: 0 | Z92: 0
A93: UNIÓN GUARQUEÑO | B93: 1 | C93: 0 | D93: 0 | E93: 1 | F93: 100 | G93: 10 | H93: 5 | I93: 50 | J93: 5 | K93: 50 | L93: 7 | M93: 4 | N93: 57.14285714 | O93: 3 | P93: 42.85714286 | Q93: 6 | R93: =2 -> 2 | S93: 33.33333333 | T93: =4 -> 4 | U93: 66.66666667 | V93: 0 | W93: 0 | X93: 0 | Y93: 0 | Z93: 0
A94: VERDE ECOLOGISTA | B94: 8 | C94: 0 | D94: 0 | E94: 8 | F94: 100 | G94: 71 | H94: 34 | I94: 47.88732394 | J94: 37 | K94: 52.11267606 | L94: 52 | M94: 26 | N94: 50 | O94: 26 | P94: 50 | Q94: 47 | R94: =20+4 -> 24 | S94: 51.06382979 | T94: =20+3 -> 23 | U94: 48.93617021 | V94: 2 | W94: 0 | X94: 0 | Y94: 2 | Z94: 0
A95: YO SOY EL CAMBIO | B95: 1 | C95: 0 | D95: 0 | E95: 1 | F95: 100 | G95: 8 | H95: 4 | I95: 50 | J95: 4 | K95: 50 | L95: 6 | M95: 3 | N95: 50 | O95: 3 | P95: 50 | Q95: 17 | R95: =9 -> 9 | S95: 52.94117647 | T95: =8 -> 8 | U95: 47.05882353 | V95: 0 | W95: 0 | X95: 0 | Y95: 0 | Z95: 0
A96: YUNTA PROGRESISTA ESCAZUCEÑA | B96: 1 | C96: 1 | D96: 100 | E96: 0 | F96: 0 | G96: 14 | H96: 7 | I96: 50 | J96: 7 | K96: 50 | L96: 6 | M96: 3 | N96: 50 | O96: 3 | P96: 50 | Q96: 24 | R96: =12 -> 12 | S96: 50 | T96: =12 -> 12 | U96: 50 | V96: 0 | W96: 0 | X96: 0 | Y96: 0 | Z96: 0
A99: 1/ Incluye Concejalías de Distrito y Concejalías Municipales de Distrito.
A100: Fuente: Tribunal Supremo de Elecciones.

Sheet 1.3
A2: CUADRO 1.3 COSTA RICA: CANDIDATURAS EN PROPIEDAD A ALCALDÍAS, REGIDURÍAS, SINDICATURAS, CONCEJALÍAS E INTENDENCIAS
A3: SEGÚN GRUPOS DE EDAD, ELECCIONES MUNICIPALES FEBRERO 2020
A4: (cifras absolutas y relativas)
A6: GRUPOS DE EDAD | B6: ALCALDÍAS | D6: REGIDURÍAS | F6: SINDICATURAS | H6: CONCEJALÍAS 1/ | J6: INTENDENCIAS
B7: Absoluto | C7: % | D7: Absoluto | E7: % | F7: Absoluto | G7: % | H7: Absoluto | I7: % | J7: Absoluto | K7: %
A9: TOTAL | B9: =SUM(B10:B23) -> 692 | C9: =+B9/B$9*100 -> 100 | D9: =SUM(D10:D23) -> 4015 | E9: =+D9/D$9*100 -> 100 | F9: =SUM(F10:F23) -> 3692 | G9: =+F9/F$9*100 -> 100 | H9: =SUM(H10:H23) -> 9372 | I9: =+H9/H$9*100 -> 100 | J9: =SUM(J10:J23) -> 54 | K9: =+J9/J$9*100 -> 100
A10: MENOS DE 25 AÑOS | B10: 5 | C10: =+B10/B$9*100 -> 0.7225433526 | D10: 211 | E10: =+D10/D$9*100 -> 5.255292653 | F10: 185 | G10: 5.010834236 | H10: =979+18 -> 997 | I10: =+H10/H$9*100 -> 10.63807085 | J10: 1 | K10: 1.851851852
A11: DE 25 A 29 AÑOS | B11: 18 | C11: =+B11/B$9*100 -> 2.601156069 | D11: 313 | E11: 7.795765878 | F11: 233 | G11: 6.310942579 | H11: =931+15 -> 946 | I11: 10.09389671 | J11: 1 | K11: 1.851851852
A12: DE 30 A 34 AÑOS | B12: 42 | C12: 6.069364162 | D12: 435 | E12: 10.83437111 | F12: 355 | G12: 9.615384615 | H12: =1125+22 -> 1147 | I12: 12.23858301 | J12: 8 | K12: 14.81481481
A13: DE 35 A 39 AÑOS | B13: 70 | C13: 10.11560694 | D13: 506 | E13: 12.60273973 | F13: 427 | G13: 11.56554713 | H13: =1122+32 -> 1154 | I13: 12.31327358 | J13: 7 | K13: 12.96296296
A14: DE 40 A 44 AÑOS | B14: 85 | C14: 12.28323699 | D14: 515 | E14: 12.82689913 | F14: 445 | G14: 12.05308776 | H14: =1019+23 -> 1042 | I14: 11.1182245 | J14: 3 | K14: 5.555555556
A15: DE 45 A 49 AÑOS | B15: 86 | C15: 12.42774566 | D15: 393 | E15: 9.788293898 | F15: 451 | G15: 12.2156013 | H15: =954+20 -> 974 | I15: 10.39265898 | J15: 3 | K15: 5.555555556
A16: DE 50 A 54 AÑOS | B16: 108 | C16: 15.60693642 | D16: 512 | E16: 12.75217933 | F16: 495 | G16: 13.40736728 | H16: =906+22 -> 928 | I16: 9.901835254 | J16: 12 | K16: 22.22222222
A17: DE 55 A 59 AÑOS | B17: 124 | C17: 17.91907514 | D17: 462 | E17: 11.50684932 | F17: 407 | G17: 11.02383532 | H17: =794+19 -> 813 | I17: 8.674775928 | J17: 10 | K17: 18.51851852
A18: DE 60 A 64 AÑOS | B18: 91 | C18: 13.15028902 | D18: 306 | E18: 7.621419676 | F18: 304 | G18: 8.234019502 | H18: =624+9 -> 633 | I18: 6.754161332 | J18: 5 | K18: 9.259259259
A19: DE 65 A 69 AÑOS | B19: 41 | C19: 5.924855491 | D19: 226 | E19: 5.628891656 | F19: 213 | G19: 5.769230769 | H19: =389+7 -> 396 | I19: 4.225352113 | J19: 3 | K19: 5.555555556
A20: DE 70 A 74 AÑOS | B20: 14 | C20: 2.023121387 | D20: 81 | E20: 2.01743462 | F20: 134 | G20: 3.629469122 | H20: =210+2 -> 212 | I20: 2.262057192 | J20: 1 | K20: 1.851851852
A21: DE 75 A 79 AÑOS | B21: 4 | C21: 0.5780346821 | D21: 37 | E21: 0.9215442092 | F21: 32 | G21: 0.8667388949 | H21: =98+1 -> 99 | I21: 1.056338028 | J21: 0 | K21: 0
A22: DE 80 A 84 AÑOS | B22: 4 | C22: 0.5780346821 | D22: 14 | E22: 0.3486924035 | F22: 8 | G22: 0.2166847237 | H22: =21+1 -> 22 | I22: 0.234741784 | J22: 0 | K22: 0
A23: 85 AÑOS Y MÁS | B23: 0 | C23: 0 | D23: 4 | E23: 0.099626401 | F23: 3 | G23: 0.0812567714 | H23: =8+1 -> 9 | I23: 0.09603072983 | J23: 0 | K23: 0
A26: 1/ Incluye Concejalías de Distrito y Concejalías Municipales de Distrito.
A27: Fuente: Tribunal Supremo de Elecciones.

Sheet 1.4
A2: CUADRO 1.4 COSTA RICA: CANDIDATURAS EN PROPIEDAD A ALCALDÍAS, REGIDURÍAS, SINDICATURAS, CONCEJALÍAS E INTENDENCIAS
A3: POR SEXO,SEGÚN GRUPOS DE EDAD, ELECCIONES MUNICIPALES FEBRERO 2020
A4: (cifras absolutas y relativas)
A6: GRUPOS DE EDAD | B6: ALCALDÍAS | G6: REGIDURÍAS | L6: SINDICATURAS | Q6: CONCEJALÍAS 1/ | V6: INTENDENCIAS
B7: TOTAL | C7: MUJERES | E7: HOMBRES | G7: TOTAL | H7: MUJERES | J7: HOMBRES | L7: TOTAL | M7: MUJERES | O7: HOMBRES | Q7: TOTAL | R7: MUJERES | T7: HOMBRES | V7: TOTAL | W7: MUJERES | Y7: HOMBRES
C8: Absoluto | D8: % | E8: Absoluto | F8: % | H8: Absoluto | I8: % | J8: Absoluto | K8: % | M8: Absoluto | N8: % | O8: Absoluto | P8: % | R8: Absoluto | S8: % | T8: Absoluto | U8: % | W8: Absoluto | X8: % | Y8: Absoluto | Z8: %
A10: TOTAL | B10: =SUM(B11:B24) -> 692 | C10: =SUM(C11:C24) -> 159 | D10: =+C10/$B10*100 -> 22.97687861 | E10: =SUM(E11:E24) -> 533 | F10: =+E10/$B10*100 -> 77.02312139 | G10: =SUM(G11:G24) -> 4015 | H10: =SUM(H11:H24) -> 1875 | I10: =+H10/$G10*100 -> 46.69987547 | J10: =SUM(J11:J24) -> 2140 | K10: =+J10/$G10*100 -> 53.30012453 | L10: =SUM(L11:L24) -> 3692 | M10: =SUM(M11:M24) -> 1423 | N10: =+M10/$L10*100 -> 38.54279523 | O10: =SUM(O11:O24) -> 2269 | P10: =+O10/$L10*100 -> 61.45720477 | Q10: =SUM(Q11:Q24) -> 9372 | R10: =SUM(R11:R24) -> 4673 | S10: =+R10/$Q10*100 -> 49.86128895 | T10: =SUM(T11:T24) -> 4699 | U10: =+T10/$Q10*100 -> 50.13871105 | V10: =SUM(V11:V24) -> 54 | W10: =SUM(W11:W24) -> 14 | X10: =+W10/$V10*100 -> 25.92592593 | Y10: =SUM(Y11:Y24) -> 40 | Z10: =+Y10/$V10*100 -> 74.07407407
A11: MENOS DE 25 AÑOS | B11: =+C11+E11 -> 5 | C11: 2 | D11: =+C11/$B11*100 -> 40 | E11: 3 | F11: =+E11/$B11*100 -> 60 | G11: =+H11+J11 -> 211 | H11: 112 | I11: =+H11/$G11*100 -> 53.08056872 | J11: 99 | K11: =+J11/$G11*100 -> 46.91943128 | L11: =+M11+O11 -> 185 | M11: 73 | N11: =+M11/$L11*100 -> 39.45945946 | O11: 112 | P11: =+O11/$L11*100 -> 60.54054054 | Q11: =+R11+T11 -> 997 | R11: =503+12 -> 515 | S11: =+R11/$Q11*100 -> 51.65496489 | T11: =476+6 -> 482 | U11: =+T11/$Q11*100 -> 48.34503511 | V11: =+W11+Y11 -> 1 | W11: 0 | X11: =+W11/$V11*100 -> 0 | Y11: 1 | Z11: =+Y11/$V11*100 -> 100
A12: DE 25 A 29 AÑOS | B12: 18 | C12: 3 | D12: 16.66666667 | E12: 15 | F12: 83.33333333 | G12: 313 | H12: 162 | I12: =+H12/$G12*100 -> 51.7571885 | J12: 151 | K12: =+J12/$G12*100 -> 48.2428115 | L12: 233 | M12: 114 | N12: 48.92703863 | O12: 119 | P12: 51.07296137 | Q12: =+R12+T12 -> 946 | R12: =489+7 -> 496 | S12: 52.43128964 | T12: =442+8 -> 450 | U12: 47.56871036 | V12: 1 | W12: 0 | X12: 0 | Y12: 1 | Z12: 100
A13: DE 30 A 34 AÑOS | B13: 42 | C13: 12 | D13: 28.57142857 | E13: 30 | F13: 71.42857143 | G13: 435 | H13: 224 | I13: 51.49425287 | J13: 211 | K13: 48.50574713 | L13: 355 | M13: 137 | N13: 38.5915493 | O13: 218 | P13: 61.4084507 | Q13: 1147 | R13: =627+14 -> 641 | S13: 55.88491718 | T13: =498+8 -> 506 | U13: 44.11508282 | V13: 8 | W13: 3 | X13: 37.5 | Y13: 5 | Z13: 62.5
A14: DE 35 A 39 AÑOS | B14: 70 | C14: 14 | D14: 20 | E14: 56 | F14: 80 | G14: 506 | H14: 263 | I14: 51.97628458 | J14: 243 | K14: 48.02371542 | L14: 427 | M14: 198 | N14: 46.37002342 | O14: 229 | P14: 53.62997658 | Q14: 1154 | R14: =619+14 -> 633 | S14: 54.85268631 | T14: =503+18 -> 521 | U14: 45.14731369 | V14: 7 | W14: 2 | X14: 28.57142857 | Y14: 5 | Z14: 71.42857143
A15: DE 40 A 44 AÑOS | B15: 85 | C15: 28 | D15: 32.94117647 | E15: 57 | F15: 67.05882353 | G15: 515 | H15: 263 | I15: 51.06796117 | J15: 252 | K15: 48.93203883 | L15: 445 | M15: 184 | N15: 41.34831461 | O15: 261 | P15: 58.65168539 | Q15: 1042 | R15: =558+16 -> 574 | S15: 55.08637236 | T15: =461+7 -> 468 | U15: 44.91362764 | V15: 3 | W15: 2 | X15: 66.66666667 | Y15: 1 | Z15: 33.33333333
A16: DE 45 A 49 AÑOS | B16: 86 | C16: 20 | D16: 23.25581395 | E16: 66 | F16: 76.74418605 | G16: 393 | H16: 185 | I16: 47.07379135 | J16: 208 | K16: 52.92620865 | L16: 451 | M16: 194 | N16: 43.01552106 | O16: 257 | P16: 56.98447894 | Q16: 974 | R16: =509+5 -> 514 | S16: 52.77207392 | T16: =445+15 -> 460 | U16: 47.22792608 | V16: 3 | W16: 1 | X16: 33.33333333 | Y16: 2 | Z16: 66.66666667
A17: DE 50 A 54 AÑOS | B17: 108 | C17: 29 | D17: 26.85185185 | E17: 79 | F17: 73.14814815 | G17: 512 | H17: 251 | I17: 49.0234375 | J17: 261 | K17: 50.9765625 | L17: 495 | M17: 185 | N17: 37.37373737 | O17: 310 | P17: 62.62626263 | Q17: 928 | R17: =426+12 -> 438 | S17: 47.19827586 | T17: =480+10 -> 490 | U17: 52.80172414 | V17: 12 | W17: 4 | X17: 33.33333333 | Y17: 8 | Z17: 66.66666667
A18: DE 55 A 59 AÑOS | B18: 124 | C18: 32 | D18: 25.80645161 | E18: 92 | F18: 74.19354839 | G18: 462 | H18: 190 | I18: 41.12554113 | J18: 272 | K18: 58.87445887 | L18: 407 | M18: 161 | N18: 39.55773956 | O18: 246 | P18: 60.44226044 | Q18: 813 | R18: =362+10 -> 372 | S18: 45.75645756 | T18: =432+9 -> 441 | U18: 54.24354244 | V18: 10 | W18: 0 | X18: 0 | Y18: 10 | Z18: 100
A19: DE 60 A 64 AÑOS | B19: 91 | C19: 14 | D19: 15.38461538 | E19: 77 | F19: 84.61538462 | G19: 306 | H19: 118 | I19: 38.5620915 | J19: 188 | K19: 61.4379085 | L19: 304 | M19: 87 | N19: 28.61842105 | O19: 217 | P19: 71.38157895 | Q19: 633 | R19: =258+2 -> 260 | S19: 41.07424961 | T19: =366+7 -> 373 | U19: 58.92575039 | V19: 5 | W19: 1 | X19: 20 | Y19: 4 | Z19: 80
A20: DE 65 A 69 AÑOS | B20: 41 | C20: 5 | D20: 12.19512195 | E20: 36 | F20: 87.80487805 | G20: 226 | H20: 68 | I20: 30.08849558 | J20: 158 | K20: 69.91150442 | L20: 213 | M20: 62 | N20: 29.10798122 | O20: 151 | P20: 70.89201878 | Q20: 396 | R20: =124+3 -> 127 | S20: 32.07070707 | T20: =265+4 -> 269 | U20: 67.92929293 | V20: 3 | W20: 1 | X20: 33.33333333 | Y20: 2 | Z20: 66.66666667
A21: DE 70 A 74 AÑOS | B21: 14 | C21: 0 | D21: 0 | E21: 14 | F21: 100 | G21: 81 | H21: 26 | I21: 32.09876543 | J21: 55 | K21: 67.90123457 | L21: 134 | M21: 20 | N21: 14.92537313 | O21: 114 | P21: 85.07462687 | Q21: 212 | R21: =62+0 -> 62 | S21: 29.24528302 | T21: =148+2 -> 150 | U21: 70.75471698 | V21: 1 | W21: 0 | X21: 0 | Y21: 1 | Z21: 100
A22: DE 75 A 79 AÑOS | B22: 4 | C22: 0 | D22: 0 | E22: 4 | F22: 100 | G22: 37 | H22: 11 | I22: 29.72972973 | J22: 26 | K22: 70.27027027 | L22: 32 | M22: 8 | N22: 25 | O22: 24 | P22: 75 | Q22: 99 | R22: =31+0 -> 31 | S22: 31.31313131 | T22: =67+1 -> 68 | U22: 68.68686869 | V22: 0 | W22: 0 | X22: 0 | Y22: 0 | Z22: 0
A23: DE 80 A 84 AÑOS | B23: 4 | C23: 0 | D23: =+C23/$B23*100 -> 0 | E23: 4 | F23: =+E23/$B23*100 -> 100 | G23: 14 | H23: 2 | I23: 14.28571429 | J23: 12 | K23: 85.71428571 | L23: 8 | M23: 0 | N23: 0 | O23: 8 | P23: 100 | Q23: 22 | R23: =5+1 -> 6 | S23: 27.27272727 | T23: =16+0 -> 16 | U23: 72.72727273 | V23: 0 | W23: 0 | X23: 0 | Y23: 0 | Z23: 0
A24: 85 AÑOS Y MÁS | B24: 0 | C24: 0 | D24: 0 | E24: 0 | F24: 0 | G24: 4 | H24: 0 | I24: 0 | J24: 4 | K24: =+J24/$G24*100 -> 100 | L24: 3 | M24: 0 | N24: 0 | O24: 3 | P24: 100 | Q24: 9 | R24: =4+0 -> 4 | S24: 44.44444444 | T24: =4+1 -> 5 | U24: 55.55555556 | V24: 0 | W24: 0 | X24: 0 | Y24: 0 | Z24: 0
A27: 1/ Incluye Concejalías de Distrito y Concejalías Municipales de Distrito.
A28: Fuente: Tribunal Supremo de Elecciones.

Sheet 1.5
A2: CUADRO 1.5 COSTA RICA: CANDIDATURAS EN PROPIEDAD A ALCALDÍAS, REGIDURÍAS, SINDICATURAS, CONCEJALÍAS E INTENDENCIAS
A3: POR SEXO, SEGÚN PROVINCIA, ELECCIONES MUNICIPALES FEBRERO 2020
A4: (cifras absolutas y relativas)
A6: PROVINCIA | B6: ALCALDÍAS | G6: REGIDURÍAS | L6: SINDICATURAS | Q6: CONCEJALÍAS1/ | V6: INTENDENCIAS
B7: TOTAL | C7: MUJERES | E7: HOMBRES | G7: TOTAL | H7: MUJERES | J7: HOMBRES | L7: TOTAL | M7: MUJERES | O7: HOMBRES | Q7: TOTAL | R7: MUJERES | T7: HOMBRES | V7: TOTAL | W7: MUJERES | Y7: HOMBRES
C8: Absoluto | D8: % | E8: Absoluto | F8: % | H8: Absoluto | I8: % | J8: Absoluto | K8: % | M8: Absoluto | N8: % | O8: Absoluto | P8: % | R8: Absoluto | S8: % | T8: Absoluto | U8: % | W8: Absoluto | X8: % | Y8: Absoluto | Z8: %
A10: TOTAL | B10: =SUM(B11:B17) -> 692 | C10: =SUM(C11:C17) -> 159 | D10: =+C10/$B10*100 -> 22.97687861 | E10: =SUM(E11:E17) -> 533 | F10: =+E10/$B10*100 -> 77.02312139 | G10: =SUM(G11:G17) -> 4015 | H10: =SUM(H11:H17) -> 1875 | I10: =+H10/$G10*100 -> 46.69987547 | J10: =SUM(J11:J17) -> 2140 | K10: =+J10/$G10*100 -> 53.30012453 | L10: =SUM(L11:L17) -> 3692 | M10: =SUM(M11:M17) -> 1423 | N10: =+M10/$L10*100 -> 38.54279523 | O10: =SUM(O11:O17) -> 2269 | P10: =+O10/$L10*100 -> 61.45720477 | Q10: =SUM(Q11:Q17) -> 9372 | R10: =SUM(R11:R17) -> 4673 | S10: =+R10/$Q10*100 -> 49.86128895 | T10: =SUM(T11:T17) -> 4699 | U10: =+T10/$Q10*100 -> 50.13871105 | V10: =SUM(V11:V17) -> 54 | W10: =SUM(W11:W17) -> 14 | X10: =+W10/$V10*100 -> 25.92592593 | Y10: =SUM(Y11:Y17) -> 40 | Z10: =+Y10/$V10*100 -> 74.07407407
A11: SAN JOSÉ | B11: =+C11+E11 -> 169 | C11: 37 | D11: =+C11/$B11*100 -> 21.89349112 | E11: 132 | F11: =+E11/$B11*100 -> 78.10650888 | G11: =+H11+J11 -> 1122 | H11: 520 | I11: =+H11/$G11*100 -> 46.34581105 | J11: 602 | K11: =+J11/$G11*100 -> 53.65418895 | L11: =+M11+O11 -> 943 | M11: 400 | N11: =+M11/$L11*100 -> 42.41781548 | O11: 543 | P11: =+O11/$L11*100 -> 57.58218452 | Q11: =+R11+T11 -> 2382 | R11: =1194+0 -> 1194 | S11: =+R11/$Q11*100 -> 50.12594458 | T11: =1188+0 -> 1188 | U11: =+T11/$Q11*100 -> 49.87405542 | V11: =+W11+Y11 -> 0 | W11: 0 | X11: 0 | Y11: 0 | Z11: 0
A12: ALAJUELA | B12: 120 | C12: 20 | D12: 16.66666667 | E12: 100 | F12: 83.33333333 | G12: 682 | H12: 322 | I12: =+H12/$G12*100 -> 47.21407625 | J12: 360 | K12: =+J12/$G12*100 -> 52.78592375 | L12: 786 | M12: 290 | N12: 36.8956743 | O12: 496 | P12: 63.1043257 | Q12: 2130 | R12: =1057+13 -> 1070 | S12: 50.23474178 | T12: =1048+12 -> 1060 | U12: 49.76525822 | V12: 6 | W12: 2 | X12: =+W12/$V12*100 -> 33.33333333 | Y12: 4 | Z12: =+Y12/$V12*100 -> 66.66666667
A13: CARTAGO | B13: 87 | C13: 21 | D13: 24.13793103 | E13: 66 | F13: 75.86206897 | G13: 491 | H13: 229 | I13: 46.6395112 | J13: 262 | K13: 53.3604888 | L13: 496 | M13: 164 | N13: 33.06451613 | O13: 332 | P13: 66.93548387 | Q13: 1108 | R13: =530+20 -> 550 | S13: 49.63898917 | T13: =538+20 -> 558 | U13: 50.36101083 | V13: 15 | W13: 2 | X13: =+W13/$V13*100 -> 13.33333333 | Y13: 13 | Z13: =+Y13/$V13*100 -> 86.66666667
A14: HEREDIA | B14: 81 | C14: 27 | D14: 33.33333333 | E14: 54 | F14: 66.66666667 | G14: 404 | H14: 191 | I14: 47.27722772 | J14: 213 | K14: 52.72277228 | L14: 335 | M14: 140 | N14: 41.79104478 | O14: 195 | P14: 58.20895522 | Q14: 741 | R14: =360+0 -> 360 | S14: 48.58299595 | T14: =381+0 -> 381 | U14: 51.41700405 | V14: 0 | W14: 0 | X14: 0 | Y14: 0 | Z14: 0
A15: GUANACASTE | B15: 86 | C15: 21 | D15: 24.41860465 | E15: 65 | F15: 75.58139535 | G15: 449 | H15: 209 | I15: 46.54788419 | J15: 240 | K15: 53.45211581 | L15: 425 | M15: 163 | N15: 38.35294118 | O15: 262 | P15: 61.64705882 | Q15: 1159 | R15: =567+13 -> 580 | S15: 50.04314064 | T15: =568+11 -> 579 | U15: 49.95685936 | V15: 7 | W15: 4 | X15: =+W15/$V15*100 -> 57.14285714 | Y15: 3 | Z15: =+Y15/$V15*100 -> 42.85714286
A16: PUNTARENAS | B16: 79 | C16: 15 | D16: 18.98734177 | E16: 64 | F16: 81.01265823 | G16: 432 | H16: 201 | I16: 46.52777778 | J16: 231 | K16: 53.47222222 | L16: 373 | M16: 120 | N16: 32.17158177 | O16: 253 | P16: 67.82841823 | Q16: 1053 | R16: =476+50 -> 526 | S16: 49.95251662 | T16: =474+53 -> 527 | U16: 50.04748338 | V16: 26 | W16: 6 | X16: =+W16/$V16*100 -> 23.07692308 | Y16: 20 | Z16: =+Y16/$V16*100 -> 76.92307692
A17: LIMÓN | B17: 70 | C17: 18 | D17: 25.71428571 | E17: 52 | F17: 74.28571429 | G17: 435 | H17: 203 | I17: 46.66666667 | J17: 232 | K17: 53.33333333 | L17: 334 | M17: 146 | N17: 43.71257485 | O17: 188 | P17: 56.28742515 | Q17: 799 | R17: =393+0 -> 393 | S17: 49.1864831 | T17: =406+0 -> 406 | U17: 50.8135169 | V17: 0 | W17: 0 | X17: 0 | Y17: 0 | Z17: 0
A20: 1/ Incluye Concejalías de Distrito y Concejalías Municipales de Distrito.
A21: Fuente: Tribunal Supremo de Elecciones.

Sheet 1.6
A2: CUADRO 1.6 COSTA RICA: CANDIDATURAS A REGIDURÍAS EN PROPIEDAD, POR ORDEN DEL PUESTO Y SEXO
A3: SEGÚN PARTIDO POLÍTICO, ELECCIONES MUNICIPALES FEBRERO 2020
A4: (cifras absolutas y relativas)
A6: PARTIDO POLÍTICO | B6: TOTAL | G6: PRIMER PUESTO | L6: SEGUNDO PUESTO | Q6: TERCER PUESTO | V6: CUARTO PUESTO | AA6: QUINTO PUESTO | AF6: SEXTO PUESTO Y MÁS
B7: TOTAL | C7: MUJERES | E7: HOMBRES | G7: TOTAL | H7: MUJERES | J7: HOMBRES | L7: TOTAL | M7: MUJERES | O7: HOMBRES | Q7: TOTAL | R7: MUJERES | T7: HOMBRES | V7: TOTAL | W7: MUJERES | Y7: HOMBRES | AA7: TOTAL | AB7: MUJERES | AD7: HOMBRES | AF7: TOTAL | AG7: MUJERES | AI7: HOMBRES
C8: Absoluto | D8: % | E8: Absoluto | F8: % | H8: Absoluto | I8: % | J8: Absoluto | K8: % | M8: Absoluto | N8: % | O8: Absoluto | P8: % | R8: Absoluto | S8: % | T8: Absoluto | U8: % | W8: Absoluto | X8: % | Y8: Absoluto | Z8: % | AB8: Absoluto | AC8: % | AD8: Absoluto | AE8: % | AG8: Absoluto | AH8: % | AI8: Absoluto | AJ8: %
A10: TOTAL | B10: =SUM(B11:B96) -> 5894 | C10: =SUM(C11:C96) -> 2931 | D10: =+C10/$B10*100 -> 49.7285375 | E10: =SUM(E11:E96) -> 2990 | F10: =+E10/$B10*100 -> 50.72955548 | G10: =SUM(G11:G96) -> 733 | H10: =SUM(H11:H96) -> 211 | I10: =+H10/$G10*100 -> 28.78581173 | J10: =SUM(J11:J96) -> 522 | K10: =+J10/$G10*100 -> 71.21418827 | L10: =SUM(L11:L96) -> 708 | M10: =SUM(M11:M96) -> 506 | N10: =+M10/$L10*100 -> 71.46892655 | O10: =SUM(O11:O96) -> 202 | P10: =+O10/$L10*100 -> 28.53107345 | Q10: =SUM(Q11:Q96) -> 686 | R10: =SUM(R11:R96) -> 197 | S10: =+R10/$Q10*100 -> 28.71720117 | T10: =SUM(T11:T96) -> 489 | U10: =+T10/$Q10*100 -> 71.28279883 | V10: =SUM(V11:V96) -> 618 | W10: =SUM(W11:W96) -> 439 | X10: =+W10/$V10*100 -> 71.03559871 | Y10: =SUM(Y11:Y96) -> 179 | Z10: =+Y10/$V10*100 -> 28.96440129 | AA10: =SUM(AA11:AA96) -> 554 | AB10: =SUM(AB11:AB96) -> 156 | AC10: =+AB10/$AA10*100 -> 28.15884477 | AD10: =SUM(AD11:AD96) -> 398 | AE10: =+AD10/$AA10*100 -> 71.84115523 | AF10: =SUM(AF11:AF96) -> 716 | AG10: =SUM(AG11:AG96) -> 366 | AH10: =+AG10/$AF10*100 -> 51.11731844 | AI10: =SUM(AI11:AI96) -> 350 | AJ10: =+AI10/$AF10*100 -> 48.88268156
A11: ACCESIBILIDAD SIN EXCLUSIÓN | B11: =+C11+E11 -> 239 | C11: 116 | D11: =+C11/$B11*100 -> 48.53556485 | E11: 123 | F11: =+E11/$B11*100 -> 51.46443515 | G11: =+H11+J11 -> 6 | H11: 1 | I11: =+H11/$G11*100 -> 16.66666667 | J11: 5 | K11: =+J11/$G11*100 -> 83.33333333 | L11: =+M11+O11 -> 4 | M11: 3 | N11: =+M11/$L11*100 -> 75 | O11: 1 | P11: =+O11/$L11*100 -> 25 | Q11: =+R11+T11 -> 4 | R11: 1 | S11: =+R11/$Q11*100 -> 25 | T11: 3 | U11: =+T11/$Q11*100 -> 75 | V11: =+W11+Y11 -> 3 | W11: 2 | X11: =+W11/$V11*100 -> 66.66666667 | Y11: 1 | Z11: =+Y11/$V11*100 -> 33.33333333 | AA11: =+AB11+AD11 -> 3 | AB11: 1 | AC11: =+AB11/$AA11*100 -> 33.33333333 | AD11: 2 | AE11: =+AD11/$AA11*100 -> 66.66666667 | AF11: =+AG11+AI11 -> 9 | AG11: 5 | AH11: =+AG11/$AF11*100 -> 55.55555556 | AI11: 4 | AJ11: =+AI11/$AF11*100 -> 44.44444444
A12: ACCIÓN CANTONAL SIQUIRRES INDEPENDIENTE | B12: 20 | C12: 10 | D12: 50 | E12: 10 | F12: 50 | G12: =+H12+J12 -> 1 | H12: 0 | I12: 0 | J12: 1 | K12: 100 | L12: 1 | M12: 1 | N12: 100 | O12: 0 | P12: 0 | Q12: 1 | R12: 0 | S12: =+R12/$Q12*100 -> 0 | T12: 1 | U12: =+T12/$Q12*100 -> 100 | V12: =+W12+Y12 -> 1 | W12: 1 | X12: =+W12/$V12*100 -> 100 | Y12: 0 | Z12: =+Y12/$V12*100 -> 0 | AA12: =+AB12+AD12 -> 1 | AB12: 0 | AC12: =+AB12/$AA12*100 -> 0 | AD12: 1 | AE12: =+AD12/$AA12*100 -> 100 | AF12: =+AG12+AI12 -> 2 | AG12: 1 | AH12: =+AG12/$AF12*100 -> 50 | AI12: 1 | AJ12: =+AI12/$AF12*100 -> 50
A13: ACCIÓN CIUDADANA | B13: 851 | C13: 418 | D13: 49.1186839 | E13: 433 | F13: 50.8813161 | G13: 50 | H13: 31 | I13: 62 | J13: 19 | K13: 38 | L13: 49 | M13: 18 | N13: 36.73469388 | O13: 31 | P13: 63.26530612 | Q13: 47 | R13: 29 | S13: 61.70212766 | T13: 18 | U13: 38.29787234 | V13: 41 | W13: 13 | X13: 31.70731707 | Y13: 28 | Z13: 68.29268293 | AA13: 36 | AB13: 25 | AC13: 69.44444444 | AD13: 11 | AE13: 30.55555556 | AF13: 58 | AG13: 29 | AH13: =+AG13/$AF13*100 -> 50 | AI13: 29 | AJ13: =+AI13/$AF13*100 -> 50
A14: ACCIÓN NARANJEÑA | B14: 9 | C14: 4 | D14: 44.44444444 | E14: 5 | F14: 55.55555556 | G14: 1 | H14: 0 | I14: 0 | J14: 1 | K14: 100 | L14: 1 | M14: 1 | N14: 100 | O14: 0 | P14: 0 | Q14: 1 | R14: 0 | S14: 0 | T14: 1 | U14: 100 | V14: 1 | W14: 1 | X14: 100 | Y14: 0 | Z14: 0 | AA14: 1 | AB14: 0 | AC14: 0 | AD14: 1 | AE14: 100 | AF14: 0 | AG14: 0 | AH14: 0 | AI14: 0 | AJ14: 0
A15: ACTUEMOS YA | B15: 52 | C15: 26 | D15: 50 | E15: 26 | F15: 50 | G15: 7 | H15: 2 | I15: 28.57142857 | J15: 5 | K15: 71.42857143 | L15: 7 | M15: 5 | N15: 71.42857143 | O15: 2 | P15: 28.57142857 | Q15: 7 | R15: 2 | S15: 28.57142857 | T15: 5 | U15: 71.42857143 | V15: 7 | W15: 5 | X15: 71.42857143 | Y15: 2 | Z15: 28.57142857 | AA15: 5 | AB15: 1 | AC15: 20 | AD15: 4 | AE15: 80 | AF15: 4 | AG15: 2 | AH15: =+AG15/$AF15*100 -> 50 | AI15: 2 | AJ15: =+AI15/$AF15*100 -> 50
A16: ACUERDO DE ALIANZA DE QUEPOS | B16: 44 | C16: 24 | D16: 54.54545455 | E16: 20 | F16: 45.45454545 | G16: 1 | H16: 0 | I16: 0 | J16: 1 | K16: 100 | L16: 1 | M16: 1 | N16: 100 | O16: 0 | P16: 0 | Q16: 1 | R16: 0 | S16: 0 | T16: 1 | U16: 100 | V16: 1 | W16: 1 | X16: 100 | Y16: 0 | Z16: 0 | AA16: 1 | AB16: 0 | AC16: 0 | AD16: 1 | AE16: 100 | AF16: 0 | AG16: 0 | AH16: 0 | AI16: 0 | AJ16: 0
A17: ALIANZA DEMOCRATA CRISTIANA | B17: 11 | C17: 5 | D17: 45.45454545 | E17: 6 | F17: 54.54545455 | G17: 17 | H17: 5 | I17: 29.41176471 | J17: 12 | K17: 70.58823529 | L17: 16 | M17: 11 | N17: 68.75 | O17: 5 | P17: 31.25 | Q17: 16 | R17: 5 | S17: 31.25 | T17: 11 | U17: 68.75 | V17: 15 | W17: 11 | X17: 73.33333333 | Y17: 4 | Z17: 26.66666667 | AA17: 13 | AB17: 2 | AC17: 15.38461538 | AD17: 11 | AE17: 84.61538462 | AF17: 14 | AG17: 8 | AH17: 0 | AI17: 6 | AJ17: 0
A18: ALIANZA POR PALMARES | B18: 11 | C18: 5 | D18: 45.45454545 | E18: 6 | F18: 54.54545455 | G18: 1 | H18: 0 | I18: 0 | J18: 1 | K18: 100 | L18: 1 | M18: 1 | N18: 100 | O18: 0 | P18: 0 | Q18: 1 | R18: 0 | S18: 0 | T18: 1 | U18: 100 | V18: 1 | W18: 1 | X18: 100 | Y18: 0 | Z18: 0 | AA18: 1 | AB18: 0 | AC18: 0 | AD18: 1 | AE18: 100 | AF18: 0 | AG18: 0 | AH18: 0 | AI18: 0 | AJ18: 0
A19: ALIANZA POR SAN JOSÉ | B19: 7 | C19: 3 | D19: 42.85714286 | E19: 4 | F19: 57.14285714 | G19: 1 | H19: 0 | I19: 0 | J19: 1 | K19: 100 | L19: 1 | M19: 1 | N19: 100 | O19: 0 | P19: 0 | Q19: 1 | R19: 0 | S19: 0 | T19: 1 | U19: 100 | V19: 1 | W19: 1 | X19: 100 | Y19: 0 | Z19: 0 | AA19: 1 | AB19: 0 | AC19: 0 | AD19: 1 | AE19: 100 | AF19: 6 | AG19: 3 | AH19: =+AG19/$AF19*100 -> 50 | AI19: 3 | AJ19: =+AI19/$AF19*100 -> 50
A20: ALIANZA POR SARCHÍ | B20: 16 | C20: 8 | D20: 50 | E20: 8 | F20: 50 | G20: 1 | H20: 1 | I20: 100 | J20: 0 | K20: 0 | L20: 1 | M20: 0 | N20: 0 | O20: 1 | P20: 100 | Q20: 1 | R20: 1 | S20: 100 | T20: 0 | U20: 0 | V20: 1 | W20: 0 | X20: 0 | Y20: 1 | Z20: 100 | AA20: 1 | AB20: 1 | AC20: 100 | AD20: 0 | AE20: 0 | AF20: 0 | AG20: 0 | AH20: 0 | AI20: 0 | AJ20: 0
A21: ALIANZA SOCIAL POR LA UNIÓN | B21: 44 | C21: 22 | D21: 50 | E21: 22 | F21: 50 | G21: 1 | H21: 0 | I21: 0 | J21: 1 | K21: 100 | L21: 1 | M21: 1 | N21: 100 | O21: 0 | P21: 0 | Q21: 1 | R21: 0 | S21: 0 | T21: 1 | U21: 100 | V21: 1 | W21: 1 | X21: 100 | Y21: 0 | Z21: 0 | AA21: 1 | AB21: 0 | AC21: 0 | AD21: 1 | AE21: 100 | AF21: 4 | AG21: 2 | AH21: =+AG21/$AF21*100 -> 50 | AI21: 2 | AJ21: =+AI21/$AF21*100 -> 50
A22: ANTICORRUPCIÓN COSTARRICENSE | B22: 14 | C22: 8 | D22: 57.14285714 | E22: 6 | F22: 42.85714286 | G22: 1 | H22: 0 | I22: 0 | J22: 1 | K22: 100 | L22: 1 | M22: 1 | N22: 100 | O22: 0 | P22: 0 | Q22: 1 | R22: 0 | S22: 0 | T22: 1 | U22: 100 | V22: 1 | W22: 1 | X22: 100 | Y22: 0 | Z22: 0 | AA22: 1 | AB22: 0 | AC22: 0 | AD22: 1 | AE22: 100 | AF22: 4 | AG22: 2 | AH22: =+AG22/$AF22*100 -> 50 | AI22: 2 | AJ22: =+AI22/$AF22*100 -> 50
A23: AUTÉNTICO LABRADOR DE CORONADO | C23: 14 | E23: 13 | G23: 1 | H23: 1 | I23: 100 | J23: 0 | K23: 0 | L23: 1 | M23: 0 | N23: 0 | O23: 1 | P23: 100 | Q23: 1 | R23: 1 | S23: 100 | T23: 0 | U23: 0 | V23: 1 | W23: 0 | X23: 0 | Y23: 1 | Z23: 100 | AA23: 1 | AB23: 1 | AC23: 100 | AD23: 0 | AE23: 0 | AF23: 1 | AG23: 0 | AH23: =+AG23/$AF23*100 -> 0 | AI23: 1 | AJ23: =+AI23/$AF23*100 -> 100
A24: AUTÉNTICO LIMONENSE | B24: 43 | C24: 21 | D24: 48.8372093 | E24: 22 | F24: 51.1627907 | G24: 3 | H24: 1 | I24: 33.33333333 | J24: 2 | K24: 66.66666667 | L24: 3 | M24: 2 | N24: 66.66666667 | O24: 1 | P24: 33.33333333 | Q24: 3 | R24: 1 | S24: 33.33333333 | T24: 2 | U24: 66.66666667 | V24: 2 | W24: 2 | X24: 100 | Y24: 0 | Z24: 0 | AA24: 2 | AB24: 0 | AC24: 0 | AD24: 2 | AE24: 100 | AF24: 2 | AG24: 1 | AH24: 0 | AI24: 1 | AJ24: 0
A25: AUTÉNTICO NICOYANO | B25: 51 | C25: 25 | D25: 49.01960784 | E25: 26 | F25: 50.98039216 | G25: 1 | H25: 0 | I25: 0 | J25: 1 | K25: 100 | L25: 1 | M25: 1 | N25: 100 | O25: 0 | P25: 0 | Q25: 1 | R25: 0 | S25: 0 | T25: 1 | U25: 100 | V25: 1 | W25: 1 | X25: 100 | Y25: 0 | Z25: 0 | AA25: 1 | AB25: 0 | AC25: 0 | AD25: 1 | AE25: 100 | AF25: 2 | AG25: 1 | AH25: =+AG25/$AF25*100 -> 50 | AI25: 1 | AJ25: =+AI25/$AF25*100 -> 50
A26: AUTÉNTICO SANTACRUCEÑO | B26: 15 | C26: 9 | D26: 60 | E26: 6 | F26: 40 | G26: 1 | H26: 0 | I26: 0 | J26: 1 | K26: 100 | L26: 1 | M26: 1 | N26: 100 | O26: 0 | P26: 0 | Q26: 1 | R26: 0 | S26: 0 | T26: 1 | U26: 100 | V26: 1 | W26: 1 | X26: 100 | Y26: 0 | Z26: 0 | AA26: 1 | AB26: 0 | AC26: 0 | AD26: 1 | AE26: 100 | AF26: 2 | AG26: 1 | AH26: 0 | AI26: 1 | AJ26: 0
A27: AUTÉNTICO SIQUIRREÑO | B27: 16 | C27: 8 | D27: 50 | E27: 8 | F27: 50 | G27: 1 | H27: 0 | I27: 0 | J27: 1 | K27: 100 | L27: 1 | M27: 1 | N27: 100 | O27: 0 | P27: 0 | Q27: 1 | R27: 0 | S27: 0 | T27: 1 | U27: 100 | V27: 1 | W27: 1 | X27: 100 | Y27: 0 | Z27: 0 | AA27: 1 | AB27: 0 | AC27: 0 | AD27: 1 | AE27: 100 | AF27: 2 | AG27: 1 | AH27: 0 | AI27: 1 | AJ27: 0
A28: AUTONOMO OROMONTANO | B28: 23 | C28: 11 | D28: 47.82608696 | E28: 12 | F28: 52.17391304 | G28: 1 | H28: 1 | I28: 100 | J28: 0 | K28: 0 | L28: 1 | M28: 0 | N28: 0 | O28: 1 | P28: 100 | Q28: 1 | R28: 1 | S28: 100 | T28: 0 | U28: 0 | V28: 1 | W28: 0 | X28: 0 | Y28: 1 | Z28: 100 | AA28: 0 | AB28: 0 | AC28: 0 | AD28: 0 | AE28: 0 | AF28: 0 | AG28: 0 | AH28: 0 | AI28: 0 | AJ28: 0
A29: AVANCE ISIDREÑO | B29: 19 | C29: 10 | D29: 52.63157895 | E29: 9 | F29: 47.36842105 | G29: 1 | H29: 0 | I29: 0 | J29: 1 | K29: 100 | L29: 1 | M29: 1 | N29: 100 | O29: 0 | P29: 0 | Q29: 1 | R29: 0 | S29: 0 | T29: 1 | U29: 100 | V29: 1 | W29: 1 | X29: 100 | Y29: 0 | Z29: 0 | AA29: 0 | AB29: 0 | AC29: 0 | AD29: 0 | AE29: 0 | AF29: 0 | AG29: 0 | AH29: 0 | AI29: 0 | AJ29: 0
A30: AVANCE MONTES DE OCA | B30: 89 | C30: 45 | D30: 50.56179775 | E30: 44 | F30: 49.43820225 | G30: 1 | H30: 0 | I30: 0 | J30: 1 | K30: 100 | L30: 1 | M30: 1 | N30: 100 | O30: 0 | P30: 0 | Q30: 1 | R30: 0 | S30: 0 | T30: 1 | U30: 100 | V30: 0 | W30: 0 | X30: 0 | Y30: 0 | Z30: 0 | AA30: 0 | AB30: 0 | AC30: 0 | AD30: 0 | AE30: 0 | AF30: 0 | AG30: 0 | AH30: 0 | AI30: 0 | AJ30: 0
A31: AVANTE POCOCÍ | B31: 7 | C31: 3 | D31: 42.85714286 | E31: 4 | F31: 57.14285714 | G31: 1 | H31: 1 | I31: 100 | J31: 0 | K31: 0 | L31: 1 | M31: 0 | N31: 0 | O31: 1 | P31: 100 | Q31: 1 | R31: 1 | S31: 100 | T31: 0 | U31: 0 | V31: 1 | W31: 0 | X31: 0 | Y31: 1 | Z31: 100 | AA31: 0 | AB31: 0 | AC31: 0 | AD31: 0 | AE31: 0 | AF31: 0 | AG31: 0 | AH31: 0 | AI31: 0 | AJ31: 0
A32: BARVA UNIDA | B32: 24 | C32: 12 | D32: 50 | E32: 12 | F32: 50 | G32: 1 | H32: 1 | I32: 100 | J32: 0 | K32: 0 | L32: 1 | M32: 0 | N32: 0 | O32: 1 | P32: 100 | Q32: 1 | R32: 1 | S32: 100 | T32: 0 | U32: 0 | V32: 1 | W32: 0 | X32: 0 | Y32: 1 | Z32: 100 | AA32: 1 | AB32: 1 | AC32: 100 | AD32: 0 | AE32: 0 | AF32: 0 | AG32: 0 | AH32: 0 | AI32: 0 | AJ32: 0
A33: CANTONAL DE CARRILLO | B33: 9 | C33: 5 | D33: 55.55555556 | E33: 4 | F33: 44.44444444 | G33: 1 | H33: 0 | I33: 0 | J33: 1 | K33: 100 | L33: 1 | M33: 1 | N33: 100 | O33: 0 | P33: 0 | Q33: 1 | R33: 0 | S33: 0 | T33: 1 | U33: 100 | V33: 1 | W33: 1 | X33: 100 | Y33: 0 | Z33: 0 | AA33: 0 | AB33: 0 | AC33: 0 | AD33: 0 | AE33: 0 | AF33: 0 | AG33: 0 | AH33: 0 | AI33: 0 | AJ33: 0
A34: COALICIÓN ALIANZA POR NICOYA | B34: 140 | C34: 65 | D34: 46.42857143 | E34: 75 | F34: 53.57142857 | G34: 1 | H34: 0 | I34: 0 | J34: 1 | K34: 100 | L34: 1 | M34: 1 | N34: 100 | O34: 0 | P34: 0 | Q34: 1 | R34: 0 | S34: 0 | T34: 1 | U34: 100 | V34: 1 | W34: 1 | X34: 100 | Y34: 0 | Z34: 0 | AA34: 1 | AB34: 0 | AC34: 0 | AD34: 1 | AE34: 100 | AF34: 2 | AG34: 1 | AH34: =+AG34/$AF34*100 -> 50 | AI34: 1 | AJ34: =+AI34/$AF34*100 -> 50
A35: COALICIÓN ASERRÍ DE TODOS | B35: 1782 | C35: 889 | D35: 49.88776655 | E35: 893 | F35: 50.11223345 | G35: 1 | H35: 0 | I35: 0 | J35: 1 | K35: 100 | L35: 1 | M35: 1 | N35: 100 | O35: 0 | P35: 0 | Q35: 1 | R35: 0 | S35: 0 | T35: 1 | U35: 100 | V35: 0 | W35: 0 | X35: 0 | Y35: 0 | Z35: 0 | AA35: 0 | AB35: 0 | AC35: 0 | AD35: 0 | AE35: 0 | AF35: 0 | AG35: 0 | AH35: 0 | AI35: 0 | AJ35: 0
A36: COALICIÓN GENTE MONTES DE OCA | B36: 24 | C36: 12 | D36: 50 | E36: 12 | F36: 50 | G36: 1 | H36: 0 | I36: 0 | J36: 1 | K36: 100 | L36: 1 | M36: 1 | N36: 100 | O36: 0 | P36: 0 | Q36: 1 | R36: 0 | S36: 0 | T36: 1 | U36: 100 | V36: 1 | W36: 1 | X36: 100 | Y36: 0 | Z36: 0 | AA36: 1 | AB36: 0 | AC36: 0 | AD36: 1 | AE36: 100 | AF36: 1 | AG36: 1 | AH36: =+AG36/$AF36*100 -> 100 | AI36: 0 | AJ36: =+AI36/$AF36*100 -> 0
A37: COALICIÓN JUNTOS | B37: 11 | C37: 6 | D37: 54.54545455 | E37: 5 | F37: 45.45454545 | G37: 1 | H37: 0 | I37: 0 | J37: 1 | K37: 100 | L37: 1 | M37: 1 | N37: 100 | O37: 0 | P37: 0 | Q37: 1 | R37: 0 | S37: 0 | T37: 1 | U37: 100 | V37: 1 | W37: 1 | X37: 100 | Y37: 0 | Z37: 0 | AA37: 1 | AB37: 0 | AC37: 0 | AD37: 1 | AE37: 100 | AF37: 6 | AG37: 3 | AH37: =+AG37/$AF37*100 -> 50 | AI37: 3 | AJ37: =+AI37/$AF37*100 -> 50
A38: COALICIÓN UNIDAD POR FLORES | B38: 903 | C38: 445 | D38: 49.28017719 | E38: 458 | F38: 50.71982281 | G38: 1 | H38: 1 | I38: 100 | J38: 0 | K38: 0 | L38: 1 | M38: 0 | N38: 0 | O38: 1 | P38: 100 | Q38: 1 | R38: 1 | S38: 100 | T38: 0 | U38: 0 | V38: 1 | W38: 0 | X38: 0 | Y38: 1 | Z38: 100 | AA38: 1 | AB38: 1 | AC38: 100 | AD38: 0 | AE38: 0 | AF38: 0 | AG38: 0 | AH38: 0 | AI38: 0 | AJ38: 0
A39: COALICIÓN UNIÓN BELEMITA | B39: 11 | C39: 6 | D39: 54.54545455 | E39: 5 | F39: 45.45454545 | G39: 1 | H39: 1 | I39: 100 | J39: 0 | K39: 0 | L39: 1 | M39: 0 | N39: 0 | O39: 1 | P39: 100 | Q39: 1 | R39: 1 | S39: 100 | T39: 0 | U39: 0 | V39: 1 | W39: 0 | X39: 0 | Y39: 1 | Z39: 100 | AA39: 1 | AB39: 1 | AC39: 100 | AD39: 0 | AE39: 0 | AF39: 0 | AG39: 0 | AH39: 0 | AI39: 0 | AJ39: 0
A40: COMUNAL UNIDO | B40: 19 | C40: 9 | D40: 47.36842105 | E40: 10 | F40: 52.63157895 | G40: 9 | H40: 2 | I40: 22.22222222 | J40: 7 | K40: 77.77777778 | L40: 9 | M40: 7 | N40: 77.77777778 | O40: 2 | P40: 22.22222222 | Q40: 9 | R40: 2 | S40: 22.22222222 | T40: 7 | U40: 77.77777778 | V40: 9 | W40: 7 | X40: 77.77777778 | Y40: 2 | Z40: 22.22222222 | AA40: 9 | AB40: 2 | AC40: 22.22222222 | AD40: 7 | AE40: 77.77777778 | AF40: 20 | AG40: 10 | AH40: 0 | AI40: 10 | AJ40: 0
A41: CURRIDABAT SIGLO XXI | B41: 289 | C41: 145 | D41: 50.17301038 | E41: 144 | F41: 49.82698962 | G41: 1 | H41: 1 | I41: 100 | J41: 0 | K41: 0 | L41: 1 | M41: 0 | N41: 0 | O41: 1 | P41: 100 | Q41: 1 | R41: 1 | S41: 100 | T41: 0 | U41: 0 | V41: 1 | W41: 0 | X41: 0 | Y41: 1 | Z41: 100 | AA41: 1 | AB41: 1 | AC41: 100 | AD41: 0 | AE41: 0 | AF41: 2 | AG41: 1 | AH41: =+AG41/$AF41*100 -> 50 | AI41: 1 | AJ41: =+AI41/$AF41*100 -> 50
A42: DEL SOL | B42: 51 | C42: 23 | D42: 45.09803922 | E42: 28 | F42: 54.90196078 | G42: 1 | H42: 1 | I42: 100 | J42: 0 | K42: 0 | L42: 1 | M42: 0 | N42: 0 | O42: 1 | P42: 100 | Q42: 1 | R42: 1 | S42: 100 | T42: 0 | U42: 0 | V42: 1 | W42: 0 | X42: 0 | Y42: 1 | Z42: 100 | AA42: 1 | AB42: 1 | AC42: 100 | AD42: 0 | AE42: 0 | AF42: 2 | AG42: 1 | AH42: =+AG42/$AF42*100 -> 50 | AI42: 1 | AJ42: =+AI42/$AF42*100 -> 50
A43: DESARROLLO TALAMANQUEÑO | B43: 21 | C43: 12 | D43: 57.14285714 | E43: 9 | F43: 42.85714286 | G43: 1 | H43: 0 | I43: 0 | J43: 1 | K43: 100 | L43: 1 | M43: 1 | N43: 100 | O43: 0 | P43: 0 | Q43: 1 | R43: 0 | S43: 0 | T43: 1 | U43: 100 | V43: 1 | W43: 1 | X43: 100 | Y43: 0 | Z43: 0 | AA43: 1 | AB43: 0 | AC43: 0 | AD43: 1 | AE43: 100 | AF43: 0 | AG43: 0 | AH43: 0 | AI43: 0 | AJ43: 0
A44: DESPERTAR ALAJUELENSE | B44: 5 | C44: 1 | D44: 20 | E44: 4 | F44: 80 | G44: 1 | H44: 1 | I44: 100 | J44: 0 | K44: 0 | L44: 1 | M44: 0 | N44: 0 | O44: 1 | P44: 100 | Q44: 1 | R44: 1 | S44: 100 | T44: 0 | U44: 0 | V44: 1 | W44: 0 | X44: 0 | Y44: 1 | Z44: 100 | AA44: 1 | AB44: 1 | AC44: 100 | AD44: 0 | AE44: 0 | AF44: 6 | AG44: 3 | AH44: =+AG44/$AF44*100 -> 50 | AI44: 3 | AJ44: =+AI44/$AF44*100 -> 50
A45: ECOLÓGICO COMUNAL COSTARRICENSE | B45: 11 | C45: 5 | D45: 45.45454545 | E45: 6 | F45: 54.54545455 | G45: 1 | H45: 0 | I45: 0 | J45: 1 | K45: 100 | L45: 1 | M45: 1 | N45: 100 | O45: 0 | P45: 0 | Q45: 1 | R45: 0 | S45: 0 | T45: 1 | U45: 100 | V45: 1 | W45: 1 | X45: 100 | Y45: 0 | Z45: 0 | AA45: 1 | AB45: 0 | AC45: 0 | AD45: 1 | AE45: 100 | AF45: 5 | AG45: 3 | AH45: =+AG45/$AF45*100 -> 60 | AI45: 2 | AJ45: =+AI45/$AF45*100 -> 40
A46: FRENTE AMPLIO | B46: 12 | C46: 6 | D46: 50 | E46: 6 | F46: 50 | G46: 38 | H46: 22 | I46: 57.89473684 | J46: 16 | K46: 42.10526316 | L46: 35 | M46: 14 | N46: 40 | O46: 21 | P46: 60 | Q46: 33 | R46: 19 | S46: 57.57575758 | T46: 14 | U46: 42.42424242 | V46: 25 | W46: 9 | X46: 36 | Y46: 16 | Z46: 64 | AA46: 20 | AB46: 13 | AC46: 65 | AD46: 7 | AE46: 35 | AF46: 35 | AG46: 16 | AH46: =+AG46/$AF46*100 -> 45.71428571 | AI46: 19 | AJ46: =+AI46/$AF46*100 -> 54.28571429
A47: FUERZA SARCHÍSEÑA | B47: 16 | C47: 8 | D47: 50 | E47: 8 | F47: 50 | G47: 1 | H47: 0 | I47: 0 | J47: 1 | K47: 100 | L47: 1 | M47: 1 | N47: 100 | O47: 0 | P47: 0 | Q47: 1 | R47: 0 | S47: 0 | T47: 1 | U47: 100 | V47: 1 | W47: 1 | X47: 100 | Y47: 0 | Z47: 0 | AA47: 1 | AB47: 0 | AC47: 0 | AD47: 1 | AE47: 100 | AF47: 0 | AG47: 0 | AH47: 0 | AI47: 0 | AJ47: 0
A48: GOICOECHEA EN ACCIÓN | B48: 890 | C48: 441 | D48: 49.5505618 | E48: 449 | F48: 50.4494382 | G48: 1 | H48: 1 | I48: 100 | J48: 0 | K48: 0 | L48: 1 | M48: 0 | N48: 0 | O48: 1 | P48: 100 | Q48: 1 | R48: 1 | S48: 100 | T48: 0 | U48: 0 | V48: 1 | W48: 0 | X48: 0 | Y48: 1 | Z48: 100 | AA48: 0 | AB48: 0 | AC48: 0 | AD48: 0 | AE48: 0 | AF48: 0 | AG48: 0 | AH48: 0 | AI48: 0 | AJ48: 0
A49: GUANACASTE PRIMERO | B49: 32 | C49: 16 | D49: 50 | E49: 16 | F49: 50 | G49: 1 | H49: 0 | I49: 0 | J49: 1 | K49: 100 | L49: 1 | M49: 1 | N49: 100 | O49: 0 | P49: 0 | Q49: 1 | R49: 0 | S49: 0 | T49: 1 | U49: 100 | V49: 1 | W49: 1 | X49: 100 | Y49: 0 | Z49: 0 | AA49: 1 | AB49: 0 | AC49: 0 | AD49: 1 | AE49: 100 | AF49: 0 | AG49: 0 | AH49: 0 | AI49: 0 | AJ49: 0
A50: INNOVACIÓN CANTONAL | B50: 27 | C50: 13 | D50: 48.14814815 | E50: 14 | F50: 51.85185185 | G50: 1 | H50: 0 | I50: 0 | J50: 1 | K50: 100 | L50: 1 | M50: 1 | N50: 100 | O50: 0 | P50: 0 | Q50: 1 | R50: 0 | S50: 0 | T50: 1 | U50: 100 | V50: 1 | W50: 1 | X50: 100 | Y50: 0 | Z50: 0 | AA50: 1 | AB50: 0 | AC50: 0 | AD50: 1 | AE50: 100 | AF50: 4 | AG50: 2 | AH50: =+AG50/$AF50*100 -> 50 | AI50: 2 | AJ50: =+AI50/$AF50*100 -> 50
A51: INTEGRACIÓN NACIONAL | B51: 28 | C51: 14 | D51: 50 | E51: 14 | F51: 50 | G51: 32 | H51: 12 | I51: 37.5 | J51: 20 | K51: 62.5 | L51: 29 | M51: 20 | N51: 68.96551724 | O51: 9 | P51: 31.03448276 | Q51: 27 | R51: 9 | S51: 33.33333333 | T51: 18 | U51: 66.66666667 | V51: 25 | W51: 16 | X51: 64 | Y51: 9 | Z51: 36 | AA51: 18 | AB51: 7 | AC51: 38.88888889 | AD51: 11 | AE51: 61.11111111 | AF51: 20 | AG51: 11 | AH51: 0 | AI51: 9 | AJ51: 0
A52: IZQUIERDA COSTARRICENSE | G52: 6 | H52: 3 | I52: 50 | J52: 3 | K52: 50 | L52: 6 | M52: 3 | N52: 50 | O52: 3 | P52: 50 | Q52: 6 | R52: 3 | S52: 50 | T52: 3 | U52: 50 | V52: 6 | W52: 3 | X52: 50 | Y52: 3 | Z52: 50 | AA52: 5 | AB52: 2 | AC52: 40 | AD52: 3 | AE52: 60 | AF52: 2 | AG52: 1 | AH52: 0 | AI52: 1 | AJ52: 0
A53: JUSTICIA SOCIAL | G53: 1 | H53: 0 | I53: 0 | J53: 1 | K53: 100 | L53: 1 | M53: 1 | N53: 100 | O53: 0 | P53: 0 | Q53: 1 | R53: 0 | S53: 0 | T53: 1 | U53: 100 | V53: 1 | W53: 1 | X53: 100 | Y53: 0 | Z53: 0 | AA53: 1 | AB53: 0 | AC53: 0 | AD53: 1 | AE53: 100 | AF53: 0 | AG53: 0 | AH53: 0 | AI53: 0 | AJ53: 0
A54: JUSTICIA SOCIAL COSTARRICENSE | G54: 6 | H54: 2 | I54: 33.33333333 | J54: 4 | K54: 66.66666667 | L54: 4 | M54: 2 | N54: 50 | O54: 2 | P54: 50 | Q54: 4 | R54: 2 | S54: 50 | T54: 2 | U54: 50 | V54: 4 | W54: 2 | X54: 50 | Y54: 2 | Z54: 50 | AA54: 4 | AB54: 2 | AC54: 50 | AD54: 2 | AE54: 50 | AF54: 5 | AG54: 3 | AH54: 0 | AI54: 2 | AJ54: 0
A55: LA FUERZA DE LA UNIÓN | G55: 1 | H55: 0 | I55: 0 | J55: 1 | K55: 100 | L55: 1 | M55: 1 | N55: 100 | O55: 0 | P55: 0 | Q55: 1 | R55: 0 | S55: 0 | T55: 1 | U55: 100 | V55: 0 | W55: 0 | X55: 0 | Y55: 0 | Z55: 0 | AA55: 0 | AB55: 0 | AC55: 0 | AD55: 0 | AE55: 0 | AF55: 0 | AG55: 0 | AH55: 0 | AI55: 0 | AJ55: 0
A56: LA GRAN NICOYA | G56: 1 | H56: 0 | I56: 0 | J56: 1 | K56: 100 | L56: 1 | M56: 1 | N56: 100 | O56: 0 | P56: 0 | Q56: 1 | R56: 0 | S56: 0 | T56: 1 | U56: 100 | V56: 1 | W56: 1 | X56: 100 | Y56: 0 | Z56: 0 | AA56: 1 | AB56: 0 | AC56: 0 | AD56: 1 | AE56: 100 | AF56: 2 | AG56: 1 | AH56: 0 | AI56: 1 | AJ56: 0
A57: LIBERACIÓN NACIONAL | G57: 82 | H57: 15 | I57: 18.29268293 | J57: 67 | K57: 81.70731707 | L57: 82 | M57: 67 | N57: 81.70731707 | O57: 15 | P57: 18.29268293 | Q57: 82 | R57: 15 | S57: 18.29268293 | T57: 67 | U57: 81.70731707 | V57: 80 | W57: 65 | X57: 81.25 | Y57: 15 | Z57: 18.75 | AA57: 77 | AB57: 15 | AC57: 19.48051948 | AD57: 62 | AE57: 80.51948052 | AF57: 88 | AG57: 44 | AH57: 0 | AI57: 44 | AJ57: 0
A58: LIBERAL PROGRESISTA | G58: 8 | H58: 1 | I58: 12.5 | J58: 7 | K58: 87.5 | L58: 8 | M58: 7 | N58: 87.5 | O58: 1 | P58: 12.5 | Q58: 8 | R58: 1 | S58: 12.5 | T58: 7 | U58: 87.5 | V58: 7 | W58: 6 | X58: 85.71428571 | Y58: 1 | Z58: 14.28571429 | AA58: 7 | AB58: 1 | AC58: 14.28571429 | AD58: 6 | AE58: 85.71428571 | AF58: 10 | AG58: 6 | AH58: 0 | AI58: 4 | AJ58: 0
A59: LIGA RAMONENSE | G59: 1 | H59: 0 | I59: 0 | J59: 1 | K59: 100 | L59: 1 | M59: 1 | N59: 100 | O59: 0 | P59: 0 | Q59: 1 | R59: 0 | S59: 0 | T59: 1 | U59: 100 | V59: 1 | W59: 1 | X59: 100 | Y59: 0 | Z59: 0 | AA59: 1 | AB59: 0 | AC59: 0 | AD59: 1 | AE59: 100 | AF59: 2 | AG59: 1 | AH59: 0 | AI59: 1 | AJ59: 0
A60: MOVIMIENTO AVANCE SANTO DOMINGO | G60: 1 | H60: 0 | I60: 0 | J60: 1 | K60: 100 | L60: 1 | M60: 1 | N60: 100 | O60: 0 | P60: 0 | Q60: 1 | R60: 0 | S60: 0 | T60: 1 | U60: 100 | V60: 1 | W60: 1 | X60: 100 | Y60: 0 | Z60: 0 | AA60: 1 | AB60: 0 | AC60: 0 | AD60: 1 | AE60: 100 | AF60: 0 | AG60: 0 | AH60: 0 | AI60: 0 | AJ60: 0
A61: NANDAYURE PROGRESA | G61: 1 | H61: 0 | I61: 0 | J61: 1 | K61: 100 | L61: 1 | M61: 1 | N61: 100 | O61: 0 | P61: 0 | Q61: 1 | R61: 0 | S61: 0 | T61: 1 | U61: 100 | V61: 1 | W61: 1 | X61: 100 | Y61: 0 | Z61: 0 | AA61: 1 | AB61: 0 | AC61: 0 | AD61: 1 | AE61: 100 | AF61: 0 | AG61: 0 | AH61: 0 | AI61: 0 | AJ61: 0
A62: NUESTRO PUEBLO | G62: 13 | H62: 4 | I62: 30.76923077 | J62: 9 | K62: 69.23076923 | L62: 13 | M62: 9 | N62: 69.23076923 | O62: 4 | P62: 30.76923077 | Q62: 11 | R62: 4 | S62: 36.36363636 | T62: 7 | U62: 63.63636364 | V62: 11 | W62: 7 | X62: 63.63636364 | Y62: 4 | Z62: 36.36363636 | AA62: 10 | AB62: 4 | AC62: 40 | AD62: 6 | AE62: 60 | AF62: 29 | AG62: 14 | AH62: 0 | AI62: 15 | AJ62: 0
A63: NUEVA GENERACIÓN | G63: 34 | H63: 9 | I63: 26.47058824 | J63: 25 | K63: 73.52941176 | L63: 33 | M63: 24 | N63: 72.72727273 | O63: 9 | P63: 27.27272727 | Q63: 33 | R63: 9 | S63: 27.27272727 | T63: 24 | U63: 72.72727273 | V63: 32 | W63: 23 | X63: 71.875 | Y63: 9 | Z63: 28.125 | AA63: 30 | AB63: 9 | AC63: 30 | AD63: 21 | AE63: 70 | AF63: 38 | AG63: 21 | AH63: 0 | AI63: 17 | AJ63: 0
A64: NUEVA MAYORIA GRIEGA | G64: 1 | H64: 0 | I64: 0 | J64: 1 | K64: 100 | L64: 1 | M64: 1 | N64: 100 | O64: 0 | P64: 0 | Q64: 1 | R64: 0 | S64: 0 | T64: 1 | U64: 100 | V64: 1 | W64: 1 | X64: 100 | Y64: 0 | Z64: 0 | AA64: 1 | AB64: 0 | AC64: 0 | AD64: 1 | AE64: 100 | AF64: 2 | AG64: 1 | AH64: 0 | AI64: 1 | AJ64: 0
A65: NUEVA REPÚBLICA | G65: 76 | H65: 25 | I65: 32.89473684 | J65: 51 | K65: 67.10526316 | L65: 75 | M65: 51 | N65: 68 | O65: 24 | P65: 32 | Q65: 74 | R65: 23 | S65: 31.08108108 | T65: 51 | U65: 68.91891892 | V65: 68 | W65: 47 | X65: 69.11764706 | Y65: 21 | Z65: 30.88235294 | AA65: 56 | AB65: 16 | AC65: 28.57142857 | AD65: 40 | AE65: 71.42857143 | AF65: 57 | AG65: 28 | AH65: 0 | AI65: 29 | AJ65: 0
A66: PALMARES PRIMERO | G66: 1 | H66: 0 | I66: 0 | J66: 1 | K66: 100 | L66: 1 | M66: 1 | N66: 100 | O66: 0 | P66: 0 | Q66: 1 | R66: 0 | S66: 0 | T66: 1 | U66: 100 | V66: 1 | W66: 1 | X66: 100 | Y66: 0 | Z66: 0 | AA66: 1 | AB66: 0 | AC66: 0 | AD66: 1 | AE66: 100 | AF66: 0 | AG66: 0 | AH66: 0 | AI66: 0 | AJ66: 0
A67: PROGRESER | G67: 1 | H67: 0 | I67: 0 | J67: 1 | K67: 100 | L67: 1 | M67: 1 | N67: 100 | O67: 0 | P67: 0 | Q67: 1 | R67: 0 | S67: 0 | T67: 1 | U67: 100 | V67: 1 | W67: 1 | X67: 100 | Y67: 0 | Z67: 0 | AA67: 1 | AB67: 0 | AC67: 0 | AD67: 1 | AE67: 100 | AF67: 1 | AG67: 1 | AH67: 0 | AI67: 0 | AJ67: 0
A68: PUEBLO GARABITO | G68: 1 | H68: 0 | I68: 0 | J68: 1 | K68: 100 | L68: 1 | M68: 1 | N68: 100 | O68: 0 | P68: 0 | Q68: 1 | R68: 0 | S68: 0 | T68: 1 | U68: 100 | V68: 1 | W68: 1 | X68: 100 | Y68: 0 | Z68: 0 | AA68: 0 | AB68: 0 | AC68: 0 | AD68: 0 | AE68: 0 | AF68: 0 | AG68: 0 | AH68: 0 | AI68: 0 | AJ68: 0
A69: PURISCAL EN MARCHA | G69: 1 | H69: 0 | I69: 0 | J69: 1 | K69: 100 | L69: 1 | M69: 1 | N69: 100 | O69: 0 | P69: 0 | Q69: 1 | R69: 0 | S69: 0 | T69: 1 | U69: 100 | V69: 1 | W69: 1 | X69: 100 | Y69: 0 | Z69: 0 | AA69: 1 | AB69: 0 | AC69: 0 | AD69: 1 | AE69: 100 | AF69: 0 | AG69: 0 | AH69: 0 | AI69: 0 | AJ69: 0
A70: RECUPERANDO VALORES | G70: 4 | H70: 1 | I70: 25 | J70: 3 | K70: 75 | L70: 4 | M70: 3 | N70: 75 | O70: 1 | P70: 25 | Q70: 4 | R70: 1 | S70: 25 | T70: 3 | U70: 75 | V70: 4 | W70: 3 | X70: 75 | Y70: 1 | Z70: 25 | AA70: 4 | AB70: 1 | AC70: 25 | AD70: 3 | AE70: 75 | AF70: 5 | AG70: 3 | AH70: 0 | AI70: 2 | AJ70: 0
A71: RENOVACIÓN COSTARRICENSE | G71: 6 | H71: 0 | I71: 0 | J71: 6 | K71: 100 | L71: 6 | M71: 6 | N71: 100 | O71: 0 | P71: 0 | Q71: 6 | R71: 0 | S71: 0 | T71: 6 | U71: 100 | V71: 5 | W71: 5 | X71: 100 | Y71: 0 | Z71: 0 | AA71: 5 | AB71: 0 | AC71: 0 | AD71: 5 | AE71: 100 | AF71: 5 | AG71: 3 | AH71: 0 | AI71: 2 | AJ71: 0
A72: REPÚBLICANO SOCIAL CRISTIANO | G72: 50 | H72: 10 | I72: 20 | J72: 40 | K72: 80 | L72: 50 | M72: 40 | N72: 80 | O72: 10 | P72: 20 | Q72: 47 | R72: 10 | S72: 21.27659574 | T72: 37 | U72: 78.72340426 | V72: 41 | W72: 33 | X72: 80.48780488 | Y72: 8 | Z72: 19.51219512 | AA72: 38 | AB72: 7 | AC72: 18.42105263 | AD72: 31 | AE72: 81.57894737 | AF72: 43 | AG72: 23 | AH72: 0 | AI72: 20 | AJ72: 0
A73: RESCATE CANTONAL LA UNIÓN | G73: 1 | H73: 0 | I73: 0 | J73: 1 | K73: 100 | L73: 1 | M73: 1 | N73: 100 | O73: 0 | P73: 0 | Q73: 1 | R73: 0 | S73: 0 | T73: 1 | U73: 100 | V73: 1 | W73: 1 | X73: 100 | Y73: 0 | Z73: 0 | AA73: 1 | AB73: 0 | AC73: 0 | AD73: 1 | AE73: 100 | AF73: 4 | AG73: 2 | AH73: 0 | AI73: 2 | AJ73: 0
A74: RESTAURACIÓN NACIONAL | G74: 82 | H74: 19 | I74: 23.17073171 | J74: 63 | K74: 76.82926829 | L74: 72 | M74: 57 | N74: 79.16666667 | O74: 15 | P74: 20.83333333 | Q74: 67 | R74: 15 | S74: 22.3880597 | T74: 52 | U74: 77.6119403 | V74: 52 | W74: 40 | X74: 76.92307692 | Y74: 12 | Z74: 23.07692308 | AA74: 50 | AB74: 12 | AC74: 24 | AD74: 38 | AE74: 76 | AF74: 66 | AG74: 34 | AH74: 0 | AI74: 32 | AJ74: 0
A75: RESTAURACIÓN PARRITEÑA | G75: 1 | H75: 0 | I75: 0 | J75: 1 | K75: 100 | L75: 1 | M75: 1 | N75: 100 | O75: 0 | P75: 0 | Q75: 1 | R75: 0 | S75: 0 | T75: 1 | U75: 100 | V75: 0 | W75: 0 | X75: 0 | Y75: 0 | Z75: 0 | AA75: 0 | AB75: 0 | AC75: 0 | AD75: 0 | AE75: 0 | AF75: 0 | AG75: 0 | AH75: 0 | AI75: 0 | AJ75: 0
A76: SENTIR HEREDIA | G76: 1 | H76: 1 | I76: 100 | J76: 0 | K76: 0 | L76: 1 | M76: 0 | N76: 0 | O76: 1 | P76: 100 | Q76: 1 | R76: 1 | S76: =+R76/$Q76*100 -> 100 | T76: 0 | U76: =+T76/$Q76*100 -> 0 | V76: 1 | W76: 0 | X76: =+W76/$V76*100 -> 0 | Y76: 1 | Z76: =+Y76/$V76*100 -> 100 | AA76: 1 | AB76: 1 | AC76: 100 | AD76: 0 | AE76: 0 | AF76: 4 | AG76: 2 | AH76: 0 | AI76: 2 | AJ76: 0
A77: SOMOS MORAVIA | G77: 1 | H77: 0 | I77: 0 | J77: 1 | K77: 100 | L77: 1 | M77: 1 | N77: 100 | O77: 0 | P77: 0 | Q77: 1 | R77: 0 | S77: =+R77/$Q77*100 -> 0 | T77: 1 | U77: =+T77/$Q77*100 -> 100 | V77: 1 | W77: 1 | X77: =+W77/$V77*100 -> 100 | Y77: 0 | Z77: =+Y77/$V77*100 -> 0 | AA77: 1 | AB77: 0 | AC77: 0 | AD77: 1 | AE77: 100 | AF77: 2 | AG77: 1 | AH77: 0 | AI77: 1 | AJ77: 0
A78: SOMOS SARCHÍ | G78: 1 | H78: 0 | I78: 0 | J78: 1 | K78: 100 | L78: 1 | M78: 1 | N78: 100 | O78: 0 | P78: 0 | Q78: 1 | R78: 0 | S78: =+R78/$Q78*100 -> 0 | T78: 1 | U78: =+T78/$Q78*100 -> 100 | V78: 1 | W78: 1 | X78: =+W78/$V78*100 -> 100 | Y78: 0 | Z78: =+Y78/$V78*100 -> 0 | AA78: 1 | AB78: 0 | AC78: 0 | AD78: 1 | AE78: 100 | AF78: 0 | AG78: 0 | AH78: 0 | AI78: 0 | AJ78: 0
A79: TARRAZÚ PRIMERO | B79: 8 | C79: 3 | D79: 37.5 | E79: 5 | F79: 62.5 | G79: 1 | H79: 0 | I79: 0 | J79: 1 | K79: 100 | L79: 1 | M79: 1 | N79: 100 | O79: 0 | P79: 0 | Q79: 1 | R79: 0 | S79: 0 | T79: 1 | U79: 0 | V79: 1 | W79: 1 | X79: 0 | Y79: 0 | Z79: 0 | AA79: 1 | AB79: 0 | AC79: 0 | AD79: 1 | AE79: 0 | AF79: 0 | AG79: 0 | AH79: 0 | AI79: 0 | AJ79: 0
A80: TERRA ESCAZÚ | G80: 1 | H80: 0 | I80: 0 | J80: 1 | K80: 100 | L80: 0 | M80: 0 | N80: 0 | O80: 0 | P80: 0 | Q80: 0 | R80: 0 | S80: 0 | T80: 0 | U80: 0 | V80: 0 | W80: 0 | X80: 0 | Y80: 0 | Z80: 0 | AA80: 0 | AB80: 0 | AC80: 0 | AD80: 0 | AE80: 0 | AF80: 0 | AG80: 0 | AH80: 0 | AI80: 0 | AJ80: 0
A81: TODOS POR GOICOECHEA | G81: 1 | H81: 1 | I81: 100 | J81: 0 | K81: 0 | L81: 1 | M81: 0 | N81: 0 | O81: 1 | P81: 100 | Q81: 1 | R81: 1 | S81: =+R81/$Q81*100 -> 100 | T81: 0 | U81: =+T81/$Q81*100 -> 0 | V81: 1 | W81: 0 | X81: =+W81/$V81*100 -> 0 | Y81: 1 | Z81: =+Y81/$V81*100 -> 100 | AA81: 1 | AB81: 1 | AC81: 100 | AD81: 0 | AE81: 0 | AF81: 0 | AG81: 0 | AH81: 0 | AI81: 0 | AJ81: 0
A82: TURRIALBA PRIMERO | G82: 1 | H82: 0 | I82: 0 | J82: 1 | K82: 100 | L82: 1 | M82: 1 | N82: 100 | O82: 0 | P82: 0 | Q82: 1 | R82: 0 | S82: 0 | T82: 1 | U82: 100 | V82: 1 | W82: 1 | X82: 100 | Y82: 0 | Z82: 0 | AA82: 1 | AB82: 0 | AC82: 0 | AD82: 1 | AE82: 100 | AF82: 2 | AG82: 1 | AH82: =+AG82/$AF82*100 -> 50 | AI82: 1 | AJ82: =+AI82/$AF82*100 -> 50
A83: UNICO ABANGAREÑO | G83: 1 | H83: 1 | I83: 100 | J83: 0 | K83: 0 | L83: 1 | M83: 0 | N83: 0 | O83: 1 | P83: 100 | Q83: 1 | R83: 1 | S83: 100 | T83: 0 | U83: 0 | V83: 1 | W83: 0 | X83: 0 | Y83: 1 | Z83: 100 | AA83: 1 | AB83: 1 | AC83: 100 | AD83: 0 | AE83: 0 | AF83: 0 | AG83: 0 | AH83: 0 | AI83: 0 | AJ83: 0
A84: UNIDAD SOCIAL CRISTIANA | G84: 75 | H84: 22 | I84: 29.33333333 | J84: 53 | K84: 70.66666667 | L84: 75 | M84: 53 | N84: 70.66666667 | O84: 22 | P84: 29.33333333 | Q84: 71 | R84: 22 | S84: 30.98591549 | T84: 49 | U84: 69.01408451 | V84: 61 | W84: 44 | X84: 72.13114754 | Y84: 17 | Z84: 27.86885246 | AA84: 55 | AB84: 15 | AC84: 27.27272727 | AD84: 40 | AE84: 72.72727273 | AF84: 50 | AG84: 24 | AH84: =+AG84/$AF84*100 -> 48 | AI84: 26 | AJ84: =+AI84/$AF84*100 -> 52
A85: UNIDOS PARA EL DESARROLLO | G85: 1 | H85: 0 | I85: 0 | J85: 1 | K85: 100 | L85: 1 | M85: 1 | N85: 100 | O85: 0 | P85: 0 | Q85: 1 | R85: 0 | S85: 0 | T85: 1 | U85: 100 | V85: 1 | W85: 1 | X85: 100 | Y85: 0 | Z85: 0 | AA85: 1 | AB85: 0 | AC85: 0 | AD85: 1 | AE85: 100 | AF85: 0 | AG85: 0 | AH85: 0 | AI85: 0 | AJ85: 0
A86: UNIDOS PODEMOS | G86: 52 | H86: 9 | I86: 17.30769231 | J86: 43 | K86: 82.69230769 | L86: 52 | M86: 43 | N86: 82.69230769 | O86: 9 | P86: 17.30769231 | Q86: 52 | R86: 9 | S86: 17.30769231 | T86: 43 | U86: 82.69230769 | V86: 49 | W86: 40 | X86: 81.63265306 | Y86: 9 | Z86: 18.36734694 | AA86: 47 | AB86: 9 | AC86: 19.14893617 | AD86: 38 | AE86: 80.85106383 | AF86: 71 | AG86: 36 | AH86: =+AG86/$AF86*100 -> 50.70422535 | AI86: 35 | AJ86: =+AI86/$AF86*100 -> 49.29577465
A87: UNIDOS POR ESCAZÚ | G87: 1 | H87: 0 | I87: 0 | J87: 1 | K87: 100 | L87: 1 | M87: 1 | N87: 100 | O87: 0 | P87: 0 | Q87: 1 | R87: 0 | S87: 0 | T87: 1 | U87: 100 | V87: 1 | W87: 1 | X87: 100 | Y87: 0 | Z87: 0 | AA87: 1 | AB87: 0 | AC87: 0 | AD87: 1 | AE87: 100 | AF87: 2 | AG87: 1 | AH87: =+AG87/$AF87*100 -> 50 | AI87: 1 | AJ87: =+AI87/$AF87*100 -> 50
A88: UNIÓN ATENIENSE | G88: 1 | H88: 0 | I88: 0 | J88: 1 | K88: 100 | L88: 1 | M88: 1 | N88: 100 | O88: 0 | P88: 0 | Q88: 1 | R88: 0 | S88: 0 | T88: 1 | U88: 100 | V88: 1 | W88: 1 | X88: 100 | Y88: 0 | Z88: 0 | AA88: 1 | AB88: 0 | AC88: 0 | AD88: 1 | AE88: 100 | AF88: 0 | AG88: 0 | AH88: 0 | AI88: 0 | AJ88: 0
A89: UNIÓN DE PUNTARENENSES EMPRENDEDORES | G89: 1 | H89: 0 | I89: 0 | J89: 1 | K89: 100 | L89: 1 | M89: 1 | N89: 100 | O89: 0 | P89: 0 | Q89: 1 | R89: 0 | S89: 0 | T89: 1 | U89: 100 | V89: 1 | W89: 1 | X89: 100 | Y89: 0 | Z89: 0 | AA89: 0 | AB89: 0 | AC89: 0 | AD89: 0 | AE89: 0 | AF89: 0 | AG89: 0 | AH89: 0 | AI89: 0 | AJ89: 0
A90: UNIÓN DOMINGUEÑA | G90: 1 | H90: 0 | I90: 0 | J90: 1 | K90: 100 | L90: 1 | M90: 1 | N90: 100 | O90: 0 | P90: 0 | Q90: 1 | R90: 0 | S90: 0 | T90: 1 | U90: 100 | V90: 1 | W90: 1 | X90: 100 | Y90: 0 | Z90: 0 | AA90: 0 | AB90: 0 | AC90: 0 | AD90: 0 | AE90: 0 | AF90: 0 | AG90: 0 | AH90: 0 | AI90: 0 | AJ90: 0
A91: UNIÓN GRIEGA | G91: 1 | H91: 0 | I91: 0 | J91: 1 | K91: 100 | L91: 1 | M91: 1 | N91: 100 | O91: 0 | P91: 0 | Q91: 1 | R91: 0 | S91: 0 | T91: 1 | U91: 100 | V91: 1 | W91: 1 | X91: 100 | Y91: 0 | Z91: 0 | AA91: 1 | AB91: 0 | AC91: 0 | AD91: 1 | AE91: 100 | AF91: 2 | AG91: 1 | AH91: 0 | AI91: 1 | AJ91: 0
A92: UNIÓN GUANACASTECA | G92: 7 | H92: 1 | I92: 14.28571429 | J92: 6 | K92: 85.71428571 | L92: 7 | M92: 6 | N92: 85.71428571 | O92: 1 | P92: 14.28571429 | Q92: 7 | R92: 1 | S92: 14.28571429 | T92: 6 | U92: 85.71428571 | V92: 7 | W92: 6 | X92: 85.71428571 | Y92: 1 | Z92: 14.28571429 | AA92: 7 | AB92: 1 | AC92: 14.28571429 | AD92: 6 | AE92: 85.71428571 | AF92: 5 | AG92: 3 | AH92: =+AG92/$AF92*100 -> 60 | AI92: 2 | AJ92: =+AI92/$AF92*100 -> 40
A93: UNIÓN GUARQUEÑO | G93: 1 | H93: 0 | I93: 0 | J93: 1 | K93: 100 | L93: 1 | M93: 1 | N93: 100 | O93: 0 | P93: 0 | Q93: 1 | R93: 0 | S93: 0 | T93: 1 | U93: 100 | V93: 1 | W93: 1 | X93: 100 | Y93: 0 | Z93: 0 | AA93: 1 | AB93: 0 | AC93: 0 | AD93: 1 | AE93: 100 | AF93: 0 | AG93: 0 | AH93: 0 | AI93: 0 | AJ93: 0
A94: VERDE ECOLOGISTA | G94: 7 | H94: 0 | I94: 0 | J94: 7 | K94: 100 | L94: 7 | M94: 7 | N94: 100 | O94: 0 | P94: 0 | Q94: 6 | R94: 0 | S94: 0 | T94: 6 | U94: 100 | V94: 6 | W94: 6 | X94: 100 | Y94: 0 | Z94: 0 | AA94: 4 | AB94: 0 | AC94: 0 | AD94: 4 | AE94: 100 | AF94: 4 | AG94: 2 | AH94: =+AG94/$AF94*100 -> 50 | AI94: 2 | AJ94: =+AI94/$AF94*100 -> 50
A95: YO SOY EL CAMBIO | G95: 1 | H95: 0 | I95: 0 | J95: 1 | K95: 100 | L95: 1 | M95: 1 | N95: 100 | O95: 0 | P95: 0 | Q95: 1 | R95: 0 | S95: 0 | T95: 1 | U95: 100 | V95: 1 | W95: 1 | X95: 100 | Y95: 0 | Z95: 0 | AA95: 0 | AB95: 0 | AC95: 0 | AD95: 0 | AE95: 0 | AF95: 0 | AG95: 0 | AH95: 0 | AI95: 0 | AJ95: 0
A96: YUNTA PROGRESISTA ESCAZUCEÑA | G96: 1 | H96: 0 | I96: 0 | J96: 1 | K96: 100 | L96: 1 | M96: 1 | N96: 100 | O96: 0 | P96: 0 | Q96: 1 | R96: 0 | S96: 0 | T96: 1 | U96: 100 | V96: 1 | W96: 1 | X96: 100 | Y96: 0 | Z96: 0 | AA96: 1 | AB96: 0 | AC96: 0 | AD96: 1 | AE96: 100 | AF96: 2 | AG96: 1 | AH96: =+AG96/$AF96*100 -> 50 | AI96: 1 | AJ96: =+AI96/$AF96*100 -> 50
A99: Fuente: Tribunal Supremo de Elecciones.

Sheet 1.7
A2: CUADRO 1.7 COSTA RICA: CANDIDATURAS A CONCEJALÍAS 1/ EN PROPIEDAD, POR ORDEN DEL PUESTO Y SEXO
A3: SEGÚN PARTIDO POLÍTICO, ELECCIONES MUNICIPALES FEBRERO 2020
A4: (cifras absolutas y relativas)
A6: PARTIDO POLÍTICO | B6: TOTAL | G6: PRIMER PUESTO | L6: SEGUNDO PUESTO | Q6: TERCER PUERTO | V6: CUARTO PUESTO
B7: TOTAL | C7: MUJERES | E7: HOMBRES | G7: TOTAL | H7: MUJERES | J7: HOMBRES | L7: TOTAL | M7: MUJERES | O7: HOMBRES | Q7: TOTAL | R7: MUJERES | T7: HOMBRES | V7: TOTAL | W7: MUJERES | Y7: HOMBRES
C8: Absoluto | D8: % | E8: Absoluto | F8: % | H8: Absoluto | I8: % | J8: Absoluto | K8: % | M8: Absoluto | N8: % | O8: Absoluto | P8: % | R8: Absoluto | S8: % | T8: Absoluto | U8: % | W8: Absoluto | X8: % | Y8: Absoluto | Z8: %
A10: TOTAL | B10: =SUM(B11:B96) -> 5894 | C10: =SUM(C11:C96) -> 2931 | D10: =+C10/$B10*100 -> 49.7285375 | E10: =SUM(E11:E96) -> 2990 | F10: =+E10/$B10*100 -> 50.72955548 | G10: =SUM(G11:G96) -> 3118 | H10: =SUM(H11:H96) -> 1434 | I10: =+H10/$G10*100 -> 45.99101988 | J10: =SUM(J11:J96) -> 1684 | K10: =+J10/$G10*100 -> 54.00898012 | L10: =SUM(L11:L96) -> 2545 | M10: =SUM(M11:M96) -> 1386 | N10: =+M10/$L10*100 -> 54.45972495 | O10: =SUM(O11:O96) -> 1159 | P10: =+O10/$L10*100 -> 45.54027505 | Q10: =SUM(Q11:Q96) -> 2162 | R10: =SUM(R11:R96) -> 974 | S10: =+R10/$Q10*100 -> 45.05087882 | T10: =SUM(T11:T96) -> 1188 | U10: =+T10/$Q10*100 -> 54.94912118 | V10: =SUM(V11:V96) -> 1547 | W10: =SUM(W11:W96) -> 879 | X10: =+W10/$V10*100 -> 56.81965094 | Y10: =SUM(Y11:Y96) -> 668 | Z10: =+Y10/$V10*100 -> 43.18034906
A11: ACCESIBILIDAD SIN EXCLUSIÓN | B11: =+C11+E11 -> 239 | C11: 116 | D11: =+C11/$B11*100 -> 48.53556485 | E11: 123 | F11: =+E11/$B11*100 -> 51.46443515 | G11: =+H11+J11 -> 16 | H11: 9 | I11: =+H11/$G11*100 -> 56.25 | J11: 7 | K11: =+J11/$G11*100 -> 43.75 | L11: =+M11+O11 -> 13 | M11: 6 | N11: =+M11/$L11*100 -> 46.15384615 | O11: 7 | P11: =+O11/$L11*100 -> 53.84615385 | Q11: =+R11+T11 -> 12 | R11: 6 | S11: =+R11/$Q11*100 -> 50 | T11: 6 | U11: =+T11/$Q11*100 -> 50 | V11: =+W11+Y11 -> 10 | W11: 5 | X11: =+W11/$V11*100 -> 50 | Y11: 5 | Z11: =+Y11/$V11*100 -> 50
A12: ACCIÓN CANTONAL SIQUIRRES INDEPENDIENTE | B12: 20 | C12: 10 | D12: 50 | E12: 10 | F12: 50 | G12: =+H12+J12 -> 7 | H12: 3 | I12: =+H12/$G12*100 -> 42.85714286 | J12: 4 | K12: =+J12/$G12*100 -> 57.14285714 | L12: =+M12+O12 -> 5 | M12: 2 | N12: =+M12/$L12*100 -> 40 | O12: 3 | P12: =+O12/$L12*100 -> 60 | Q12: =+R12+T12 -> 5 | R12: 3 | S12: =+R12/$Q12*100 -> 60 | T12: 2 | U12: =+T12/$Q12*100 -> 40 | V12: =+W12+Y12 -> 3 | W12: 1 | X12: =+W12/$V12*100 -> 33.33333333 | Y12: 2 | Z12: =+Y12/$V12*100 -> 66.66666667
A13: ACCIÓN CIUDADANA | B13: 851 | C13: 418 | D13: 49.1186839 | E13: 433 | F13: 50.8813161 | G13: 225 | H13: 116 | I13: 51.55555556 | J13: 109 | K13: 48.44444444 | L13: 184 | M13: 94 | N13: 51.08695652 | O13: 90 | P13: 48.91304348 | Q13: 147 | R13: 76 | S13: 51.70068027 | T13: 71 | U13: 48.29931973 | V13: 94 | W13: 44 | X13: 46.80851064 | Y13: 50 | Z13: 53.19148936
A14: ACCIÓN NARANJEÑA | B14: 9 | C14: 4 | D14: 44.44444444 | E14: 5 | F14: 55.55555556 | G14: 8 | H14: 4 | I14: 50 | J14: 4 | K14: 50 | L14: 7 | M14: 4 | N14: 57.14285714 | O14: 3 | P14: 42.85714286 | Q14: 7 | R14: 3 | S14: 42.85714286 | T14: 4 | U14: 57.14285714 | V14: 3 | W14: 3 | X14: 100 | Y14: 0 | Z14: 0
A15: ACTUEMOS YA | B15: 52 | C15: 26 | D15: 50 | E15: 26 | F15: 50 | G15: 24 | H15: 15 | I15: 62.5 | J15: 9 | K15: 37.5 | L15: 20 | M15: 7 | N15: 35 | O15: 13 | P15: 65 | Q15: 16 | R15: 11 | S15: 68.75 | T15: 5 | U15: 31.25 | V15: 10 | W15: 4 | X15: 40 | Y15: 6 | Z15: 60
A16: ACUERDO DE ALIANZA DE QUEPOS | B16: 44 | C16: 24 | D16: 54.54545455 | E16: 20 | F16: 45.45454545 | G16: 3 | H16: 2 | I16: 66.66666667 | J16: 1 | K16: 33.33333333 | L16: 3 | M16: 1 | N16: 33.33333333 | O16: 2 | P16: 66.66666667 | Q16: 3 | R16: 2 | S16: 66.66666667 | T16: 1 | U16: 33.33333333 | V16: 2 | W16: 1 | X16: 50 | Y16: 1 | Z16: 50
A17: ALIANZA DEMOCRATA CRISTIANA | B17: 11 | C17: 5 | D17: 45.45454545 | E17: 6 | F17: 54.54545455 | G17: 76 | H17: 36 | I17: 47.36842105 | J17: 40 | K17: 52.63157895 | L17: 51 | M17: 25 | N17: 49.01960784 | O17: 26 | P17: 50.98039216 | Q17: 37 | R17: 21 | S17: 56.75675676 | T17: 16 | U17: 43.24324324 | V17: 17 | W17: 5 | X17: 29.41176471 | Y17: 12 | Z17: 70.58823529
A18: ALIANZA POR PALMARES | B18: 11 | C18: 5 | D18: 45.45454545 | E18: 6 | F18: 54.54545455 | G18: 7 | H18: 5 | I18: 71.42857143 | J18: 2 | K18: 28.57142857 | L18: 7 | M18: 2 | N18: 28.57142857 | O18: 5 | P18: 71.42857143 | Q18: 7 | R18: 5 | S18: 71.42857143 | T18: 2 | U18: 28.57142857 | V18: 6 | W18: 1 | X18: 16.66666667 | Y18: 5 | Z18: 83.33333333
A19: ALIANZA POR SAN JOSÉ | B19: 7 | C19: 3 | D19: 42.85714286 | E19: 4 | F19: 57.14285714 | G19: 11 | H19: 8 | I19: 72.72727273 | J19: 3 | K19: 27.27272727 | L19: 11 | M19: 3 | N19: 27.27272727 | O19: 8 | P19: 72.72727273 | Q19: 11 | R19: 8 | S19: 72.72727273 | T19: 3 | U19: 27.27272727 | V19: 8 | W19: 3 | X19: 37.5 | Y19: 5 | Z19: 62.5
A20: ALIANZA POR SARCHÍ | B20: 16 | C20: 8 | D20: 50 | E20: 8 | F20: 50 | G20: 2 | H20: 0 | I20: 0 | J20: 2 | K20: 100 | L20: 1 | M20: 1 | N20: 100 | O20: 0 | P20: 0 | Q20: 0 | R20: 0 | S20: 0 | T20: 0 | U20: 0 | V20: 0 | W20: 0 | X20: 0 | Y20: 0 | Z20: 0
A21: ALIANZA SOCIAL POR LA UNIÓN | B21: 44 | C21: 22 | D21: 50 | E21: 22 | F21: 50 | G21: 8 | H21: 2 | I21: 25 | J21: 6 | K21: 75 | L21: 4 | M21: 2 | N21: 50 | O21: 2 | P21: 50 | Q21: 1 | R21: 0 | S21: 0 | T21: 1 | U21: 100 | V21: 1 | W21: 1 | X21: 100 | Y21: 0 | Z21: 0
A22: ANTICORRUPCIÓN COSTARRICENSE | B22: 14 | C22: 8 | D22: 57.14285714 | E22: 6 | F22: 42.85714286 | G22: 0 | H22: 0 | I22: 0 | J22: 0 | K22: 0 | L22: 0 | M22: 0 | N22: 0 | O22: 0 | P22: 0 | Q22: 0 | R22: 0 | S22: 0 | T22: 0 | U22: 0 | V22: 0 | W22: 0 | X22: 0 | Y22: 0 | Z22: 0
A23: AUTÉNTICO LABRADOR DE CORONADO | C23: 14 | E23: 13 | G23: 4 | H23: 1 | I23: 25 | J23: 3 | K23: 75 | L23: 1 | M23: 0 | N23: 0 | O23: 1 | P23: 100 | Q23: 1 | R23: 1 | S23: 100 | T23: 0 | U23: 0 | V23: 0 | W23: 0 | X23: 0 | Y23: 0 | Z23: 0
A24: AUTÉNTICO LIMONENSE | B24: 43 | C24: 21 | D24: 48.8372093 | E24: 22 | F24: 51.1627907 | G24: 10 | H24: 5 | I24: 50 | J24: 5 | K24: 50 | L24: 9 | M24: 5 | N24: 55.55555556 | O24: 4 | P24: 44.44444444 | Q24: 9 | R24: 4 | S24: 44.44444444 | T24: 5 | U24: 55.55555556 | V24: 6 | W24: 3 | X24: 50 | Y24: 3 | Z24: 50
A25: AUTÉNTICO NICOYANO | B25: 51 | C25: 25 | D25: 49.01960784 | E25: 26 | F25: 50.98039216 | G25: 0 | H25: 0 | I25: 0 | J25: 0 | K25: 0 | L25: 0 | M25: 0 | N25: 0 | O25: 0 | P25: 0 | Q25: 0 | R25: 0 | S25: 0 | T25: 0 | U25: 0 | V25: 0 | W25: 0 | X25: 0 | Y25: 0 | Z25: 0
A26: AUTÉNTICO SANTACRUCEÑO | B26: 15 | C26: 9 | D26: 60 | E26: 6 | F26: 40 | G26: 9 | H26: 6 | I26: 66.66666667 | J26: 3 | K26: 33.33333333 | L26: 9 | M26: 3 | N26: 33.33333333 | O26: 6 | P26: 66.66666667 | Q26: 9 | R26: 6 | S26: 66.66666667 | T26: 3 | U26: 33.33333333 | V26: 6 | W26: 2 | X26: 33.33333333 | Y26: 4 | Z26: 66.66666667
A27: AUTÉNTICO SIQUIRREÑO | B27: 16 | C27: 8 | D27: 50 | E27: 8 | F27: 50 | G27: 6 | H27: 4 | I27: 66.66666667 | J27: 2 | K27: 33.33333333 | L27: 3 | M27: 0 | N27: 0 | O27: 3 | P27: 100 | Q27: 2 | R27: 2 | S27: 100 | T27: 0 | U27: 0 | V27: 1 | W27: 0 | X27: 0 | Y27: 1 | Z27: 100
A28: AUTONOMO OROMONTANO | B28: 23 | C28: 11 | D28: 47.82608696 | E28: 12 | F28: 52.17391304 | G28: 3 | H28: 2 | I28: 66.66666667 | J28: 1 | K28: 33.33333333 | L28: 2 | M28: 0 | N28: 0 | O28: 2 | P28: 100 | Q28: 0 | R28: 0 | S28: 0 | T28: 0 | U28: 0 | V28: 0 | W28: 0 | X28: 0 | Y28: 0 | Z28: 0
A29: AVANCE ISIDREÑO | B29: 19 | C29: 10 | D29: 52.63157895 | E29: 9 | F29: 47.36842105 | G29: 0 | H29: 0 | I29: 0 | J29: 0 | K29: 0 | L29: 0 | M29: 0 | N29: 0 | O29: 0 | P29: 0 | Q29: 0 | R29: 0 | S29: 0 | T29: 0 | U29: 0 | V29: 0 | W29: 0 | X29: 0 | Y29: 0 | Z29: 0
A30: AVANCE MONTES DE OCA | B30: 89 | C30: 45 | D30: 50.56179775 | E30: 44 | F30: 49.43820225 | G30: 1 | H30: 1 | I30: 100 | J30: 0 | K30: 0 | L30: 0 | M30: 0 | N30: 0 | O30: 0 | P30: 0 | Q30: 0 | R30: 0 | S30: 0 | T30: 0 | U30: 0 | V30: 0 | W30: 0 | X30: 0 | Y30: 0 | Z30: 0
A31: AVANTE POCOCÍ | B31: 7 | C31: 3 | D31: 42.85714286 | E31: 4 | F31: 57.14285714 | G31: 2 | H31: 0 | I31: 0 | J31: 2 | K31: 100 | L31: 1 | M31: 1 | N31: 100 | O31: 0 | P31: 0 | Q31: 0 | R31: 0 | S31: 0 | T31: 0 | U31: 0 | V31: 0 | W31: 0 | X31: 0 | Y31: 0 | Z31: 0
A32: BARVA UNIDA | B32: 24 | C32: 12 | D32: 50 | E32: 12 | F32: 50 | G32: 0 | H32: 0 | I32: 0 | J32: 0 | K32: 0 | L32: 0 | M32: 0 | N32: 0 | O32: 0 | P32: 0 | Q32: 0 | R32: 0 | S32: 0 | T32: 0 | U32: 0 | V32: 0 | W32: 0 | X32: 0 | Y32: 0 | Z32: 0
A33: CANTONAL DE CARRILLO | B33: 9 | C33: 5 | D33: 55.55555556 | E33: 4 | F33: 44.44444444 | G33: 4 | H33: 3 | I33: 75 | J33: 1 | K33: 25 | L33: 4 | M33: 1 | N33: 25 | O33: 3 | P33: 75 | Q33: 2 | R33: 1 | S33: 50 | T33: 1 | U33: 50 | V33: 0 | W33: 0 | X33: 0 | Y33: 0 | Z33: 0
A34: COALICIÓN ALIANZA POR NICOYA | B34: 140 | C34: 65 | D34: 46.42857143 | E34: 75 | F34: 53.57142857 | G34: 7 | H34: 2 | I34: 28.57142857 | J34: 5 | K34: 71.42857143 | L34: 5 | M34: 3 | N34: 60 | O34: 2 | P34: 40 | Q34: 4 | R34: 2 | S34: 50 | T34: 2 | U34: 50 | V34: 1 | W34: 0 | X34: 0 | Y34: 1 | Z34: 100
A35: COALICIÓN ASERRÍ DE TODOS | B35: 1782 | C35: 889 | D35: 49.88776655 | E35: 893 | F35: 50.11223345 | G35: 7 | H35: 3 | I35: 42.85714286 | J35: 4 | K35: 57.14285714 | L35: 5 | M35: 2 | N35: 40 | O35: 3 | P35: 60 | Q35: 4 | R35: 2 | S35: 50 | T35: 2 | U35: 50 | V35: 0 | W35: 0 | X35: 0 | Y35: 0 | Z35: 0
A36: COALICIÓN GENTE MONTES DE OCA | B36: 24 | C36: 12 | D36: 50 | E36: 12 | F36: 50 | G36: 4 | H36: 4 | I36: 100 | J36: 0 | K36: 0 | L36: 3 | M36: 0 | N36: 0 | O36: 3 | P36: 100 | Q36: 0 | R36: 0 | S36: 0 | T36: 0 | U36: 0 | V36: 0 | W36: 0 | X36: 0 | Y36: 0 | Z36: 0
A37: COALICIÓN JUNTOS | B37: 11 | C37: 6 | D37: 54.54545455 | E37: 5 | F37: 45.45454545 | G37: 9 | H37: 6 | I37: 66.66666667 | J37: 3 | K37: 33.33333333 | L37: 6 | M37: 2 | N37: 33.33333333 | O37: 4 | P37: 66.66666667 | Q37: 6 | R37: 4 | S37: 66.66666667 | T37: 2 | U37: 33.33333333 | V37: 5 | W37: 2 | X37: 40 | Y37: 3 | Z37: 60
A38: COALICIÓN UNIDAD POR FLORES | B38: 903 | C38: 445 | D38: 49.28017719 | E38: 458 | F38: 50.71982281 | G38: 3 | H38: 1 | I38: 33.33333333 | J38: 2 | K38: 66.66666667 | L38: 3 | M38: 2 | N38: 66.66666667 | O38: 1 | P38: 33.33333333 | Q38: 2 | R38: 1 | S38: 50 | T38: 1 | U38: 50 | V38: 1 | W38: 0 | X38: 0 | Y38: 1 | Z38: 100
A39: COALICIÓN UNIÓN BELEMITA | B39: 11 | C39: 6 | D39: 54.54545455 | E39: 5 | F39: 45.45454545 | G39: 2 | H39: 1 | I39: 50 | J39: 1 | K39: 50 | L39: 2 | M39: 1 | N39: 50 | O39: 1 | P39: 50 | Q39: 1 | R39: 0 | S39: 0 | T39: 1 | U39: 100 | V39: 0 | W39: 0 | X39: 0 | Y39: 0 | Z39: 0
A40: COMUNAL UNIDO | B40: 19 | C40: 9 | D40: 47.36842105 | E40: 10 | F40: 52.63157895 | G40: 45 | H40: 18 | I40: 40 | J40: 27 | K40: 60 | L40: 41 | M40: 23 | N40: 56.09756098 | O40: 18 | P40: 43.90243902 | Q40: 36 | R40: 17 | S40: 47.22222222 | T40: 19 | U40: 52.77777778 | V40: 25 | W40: 15 | X40: 60 | Y40: 10 | Z40: 40
A41: CURRIDABAT SIGLO XXI | B41: 289 | C41: 145 | D41: 50.17301038 | E41: 144 | F41: 49.82698962 | G41: 4 | H41: 1 | I41: 25 | J41: 3 | K41: 75 | L41: 4 | M41: 3 | N41: 75 | O41: 1 | P41: 25 | Q41: 4 | R41: 1 | S41: 25 | T41: 3 | U41: 75 | V41: 4 | W41: 3 | X41: 75 | Y41: 1 | Z41: 25
A42: DEL SOL | B42: 51 | C42: 23 | D42: 45.09803922 | E42: 28 | F42: 54.90196078 | G42: 5 | H42: 4 | I42: 80 | J42: 1 | K42: 20 | L42: 3 | M42: 1 | N42: 33.33333333 | O42: 2 | P42: 66.66666667 | Q42: 3 | R42: 2 | S42: 66.66666667 | T42: 1 | U42: 33.33333333 | V42: 3 | W42: 1 | X42: 33.33333333 | Y42: 2 | Z42: 66.66666667
A43: DESARROLLO TALAMANQUEÑO | G43: 4 | H43: 1 | I43: 25 | J43: 3 | K43: 75 | L43: 4 | M43: 3 | N43: 75 | O43: 1 | P43: 25 | Q43: 4 | R43: 1 | S43: 25 | T43: 3 | U43: 75 | V43: 3 | W43: 3 | X43: 100 | Y43: 0 | Z43: 0
A44: DESPERTAR ALAJUELENSE | G44: 14 | H44: 4 | I44: 28.57142857 | J44: 10 | K44: 71.42857143 | L44: 14 | M44: 10 | N44: 71.42857143 | O44: 4 | P44: 28.57142857 | Q44: 14 | R44: 4 | S44: 28.57142857 | T44: 10 | U44: 71.42857143 | V44: 10 | W44: 7 | X44: 70 | Y44: 3 | Z44: 30
A45: ECOLÓGICO COMUNAL COSTARRICENSE | G45: 13 | H45: 7 | I45: 53.84615385 | J45: 6 | K45: 46.15384615 | L45: 10 | M45: 5 | N45: 50 | O45: 5 | P45: 50 | Q45: 7 | R45: 4 | S45: 57.14285714 | T45: 3 | U45: 42.85714286 | V45: 4 | W45: 3 | X45: 75 | Y45: 1 | Z45: 25
A46: FRENTE AMPLIO | G46: 107 | H46: 56 | I46: 52.3364486 | J46: 51 | K46: 47.6635514 | L46: 56 | M46: 28 | N46: 50 | O46: 28 | P46: 50 | Q46: 38 | R46: 20 | S46: 52.63157895 | T46: 18 | U46: 47.36842105 | V46: 16 | W46: 6 | X46: 37.5 | Y46: 10 | Z46: 62.5
A47: FUERZA SARCHÍSEÑA | G47: 0 | H47: 0 | I47: 0 | J47: 0 | K47: 0 | L47: 0 | M47: 0 | N47: 0 | O47: 0 | P47: 0 | Q47: 0 | R47: 0 | S47: 0 | T47: 0 | U47: 0 | V47: 0 | W47: 0 | X47: 0 | Y47: 0 | Z47: 0
A48: GOICOECHEA EN ACCIÓN | G48: 0 | H48: 0 | I48: 0 | J48: 0 | K48: 0 | L48: 0 | M48: 0 | N48: 0 | O48: 0 | P48: 0 | Q48: 0 | R48: 0 | S48: 0 | T48: 0 | U48: 0 | V48: 0 | W48: 0 | X48: 0 | Y48: 0 | Z48: 0
A49: GUANACASTE PRIMERO | G49: 2 | H49: 1 | I49: 50 | J49: 1 | K49: 50 | L49: 0 | M49: 0 | N49: 0 | O49: 0 | P49: 0 | Q49: 0 | R49: 0 | S49: 0 | T49: 0 | U49: 0 | V49: 0 | W49: 0 | X49: 0 | Y49: 0 | Z49: 0
A50: INNOVACIÓN CANTONAL | G50: 3 | H50: 2 | I50: 66.66666667 | J50: 1 | K50: 33.33333333 | L50: 2 | M50: 1 | N50: 50 | O50: 1 | P50: 50 | Q50: 0 | R50: 0 | S50: 0 | T50: 0 | U50: 0 | V50: 0 | W50: 0 | X50: 0 | Y50: 0 | Z50: 0
A51: INTEGRACIÓN NACIONAL | G51: 114 | H51: 48 | I51: 42.10526316 | J51: 66 | K51: 57.89473684 | L51: 93 | M51: 55 | N51: 59.13978495 | O51: 38 | P51: 40.86021505 | Q51: 84 | R51: 32 | S51: 38.0952381 | T51: 52 | U51: 61.9047619 | V51: 51 | W51: 35 | X51: 68.62745098 | Y51: 16 | Z51: 31.37254902
A52: IZQUIERDA COSTARRICENSE | G52: 6 | H52: 4 | I52: 66.66666667 | J52: 2 | K52: 33.33333333 | L52: 1 | M52: 0 | N52: 0 | O52: 1 | P52: 100 | Q52: 0 | R52: 0 | S52: 0 | T52: 0 | U52: 0 | V52: 0 | W52: 0 | X52: 0 | Y52: 0 | Z52: 0
A53: JUSTICIA SOCIAL | G53: 3 | H53: 1 | I53: 33.33333333 | J53: 2 | K53: 66.66666667 | L53: 3 | M53: 2 | N53: 66.66666667 | O53: 1 | P53: 33.33333333 | Q53: 3 | R53: 1 | S53: 33.33333333 | T53: 2 | U53: 66.66666667 | V53: 3 | W53: 2 | X53: 66.66666667 | Y53: 1 | Z53: 33.33333333
A54: JUSTICIA SOCIAL COSTARRICENSE | G54: 16 | H54: 7 | I54: 43.75 | J54: 9 | K54: 56.25 | L54: 14 | M54: 7 | N54: 50 | O54: 7 | P54: 50 | Q54: 11 | R54: 5 | S54: 45.45454545 | T54: 6 | U54: 54.54545455 | V54: 9 | W54: 5 | X54: 55.55555556 | Y54: 4 | Z54: 44.44444444
A55: LA FUERZA DE LA UNIÓN | G55: 0 | H55: 0 | I55: 0 | J55: 0 | K55: 0 | L55: 0 | M55: 0 | N55: 0 | O55: 0 | P55: 0 | Q55: 0 | R55: 0 | S55: 0 | T55: 0 | U55: 0 | V55: 0 | W55: 0 | X55: 0 | Y55: 0 | Z55: 0
A56: LA GRAN NICOYA | G56: 3 | H56: 2 | I56: 66.66666667 | J56: 1 | K56: 33.33333333 | L56: 2 | M56: 1 | N56: 50 | O56: 1 | P56: 50 | Q56: 2 | R56: 1 | S56: 50 | T56: 1 | U56: 50 | V56: 1 | W56: 0 | X56: 0 | Y56: 1 | Z56: 100
A57: LIBERACIÓN NACIONAL | G57: 480 | H57: 218 | I57: 45.41666667 | J57: 262 | K57: 54.58333333 | L57: 462 | M57: 251 | N57: 54.32900433 | O57: 211 | P57: 45.67099567 | Q57: 448 | R57: 203 | S57: 45.3125 | T57: 245 | U57: 54.6875 | V57: 400 | W57: 220 | X57: 55 | Y57: 180 | Z57: 45
A58: LIBERAL PROGRESISTA | G58: 31 | H58: 12 | I58: 38.70967742 | J58: 19 | K58: 61.29032258 | L58: 20 | M58: 13 | N58: 65 | O58: 7 | P58: 35 | Q58: 15 | R58: 5 | S58: 33.33333333 | T58: 10 | U58: 66.66666667 | V58: 9 | W58: 7 | X58: 77.77777778 | Y58: 2 | Z58: 22.22222222
A59: LIGA RAMONENSE | G59: 0 | H59: 0 | I59: 0 | J59: 0 | K59: 0 | L59: 0 | M59: 0 | N59: 0 | O59: 0 | P59: 0 | Q59: 0 | R59: 0 | S59: 0 | T59: 0 | U59: 0 | V59: 0 | W59: 0 | X59: 0 | Y59: 0 | Z59: 0
A60: MOVIMIENTO AVANCE SANTO DOMINGO | G60: 8 | H60: 4 | I60: 50 | J60: 4 | K60: 50 | L60: 8 | M60: 4 | N60: 50 | O60: 4 | P60: 50 | Q60: 7 | R60: 3 | S60: 42.85714286 | T60: 4 | U60: 57.14285714 | V60: 5 | W60: 2 | X60: 40 | Y60: 3 | Z60: 60
A61: NANDAYURE PROGRESA | G61: 6 | H61: 0 | I61: 0 | J61: 6 | K61: 100 | L61: 6 | M61: 6 | N61: 100 | O61: 0 | P61: 0 | Q61: 6 | R61: 0 | S61: 0 | T61: 6 | U61: 100 | V61: 3 | W61: 3 | X61: 100 | Y61: 0 | Z61: 0
A62: NUESTRO PUEBLO | G62: 51 | H62: 27 | I62: 52.94117647 | J62: 24 | K62: 47.05882353 | L62: 47 | M62: 21 | N62: 44.68085106 | O62: 26 | P62: 55.31914894 | Q62: 43 | R62: 24 | S62: 55.81395349 | T62: 19 | U62: 44.18604651 | V62: 35 | W62: 17 | X62: 48.57142857 | Y62: 18 | Z62: 51.42857143
A63: NUEVA GENERACIÓN | G63: 178 | H63: 74 | I63: 41.57303371 | J63: 104 | K63: 58.42696629 | L63: 155 | M63: 92 | N63: 59.35483871 | O63: 63 | P63: 40.64516129 | Q63: 135 | R63: 57 | S63: 42.22222222 | T63: 78 | U63: 57.77777778 | V63: 88 | W63: 56 | X63: 63.63636364 | Y63: 32 | Z63: 36.36363636
A64: NUEVA MAYORIA GRIEGA | G64: 7 | H64: 5 | I64: 71.42857143 | J64: 2 | K64: 28.57142857 | L64: 7 | M64: 2 | N64: 28.57142857 | O64: 5 | P64: 71.42857143 | Q64: 5 | R64: 4 | S64: 80 | T64: 1 | U64: 20 | V64: 4 | W64: 1 | X64: 25 | Y64: 3 | Z64: 75
A65: NUEVA REPÚBLICA | G65: 248 | H65: 105 | I65: 42.33870968 | J65: 143 | K65: 57.66129032 | L65: 183 | M65: 105 | N65: 57.37704918 | O65: 78 | P65: 42.62295082 | Q65: 148 | R65: 63 | S65: 42.56756757 | T65: 85 | U65: 57.43243243 | V65: 91 | W65: 55 | X65: 60.43956044 | Y65: 36 | Z65: 39.56043956
A66: PALMARES PRIMERO | G66: 1 | H66: 0 | I66: 0 | J66: 1 | K66: 100 | L66: 1 | M66: 1 | N66: 100 | O66: 0 | P66: 0 | Q66: 1 | R66: 0 | S66: 0 | T66: 1 | U66: 100 | V66: 1 | W66: 1 | X66: 100 | Y66: 0 | Z66: 0
A67: PROGRESER | G67: 13 | H67: 10 | I67: 76.92307692 | J67: 3 | K67: 23.07692308 | L67: 13 | M67: 3 | N67: 23.07692308 | O67: 10 | P67: 76.92307692 | Q67: 12 | R67: 9 | S67: 75 | T67: 3 | U67: 25 | V67: 12 | W67: 3 | X67: 25 | Y67: 9 | Z67: 75
A68: PUEBLO GARABITO | G68: 2 | H68: 1 | I68: 50 | J68: 1 | K68: 50 | L68: 2 | M68: 1 | N68: 50 | O68: 1 | P68: 50 | Q68: 2 | R68: 1 | S68: 50 | T68: 1 | U68: 50 | V68: 1 | W68: 1 | X68: 100 | Y68: 0 | Z68: 0
A69: PURISCAL EN MARCHA | G69: 9 | H69: 5 | I69: 55.55555556 | J69: 4 | K69: 44.44444444 | L69: 9 | M69: 4 | N69: 44.44444444 | O69: 5 | P69: 55.55555556 | Q69: 9 | R69: 5 | S69: 55.55555556 | T69: 4 | U69: 44.44444444 | V69: 9 | W69: 4 | X69: 44.44444444 | Y69: 5 | Z69: 55.55555556
A70: RECUPERANDO VALORES | G70: 20 | H70: 12 | I70: 60 | J70: 8 | K70: 40 | L70: 17 | M70: 7 | N70: 41.17647059 | O70: 10 | P70: 58.82352941 | Q70: 11 | R70: 8 | S70: 72.72727273 | T70: 3 | U70: 27.27272727 | V70: 7 | W70: 2 | X70: 28.57142857 | Y70: 5 | Z70: 71.42857143
A71: RENOVACIÓN COSTARRICENSE | G71: 20 | H71: 15 | I71: 75 | J71: 5 | K71: 25 | L71: 17 | M71: 4 | N71: 23.52941176 | O71: 13 | P71: 76.47058824 | Q71: 12 | R71: 10 | S71: 83.33333333 | T71: 2 | U71: 16.66666667 | V71: 6 | W71: 0 | X71: 0 | Y71: 6 | Z71: 100
A72: REPÚBLICANO SOCIAL CRISTIANO | G72: 223 | H72: 97 | I72: 43.49775785 | J72: 126 | K72: 56.50224215 | L72: 173 | M72: 97 | N72: 56.06936416 | O72: 76 | P72: 43.93063584 | Q72: 144 | R72: 58 | S72: 40.27777778 | T72: 86 | U72: 59.72222222 | V72: 95 | W72: 58 | X72: 61.05263158 | Y72: 37 | Z72: 38.94736842
A73: RESCATE CANTONAL LA UNIÓN | G73: 8 | H73: 3 | I73: 37.5 | J73: 5 | K73: 62.5 | L73: 7 | M73: 4 | N73: 57.14285714 | O73: 3 | P73: 42.85714286 | Q73: 7 | R73: 3 | S73: 42.85714286 | T73: 4 | U73: 57.14285714 | V73: 1 | W73: 0 | X73: 0 | Y73: 1 | Z73: 100
A74: RESTAURACIÓN NACIONAL | G74: 263 | H74: 115 | I74: 43.72623574 | J74: 148 | K74: 56.27376426 | L74: 224 | M74: 129 | N74: 57.58928571 | O74: 95 | P74: 42.41071429 | Q74: 204 | R74: 88 | S74: 43.1372549 | T74: 116 | U74: 56.8627451 | V74: 151 | W74: 96 | X74: 63.57615894 | Y74: 55 | Z74: 36.42384106
A75: RESTAURACIÓN PARRITEÑA | G75: 1 | H75: 0 | I75: 0 | J75: 1 | K75: 100 | L75: 1 | M75: 1 | N75: 100 | O75: 0 | P75: 0 | Q75: 1 | R75: 0 | S75: 0 | T75: 1 | U75: 100 | V75: 0 | W75: 0 | X75: 0 | Y75: 0 | Z75: 0
A76: SENTIR HEREDIA | G76: =+H76+J76 -> 5 | H76: 3 | I76: =+H76/$G76*100 -> 60 | J76: 2 | K76: =+J76/$G76*100 -> 40 | L76: =+M76+O76 -> 5 | M76: 2 | N76: =+M76/$L76*100 -> 40 | O76: 3 | P76: =+O76/$L76*100 -> 60 | Q76: =+R76+T76 -> 4 | R76: 3 | S76: =+R76/$Q76*100 -> 75 | T76: 1 | U76: =+T76/$Q76*100 -> 25 | V76: =+W76+Y76 -> 3 | W76: 1 | X76: =+W76/$V76*100 -> 33.33333333 | Y76: 2 | Z76: =+Y76/$V76*100 -> 66.66666667
A77: SOMOS MORAVIA | G77: 3 | H77: 1 | I77: 33.33333333 | J77: 2 | K77: 66.66666667 | L77: 2 | M77: 2 | N77: 100 | O77: 0 | P77: 0 | Q77: 2 | R77: 0 | S77: 0 | T77: 2 | U77: 100 | V77: 1 | W77: 1 | X77: 100 | Y77: 0 | Z77: 0
A78: SOMOS SARCHÍ | B78: 21 | C78: 12 | D78: 57.14285714 | E78: 9 | F78: 42.85714286 | G78: 5 | H78: 2 | I78: 40 | J78: 3 | K78: 60 | L78: 4 | M78: 2 | N78: 50 | O78: 2 | P78: 50 | Q78: 4 | R78: 2 | S78: 50 | T78: 2 | U78: 50 | V78: 4 | W78: 2 | X78: 50 | Y78: 2 | Z78: 50
A79: TARRAZÚ PRIMERO | B79: 5 | C79: 1 | D79: 20 | E79: 4 | F79: 80 | G79: 3 | H79: 0 | I79: 0 | J79: 3 | K79: 100 | L79: 3 | M79: 3 | N79: 100 | O79: 0 | P79: 0 | Q79: 3 | R79: 0 | S79: 0 | T79: 3 | U79: 100 | V79: 1 | W79: 1 | X79: 100 | Y79: 0 | Z79: 0
A80: TERRA ESCAZÚ | B80: 11 | C80: 5 | D80: 45.45454545 | E80: 6 | F80: 54.54545455 | G80: 3 | H80: 0 | I80: 0 | J80: 3 | K80: 100 | L80: 3 | M80: 3 | N80: 100 | O80: 0 | P80: 0 | Q80: 3 | R80: 0 | S80: 0 | T80: 3 | U80: 100 | V80: 3 | W80: 3 | X80: 100 | Y80: 0 | Z80: 0
A81: TODOS POR GOICOECHEA | B81: 12 | C81: 6 | D81: 50 | E81: 6 | F81: 50 | G81: 7 | H81: 2 | I81: 28.57142857 | J81: 5 | K81: 71.42857143 | L81: 7 | M81: 5 | N81: 71.42857143 | O81: 2 | P81: 28.57142857 | Q81: 7 | R81: 2 | S81: 28.57142857 | T81: 5 | U81: 71.42857143 | V81: 5 | W81: 3 | X81: 60 | Y81: 2 | Z81: 40
A82: TURRIALBA PRIMERO | B82: 16 | C82: 8 | D82: 50 | E82: 8 | F82: 50 | G82: 11 | H82: 4 | I82: 36.36363636 | J82: 7 | K82: 63.63636364 | L82: 11 | M82: 7 | N82: 63.63636364 | O82: 4 | P82: 36.36363636 | Q82: 11 | R82: 4 | S82: 36.36363636 | T82: 7 | U82: 63.63636364 | V82: 10 | W82: 7 | X82: 70 | Y82: 3 | Z82: 30
A83: UNICO ABANGAREÑO | B83: 890 | C83: 441 | D83: 49.5505618 | E83: 449 | F83: 50.4494382 | G83: 4 | H83: 2 | I83: 50 | J83: 2 | K83: 50 | L83: 3 | M83: 2 | N83: 66.66666667 | O83: 1 | P83: 33.33333333 | Q83: 2 | R83: 1 | S83: 50 | T83: 1 | U83: 50 | V83: 1 | W83: 1 | X83: 100 | Y83: 0 | Z83: 0
A84: UNIDAD SOCIAL CRISTIANA | B84: 32 | C84: 16 | D84: 50 | E84: 16 | F84: 50 | G84: 362 | H84: 160 | I84: 44.19889503 | J84: 202 | K84: 55.80110497 | L84: 296 | M84: 170 | N84: 57.43243243 | O84: 126 | P84: 42.56756757 | Q84: 229 | R84: 95 | S84: 41.48471616 | T84: 134 | U84: 58.51528384 | V84: 162 | W84: 100 | X84: 61.72839506 | Y84: 62 | Z84: 38.27160494
A85: UNIDOS PARA EL DESARROLLO | B85: 27 | C85: 13 | D85: 48.14814815 | E85: 14 | F85: 51.85185185 | G85: 6 | H85: 5 | I85: 83.33333333 | J85: 1 | K85: 16.66666667 | L85: 2 | M85: 0 | N85: 0 | O85: 2 | P85: 100 | Q85: 1 | R85: 1 | S85: 100 | T85: 0 | U85: 0 | V85: 0 | W85: 0 | X85: 0 | Y85: 0 | Z85: 0
A86: UNIDOS PODEMOS | B86: 28 | C86: 14 | D86: 50 | E86: 14 | F86: 50 | G86: 251 | H86: 110 | I86: 43.8247012 | J86: 141 | K86: 56.1752988 | L86: 170 | M86: 100 | N86: 58.82352941 | O86: 70 | P86: 41.17647059 | Q86: 133 | R86: 50 | S86: 37.59398496 | T86: 83 | U86: 62.40601504 | V86: 92 | W86: 57 | X86: =+W86/$V86*100 -> 61.95652174 | Y86: 35 | Z86: =+Y86/$V86*100 -> 38.04347826
A87: UNIDOS POR ESCAZÚ | B87: 8 | C87: 3 | D87: 37.5 | E87: 5 | F87: 62.5 | G87: 3 | H87: 2 | I87: 66.66666667 | J87: 1 | K87: 33.33333333 | L87: 3 | M87: 1 | N87: 33.33333333 | O87: 2 | P87: 66.66666667 | Q87: 0 | R87: 0 | S87: 0 | T87: 0 | U87: 0 | V87: 0 | W87: 0 | X87: 0 | Y87: 0 | Z87: 0
A88: UNIÓN ATENIENSE | G88: 8 | H88: 1 | I88: 12.5 | J88: 7 | K88: 87.5 | L88: 8 | M88: 7 | N88: 87.5 | O88: 1 | P88: 12.5 | Q88: 8 | R88: 1 | S88: =+R88/$Q88*100 -> 12.5 | T88: 7 | U88: =+T88/$Q88*100 -> 87.5 | V88: 6 | W88: 4 | X88: =+W88/$V88*100 -> 66.66666667 | Y88: 2 | Z88: =+Y88/$V88*100 -> 33.33333333
A89: UNIÓN DE PUNTARENENSES EMPRENDEDORES | G89: 13 | H89: 6 | I89: 46.15384615 | J89: 7 | K89: 53.84615385 | L89: 12 | M89: 6 | N89: 50 | O89: 6 | P89: 50 | Q89: 9 | R89: 4 | S89: =+R89/$Q89*100 -> 44.44444444 | T89: 5 | U89: =+T89/$Q89*100 -> 55.55555556 | V89: 7 | W89: 3 | X89: =+W89/$V89*100 -> 42.85714286 | Y89: 4 | Z89: =+Y89/$V89*100 -> 57.14285714
A90: UNIÓN DOMINGUEÑA | G90: 6 | H90: 4 | I90: 66.66666667 | J90: 2 | K90: 33.33333333 | L90: 5 | M90: 1 | N90: 20 | O90: 4 | P90: 80 | Q90: 3 | R90: 2 | S90: =+R90/$Q90*100 -> 66.66666667 | T90: 1 | U90: =+T90/$Q90*100 -> 33.33333333 | V90: 1 | W90: 0 | X90: =+W90/$V90*100 -> 0 | Y90: 1 | Z90: =+Y90/$V90*100 -> 100
A91: UNIÓN GRIEGA | G91: 7 | H91: 6 | I91: 85.71428571 | J91: 1 | K91: 14.28571429 | L91: 7 | M91: 1 | N91: 14.28571429 | O91: 6 | P91: 85.71428571 | Q91: 5 | R91: 4 | S91: =+R91/$Q91*100 -> 80 | T91: 1 | U91: =+T91/$Q91*100 -> 20 | V91: 4 | W91: 1 | X91: =+W91/$V91*100 -> 25 | Y91: 3 | Z91: =+Y91/$V91*100 -> 75
A92: UNIÓN GUANACASTECA | G92: 31 | H92: 15 | I92: 48.38709677 | J92: 16 | K92: 51.61290323 | L92: 30 | M92: 16 | N92: 53.33333333 | O92: 14 | P92: 46.66666667 | Q92: 27 | R92: 12 | S92: =+R92/$Q92*100 -> 44.44444444 | T92: 15 | U92: =+T92/$Q92*100 -> 55.55555556 | V92: 20 | W92: 13 | X92: =+W92/$V92*100 -> 65 | Y92: 7 | Z92: =+Y92/$V92*100 -> 35
A93: UNIÓN GUARQUEÑO | G93: 3 | H93: 2 | I93: 66.66666667 | J93: 1 | K93: 33.33333333 | L93: 0 | M93: 0 | N93: 0 | O93: 0 | P93: 0 | Q93: 0 | R93: 0 | S93: 0 | T93: 0 | U93: 0 | V93: 0 | W93: 0 | X93: 0 | Y93: 0 | Z93: 0
A94: VERDE ECOLOGISTA | G94: 15 | H94: 6 | I94: 40 | J94: 9 | K94: 60 | L94: 10 | M94: 6 | N94: =+M94/$L94*100 -> 60 | O94: 4 | P94: =+O94/$L94*100 -> 40 | Q94: 5 | R94: 2 | S94: =+R94/$Q94*100 -> 40 | T94: 3 | U94: =+T94/$Q94*100 -> 60 | V94: 2 | W94: 1 | X94: =+W94/$V94*100 -> 50 | Y94: 1 | Z94: =+Y94/$V94*100 -> 50
A95: YO SOY EL CAMBIO | G95: 3 | H95: 2 | I95: 66.66666667 | J95: 1 | K95: 33.33333333 | L95: 3 | M95: 1 | N95: =+M95/$L95*100 -> 33.33333333 | O95: 2 | P95: =+O95/$L95*100 -> 66.66666667 | Q95: 1 | R95: 1 | S95: =+R95/$Q95*100 -> 100 | T95: 0 | U95: =+T95/$Q95*100 -> 0 | V95: 1 | W95: 0 | X95: =+W95/$V95*100 -> 0 | Y95: 1 | Z95: =+Y95/$V95*100 -> 100
A96: YUNTA PROGRESISTA ESCAZUCEÑA | G96: 3 | H96: 3 | I96: 100 | J96: 0 | K96: 0 | L96: 3 | M96: 0 | N96: =+M96/$L96*100 -> 0 | O96: 3 | P96: =+O96/$L96*100 -> 100 | Q96: 3 | R96: 3 | S96: =+R96/$Q96*100 -> 100 | T96: 0 | U96: =+T96/$Q96*100 -> 0 | V96: 3 | W96: 0 | X96: =+W96/$V96*100 -> 0 | Y96: 3 | Z96: =+Y96/$V96*100 -> 100
A99: 1/ Incluye Concejalías de Distrito y Concejalías Municipales de Distrito.
A100: Fuente: Tribunal Supremo de Elecciones.

Sheet 1.8
A2: CUADRO 1.8 COSTA RICA: CANDIDATURAS ELECTAS EN PROPIEDAD Y SUPLENCIA, POR SEXO
A3: SEGÚN TIPO DE CANDIDATURA, ELECCIONES MUNICIPALES FEBRERO 2020
A4: (cifras absolutas y relativas)
A6: TIPO DE CANDIDATURA | B6: TOTAL | G6: EN PROPIEDAD | L6: EN SUPLENCIA
B7: TOTAL | C7: MUJERES | E7: HOMBRES | G7: TOTAL | H7: MUJERES | J7: HOMBRES | L7: TOTAL | M7: MUJERES | O7: HOMBRES
C8: Absoluto | D8: % | E8: Absoluto | F8: % | H8: Absoluto | I8: % | J8: Absoluto | K8: % | M8: Absoluto | N8: % | O8: Absoluto | P8: %
A10: TOTAL | B10: =SUM(B11:B19) -> 6017 | C10: =SUM(C11:C19) -> 2914 | D10: =+C10/$B10*100 -> 48.42944989 | E10: =SUM(E11:E19) -> 3103 | F10: =+E10/$B10*100 -> 51.57055011 | G10: =SUM(G11:G19) -> 3118 | H10: =SUM(H11:H19) -> 1394 | I10: =+H10/$G10*100 -> 44.70814625 | J10: =SUM(J11:J19) -> 1724 | K10: =+J10/$G10*100 -> 55.29185375 | L10: =SUM(L11:L19) -> 2899 | M10: =SUM(M11:M19) -> 1520 | N10: =+M10/$L10*100 -> 52.43187306 | O10: =SUM(O11:O19) -> 1379 | P10: =+O10/$L10*100 -> 47.56812694
A11: ALCALDÍA | B11: =+G11+L11 -> 82 | C11: =H11+M11 -> 8 | D11: =+C11/$B11*100 -> 9.756097561 | E11: =J11+O11 -> 74 | F11: =+E11/$B11*100 -> 90.24390244 | G11: =+H11+J11 -> 82 | H11: 8 | I11: =+H11/$G11*100 -> 9.756097561 | J11: 74 | K11: =+J11/$G11*100 -> 90.24390244 | L11: =+M11+O11 -> 0 | M11: 0 | N11: 0 | O11: 0 | P11: 0
A12: VICEALCALDÍA PRIMERA | B12: 82 | C12: =H12+M12 -> 73 | D12: =+C12/$B12*100 -> 89.02439024 | E12: =J12+O12 -> 9 | F12: =+E12/$B12*100 -> 10.97560976 | G12: =+H12+J12 -> 82 | H12: 73 | I12: =+H12/$G12*100 -> 89.02439024 | J12: 9 | K12: =+J12/$G12*100 -> 10.97560976 | L12: =+M12+O12 -> 0 | M12: 0 | N12: 0 | O12: 0 | P12: 0
A13: VICEALCALDÍA SEGUNDA | B13: 80 | C13: 23 | D13: 28.75 | E13: 57 | F13: 71.25 | G13: 0 | H13: 0 | I13: 0 | J13: 0 | K13: 0 | L13: 80 | M13: 23 | N13: =+M13/$L13*100 -> 28.75 | O13: 57 | P13: =+O13/$L13*100 -> 71.25
A14: REGIDURÍA | B14: =+G14+L14 -> 1015 | C14: 462 | D14: =+C14/$B14*100 -> 45.51724138 | E14: 553 | F14: =+E14/$B14*100 -> 54.48275862 | G14: =+H14+J14 -> 508 | H14: 207 | I14: 40.7480315 | J14: 301 | K14: 59.2519685 | L14: =+M14+O14 -> 507 | M14: 255 | N14: =+M14/$L14*100 -> 50.29585799 | O14: 252 | P14: =+O14/$L14*100 -> 49.70414201
A15: CONCEJALÍA DE DISTRITO | B15: 3729 | C15: 1836 | D15: 49.23572003 | E15: 1893 | F15: 50.76427997 | G15: 1912 | H15: 914 | I15: 47.80334728 | J15: 998 | K15: 52.19665272 | L15: 1817 | M15: 922 | N15: =+M15/$L15*100 -> 50.74298294 | O15: 895 | P15: =+O15/$L15*100 -> 49.25701706
A16: CONCEJALÍA MUNICIPAL DE DISTRITO | B16: 61 | C16: 31 | D16: 50.81967213 | E16: 30 | F16: 49.18032787 | G16: 32 | H16: 13 | I16: 40.625 | J16: 19 | K16: 59.375 | L16: 29 | M16: 18 | N16: =+M16/$L16*100 -> 62.06896552 | O16: 11 | P16: =+O16/$L16*100 -> 37.93103448
A17: INTENDENCIA | B17: 8 | C17: 1 | D17: 12.5 | E17: 7 | F17: 87.5 | G17: 8 | H17: 1 | I17: 12.5 | J17: 7 | K17: 87.5 | L17: 0 | M17: 0 | N17: 0 | O17: 0 | P17: 0
A18: VICEINTENDENCIA | B18: 8 | C18: 7 | D18: 87.5 | E18: 1 | F18: 12.5 | G18: 8 | H18: 7 | I18: 87.5 | J18: 1 | K18: 12.5 | L18: 0 | M18: 0 | N18: 0 | O18: 0 | P18: 0
A19: SINDICATURA | B19: 952 | C19: 473 | D19: 49.68487395 | E19: 479 | F19: 50.31512605 | G19: 486 | H19: 171 | I19: 35.18518519 | J19: 315 | K19: 64.81481481 | L19: 466 | M19: 302 | N19: =+M19/$L19*100 -> 64.80686695 | O19: 164 | P19: =+O19/$L19*100 -> 35.19313305
A22: Fuente: Tribunal Supremo de Elecciones.

Sheet G1.1
A2: GRÁFICO 1.1 COSTA RICA: CANDIDATURAS ELECTAS EN PROPIEDAD, POR SEXO, SEGÚN TIPO DE PUESTO, ELECCIONES MUNICIPALES FEBRERO 2020
A5: PUESTO | B5: HOMBRES | C5: MUJERES
B6: =SUM(B7:B14) -> 1724 | C6: =SUM(C7:C14) -> 1394
A7: CONCEJALÍA DE DISTRITO | B7: =+'1.8'!J15 -> 998 | C7: =+'1.8'!H15 -> 914
A8: CONCEJALÍA MUNICIPAL DE DISTRITO | B8: =+'1.8'!J16 -> 19 | C8: =+'1.8'!H16 -> 13
A9: SINDICATURA | B9: =+'1.8'!J19 -> 315 | C9: =+'1.8'!H19 -> 171
A10: VICEINTENDENCIA | B10: =+'1.8'!J18 -> 1 | C10: =+'1.8'!H18 -> 7
A11: INTENDENCIA | B11: =+'1.8'!J17 -> 7 | C11: =+'1.8'!H17 -> 1
A12: REGIDURÍA | B12: =+'1.8'!J14 -> 301 | C12: =+'1.8'!H14 -> 207
A13: VICEALCALDÍA PRIMERA | B13: =+'1.8'!J12 -> 9 | C13: =+'1.8'!H12 -> 73
A14: ALCALDÍA | B14: =+'1.8'!J11 -> 74 | C14: =+'1.8'!H11 -> 8
A16: Fuente: Tribunal Supremo de Elecciones.
A23: Fuente: Tribunal Supremo de Elecciones.

Sheet 1.9
A2: CUADRO 1.9 COSTA RICA: ALCALDÍAS Y VICEALCALDÍAS ELECTAS, POR SEXO
A3: SEGÚN PARTIDO POLÍTICO, ELECCIONES MUNICIPALES FEBRERO 2020
A4: (cifras absolutas y relativas)
A6: PARTIDO POLÍTICO | B6: ALCALDÍAS | G6: VICEALCALDÍAS PRIMERAS | L6: VICEALCALDÍAS SEGUNDAS
B7: TOTAL | C7: MUJERES | E7: HOMBRES | G7: TOTAL | H7: MUJERES | J7: HOMBRES | L7: TOTAL | M7: MUJERES | O7: HOMBRES
C8: Absoluto | D8: % | E8: Absoluto | F8: % | H8: Absoluto | I8: % | J8: Absoluto | K8: % | M8: Absoluto | N8: % | O8: Absoluto | P8: %
A10: TOTAL | B10: =SUM(B12:B30) -> 82 | C10: =SUM(C12:C30) -> 8 | D10: =+C10/$B10*100 -> 9.756097561 | E10: =SUM(E12:E30) -> 74 | F10: =+E10/$B10*100 -> 90.24390244 | G10: =SUM(G12:G30) -> 82 | H10: =SUM(H12:H30) -> 73 | I10: =+H10/$G10*100 -> 89.02439024 | J10: =SUM(J12:J30) -> 9 | K10: =+J10/$G10*100 -> 10.97560976 | L10: =SUM(L12:L30) -> 80 | M10: =SUM(M12:M30) -> 23 | N10: =+M10/$L10*100 -> 28.75 | O10: =SUM(O12:O30) -> 57 | P10: =+O10/$L10*100 -> 71.25
A12: ACCIÓN CIUDADANA | B12: =+C12+E12 -> 4 | C12: 0 | D12: =+C12/$B12*100 -> 0 | E12: 4 | F12: =+E12/$B12*100 -> 100 | G12: =+H12+J12 -> 4 | H12: 4 | I12: =+H12/$G12*100 -> 100 | J12: 0 | K12: =+J12/$G12*100 -> 0 | L12: =+M12+O12 -> 4 | M12: 0 | N12: =+M12/$L12*100 -> 0 | O12: 4 | P12: =+O12/$L12*100 -> 100
A13: ALIANZA DEMÓCRATA CRISTIANA | B13: 1 | C13: 0 | D13: =+C13/$B13*100 -> 0 | E13: 1 | F13: =+E13/$B13*100 -> 100 | G13: 1 | H13: 1 | I13: =+H13/$G13*100 -> 100 | J13: 0 | K13: =+J13/$G13*100 -> 0 | L13: 1 | M13: 0 | N13: =+M13/$L13*100 -> 0 | O13: 1 | P13: =+O13/$L13*100 -> 100
A14: ALIANZA POR SARCHÍ | B14: 1 | C14: 0 | D14: 0 | E14: 1 | F14: 100 | G14: 1 | H14: 1 | I14: 100 | J14: 0 | K14: 0 | L14: 1 | M14: 0 | N14: 0 | O14: 1 | P14: 100
A15: AUTÉNTICO LIMONENSE | B15: 1 | C15: 0 | D15: 0 | E15: 1 | F15: 100 | G15: 1 | H15: 1 | I15: 100 | J15: 0 | K15: 0 | L15: 1 | M15: 0 | N15: 0 | O15: 1 | P15: 100
A16: AUTÉNTICO SANTACRUCEÑO | B16: 1 | C16: 0 | D16: 0 | E16: 1 | F16: 100 | G16: 1 | H16: 1 | I16: 100 | J16: 0 | K16: 0 | L16: 1 | M16: 1 | N16: 100 | O16: 0 | P16: 0
A17: COALICIÓN GENTE MONTES DE OCA | B17: 1 | C17: 0 | D17: 0 | E17: 1 | F17: 100 | G17: 1 | H17: 1 | I17: 100 | J17: 0 | K17: 0 | L17: 1 | M17: 0 | N17: 0 | O17: 1 | P17: 100
A18: COMUNAL UNIDO | B18: 1 | C18: 0 | D18: 0 | E18: 1 | F18: 100 | G18: 1 | H18: 1 | I18: 100 | J18: 0 | K18: 0 | L18: 1 | M18: 0 | N18: 0 | O18: 1 | P18: 100
A19: CURRIDABAT SIGLO XXI | B19: 1 | C19: 0 | D19: 0 | E19: 1 | F19: 100 | G19: 1 | H19: 1 | I19: 100 | J19: 0 | K19: 0 | L19: 0 | M19: 0 | N19: 0 | O19: 0 | P19: 0
A20: LA GRAN NICOYA | B20: 1 | C20: 0 | D20: 0 | E20: 1 | F20: 100 | G20: 1 | H20: 1 | I20: 100 | J20: 0 | K20: 0 | L20: 1 | M20: 1 | N20: 100 | O20: 0 | P20: 0
A21: LIBERACIÓN NACIONAL | B21: 43 | C21: 3 | D21: 6.976744186 | E21: 40 | F21: 93.02325581 | G21: 43 | H21: 39 | I21: 90.69767442 | J21: 4 | K21: 9.302325581 | L21: 42 | M21: 10 | N21: 23.80952381 | O21: 32 | P21: 76.19047619
A22: MOVIMIENTO AVANCE SANTO DOMINGO | B22: 1 | C22: 0 | D22: 0 | E22: 1 | F22: 100 | G22: 1 | H22: 1 | I22: 100 | J22: 0 | K22: 0 | L22: 1 | M22: 0 | N22: 0 | O22: 1 | P22: 100
A23: NANDAYURE PROGRESA | B23: 1 | C23: 0 | D23: 0 | E23: 1 | F23: 100 | G23: 1 | H23: 1 | I23: 100 | J23: 0 | K23: 0 | L23: 1 | M23: 0 | N23: 0 | O23: 1 | P23: 100
A24: NUEVA GENERACIÓN | B24: 4 | C24: 0 | D24: 0 | E24: 4 | F24: 100 | G24: 4 | H24: 4 | I24: 100 | J24: 0 | K24: 0 | L24: 4 | M24: 2 | N24: 50 | O24: 2 | P24: 50
A25: PALMARES PRIMERO | B25: 1 | C25: 1 | D25: 100 | E25: 0 | F25: 0 | G25: 1 | H25: 0 | I25: 0 | J25: 1 | K25: 100 | L25: 1 | M25: 1 | N25: 100 | O25: 0 | P25: 0
A26: RECUPERANDO VALORES | B26: 1 | C26: 0 | D26: 0 | E26: 1 | F26: 100 | G26: 1 | H26: 1 | I26: 100 | J26: 0 | K26: 0 | L26: 1 | M26: 0 | N26: 0 | O26: 1 | P26: 100
A27: REPUBLICANO SOCIAL CRISTIANO | B27: 2 | C27: 0 | D27: 0 | E27: 2 | F27: 100 | G27: 2 | H27: 2 | I27: 100 | J27: 0 | K27: 0 | L27: 2 | M27: 1 | N27: 50 | O27: 1 | P27: 50
A28: SOMOS MORAVIA | B28: 1 | C28: 0 | D28: 0 | E28: 1 | F28: 100 | G28: 1 | H28: 1 | I28: 100 | J28: 0 | K28: 0 | L28: 1 | M28: 0 | N28: 0 | O28: 1 | P28: 100
A29: UNIDAD SOCIAL CRISTIANA | B29: 15 | C29: 4 | D29: 26.66666667 | E29: 11 | F29: 73.33333333 | G29: 15 | H29: 11 | I29: 73.33333333 | J29: 4 | K29: 26.66666667 | L29: 15 | M29: 7 | N29: 46.66666667 | O29: 8 | P29: 53.33333333
A30: UNIDOS PODEMOS | B30: 1 | C30: 0 | D30: 0 | E30: 1 | F30: 100 | G30: 1 | H30: 1 | I30: 100 | J30: 0 | K30: 0 | L30: 1 | M30: 0 | N30: 0 | O30: 1 | P30: 100
A33: Fuente: Tribunal Supremo de Elecciones.

Sheet G1.2
A2: GRÁFICO 1.2 COSTA RICA: ALCALDÍAS GANADAS POR PARTIDO POLÍTICO,
A3: ELECCIONES MUNICIPALES FEBRERO 2020
A7: PARTIDO POLÍTICO
A8: TOTAL | B8: =SUM(B9:B27) -> 82
A9: ALIANZA DEMÓCRATA CRISTIANA | B9: 1
A10: ALIANZA POR SARCHÍ | B10: 1
A11: AUTÉNTICO LIMONENSE | B11: 1
A12: AUTÉNTICO SANTACRUCEÑO | B12: 1
A13: COALICIÓN GENTE MONTES DE OCA | B13: 1
A14: COMUNAL UNIDO | B14: 1
A15: CURRIDABAT SIGLO XXI | B15: 1
A16: LA GRAN NICOYA | B16: 1
A17: MOVIMIENTO AVANCE SANTO DOMINGO | B17: 1
A18: NANDAYURE PROGRESA | B18: 1
A19: PALMARES PRIMERO | B19: 1
A20: RECUPERANDO VALORES | B20: 1
A21: SOMOS MORAVIA | B21: 1
A22: UNIDOS PODEMOS | B22: 1
A23: REPUBLICANO SOCIAL CRISTIANO | B23: 2
A24: ACCIÓN CIUDADANA | B24: 4
A25: NUEVA GENERACIÓN | B25: 4
A26: UNIDAD SOCIAL CRISTIANA | B26: 15
A27: LIBERACIÓN NACIONAL | B27: 43
A33: Fuente: Tribunal Supremo de Elecciones.

Sheet 1.10
A2: CUADRO 1.10 COSTA RICA: REGIDURÍAS ELECTAS, POR CARGO Y SEXO, SEGÚN PARTIDO POLÍTICO
A3: ELECCIONES MUNICIPALES FEBRERO 2020
A4: (cifras absolutas y relativas)
A6: PARTIDO POLÍTICO | B6: TOTAL | G6: EN PROPIEDAD | L6: EN SUPLENCIA
B7: TOTAL | C7: MUJERES | E7: HOMBRES | G7: TOTAL | H7: MUJERES | J7: HOMBRES | L7: TOTAL | M7: MUJERES | O7: HOMBRES
C8: Absoluto | D8: % | E8: Absoluto | F8: % | H8: Absoluto | I8: % | J8: Absoluto | K8: % | M8: Absoluto | N8: % | O8: Absoluto | P8: %
A9: TOTAL | B9: =+G9+L9 -> 1015 | C9: =+H9+M9 -> 462 | D9: =+C9/$B9*100 -> 45.51724138 | E9: =+J9+O9 -> 553 | F9: =+E9/$B9*100 -> 54.48275862 | G9: =SUM(G10:G72) -> 508 | H9: =SUM(H10:H72) -> 207 | I9: =+H9/$G9*100 -> 40.7480315 | J9: =SUM(J10:J72) -> 301 | K9: =+J9/$G9*100 -> 59.2519685 | L9: =SUM(L10:L72) -> 507 | M9: =SUM(M10:M72) -> 255 | N9: =+M9/$L9*100 -> 50.29585799 | O9: =SUM(O10:O72) -> 252 | P9: =+O9/$L9*100 -> 49.70414201
A10: ACCESIBILIDAD SIN EXCLUSIÓN | B10: =+G10+L10 -> 4 | C10: =+H10+M10 -> 2 | D10: =+C10/$B10*100 -> 50 | E10: =+J10+O10 -> 2 | F10: =+E10/$B10*100 -> 50 | G10: =+H10+J10 -> 2 | H10: 1 | I10: =+H10/$G10*100 -> 50 | J10: 1 | K10: =+J10/$G10*100 -> 50 | L10: =+M10+O10 -> 2 | M10: 1 | N10: =+M10/$L10*100 -> 50 | O10: 1 | P10: =+O10/$L10*100 -> 50
A11: ACCIÓN CIUDADANA | B11: =+G11+L11 -> 68 | C11: 35 | D11: 51.47058824 | E11: =+J11+O11 -> 33 | F11: =+E11/$B11*100 -> 48.52941176 | G11: =+H11+J11 -> 34 | H11: 23 | I11: 67.64705882 | J11: 11 | K11: =+J11/$G11*100 -> 32.35294118 | L11: =+M11+O11 -> 34 | M11: 12 | N11: 35.29411765 | O11: 22 | P11: =+O11/$L11*100 -> 64.70588235
A12: ACTUEMOS YA | B12: 6 | C12: 3 | D12: 50 | E12: 3 | F12: 50 | G12: 3 | H12: 1 | I12: 33.33333333 | J12: 2 | K12: 66.66666667 | L12: 3 | M12: 2 | N12: 66.66666667 | O12: 1 | P12: 33.33333333
A13: ALIANZA DEMÓCRATA CRISTIANA | B13: 16 | C13: 8 | D13: 50 | E13: 8 | F13: 50 | G13: 8 | H13: 2 | I13: 25 | J13: 6 | K13: 75 | L13: 8 | M13: 6 | N13: 75 | O13: 2 | P13: 25
A14: ALIANZA POR PALMARES | B14: 2 | C14: 1 | D14: 50 | E14: 1 | F14: 50 | G14: 1 | H14: 0 | I14: 0 | J14: 1 | K14: 100 | L14: 1 | M14: 1 | N14: 100 | O14: 0 | P14: 0
A15: ALIANZA POR SAN JOSÉ | B15: 2 | C15: 0 | D15: 0 | E15: 2 | F15: 100 | G15: 1 | H15: 0 | I15: 0 | J15: 1 | K15: 100 | L15: 1 | M15: 0 | N15: 0 | O15: 1 | P15: 100
A16: ALIANZA POR SARCHÍ | B16: 4 | C16: 2 | D16: 50 | E16: 2 | F16: 50 | G16: 2 | H16: 1 | I16: 50 | J16: 1 | K16: 50 | L16: 2 | M16: 1 | N16: 50 | O16: 1 | P16: 50
A17: ALIANZA SOCIAL POR LA UNIÓN | B17: 2 | C17: 1 | D17: 50 | E17: 1 | F17: 50 | G17: 1 | H17: 0 | I17: 0 | J17: 1 | K17: 100 | L17: 1 | M17: 1 | N17: 100 | O17: 0 | P17: 0
A18: AUTÉNTICO LABRADOR DE CORONADO | B18: 2 | C18: 2 | D18: 100 | E18: 0 | F18: 0 | G18: 1 | H18: 1 | I18: 100 | J18: 0 | K18: 0 | L18: 1 | M18: 1 | N18: 100 | O18: 0 | P18: 0
A19: AUTÉNTICO LIMONENSE | B19: 4 | C19: 2 | D19: 50 | E19: 2 | F19: 50 | G19: 2 | H19: 1 | I19: 50 | J19: 1 | K19: 50 | L19: 2 | M19: 1 | N19: 50 | O19: 1 | P19: 50
A20: AUTÉNTICO NICOYANO | B20: 2 | C20: 0 | D20: 0 | E20: 2 | F20: 100 | G20: 1 | H20: 0 | I20: 0 | J20: 1 | K20: 100 | L20: 1 | M20: 0 | N20: 0 | O20: 1 | P20: 100
A21: AUTÉNTICO SANTACRUCEÑO | B21: 4 | C21: 2 | D21: 50 | E21: 2 | F21: 50 | G21: 2 | H21: 1 | I21: 50 | J21: 1 | K21: 50 | L21: 2 | M21: 1 | N21: 50 | O21: 1 | P21: 50
A22: AVANCE MONTES DE OCA | B22: 2 | C22: 1 | D22: 50 | E22: 1 | F22: =+E22/$B22*100 -> 50 | G22: 1 | H22: 0 | I22: 0 | J22: 1 | K22: =+J22/$G22*100 -> 100 | L22: 1 | M22: 1 | N22: 100 | O22: 0 | P22: =+O22/$L22*100 -> 0
A23: CANTONAL DE CARRILLO | B23: 2 | C23: 1 | D23: 50 | E23: 1 | F23: =+E23/$B23*100 -> 50 | G23: 1 | H23: 0 | I23: 0 | J23: 1 | K23: =+J23/$G23*100 -> 100 | L23: 1 | M23: 1 | N23: 100 | O23: 0 | P23: =+O23/$L23*100 -> 0
A24: COALICIÓN ALIANZA POR NICOYA | B24: 2 | C24: 1 | D24: 50 | E24: 1 | F24: =+E24/$B24*100 -> 50 | G24: 1 | H24: 0 | I24: 0 | J24: 1 | K24: =+J24/$G24*100 -> 100 | L24: 1 | M24: 1 | N24: 100 | O24: 0 | P24: =+O24/$L24*100 -> 0
A25: COALICIÓN ASERRI DE TODOS | B25: 2 | C25: 1 | D25: 50 | E25: 1 | F25: =+E25/$B25*100 -> 50 | G25: 1 | H25: 0 | I25: 0 | J25: 1 | K25: =+J25/$G25*100 -> 100 | L25: 1 | M25: 1 | N25: 100 | O25: 0 | P25: =+O25/$L25*100 -> 0
A26: COALICIÓN GENTE MONTES DE OCA | B26: 4 | C26: 2 | D26: 50 | E26: 2 | F26: =+E26/$B26*100 -> 50 | G26: 2 | H26: 1 | I26: 50 | J26: 1 | K26: =+J26/$G26*100 -> 50 | L26: 2 | M26: 1 | N26: 50 | O26: 1 | P26: =+O26/$L26*100 -> 50
A27: COALICIÓN JUNTOS | B27: =+G27+L27 -> 2 | C27: 1 | D27: 50 | E27: 1 | F27: =+E27/$B27*100 -> 50 | G27: 1 | H27: 0 | I27: 0 | J27: 1 | K27: =+J27/$G27*100 -> 100 | L27: 1 | M27: 1 | N27: 100 | O27: 0 | P27: =+O27/$L27*100 -> 0
A28: COALICIÓN UNIDAD POR FLORES | B28: 4 | C28: 2 | D28: 50 | E28: 2 | F28: 50 | G28: 2 | H28: 1 | I28: 50 | J28: 1 | K28: 50 | L28: 2 | M28: 1 | N28: 50 | O28: 1 | P28: 50
A29: COALICIÓN UNIÓN BELEMITA | B29: 4 | C29: 2 | D29: 50 | E29: 2 | F29: 50 | G29: 2 | H29: 1 | I29: 50 | J29: 1 | K29: 50 | L29: 2 | M29: 1 | N29: 50 | O29: 1 | P29: 50
A30: COMUNAL UNIDO | B30: 12 | C30: 6 | D30: 50 | E30: 6 | F30: 50 | G30: 6 | H30: 2 | I30: 33.33333333 | J30: 4 | K30: 66.66666667 | L30: 6 | M30: 4 | N30: 66.66666667 | O30: 2 | P30: 33.33333333
A31: CURRIDABAT SIGLO XXI | B31: 6 | C31: 3 | D31: 50 | E31: 3 | F31: 50 | G31: 3 | H31: 2 | I31: 66.66666667 | J31: 1 | K31: 33.33333333 | L31: 3 | M31: 1 | N31: 33.33333333 | O31: 2 | P31: 66.66666667
A32: DEL SOL | B32: 4 | C32: 2 | D32: 50 | E32: 2 | F32: 50 | G32: 2 | H32: 1 | I32: 50 | J32: 1 | K32: 50 | L32: 2 | M32: 1 | N32: 50 | O32: 1 | P32: 50
A33: DESPERTAR ALAJUELENSE | B33: 2 | C33: 1 | D33: 50 | E33: 1 | F33: 50 | G33: 1 | H33: 1 | I33: 100 | J33: 0 | K33: 0 | L33: 1 | M33: 0 | N33: 0 | O33: 1 | P33: 100
A34: ECOLÓGICO COMUNAL COSTARRICENSE | B34: 2 | C34: 0 | D34: 0 | E34: 2 | F34: 100 | G34: 1 | H34: 0 | I34: 0 | J34: 1 | K34: 100 | L34: 1 | M34: 0 | N34: 0 | O34: 1 | P34: 100
A35: FRENTE AMPLIO | B35: 18 | C35: 9 | D35: 50 | E35: 9 | F35: 50 | G35: 9 | H35: 4 | I35: 44.44444444 | J35: 5 | K35: 55.55555556 | L35: 9 | M35: 5 | N35: 55.55555556 | O35: 4 | P35: 44.44444444
A36: INTEGRACIÓN NACIONAL | B36: 18 | C36: 10 | D36: 55.55555556 | E36: 8 | F36: 44.44444444 | G36: 9 | H36: 3 | I36: 33.33333333 | J36: 6 | K36: 66.66666667 | L36: 9 | M36: 7 | N36: 77.77777778 | O36: 2 | P36: 22.22222222
A37: JUSTICIA SOCIAL | B37: 2 | C37: 0 | D37: 0 | E37: 2 | F37: 100 | G37: 1 | H37: 0 | I37: 0 | J37: 1 | K37: 100 | L37: 1 | M37: 0 | N37: 0 | O37: 1 | P37: 100
A38: JUSTICIA SOCIAL COSTARRICENSE | B38: 6 | C38: 3 | D38: 50 | E38: 3 | F38: 50 | G38: 3 | H38: 1 | I38: 33.33333333 | J38: 2 | K38: 66.66666667 | L38: 3 | M38: 2 | N38: 66.66666667 | O38: 1 | P38: 33.33333333
A39: LA GRAN NICOYA | B39: 4 | C39: 2 | D39: 50 | E39: 2 | F39: 50 | G39: 2 | H39: 1 | I39: 50 | J39: 1 | K39: 50 | L39: 2 | M39: 1 | N39: 50 | O39: 1 | P39: 50
A40: LIBERACIÓN NACIONAL | B40: 342 | C40: 157 | D40: 45.90643275 | E40: 185 | F40: 54.09356725 | G40: 171 | H40: 73 | I40: 42.69005848 | J40: 98 | K40: 57.30994152 | L40: 171 | M40: 84 | N40: 49.12280702 | O40: 87 | P40: 50.87719298
A41: LIBERAL PROGRESISTA | B41: 4 | C41: 1 | D41: 25 | E41: 3 | F41: 75 | G41: 2 | H41: 1 | I41: 50 | J41: 1 | K41: 50 | L41: 2 | M41: 0 | N41: 0 | O41: 2 | P41: 100
A42: LIGA RAMONENSE | B42: 2 | C42: 0 | D42: 0 | E42: 2 | F42: 100 | G42: 1 | H42: 0 | I42: 0 | J42: 1 | K42: 100 | L42: 1 | M42: 0 | N42: 0 | O42: 1 | P42: 100
A43: MOVIMIENTO AVANCE SANTO DOMINGO | B43: 4 | C43: 2 | D43: 50 | E43: 2 | F43: 50 | G43: 2 | H43: 1 | I43: 50 | J43: 1 | K43: 50 | L43: 2 | M43: 1 | N43: 50 | O43: 1 | P43: 50
A44: NANDAYURE PROGRESA | B44: 4 | C44: 2 | D44: 50 | E44: 2 | F44: 50 | G44: 2 | H44: 1 | I44: 50 | J44: 1 | K44: 50 | L44: 2 | M44: 1 | N44: 50 | O44: 1 | P44: 50
A45: NUESTRO PUEBLO | B45: 6 | C45: 3 | D45: 50 | E45: 3 | F45: 50 | G45: 3 | H45: 2 | I45: 66.66666667 | J45: 1 | K45: 33.33333333 | L45: 3 | M45: 1 | N45: 33.33333333 | O45: 2 | P45: 66.66666667
A46: NUEVA GENERACIÓN | B46: 48 | C46: 20 | D46: 41.66666667 | E46: 28 | F46: 58.33333333 | G46: 24 | H46: 8 | I46: 33.33333333 | J46: 16 | K46: 66.66666667 | L46: 24 | M46: 12 | N46: 50 | O46: 12 | P46: 50
A47: NUEVA MAYORÍA GRIEGA | B47: 2 | C47: 0 | D47: 0 | E47: 2 | F47: 100 | G47: 1 | H47: 0 | I47: 0 | J47: 1 | K47: 100 | L47: 1 | M47: 0 | N47: 0 | O47: 1 | P47: 100
A48: NUEVA REPÚBLICA | B48: 36 | C48: 15 | D48: 41.66666667 | E48: 21 | F48: 58.33333333 | G48: 18 | H48: 6 | I48: 33.33333333 | J48: 12 | K48: 66.66666667 | L48: 18 | M48: 9 | N48: 50 | O48: 9 | P48: 50
A49: PALMARES PRIMERO | B49: 4 | C49: 2 | D49: 50 | E49: 2 | F49: 50 | G49: 2 | H49: 1 | I49: 50 | J49: 1 | K49: 50 | L49: 2 | M49: 1 | N49: 50 | O49: 1 | P49: 50
A50: PROGRESER | B50: 4 | C50: 2 | D50: 50 | E50: 2 | F50: 50 | G50: 2 | H50: 1 | I50: 50 | J50: 1 | K50: 50 | L50: 2 | M50: 1 | N50: 50 | O50: 1 | P50: 50
A51: PUEBLO GARABITO | B51: 2 | C51: 0 | D51: 0 | E51: 2 | F51: 100 | G51: 1 | H51: 0 | I51: 0 | J51: 1 | K51: 100 | L51: 1 | M51: 0 | N51: 0 | O51: 1 | P51: 100
A52: RECUPERANDO VALORES | B52: 2 | C52: 0 | D52: 0 | E52: 2 | F52: 100 | G52: 1 | H52: 0 | I52: 0 | J52: 1 | K52: 100 | L52: 1 | M52: 0 | N52: 0 | O52: 1 | P52: 100
A53: RENOVACIÓN COSTARRICENSE | B53: 4 | C53: 1 | D53: 25 | E53: 3 | F53: 75 | G53: 2 | H53: 0 | I53: 0 | J53: 2 | K53: 100 | L53: 2 | M53: 1 | N53: 50 | O53: 1 | P53: 50
A54: REPUBLICANO SOCIAL CRISTIANO | B54: 50 | C54: 23 | D54: 46 | E54: 27 | F54: 54 | G54: 25 | H54: 9 | I54: 36 | J54: 16 | K54: 64 | L54: 25 | M54: 14 | N54: 56 | O54: 11 | P54: 44
A55: RESCATE CANTONAL LA UNIÓN | B55: 2 | C55: 1 | D55: 50 | E55: 1 | F55: 50 | G55: 1 | H55: 0 | I55: 0 | J55: 1 | K55: 100 | L55: 1 | M55: 1 | N55: 100 | O55: 0 | P55: 0
A56: RESTAURACIÓN NACIONAL | B56: 22 | C56: 9 | D56: 40.90909091 | E56: 13 | F56: 59.09090909 | G56: 11 | H56: 3 | I56: 27.27272727 | J56: 8 | K56: 72.72727273 | L56: 11 | M56: 6 | N56: 54.54545455 | O56: 5 | P56: 45.45454545
A57: SENTIR HEREDIA | B57: 2 | C57: 1 | D57: 50 | E57: 1 | F57: 50 | G57: 1 | H57: 1 | I57: 100 | J57: 0 | K57: 0 | L57: 1 | M57: 0 | N57: 0 | O57: 1 | P57: 100
A58: SOMOS MORAVIA | B58: 8 | C58: 4 | D58: 50 | E58: 4 | F58: 50 | G58: 4 | H58: 2 | I58: 50 | J58: 2 | K58: 50 | L58: 4 | M58: 2 | N58: 50 | O58: 2 | P58: 50
A59: SOMOS SARCHÍ | B59: 4 | C59: 2 | D59: 50 | E59: 2 | F59: 50 | G59: 2 | H59: 1 | I59: 50 | J59: 1 | K59: 50 | L59: 2 | M59: 1 | N59: 50 | O59: 1 | P59: 50
A60: TERRA ESCAZÚ | B60: 1 | C60: 0 | D60: 0 | E60: 1 | F60: 100 | G60: 1 | H60: 0 | I60: 0 | J60: 1 | K60: 100 | L60: 0 | M60: 0 | N60: 0 | O60: 0 | P60: 0
A61: TODOS POR GOICOECHEA | B61: 4 | C61: 2 | D61: 50 | E61: 2 | F61: 50 | G61: 2 | H61: 1 | I61: 50 | J61: 1 | K61: 50 | L61: 2 | M61: 1 | N61: =+M61/$L61*100 -> 50 | O61: 1 | P61: 50
A62: TURRIALBA PRIMERO | B62: 2 | C62: 1 | D62: 50 | E62: 1 | F62: 50 | G62: 1 | H62: 0 | I62: 0 | J62: 1 | K62: 100 | L62: 1 | M62: 1 | N62: 100 | O62: 0 | P62: 0
A63: UNIDAD SOCIAL CRISTIANA | B63: 200 | C63: 90 | D63: 45 | E63: 110 | F63: 55 | G63: 100 | H63: 43 | I63: 43 | J63: 57 | K63: 57 | L63: 100 | M63: 47 | N63: 47 | O63: 53 | P63: 53
A64: UNIDOS PARA EL DESARROLLO | B64: 2 | C64: 0 | D64: 0 | E64: 2 | F64: 100 | G64: 1 | H64: 0 | I64: 0 | J64: 1 | K64: 100 | L64: 1 | M64: 0 | N64: 0 | O64: 1 | P64: 100
A65: UNIDOS PODEMOS | B65: 22 | C65: 10 | D65: 45.45454545 | E65: 12 | F65: 54.54545455 | G65: 11 | H65: 3 | I65: 27.27272727 | J65: 8 | K65: 72.72727273 | L65: 11 | M65: 7 | N65: 63.63636364 | O65: 4 | P65: 36.36363636
A66: UNIÓN ATENIENSE | B66: 2 | C66: 1 | D66: 50 | E66: 1 | F66: 50 | G66: 1 | H66: 0 | I66: 0 | J66: 1 | K66: 100 | L66: 1 | M66: 1 | N66: 100 | O66: 0 | P66: 0
A67: UNIÓN DE PUNTARENENSES EMPRENDEDORES | B67: 2 | C67: 1 | D67: 50 | E67: 1 | F67: 50 | G67: 1 | H67: 0 | I67: 0 | J67: 1 | K67: 100 | L67: 1 | M67: 1 | N67: 100 | O67: 0 | P67: 0
A68: UNIÓN DOMINGUEÑA | B68: 2 | C68: 1 | D68: 50 | E68: 1 | F68: 50 | G68: 1 | H68: 0 | I68: 0 | J68: 1 | K68: 100 | L68: 1 | M68: 1 | N68: 100 | O68: 0 | P68: 0
A69: UNIÓN GRIEGA | B69: 2 | C69: 0 | D69: 0 | E69: 2 | F69: =+E69/$B69*100 -> 100 | G69: 1 | H69: 0 | I69: 0 | J69: 1 | K69: =+J69/$G69*100 -> 100 | L69: 1 | M69: 0 | N69: 0 | O69: 1 | P69: =+O69/$L69*100 -> 100
A70: UNIÓN GUANACASTECA | B70: 4 | C70: 2 | D70: 50 | E70: 2 | F70: =+E70/$B70*100 -> 50 | G70: 2 | H70: 0 | I70: 0 | J70: 2 | K70: =+J70/$G70*100 -> 100 | L70: 2 | M70: 2 | N70: 100 | O70: 0 | P70: =+O70/$L70*100 -> 0
A71: UNIÓN GUARQUEÑO | B71: 2 | C71: 1 | D71: 50 | E71: 1 | F71: =+E71/$B71*100 -> 50 | G71: 1 | H71: 0 | I71: 0 | J71: 1 | K71: =+J71/$G71*100 -> 100 | L71: 1 | M71: 1 | N71: 100 | O71: 0 | P71: =+O71/$L71*100 -> 0
A72: YUNTA PROGRESISTA ESCAZUCEÑA | B72: =+G72+L72 -> 6 | C72: =+H72+M72 -> 3 | D72: 50 | E72: 3 | F72: =+E72/$B72*100 -> 50 | G72: 3 | H72: 1 | I72: 33.33333333 | J72: 2 | K72: =+J72/$G72*100 -> 66.66666667 | L72: 3 | M72: 2 | N72: 66.66666667 | O72: 1 | P72: =+O72/$L72*100 -> 33.33333333
A75: Fuente: Tribunal Supremo de Elecciones.

Sheet 1.11
A2: CUADRO 1.11 COSTA RICA: SINDICATURAS ELECTAS, POR CARGO Y SEXO, SEGÚN PARTIDO POLÍTICO
A3: ELECCIONES MUNICIPALES FEBRERO 2020
A4: (cifras absolutas y relativas)
A6: PARTIDO POLÍTICO | B6: TOTAL | G6: EN PROPIEDAD | L6: EN SUPLENCIA
B7: TOTAL | C7: MUJERES | E7: HOMBRES | G7: TOTAL | H7: MUJERES | J7: HOMBRES | L7: TOTAL | M7: MUJERES | O7: HOMBRES
C8: Absoluto | D8: % | E8: Absoluto | F8: % | H8: Absoluto | I8: % | J8: Absoluto | K8: % | M8: Absoluto | N8: % | O8: Absoluto | P8: %
A10: TOTAL | B10: =+G10+L10 -> 952 | C10: =+H10+M10 -> 473 | D10: =+C10/$B10*100 -> 49.68487395 | E10: =+J10+O10 -> 479 | F10: =+E10/$B10*100 -> 50.31512605 | G10: =+H10+J10 -> 486 | H10: =SUM(H12:H49) -> 171 | I10: =+H10/$G10*100 -> 35.18518519 | J10: =SUM(J12:J49) -> 315 | K10: =+J10/$G10*100 -> 64.81481481 | L10: =+M10+O10 -> 466 | M10: =SUM(M12:M49) -> 302 | N10: =+M10/$L10*100 -> 64.80686695 | O10: =SUM(O12:O49) -> 164 | P10: =+O10/$L10*100 -> 35.19313305
A12: ACCESIBILIDAD SIN EXCLUSIÓN | B12: =+G12+L12 -> 4 | C12: =+H12+M12 -> 2 | D12: =+C12/$B12*100 -> 50 | E12: =+J12+O12 -> 2 | F12: =+E12/$B12*100 -> 50 | G12: =+H12+J12 -> 2 | H12: 0 | I12: =+H12/$G12*100 -> 0 | J12: 2 | K12: =+J12/$G12*100 -> 100 | L12: =+M12+O12 -> 2 | M12: 2 | N12: =+M12/$L12*100 -> 100 | O12: 0 | P12: =+O12/$L12*100 -> 0
A13: ACCIÓN CIUDADANA | B13: =+G13+L13 -> 34 | C13: 16 | D13: 47.05882353 | E13: =+J13+O13 -> 18 | F13: =+E13/$B13*100 -> 52.94117647 | G13: =+H13+J13 -> 18 | H13: 7 | I13: 38.88888889 | J13: 11 | K13: =+J13/$G13*100 -> 61.11111111 | L13: =+M13+O13 -> 16 | M13: 9 | N13: =+M13/$L13*100 -> 56.25 | O13: 7 | P13: =+O13/$L13*100 -> 43.75
A14: ACTUEMOS YA | B14: 2 | C14: 1 | D14: 50 | E14: 1 | F14: 50 | G14: 1 | H14: 0 | I14: 0 | J14: 1 | K14: 100 | L14: 1 | M14: 1 | N14: 100 | O14: 0 | P14: 0
A15: ALIANZA DEMÓCRATA CRISTIANA | B15: 22 | C15: 11 | D15: 50 | E15: 11 | F15: 50 | G15: 12 | H15: 6 | I15: 50 | J15: 6 | K15: 50 | L15: 10 | M15: 5 | N15: 50 | O15: 5 | P15: 50
A16: ALIANZA POR SARCHÍ | B16: 6 | C16: 3 | D16: 50 | E16: 3 | F16: 50 | G16: 3 | H16: 2 | I16: 66.66666667 | J16: 1 | K16: 33.33333333 | L16: 3 | M16: 1 | N16: 33.33333333 | O16: 2 | P16: 66.66666667
A17: AUTÉNTICO LABRADOR DE CORONADO | B17: 2 | C17: 1 | D17: 50 | E17: 1 | F17: 50 | G17: 1 | H17: 0 | I17: 0 | J17: 1 | K17: 100 | L17: 1 | M17: 1 | N17: 100 | O17: 0 | P17: 0
A18: AUTÉNTICO LIMONENSE | B18: 2 | C18: 1 | D18: 50 | E18: 1 | F18: 50 | G18: 1 | H18: 1 | I18: 100 | J18: 0 | K18: 0 | L18: 1 | M18: 0 | N18: 0 | O18: 1 | P18: 100
A19: AUTÉNTICO SANTACRUCEÑO | B19: 4 | C19: 2 | D19: 50 | E19: 2 | F19: 50 | G19: 2 | H19: 2 | I19: 100 | J19: 0 | K19: 0 | L19: 2 | M19: 0 | N19: 0 | O19: 2 | P19: 100
A20: COALICIÓN ASERRI DE TODOS | B20: 2 | C20: 1 | D20: 50 | E20: 1 | F20: 50 | G20: 1 | H20: 1 | I20: 100 | J20: 0 | K20: 0 | L20: 1 | M20: 0 | N20: 0 | O20: 1 | P20: 100
A21: COALICIÓN GENTE MONTES DE OCA | B21: 5 | C21: 3 | D21: 60 | E21: 2 | F21: 40 | G21: 3 | H21: 2 | I21: 66.66666667 | J21: 1 | K21: 33.33333333 | L21: 2 | M21: 1 | N21: 50 | O21: 1 | P21: 50
A22: COMUNAL UNIDO | B22: 12 | C22: 6 | D22: 50 | E22: 6 | F22: 50 | G22: 6 | H22: 4 | I22: 66.66666667 | J22: 2 | K22: 33.33333333 | L22: 6 | M22: 2 | N22: 33.33333333 | O22: 4 | P22: 66.66666667
A23: CURRIDABAT SIGLO XXI | B23: 8 | C23: 4 | D23: 50 | E23: 4 | F23: 50 | G23: 4 | H23: 2 | I23: 50 | J23: 2 | K23: 50 | L23: 4 | M23: 2 | N23: 50 | O23: 2 | P23: 50
A24: DEL SOL | B24: 2 | C24: 1 | D24: 50 | E24: 1 | F24: 50 | G24: 1 | H24: 0 | I24: 0 | J24: 1 | K24: 100 | L24: 1 | M24: 1 | N24: 100 | O24: 0 | P24: 0
A25: FRENTE AMPLIO | B25: 2 | C25: 1 | D25: 50 | E25: 1 | F25: 50 | G25: 1 | H25: 0 | I25: 0 | J25: 1 | K25: 100 | L25: 1 | M25: 1 | N25: 100 | O25: 0 | P25: 0
A26: GUANACASTE PRIMERO | B26: 1 | C26: 0 | D26: 0 | E26: 1 | F26: 100 | G26: 1 | H26: 0 | I26: 0 | J26: 1 | K26: 100 | L26: 0 | M26: 0 | N26: 0 | O26: 0 | P26: 0
A27: INTEGRACIÓN NACIONAL | B27: 14 | C27: 7 | D27: 50 | E27: 7 | F27: 50 | G27: 7 | H27: 5 | I27: 71.42857143 | J27: 2 | K27: 28.57142857 | L27: 7 | M27: 2 | N27: 28.57142857 | O27: 5 | P27: 71.42857143
A28: JUSTICIA SOCIAL COSTARRICENSE | B28: 8 | C28: 4 | D28: 50 | E28: 4 | F28: 50 | G28: 4 | H28: 2 | I28: 50 | J28: 2 | K28: 50 | L28: 4 | M28: 2 | N28: 50 | O28: 2 | P28: 50
A29: LA GRAN NICOYA | B29: 2 | C29: 1 | D29: 50 | E29: 1 | F29: 50 | G29: 2 | H29: 1 | I29: 50 | J29: 1 | K29: 50 | L29: 0 | M29: 0 | N29: 0 | O29: 0 | P29: 0
A30: LIBERACIÓN NACIONAL | B30: 516 | C30: 256 | D30: 49.6124031 | E30: 260 | F30: 50.3875969 | G30: 260 | H30: 88 | I30: 33.84615385 | J30: 172 | K30: 66.15384615 | L30: 256 | M30: 168 | N30: 65.625 | O30: 88 | P30: 34.375
A31: LIBERAL PROGRESISTA | B31: 2 | C31: 1 | D31: 50 | E31: 1 | F31: 50 | G31: 1 | H31: 0 | I31: 0 | J31: 1 | K31: 100 | L31: 1 | M31: 1 | N31: 100 | O31: 0 | P31: 0
A32: MOVIMIENTO AVANCE SANTO DOMINGO | B32: 10 | C32: 4 | D32: 40 | E32: 6 | F32: 60 | G32: 6 | H32: 2 | I32: 33.33333333 | J32: 4 | K32: 66.66666667 | L32: 4 | M32: 2 | N32: 50 | O32: 2 | P32: 50
A33: NANDAYURE PROGRESA | B33: 7 | C33: 3 | D33: 42.85714286 | E33: 4 | F33: 57.14285714 | G33: 4 | H33: 1 | I33: 25 | J33: 3 | K33: 75 | L33: 3 | M33: 2 | N33: 66.66666667 | O33: 1 | P33: 33.33333333
A34: NUESTRO PUEBLO | B34: 2 | C34: 1 | D34: 50 | E34: 1 | F34: 50 | G34: 1 | H34: 1 | I34: 100 | J34: 0 | K34: 0 | L34: 1 | M34: 0 | N34: 0 | O34: 1 | P34: 100
A35: NUEVA GENERACIÓN | B35: 29 | C35: 15 | D35: 51.72413793 | E35: 14 | F35: 48.27586207 | G35: 15 | H35: 5 | I35: 33.33333333 | J35: 10 | K35: 66.66666667 | L35: 14 | M35: 10 | N35: 71.42857143 | O35: 4 | P35: 28.57142857
A36: NUEVA MAYORÍA GRIEGA | B36: 4 | C36: 2 | D36: 50 | E36: 2 | F36: 50 | G36: 2 | H36: 1 | I36: 50 | J36: 1 | K36: 50 | L36: 2 | M36: 1 | N36: 50 | O36: 1 | P36: 50
A37: NUEVA REPÚBLICA | B37: 2 | C37: 1 | D37: 50 | E37: 1 | F37: 50 | G37: 1 | H37: 0 | I37: 0 | J37: 1 | K37: 100 | L37: 1 | M37: 1 | N37: 100 | O37: 0 | P37: 0
A38: PALMARES PRIMERO | B38: 2 | C38: 1 | D38: 50 | E38: 1 | F38: 50 | G38: 1 | H38: 1 | I38: 100 | J38: 0 | K38: 0 | L38: 1 | M38: 0 | N38: 0 | O38: 1 | P38: 100
A39: RECUPERANDO VALORES | B39: 5 | C39: 3 | D39: 60 | E39: 2 | F39: 40 | G39: 3 | H39: 1 | I39: 33.33333333 | J39: 2 | K39: 66.66666667 | L39: =+M39+O39 -> 2 | M39: 2 | N39: 100 | O39: 0 | P39: 0
A40: REPUBLICANO SOCIAL CRISTIANO | B40: 20 | C40: 10 | D40: 50 | E40: 10 | F40: 50 | G40: 10 | H40: 4 | I40: 40 | J40: 6 | K40: 60 | L40: 10 | M40: 6 | N40: 60 | O40: 4 | P40: 40
A41: RESTAURACIÓN NACIONAL | B41: 6 | C41: 3 | D41: 50 | E41: 3 | F41: 50 | G41: 3 | H41: 1 | I41: 33.33333333 | J41: 2 | K41: 66.66666667 | L41: 3 | M41: 2 | N41: 66.66666667 | O41: 1 | P41: 33.33333333
A42: SOMOS MORAVIA | B42: 6 | C42: 3 | D42: 50 | E42: 3 | F42: 50 | G42: 3 | H42: 2 | I42: 66.66666667 | J42: 1 | K42: 33.33333333 | L42: 3 | M42: 1 | N42: 33.33333333 | O42: 2 | P42: 66.66666667
A43: SOMOS SARCHÍ | B43: 2 | C43: 1 | D43: 50 | E43: 1 | F43: 50 | G43: 1 | H43: 0 | I43: 0 | J43: 1 | K43: 100 | L43: 1 | M43: 1 | N43: 100 | O43: 0 | P43: 0
A44: TURRIALBA PRIMERO | B44: 2 | C44: 1 | D44: 50 | E44: 1 | F44: 50 | G44: 1 | H44: 0 | I44: 0 | J44: 1 | K44: 100 | L44: 1 | M44: 1 | N44: 100 | O44: 0 | P44: 0
A45: UNIDAD SOCIAL CRISTIANA | B45: 187 | C45: 94 | D45: 50.26737968 | E45: 93 | F45: 49.73262032 | G45: 95 | H45: 27 | I45: 28.42105263 | J45: 68 | K45: 71.57894737 | L45: 92 | M45: 67 | N45: 72.82608696 | O45: 25 | P45: 27.17391304
A46: UNIDOS PARA EL DESARROLLO | B46: =+G46+L46 -> 4 | C46: 2 | D46: 50 | E46: 2 | F46: =+E46/$B46*100 -> 50 | G46: 2 | H46: 2 | I46: 100 | J46: 0 | K46: =+J46/$G46*100 -> 0 | L46: 2 | M46: 0 | N46: 0 | O46: 2 | P46: 100
A47: UNIDOS PODEMOS | B47: 10 | C47: 5 | D47: 50 | E47: 5 | F47: 50 | G47: 5 | H47: 0 | I47: 0 | J47: 5 | K47: 100 | L47: 5 | M47: 5 | N47: 100 | O47: 0 | P47: 0
A48: UNIÓN ATENIENSE | B48: 2 | C48: 1 | D48: =+C48/$B48*100 -> 50 | E48: 1 | F48: 50 | G48: 1 | H48: 0 | I48: =+H48/$G48*100 -> 0 | J48: 1 | K48: 100 | L48: 1 | M48: 1 | N48: 100 | O48: 0 | P48: 0
A49: UNIÓN DE PUNTARENENSES EMPRENDEDORES | B49: 2 | C49: 1 | D49: 50 | E49: 1 | F49: 50 | G49: 1 | H49: 0 | I49: 0 | J49: 1 | K49: 100 | L49: =+M49+O49 -> 1 | M49: 1 | N49: 100 | O49: 0 | P49: 0
A52: Fuente: Tribunal Supremo de Elecciones.

Sheet 1.12
A2: CUADRO 1.12 COSTA RICA: CONCEJALÍAS 1/ ELECTAS, POR CARGO Y SEXO, SEGÚN PARTIDO POLÍTICO
A3: ELECCIONES MUNICIPALES FEBRERO 2020
A4: (cifras absolutas y relativas)
A6: PARTIDO POLÍTICO | B6: TOTAL | G6: EN PROPIEDAD | L6: EN SUPLENCIA
B7: TOTAL | C7: MUJERES | E7: HOMBRES | G7: TOTAL | H7: MUJERES | J7: HOMBRES | L7: TOTAL | M7: MUJERES | O7: HOMBRES
C8: Absoluto | D8: % | E8: Absoluto | F8: % | H8: Absoluto | I8: % | J8: Absoluto | K8: % | M8: Absoluto | N8: % | O8: Absoluto | P8: %
A10: TOTAL | B10: =+G10+L10 -> 3790 | C10: =+H10+M10 -> 1867 | D10: =+C10/B10*100 -> 49.26121372 | E10: =+J10+O10 -> 1923 | F10: =+E10/B10*100 -> 50.73878628 | G10: =SUM(G11:G71) -> 1944 | H10: =SUM(H11:H71) -> 927 | I10: =+H10/$G10*100 -> 47.68518519 | J10: =SUM(J11:J71) -> 1017 | K10: =+J10/$G10*100 -> 52.31481481 | L10: =SUM(L11:L71) -> 1846 | M10: =SUM(M11:M71) -> 940 | N10: =+M10/L10*100 -> 50.92091008 | O10: =SUM(O11:O71) -> 906 | P10: =+O10/L10*100 -> 49.07908992
A11: ACCESIBILIDAD SIN EXCLUSIÓN | B11: =+G11+L11 -> 16 | C11: =+H11+M11 -> 8 | D11: =+C11/B11*100 -> 50 | E11: =+J11+O11 -> 8 | F11: =+E11/B11*100 -> 50 | G11: =+H11+J11 -> 8 | H11: 4 | I11: =+H11/$G11*100 -> 50 | J11: 4 | K11: =+J11/$G11*100 -> 50 | L11: =+M11+O11 -> 8 | M11: 4 | N11: =+M11/L11*100 -> 50 | O11: 4 | P11: =+O11/L11*100 -> 50
A12: ACCIÓN CIUDADANA | B12: =+G12+L12 -> 209 | C12: 109 | D12: =+C12/B12*100 -> 52.15311005 | E12: =+J12+O12 -> 100 | F12: =+E12/B12*100 -> 47.84688995 | G12: =+H12+J12 -> 110 | H12: 65 | I12: =+H12/$G12*100 -> 59.09090909 | J12: 45 | K12: 40.90909091 | L12: =+M12+O12 -> 99 | M12: 44 | N12: =+M12/L12*100 -> 44.44444444 | O12: 55 | P12: =+O12/L12*100 -> 55.55555556
A13: ACTUEMOS YA | B13: 10 | C13: 5 | D13: 50 | E13: 5 | F13: 50 | G13: 6 | H13: 4 | I13: 66.66666667 | J13: 2 | K13: 33.33333333 | L13: =+M13+O13 -> 4 | M13: 1 | N13: 25 | O13: 3 | P13: 75
A14: ALIANZA DEMÓCRATA CRISTIANA | B14: 66 | C14: 30 | D14: 45.45454545 | E14: 36 | F14: 54.54545455 | G14: 34 | H14: 15 | I14: 44.11764706 | J14: 19 | K14: 55.88235294 | L14: 32 | M14: 15 | N14: 46.875 | O14: 17 | P14: 53.125
A15: ALIANZA POR PALMARES | B15: 18 | C15: 13 | D15: 72.22222222 | E15: 5 | F15: 27.77777778 | G15: 9 | H15: 6 | I15: 66.66666667 | J15: 3 | K15: 33.33333333 | L15: 9 | M15: 7 | N15: 77.77777778 | O15: 2 | P15: 22.22222222
A16: ALIANZA POR SAN JOSÉ | B16: 4 | C16: 2 | D16: 50 | E16: 2 | F16: 50 | G16: 2 | H16: 1 | I16: 50 | J16: 1 | K16: 50 | L16: 2 | M16: 1 | N16: 50 | O16: 1 | P16: 50
A17: ALIANZA POR SARCHÍ | B17: 5 | C17: 2 | D17: 40 | E17: 3 | F17: 60 | G17: 3 | H17: 1 | I17: 33.33333333 | J17: 2 | K17: 66.66666667 | L17: 2 | M17: 1 | N17: 50 | O17: 1 | P17: 50
A18: ALIANZA SOCIAL POR LA UNIÓN | B18: 2 | C18: 1 | D18: 50 | E18: 1 | F18: 50 | G18: 1 | H18: 0 | I18: 0 | J18: 1 | K18: 100 | L18: 1 | M18: 1 | N18: 100 | O18: 0 | P18: 0
A19: AUTÉNTICO LABRADOR DE CORONADO | B19: 5 | C19: 1 | D19: 20 | E19: 4 | F19: 80 | G19: 4 | H19: 1 | I19: 25 | J19: 3 | K19: 75 | L19: 1 | M19: 0 | N19: 0 | O19: 1 | P19: 100
A20: AUTÉNTICO LIMONENSE | B20: 8 | C20: 4 | D20: 50 | E20: 4 | F20: 50 | G20: 4 | H20: 1 | I20: 25 | J20: 3 | K20: 75 | L20: 4 | M20: 3 | N20: 75 | O20: 1 | P20: 25
A21: AUTÉNTICO SANTACRUCEÑO | B21: 18 | C21: 10 | D21: 55.55555556 | E21: 8 | F21: 44.44444444 | G21: 9 | H21: 6 | I21: 66.66666667 | J21: 3 | K21: 33.33333333 | L21: 9 | M21: 4 | N21: 44.44444444 | O21: 5 | P21: 55.55555556
A22: CANTONAL DE CARRILLO | B22: 6 | C22: 3 | D22: 50 | E22: 3 | F22: 50 | G22: 3 | H22: 2 | I22: 66.66666667 | J22: 1 | K22: 33.33333333 | L22: 3 | M22: 1 | N22: 33.33333333 | O22: 2 | P22: 66.66666667
A23: COALICIÓN ALIANZA POR NICOYA | B23: 6 | C23: 3 | D23: 50 | E23: 3 | F23: 50 | G23: 3 | H23: 1 | I23: 33.33333333 | J23: 2 | K23: 66.66666667 | L23: 3 | M23: 2 | N23: 66.66666667 | O23: 1 | P23: 33.33333333
A24: COALICIÓN ASERRI DE TODOS | B24: 10 | C24: 5 | D24: 50 | E24: 5 | F24: 50 | G24: 5 | H24: 2 | I24: 40 | J24: 3 | K24: 60 | L24: 5 | M24: 3 | N24: 60 | O24: 2 | P24: 40
A25: COALICIÓN GENTE MONTES DE OCA | B25: 13 | C25: 8 | D25: 61.53846154 | E25: 5 | F25: 38.46153846 | G25: 7 | H25: 5 | I25: 71.42857143 | J25: 2 | K25: 28.57142857 | L25: 6 | M25: 3 | N25: 50 | O25: 3 | P25: 50
A26: COALICIÓN JUNTOS | B26: 2 | C26: 1 | D26: 50 | E26: 1 | F26: 50 | G26: 1 | H26: 1 | I26: 100 | J26: 0 | K26: 0 | L26: 1 | M26: 0 | N26: 0 | O26: 1 | P26: 100
A27: COALICIÓN UNIDAD POR FLORES | B27: 6 | C27: 3 | D27: 50 | E27: 3 | F27: 50 | G27: 3 | H27: 1 | I27: 33.33333333 | J27: 2 | K27: 66.66666667 | L27: 3 | M27: 2 | N27: 66.66666667 | O27: 1 | P27: 33.33333333
A28: COALICIÓN UNIÓN BELEMITA | B28: 4 | C28: 1 | D28: 25 | E28: 3 | F28: 75 | G28: 2 | H28: 1 | I28: 50 | J28: 1 | K28: 50 | L28: 2 | M28: 0 | N28: 0 | O28: 2 | P28: 100
A29: COMUNAL UNIDO | B29: 56 | C29: 28 | D29: 50 | E29: 28 | F29: 50 | G29: 28 | H29: 15 | I29: 53.57142857 | J29: 13 | K29: 46.42857143 | L29: 28 | M29: 13 | N29: 46.42857143 | O29: 15 | P29: 53.57142857
A30: CURRIDABAT SIGLO XXI | B30: 14 | C30: 7 | D30: 50 | E30: 7 | F30: 50 | G30: 7 | H30: 4 | I30: 57.14285714 | J30: 3 | K30: 42.85714286 | L30: 7 | M30: 3 | N30: 42.85714286 | O30: 4 | P30: 57.14285714
A31: DEL SOL | B31: 11 | C31: 8 | D31: 72.72727273 | E31: 3 | F31: 27.27272727 | G31: 6 | H31: 4 | I31: 66.66666667 | J31: 2 | K31: 33.33333333 | L31: 5 | M31: 4 | N31: 80 | O31: 1 | P31: 20
A32: DESPERTAR ALAJUELENSE | B32: 6 | C32: 2 | D32: 33.33333333 | E32: 4 | F32: 66.66666667 | G32: 3 | H32: 0 | I32: 0 | J32: 3 | K32: 100 | L32: 3 | M32: 2 | N32: 66.66666667 | O32: 1 | P32: 33.33333333
A33: FRENTE AMPLIO | B33: 35 | C33: 17 | D33: 48.57142857 | E33: 18 | F33: 51.42857143 | G33: 18 | H33: 11 | I33: 61.11111111 | J33: 7 | K33: 38.88888889 | L33: 17 | M33: 6 | N33: 35.29411765 | O33: 11 | P33: 64.70588235
A34: INTEGRACIÓN NACIONAL | B34: 79 | C34: 40 | D34: 50.63291139 | E34: 39 | F34: 49.36708861 | G34: 40 | H34: 18 | I34: 45 | J34: 22 | K34: 55 | L34: 39 | M34: 22 | N34: 56.41025641 | O34: 17 | P34: 43.58974359
A35: JUSTICIA SOCIAL | B35: 2 | C35: 1 | D35: 50 | E35: 1 | F35: 50 | G35: 1 | H35: 0 | I35: 0 | J35: 1 | K35: 100 | L35: 1 | M35: 1 | N35: 100 | O35: 0 | P35: 0
A36: JUSTICIA SOCIAL COSTARRICENSE | B36: 16 | C36: 8 | D36: 50 | E36: 8 | F36: 50 | G36: 8 | H36: 4 | I36: 50 | J36: 4 | K36: 50 | L36: 8 | M36: 4 | N36: 50 | O36: 4 | P36: 50
A37: LA GRAN NICOYA | B37: 8 | C37: 5 | D37: 62.5 | E37: 3 | F37: 37.5 | G37: 4 | H37: 3 | I37: 75 | J37: 1 | K37: 25 | L37: 4 | M37: 2 | N37: 50 | O37: 2 | P37: 50
A38: LIBERACIÓN NACIONAL | B38: 1682 | C38: 833 | D38: 49.52437574 | E38: 849 | F38: 50.47562426 | G38: 855 | H38: 417 | I38: 48.77192982 | J38: 438 | K38: 51.22807018 | L38: 827 | M38: 416 | N38: 50.30229746 | O38: 411 | P38: 49.69770254
A39: LIBERAL PROGRESISTA | B39: 16 | C39: 9 | D39: 56.25 | E39: 7 | F39: 43.75 | G39: 8 | H39: 3 | I39: 37.5 | J39: 5 | K39: 62.5 | L39: 8 | M39: 6 | N39: 75 | O39: 2 | P39: 25
A40: MOVIMIENTO AVANCE SANTO DOMINGO | B40: 29 | C40: 15 | D40: 51.72413793 | E40: 14 | F40: 48.27586207 | G40: 15 | H40: 8 | I40: 53.33333333 | J40: 7 | K40: 46.66666667 | L40: 14 | M40: 7 | N40: 50 | O40: 7 | P40: 50
A41: NANDAYURE PROGRESA | B41: 18 | C41: 8 | D41: 44.44444444 | E41: 10 | F41: 55.55555556 | G41: 9 | H41: 3 | I41: 33.33333333 | J41: 6 | K41: 66.66666667 | L41: 9 | M41: 5 | N41: 55.55555556 | O41: 4 | P41: 44.44444444
A42: NUESTRO PUEBLO | B42: 32 | C42: 15 | D42: 46.875 | E42: 17 | F42: 53.125 | G42: 16 | H42: 7 | I42: 43.75 | J42: 9 | K42: 56.25 | L42: 16 | M42: 8 | N42: 50 | O42: 8 | P42: 50
A43: NUEVA GENERACIÓN | B43: 150 | C43: 68 | D43: 45.33333333 | E43: 82 | F43: 54.66666667 | G43: 76 | H43: 30 | I43: 39.47368421 | J43: 46 | K43: 60.52631579 | L43: 74 | M43: 38 | N43: 51.35135135 | O43: 36 | P43: 48.64864865
A44: NUEVA MAYORÍA GRIEGA | B44: 14 | C44: 6 | D44: 42.85714286 | E44: 8 | F44: 57.14285714 | G44: 7 | H44: 4 | I44: 57.14285714 | J44: 3 | K44: 42.85714286 | L44: 7 | M44: 2 | N44: 28.57142857 | O44: 5 | P44: 71.42857143
A45: NUEVA REPÚBLICA | B45: 63 | C45: 33 | D45: 52.38095238 | E45: 30 | F45: 47.61904762 | G45: 32 | H45: 10 | I45: 31.25 | J45: 22 | K45: 68.75 | L45: 31 | M45: 23 | N45: 74.19354839 | O45: 8 | P45: 25.80645161
A46: PALMARES PRIMERO | B46: 4 | C46: 2 | D46: 50 | E46: 2 | F46: 50 | G46: 2 | H46: 1 | I46: 50 | J46: 1 | K46: 50 | L46: 2 | M46: 1 | N46: 50 | O46: 1 | P46: 50
A47: PROGRESER | B47: 16 | C47: 9 | D47: 56.25 | E47: 7 | F47: 43.75 | G47: 8 | H47: 7 | I47: 87.5 | J47: 1 | K47: 12.5 | L47: 8 | M47: 2 | N47: 25 | O47: 6 | P47: 75
A48: PUEBLO GARABITO | B48: 6 | C48: 3 | D48: 50 | E48: 3 | F48: 50 | G48: 3 | H48: 1 | I48: 33.33333333 | J48: 2 | K48: 66.66666667 | L48: 3 | M48: 2 | N48: 66.66666667 | O48: 1 | P48: 33.33333333
A49: PURISCAL EN MARCHA | B49: 4 | C49: 2 | D49: 50 | E49: 2 | F49: 50 | G49: 2 | H49: 1 | I49: 50 | J49: 1 | K49: 50 | L49: 2 | M49: 1 | N49: 50 | O49: 1 | P49: 50
A50: RECUPERANDO VALORES | B50: 18 | C50: 9 | D50: 50 | E50: 9 | F50: 50 | G50: 9 | H50: 5 | I50: 55.55555556 | J50: 4 | K50: 44.44444444 | L50: 9 | M50: 4 | N50: 44.44444444 | O50: 5 | P50: 55.55555556
A51: RENOVACIÓN COSTARRICENSE | B51: 4 | C51: 1 | D51: 25 | E51: 3 | F51: 75 | G51: 2 | H51: 1 | I51: 50 | J51: 1 | K51: 50 | L51: 2 | M51: 0 | N51: 0 | O51: 2 | P51: 100
A52: REPUBLICANO SOCIAL CRISTIANO | B52: 129 | C52: 62 | D52: 48.0620155 | E52: 67 | F52: 51.9379845 | G52: 67 | H52: 30 | I52: 44.7761194 | J52: 37 | K52: 55.2238806 | L52: 62 | M52: 32 | N52: 51.61290323 | O52: 30 | P52: 48.38709677
A53: RESCATE CANTONAL LA UNIÓN | B53: 6 | C53: 5 | D53: 83.33333333 | E53: 1 | F53: 16.66666667 | G53: 3 | H53: 2 | I53: 66.66666667 | J53: 1 | K53: 33.33333333 | L53: 3 | M53: 3 | N53: 100 | O53: 0 | P53: 0
A54: RESTAURACIÓN NACIONAL | B54: 46 | C54: 19 | D54: 41.30434783 | E54: 27 | F54: 58.69565217 | G54: 23 | H54: 8 | I54: 34.7826087 | J54: 15 | K54: 65.2173913 | L54: 23 | M54: 11 | N54: 47.82608696 | O54: 12 | P54: 52.17391304
A55: SENTIR HEREDIA | B55: 2 | C55: 1 | D55: 50 | E55: 1 | F55: 50 | G55: 1 | H55: 0 | I55: 0 | J55: 1 | K55: 100 | L55: 1 | M55: 1 | N55: 100 | O55: 0 | P55: 0
A56: SOMOS MORAVIA | B56: 12 | C56: 6 | D56: 50 | E56: 6 | F56: 50 | G56: 7 | H56: 3 | I56: 42.85714286 | J56: 4 | K56: 57.14285714 | L56: 5 | M56: 3 | N56: 60 | O56: 2 | P56: 40
A57: SOMOS SARCHÍ | B57: 14 | C57: 7 | D57: 50 | E57: 7 | F57: 50 | G57: 7 | H57: 3 | I57: 42.85714286 | J57: 4 | K57: 57.14285714 | L57: 7 | M57: 4 | N57: 57.14285714 | O57: 3 | P57: 42.85714286
A58: TERRA ESCAZÚ | B58: 4 | C58: 2 | D58: 50 | E58: 2 | F58: 50 | G58: 2 | H58: 0 | I58: 0 | J58: 2 | K58: 100 | L58: 2 | M58: 2 | N58: 100 | O58: 0 | P58: 0
A59: TODOS POR GOICOECHEA | B59: 6 | C59: 3 | D59: 50 | E59: 3 | F59: 50 | G59: 3 | H59: 1 | I59: 33.33333333 | J59: 2 | K59: 66.66666667 | L59: 3 | M59: 2 | N59: 66.66666667 | O59: 1 | P59: 33.33333333
A60: TURRIALBA PRIMERO | B60: 20 | C60: 10 | D60: 50 | E60: 10 | F60: 50 | G60: 10 | H60: 4 | I60: 40 | J60: 6 | K60: 60 | L60: 10 | M60: 6 | N60: 60 | O60: 4 | P60: 40
A61: ÚNICO ABANGAREÑO | B61: 2 | C61: 1 | D61: 50 | E61: 1 | F61: 50 | G61: 1 | H61: 0 | I61: 0 | J61: 1 | K61: 100 | L61: 1 | M61: 1 | N61: 100 | O61: 0 | P61: 0
A62: UNIDAD SOCIAL CRISTIANA | B62: 713 | C62: 341 | D62: 47.82608696 | E62: 372 | F62: 52.17391304 | G62: 373 | H62: 163 | I62: 43.6997319 | J62: 210 | K62: 56.3002681 | L62: 340 | M62: 178 | N62: 52.35294118 | O62: 162 | P62: 47.64705882
A63: UNIDOS PARA EL DESARROLLO | B63: 10 | C63: 7 | D63: 70 | E63: 3 | F63: 30 | G63: 6 | H63: 5 | I63: 83.33333333 | J63: 1 | K63: 16.66666667 | L63: 4 | M63: 2 | N63: 50 | O63: 2 | P63: 50
A64: UNIDOS PODEMOS | B64: 71 | C64: 33 | D64: 46.47887324 | E64: 38 | F64: 53.52112676 | G64: 36 | H64: 16 | I64: 44.44444444 | J64: 20 | K64: 55.55555556 | L64: 35 | M64: 17 | N64: 48.57142857 | O64: 18 | P64: 51.42857143
A65: UNIÓN ATENIENSE | B65: 20 | C65: 8 | D65: 40 | E65: 12 | F65: 60 | G65: 10 | H65: 3 | I65: 30 | J65: 7 | K65: 70 | L65: 10 | M65: 5 | N65: 50 | O65: 5 | P65: 50
A66: UNIÓN DE PUNTARENENSES EMPRENDEDORES | B66: 18 | C66: 9 | D66: 50 | E66: 9 | F66: 50 | G66: 9 | H66: 5 | I66: 55.55555556 | J66: 4 | K66: 44.44444444 | L66: 9 | M66: 4 | N66: 44.44444444 | O66: 5 | P66: 55.55555556
A67: UNIÓN DOMINGUEÑA | B67: 6 | C67: 4 | D67: 66.66666667 | E67: 2 | F67: 33.33333333 | G67: 3 | H67: 2 | I67: 66.66666667 | J67: 1 | K67: 33.33333333 | L67: 3 | M67: 2 | N67: 66.66666667 | O67: 1 | P67: 33.33333333
A68: UNIÓN GRIEGA | B68: 2 | C68: 2 | D68: 100 | E68: 0 | F68: 0 | G68: 1 | H68: 1 | I68: 100 | J68: 0 | K68: 0 | L68: 1 | M68: 1 | N68: 100 | O68: 0 | P68: 0
A69: UNIÓN GUANACASTECA | B69: 6 | C69: 3 | D69: 50 | E69: 3 | F69: 50 | G69: 3 | H69: 2 | I69: 66.66666667 | J69: 1 | K69: 33.33333333 | L69: 3 | M69: 1 | N69: 33.33333333 | O69: 2 | P69: 66.66666667
A70: UNIÓN GUARQUEÑO | B70: 4 | C70: 2 | D70: 50 | E70: 2 | F70: 50 | G70: 2 | H70: 2 | I70: 100 | J70: 0 | K70: 0 | L70: 2 | M70: 0 | N70: 0 | O70: 2 | P70: 100
A71: YUNTA PROGRESISTA ESCAZUCEÑA | B71: 8 | C71: 4 | D71: 50 | E71: 4 | F71: 50 | G71: 4 | H71: 3 | I71: 75 | J71: 1 | K71: 25 | L71: 4 | M71: 1 | N71: 25 | O71: 3 | P71: 75
A74: 1/ Incluye Concejalías de Distrito y Concejalías Municipales de Distrito.
A75: Fuente: Tribunal Supremo de Elecciones.

Sheet 1.13
A2: CUADRO 1.13 COSTA RICA: INTENDENCIAS Y VICEINTENDENCIAS ELECTAS, POR SEXO
A3: SEGÚN PARTIDO POLÍTICO, ELECCIONES MUNICIPALES FEBRERO 2020
A4: (cifras absolutas y relativas)
A6: PARTIDO POLÍTICO | B6: INTENDENCIAS | G6: VICEINTENDENCIAS
B7: TOTAL | C7: MUJERES | E7: HOMBRES | G7: TOTAL | H7: MUJERES | J7: HOMBRES
C8: Absoluto | D8: % | E8: Absoluto | F8: % | H8: Absoluto | I8: % | J8: Absoluto | K8: %
A10: TOTAL | B10: =SUM(B12:B16) -> 8 | C10: =SUM(C12:C16) -> 1 | D10: =+C10/$B10*100 -> 12.5 | E10: =SUM(E12:E16) -> 7 | F10: =+E10/$B10*100 -> 87.5 | G10: =SUM(G12:G16) -> 7 | H10: =SUM(H12:H16) -> 6 | I10: =+H10/$G10*100 -> 85.71428571 | J10: =SUM(J12:J16) -> 1 | K10: =+J10/$G10*100 -> 14.28571429
A12: ACCIÓN CIUDADANA | B12: =+C12+E12 -> 1 | C12: 0 | D12: =+C12/$B12*100 -> 0 | E12: 1 | F12: =+E12/$B12*100 -> 100 | G12: =+H12+J12 -> 1 | H12: 1 | I12: =+H12/$G12*100 -> 100 | J12: 0 | K12: =+J12/$G12*100 -> 0
A13: INTEGRACIÓN NACIONAL | B13: 1 | C13: 0 | D13: 0 | E13: 1 | F13: 100 | G13: 1 | H13: 1 | J13: 0
A14: LIBERACIÓN NACIONAL | B14: 3 | C14: 1 | D14: =+C14/$B14*100 -> 33.33333333 | E14: 2 | F14: 66.66666667 | G14: 2 | H14: 1 | I14: =+H14/$G14*100 -> 50 | J14: 1 | K14: =+J14/$G14*100 -> 50
A15: NUEVA REPÚBLICA | B15: 1 | C15: 0 | D15: =+C15/$B15*100 -> 0 | E15: 1 | F15: 100 | G15: 1 | H15: 1 | I15: =+H15/$G15*100 -> 100 | J15: 0 | K15: =+J15/$G15*100 -> 0
A16: REPUBLICANO SOCIAL CRISTIANO | B16: 2 | C16: 0 | D16: =+C16/$B16*100 -> 0 | E16: 2 | F16: 100 | G16: 2 | H16: 2 | I16: =+H16/$G16*100 -> 100 | J16: 0 | K16: =+J16/$G16*100 -> 0
A17: UNIDAD SOCIAL CRISTIANA | B17: 1 | C17: 0 | D17: =+C17/$B17*100 -> 0 | E17: 1 | F17: 100 | G17: 1 | H17: 1 | I17: =+H17/$G17*100 -> 100 | J17: 0 | K17: =+J17/$G17*100 -> 0
A20: Fuente: Tribunal Supremo de Elecciones.

Sheet 1.14
A2: CUADRO 1.14 COSTA RICA: ALCALDÍAS Y VICEALCALDÍAS ELECTAS, POR SEXO
A3: SEGÚN PROVINCIA, ELECCIONES MUNICIPALES FEBRERO 2020
A4: (cifras absolutas y relativas)
A6: PROVINCIA | B6: ALCALDÍAS | G6: VICEALCALDÍAS PRIMERAS | L6: VICEALCALDÍAS SEGUNDAS 1/
B7: TOTAL | C7: MUJERES | E7: HOMBRES | G7: TOTAL | H7: MUJERES | J7: HOMBRES | L7: TOTAL | M7: MUJERES | O7: HOMBRES
C8: Absoluto | D8: % | E8: Absoluto | F8: % | H8: Absoluto | I8: % | J8: Absoluto | K8: % | M8: Absoluto | N8: % | O8: Absoluto | P8: %
A10: TOTAL | B10: =SUM(B12:B18) -> 82 | C10: =SUM(C12:C18) -> 8 | D10: =+C10/$B10*100 -> 9.756097561 | E10: =SUM(E12:E18) -> 74 | F10: =+E10/$B10*100 -> 90.24390244 | G10: =SUM(G12:G18) -> 82 | H10: =SUM(H12:H18) -> 73 | I10: =+H10/$G10*100 -> 89.02439024 | J10: =SUM(J12:J18) -> 9 | K10: =+J10/$G10*100 -> 10.97560976 | L10: =SUM(L12:L18) -> 80 | M10: =SUM(M12:M18) -> 23 | N10: =+M10/$L10*100 -> 28.75 | O10: =SUM(O12:O18) -> 57 | P10: =+O10/$L10*100 -> 71.25
A12: SAN JOSÉ | B12: =+C12+E12 -> 20 | C12: 2 | D12: =+C12/$B12*100 -> 10 | E12: 18 | F12: =+E12/$B12*100 -> 90 | G12: =+H12+J12 -> 20 | H12: 17 | I12: =+H12/$G12*100 -> 85 | J12: 3 | K12: =+J12/$G12*100 -> 15 | L12: =+M12+O12 -> 18 | M12: 3 | N12: =+M12/$L12*100 -> 16.66666667 | O12: 15 | P12: =+O12/$L12*100 -> 83.33333333
A13: ALAJUELA | B13: =+C13+E13 -> 16 | C13: 3 | D13: =+C13/$B13*100 -> 18.75 | E13: 13 | F13: =+E13/$B13*100 -> 81.25 | G13: =+H13+J13 -> 16 | H13: 13 | I13: =+H13/$G13*100 -> 81.25 | J13: 3 | K13: =+J13/$G13*100 -> 18.75 | L13: =+M13+O13 -> 16 | M13: 5 | N13: =+M13/$L13*100 -> 31.25 | O13: 11 | P13: =+O13/$L13*100 -> 68.75
A14: CARTAGO | B14: 8 | C14: 1 | D14: 12.5 | E14: 7 | F14: 87.5 | G14: 8 | H14: 7 | I14: 87.5 | J14: 1 | K14: 12.5 | L14: 8 | M14: 1 | N14: 12.5 | O14: 7 | P14: 87.5
A15: HEREDIA | B15: 10 | C15: 1 | D15: 10 | E15: 9 | F15: 90 | G15: 10 | H15: 9 | I15: 90 | J15: 1 | K15: 10 | L15: 10 | M15: 4 | N15: 40 | O15: 6 | P15: 60
A16: GUANACASTE | B16: 11 | C16: 1 | D16: 9.090909091 | E16: 10 | F16: 90.90909091 | G16: 11 | H16: 10 | I16: 90.90909091 | J16: 1 | K16: 9.090909091 | L16: 11 | M16: 6 | N16: 54.54545455 | O16: 5 | P16: 45.45454545
A17: PUNTARENAS | B17: 11 | C17: 0 | D17: 0 | E17: 11 | F17: 100 | G17: 11 | H17: 11 | I17: 100 | J17: 0 | K17: 0 | L17: 11 | M17: 2 | N17: 18.18181818 | O17: 9 | P17: 81.81818182
A18: LIMÓN | B18: 6 | C18: 0 | D18: 0 | E18: 6 | F18: 100 | G18: 6 | H18: 6 | I18: 100 | J18: 0 | K18: 0 | L18: 6 | M18: 2 | N18: 33.33333333 | O18: 4 | P18: 66.66666667
A21: 1/ En los cantones de Tibás y Curridabat los partidos Liberación Nacional y Curridabat Siglo XXI no se declaro segunda Vicealcadía ver resolución 1280-E11-2020.
A22: Fuente: Tribunal Supremo de Elecciones.

Sheet 1.15
A2: CUADRO 1.15 COSTA RICA: REGIDURÍAS ELECTAS, POR CARGO Y SEXO, SEGÚN PROVINCIA
A3: ELECCIONES MUNICIPALES FEBRERO 2020
A4: (cifras absolutas y relativas)
A6: PROVINCIA | B6: TOTAL | G6: EN PROPIEDAD | L6: EN SUPLENCIA
B7: TOTAL | C7: MUJERES | E7: HOMBRES | G7: TOTAL | H7: MUJERES | J7: HOMBRES | L7: TOTAL | M7: MUJERES | O7: HOMBRES
C8: Absoluto | D8: % | E8: Absoluto | F8: % | H8: Absoluto | I8: % | J8: Absoluto | K8: % | M8: Absoluto | N8: % | O8: Absoluto | P8: %
A9: TOTAL | B9: =+C9+E9 -> 1015 | C9: =+H9+M9 -> 462 | D9: =+C9/$B9*100 -> 45.51724138 | E9: =+J9+O9 -> 553 | F9: =+E9/$B9*100 -> 54.48275862 | G9: =+H9+J9 -> 508 | H9: =SUM(H10:H16) -> 207 | I9: =+H9/$G9*100 -> 40.7480315 | J9: =SUM(J10:J16) -> 301 | K9: =+J9/$G9*100 -> 59.2519685 | L9: =+M9+O9 -> 507 | M9: =SUM(M10:M16) -> 255 | N9: =+M9/$L9*100 -> 50.29585799 | O9: =SUM(O10:O16) -> 252 | P9: =+O9/$L9*100 -> 49.70414201
A10: SAN JOSÉ | B10: =+C10+E10 -> 275 | C10: =+H10+M10 -> 124 | D10: =+C10/$B10*100 -> 45.09090909 | E10: =+J10+O10 -> 151 | F10: =+E10/$B10*100 -> 54.90909091 | G10: =+H10+J10 -> 138 | H10: 56 | I10: =+H10/$G10*100 -> 40.57971014 | J10: 82 | K10: =+J10/$G10*100 -> 59.42028986 | L10: =+M10+O10 -> 137 | M10: 68 | N10: =+M10/$L10*100 -> 49.6350365 | O10: 69 | P10: =+O10/$L10*100 -> 50.3649635
A11: ALAJUELA | B11: =+C11+E11 -> 192 | C11: =+H11+M11 -> 86 | D11: =+C11/$B11*100 -> 44.79166667 | E11: =+J11+O11 -> 106 | F11: =+E11/$B11*100 -> 55.20833333 | G11: =+H11+J11 -> 96 | H11: 41 | I11: =+H11/$G11*100 -> 42.70833333 | J11: 55 | K11: =+J11/$G11*100 -> 57.29166667 | L11: =+M11+O11 -> 96 | M11: 45 | N11: =+M11/$L11*100 -> 46.875 | O11: 51 | P11: =+O11/$L11*100 -> 53.125
A12: CARTAGO | B12: 104 | C12: 51 | D12: 49.03846154 | E12: 53 | F12: 50.96153846 | G12: 52 | H12: 19 | I12: 36.53846154 | J12: 33 | K12: 63.46153846 | L12: 52 | M12: 32 | N12: 61.53846154 | O12: 20 | P12: 38.46153846
A13: HEREDIA | B13: 116 | C13: 51 | D13: 43.96551724 | E13: 65 | F13: 56.03448276 | G13: 58 | H13: 26 | I13: 44.82758621 | J13: 32 | K13: 55.17241379 | L13: 58 | M13: 25 | N13: 43.10344828 | O13: 33 | P13: 56.89655172
A14: GUANACASTE | B14: 122 | C14: 59 | D14: 48.36065574 | E14: 63 | F14: 51.63934426 | G14: 61 | H14: 23 | I14: 37.70491803 | J14: 38 | K14: 62.29508197 | L14: 61 | M14: 36 | N14: 59.01639344 | O14: 25 | P14: 40.98360656
A15: PUNTARENAS | B15: 126 | C15: 56 | D15: 44.44444444 | E15: 70 | F15: 55.55555556 | G15: 63 | H15: 27 | I15: 42.85714286 | J15: 36 | K15: 57.14285714 | L15: 63 | M15: 29 | N15: 46.03174603 | O15: 34 | P15: 53.96825397
A16: LIMÓN | B16: 80 | C16: 35 | D16: 43.75 | E16: 45 | F16: 56.25 | G16: 40 | H16: 15 | I16: 37.5 | J16: 25 | K16: 62.5 | L16: 40 | M16: 20 | N16: 50 | O16: 20 | P16: 50
A19: Fuente: Tribunal Supremo de Elecciones.

Sheet 1.16
A2: CUADRO 1.16 COSTA RICA: SINDICATURAS ELECTAS, POR CARGO Y SEXO, SEGÚN PROVINCIA
A3: ELECCIONES MUNICIPALES FEBRERO 2020
A4: (cifras absolutas y relativas)
A6: PROVINCIA | B6: TOTAL | G6: EN PROPIEDAD | L6: EN SUPLENCIA
B7: TOTAL | C7: MUJERES | E7: HOMBRES | G7: TOTAL | H7: MUJERES | J7: HOMBRES | L7: TOTAL | M7: MUJERES | O7: HOMBRES
C8: Absoluto | D8: % | E8: Absoluto | F8: % | H8: Absoluto | I8: % | J8: Absoluto | K8: % | M8: Absoluto | N8: % | O8: Absoluto | P8: %
A9: TOTAL | B9: =+C9+E9 -> 952 | C9: =SUM(C10:C16) -> 473 | D9: =+C9/$B9*100 -> 49.68487395 | E9: =SUM(E10:E16) -> 479 | F9: =+E9/$B9*100 -> 50.31512605 | G9: =SUM(G10:G16) -> 486 | H9: =SUM(H10:H16) -> 171 | I9: =+H9/$G9*100 -> 35.18518519 | J9: =SUM(J10:J16) -> 315 | K9: =+J9/$G9*100 -> 64.81481481 | L9: =SUM(L10:L16) -> 466 | M9: =SUM(M10:M16) -> 302 | N9: =+M9/$L9*100 -> 64.80686695 | O9: =SUM(O10:O16) -> 164 | P9: =+O9/$L9*100 -> 35.19313305
A10: SAN JOSÉ | B10: =+C10+E10 -> 243 | C10: =+H10+M10 -> 122 | D10: =+C10/$B10*100 -> 50.20576132 | E10: =+J10+O10 -> 121 | F10: =+E10/$B10*100 -> 49.79423868 | G10: =+H10+J10 -> 123 | H10: 52 | I10: =+H10/$G10*100 -> 42.27642276 | J10: 71 | K10: =+J10/$G10*100 -> 57.72357724 | L10: =+M10+O10 -> 120 | M10: 70 | N10: =+M10/$L10*100 -> 58.33333333 | O10: 50 | P10: =+O10/$L10*100 -> 41.66666667
A11: ALAJUELA | B11: =+C11+E11 -> 231 | C11: =+H11+M11 -> 116 | D11: =+C11/$B11*100 -> 50.21645022 | E11: =+J11+O11 -> 115 | F11: =+E11/$B11*100 -> 49.78354978 | G11: =+H11+J11 -> 116 | H11: 43 | I11: =+H11/$G11*100 -> 37.06896552 | J11: 73 | K11: =+J11/$G11*100 -> 62.93103448 | L11: =+M11+O11 -> 115 | M11: 73 | N11: =+M11/$L11*100 -> 63.47826087 | O11: 42 | P11: =+O11/$L11*100 -> 36.52173913
A12: CARTAGO | B12: 97 | C12: 47 | D12: 48.45360825 | E12: 50 | F12: 51.54639175 | G12: 51 | H12: 13 | I12: 25.49019608 | J12: 38 | K12: 74.50980392 | L12: 46 | M12: 34 | N12: 73.91304348 | O12: 12 | P12: 26.08695652
A13: HEREDIA | B13: 92 | C13: 45 | D13: 48.91304348 | E13: 47 | F13: 51.08695652 | G13: 47 | H13: 17 | I13: 36.17021277 | J13: 30 | K13: 63.82978723 | L13: 45 | M13: 28 | N13: 62.22222222 | O13: 17 | P13: 37.77777778
A14: GUANACASTE | B14: 115 | C14: 57 | D14: 49.56521739 | E14: 58 | F14: 50.43478261 | G14: 60 | H14: 16 | I14: 26.66666667 | J14: 44 | K14: 73.33333333 | L14: 55 | M14: 41 | N14: 74.54545455 | O14: 14 | P14: 25.45454545
A15: PUNTARENAS | B15: 116 | C15: 57 | D15: 49.13793103 | E15: 59 | F15: 50.86206897 | G15: 59 | H15: 15 | I15: 25.42372881 | J15: 44 | K15: 74.57627119 | L15: 57 | M15: 42 | N15: 73.68421053 | O15: 15 | P15: 26.31578947
A16: LIMÓN | B16: 58 | C16: 29 | D16: 50 | E16: 29 | F16: 50 | G16: 30 | H16: 15 | I16: 50 | J16: 15 | K16: 50 | L16: 28 | M16: 14 | N16: 50 | O16: 14 | P16: 50
A19: Fuente: Tribunal Supremo de Elecciones.

Sheet 1.17
A2: CUADRO 1.17 COSTA RICA: CONCEJALÍAS1/ ELECTAS, POR CARGO Y SEXO, SEGÚN PROVINCIA
A3: ELECCIONES MUNICIPALES FEBRERO 2020
A4: (cifras absolutas y relativas)
A6: PROVINCIA | B6: TOTAL | G6: EN PROPIEDAD | L6: EN SUPLENCIA
B7: TOTAL | C7: MUJERES | E7: HOMBRES | G7: TOTAL | H7: MUJERES | J7: HOMBRES | L7: TOTAL | M7: MUJERES | O7: HOMBRES
C8: Absoluto | D8: % | E8: Absoluto | F8: % | H8: Absoluto | I8: % | J8: Absoluto | K8: % | M8: Absoluto | N8: % | O8: Absoluto | P8: %
A10: TOTAL | B10: =+G10+L10 -> 3790 | C10: =+H10+M10 -> 1867 | D10: =+C10/B10*100 -> 49.26121372 | E10: =+J10+O10 -> 1923 | F10: =+E10/B10*100 -> 50.73878628 | G10: =+H10+J10 -> 1944 | H10: =SUM(H12:H18) -> 927 | I10: =+H10/G10*100 -> 47.68518519 | J10: =SUM(J12:J18) -> 1017 | K10: =+J10/G10*100 -> 52.31481481 | L10: =+M10+O10 -> 1846 | M10: =SUM(M12:M18) -> 940 | N10: =+M10/L10*100 -> 50.92091008 | O10: =SUM(O12:O18) -> 906 | P10: =+O10/L10*100 -> 49.07908992
A12: SAN JOSÉ | B12: =+C12+E12 -> 959 | C12: =+H12+M12 -> 465 | D12: =+C12/B12*100 -> 48.48800834 | E12: =+J12+O12 -> 494 | F12: =+E12/B12*100 -> 51.51199166 | G12: =+H12+J12 -> 492 | H12: 234 | I12: =+H12/G12*100 -> 47.56097561 | J12: 258 | K12: =+J12/G12*100 -> 52.43902439 | L12: =+M12+O12 -> 467 | M12: 231 | N12: =+M12/L12*100 -> 49.46466809 | O12: 236 | P12: =+O12/L12*100 -> 50.53533191
A13: ALAJUELA | B13: =+C13+E13 -> 910 | C13: =+H13+M13 -> 455 | D13: =+C13/B13*100 -> 50 | E13: =+J13+O13 -> 455 | F13: =+E13/B13*100 -> 50 | G13: =+H13+J13 -> 464 | H13: 226 | I13: =+H13/G13*100 -> 48.70689655 | J13: 238 | K13: =+J13/G13*100 -> 51.29310345 | L13: =+M13+O13 -> 446 | M13: 229 | N13: =+M13/L13*100 -> 51.34529148 | O13: 217 | P13: =+O13/L13*100 -> 48.65470852
A14: CARTAGO | B14: 398 | C14: 200 | D14: 50.25125628 | E14: 198 | F14: 49.74874372 | G14: 204 | H14: 103 | I14: 50.49019608 | J14: 101 | K14: 49.50980392 | L14: 194 | M14: 97 | N14: 50 | O14: 97 | P14: 50
A15: HEREDIA | B15: 360 | C15: 176 | D15: 48.88888889 | E15: 184 | F15: 51.11111111 | G15: 188 | H15: 88 | I15: 46.80851064 | J15: 100 | K15: 53.19148936 | L15: 172 | M15: 88 | N15: 51.1627907 | O15: 84 | P15: 48.8372093
A16: GUANACASTE | B16: 473 | C16: 227 | D16: 47.99154334 | E16: 246 | F16: 52.00845666 | G16: 240 | H16: 106 | I16: 44.16666667 | J16: 134 | K16: 55.83333333 | L16: 233 | M16: 121 | N16: 51.93133047 | O16: 112 | P16: 48.06866953
A17: PUNTARENAS | B17: 459 | C17: 230 | D17: 50.10893246 | E17: 229 | F17: 49.89106754 | G17: 236 | H17: 112 | I17: 47.45762712 | J17: 124 | K17: 52.54237288 | L17: 223 | M17: 118 | N17: 52.91479821 | O17: 105 | P17: 47.08520179
A18: LIMÓN | B18: 231 | C18: 114 | D18: 49.35064935 | E18: 117 | F18: 50.64935065 | G18: 120 | H18: 58 | I18: 48.33333333 | J18: 62 | K18: 51.66666667 | L18: 111 | M18: 56 | N18: 50.45045045 | O18: 55 | P18: 49.54954955
A21: 1/ Incluye Concejalías de Distrito y Concejalías Municipales de Distrito.
A22: Fuente: Tribunal Supremo de Elecciones.

Sheet 1.18
A2: CUADRO 1.18 COSTA RICA: INTENDENCIAS Y VICEINTENDENCIAS ELECTAS, POR SEXO
A3: SEGÚN PROVINCIA, ELECCIONES MUNICIPALES FEBRERO 2020
A4: (cifras absolutas y relativas)
A6: PROVINCIA | B6: INTENDENCIAS | G6: VICEINTENDENCIAS
B7: TOTAL | C7: MUJERES | E7: HOMBRES | G7: TOTAL | H7: MUJERES | J7: HOMBRES
C8: Absoluto | D8: % | E8: Absoluto | F8: % | H8: Absoluto | I8: % | J8: Absoluto | K8: %
A10: TOTAL | B10: =+C10+E10 -> 8 | C10: =SUM(C12:C15) -> 1 | D10: =+C10/$B10*100 -> 12.5 | E10: =SUM(E12:E15) -> 7 | F10: =+E10/$B10*100 -> 87.5 | G10: =+H10+J10 -> 8 | H10: =SUM(H12:H15) -> 7 | I10: =+H10/$G10*100 -> 87.5 | J10: =SUM(J12:J15) -> 1 | K10: =+J10/$G10*100 -> 12.5
A12: ALAJUELA | B12: =+C12+E12 -> 1 | C12: 0 | D12: =+C12/$B12*100 -> 0 | E12: 1 | F12: =+E12/$B12*100 -> 100 | G12: =+H12+J12 -> 1 | H12: 1 | I12: =+H12/$G12*100 -> 100 | J12: 0 | K12: =+J12/$G12*100 -> 0
A13: CARTAGO | B13: =+C13+E13 -> 2 | C13: 0 | D13: =+C13/$B13*100 -> 0 | E13: 2 | F13: =+E13/$B13*100 -> 100 | G13: =+H13+J13 -> 2 | H13: 2 | I13: =+H13/$G13*100 -> 100 | J13: 0 | K13: =+J13/$G13*100 -> 0
A14: GUANACASTE | B14: =+C14+E14 -> 1 | C14: 1 | D14: =+C14/$B14*100 -> 100 | E14: 0 | F14: =+E14/$B14*100 -> 0 | G14: =+H14+J14 -> 1 | H14: 0 | I14: =+H14/$G14*100 -> 0 | J14: 1 | K14: =+J14/$G14*100 -> 100
A15: PUNTARENAS | B15: =+C15+E15 -> 4 | C15: 0 | D15: =+C15/$B15*100 -> 0 | E15: 4 | F15: =+E15/$B15*100 -> 100 | G15: =+H15+J15 -> 4 | H15: 4 | I15: =+H15/$G15*100 -> 100 | J15: 0 | K15: =+J15/$G15*100 -> 0
A18: Fuente: Tribunal Supremo de Elecciones.

Sheet 1.19
A2: CUADRO 1.19 COSTA RICA: CANDIDATURAS ELECTAS EN PROPIEDAD A ALCALDÍAS, REGIDURÍAS, INTENDENCIAS, SINDICATURAS
A3: Y CONCEJALÍAS EN PROPIEDAD, SEGÚN GRUPOS DE EDAD, ELECCIONES MUNICIPALES FEBRERO 2020
A4: (cifras absolutas y relativas)
A6: GRUPOS DE EDAD | B6: ALCALDÍAS | D6: REGIDURÍAS EN PROPIEDAD | F6: SINDICATURAS EN PROPIEDAD | H6: CONCEJALÍAS EN PROPIEDAD 1/ | J6: INTENDENCIAS
B7: Absoluto | C7: % | D7: Absoluto | E7: % | F7: Absoluto | G7: % | H7: Absoluto | I7: % | J7: Absoluto | K7: %
A9: TOTAL | B9: =SUM(B10:B22) -> 82 | C9: =+B9/B$9*100 -> 100 | D9: =SUM(D10:D22) -> 508 | E9: =+D9/D$9*100 -> 100 | F9: =SUM(F10:F22) -> 486 | G9: =+F9/F$9*100 -> 100 | H9: =SUM(H10:H22) -> 1944 | I9: =+H9/H$9*100 -> 100 | J9: =SUM(J10:J22) -> 8 | K9: =+J9/J$9*100 -> 100
A10: MENOS DE 25 AÑOS | B10: 0 | C10: =+B10/B$9*100 -> 0 | D10: 8 | E10: =+D10/D$9*100 -> 1.57480315 | F10: 12 | G10: =+F10/F$9*100 -> 2.469135802 | H10: 144 | I10: =+H10/H$9*100 -> 7.407407407 | J10: 0 | K10: =+J10/J$9*100 -> 0
A11: DE 25 A 29 AÑOS | B11: 1 | C11: =+B11/B$9*100 -> 1.219512195 | D11: 19 | E11: =+D11/D$9*100 -> 3.74015748 | F11: 17 | G11: =+F11/F$9*100 -> 3.497942387 | H11: 170 | I11: =+H11/H$9*100 -> 8.744855967 | J11: 0 | K11: 0
A12: DE 30 A 34 AÑOS | B12: 6 | C12: =+B12/B$9*100 -> 7.317073171 | D12: 49 | E12: 9.645669291 | F12: 35 | G12: 7.201646091 | H12: 215 | I12: 11.05967078 | J12: 2 | K12: 25
A13: DE 35 A 39 AÑOS | B13: 13 | C13: 15.85365854 | D13: 62 | E13: 12.20472441 | F13: 50 | G13: 10.28806584 | H13: 218 | I13: 11.21399177 | J13: 2 | K13: 25
A14: DE 40 A 44 AÑOS | B14: 7 | C14: 8.536585366 | D14: 76 | E14: 14.96062992 | F14: 54 | G14: 11.11111111 | H14: 222 | I14: 11.41975309 | J14: 0 | K14: 0
A15: DE 45 A 49 AÑOS | B15: 8 | C15: 9.756097561 | D15: 61 | E15: 12.00787402 | F15: 69 | G15: 14.19753086 | H15: 220 | I15: 11.31687243 | J15: 1 | K15: 12.5
A16: DE 50 A 54 AÑOS | B16: 11 | C16: 13.41463415 | D16: 74 | E16: 14.56692913 | F16: 79 | G16: 16.25514403 | H16: 220 | I16: 11.31687243 | J16: 1 | K16: 12.5
A17: DE 55 A 59 AÑOS | B17: 19 | C17: 23.17073171 | D17: 72 | E17: 14.17322835 | F17: 64 | G17: 13.16872428 | H17: 205 | I17: 10.54526749 | J17: 1 | K17: 12.5
A18: DE 60 A 64 AÑOS | B18: 9 | C18: 10.97560976 | D18: 42 | E18: 8.267716535 | F18: 43 | G18: 8.847736626 | H18: 166 | I18: 8.53909465 | J18: 1 | K18: 12.5
A19: DE 65 A 69 AÑOS | B19: 7 | C19: 8.536585366 | D19: 36 | E19: 7.086614173 | F19: 33 | G19: 6.790123457 | H19: 92 | I19: 4.732510288 | J19: 0 | K19: 0
A20: DE 70 A 74 AÑOS | B20: 0 | C20: 0 | D20: 8 | E20: 1.57480315 | F20: 26 | G20: 5.349794239 | H20: 49 | I20: 2.520576132 | J20: 0 | K20: 0
A21: DE 75 A 79 AÑOS | B21: 1 | C21: 1.219512195 | D21: 1 | E21: 0.1968503937 | F21: 3 | G21: 0.6172839506 | H21: 21 | I21: 1.080246914 | J21: 0 | K21: 0
A22: DE 80 AÑOS Y MÁS | B22: 0 | C22: 0 | D22: 0 | E22: 0 | F22: 1 | G22: 0.2057613169 | H22: 2 | I22: 0.1028806584 | J22: 0 | K22: 0
A25: 1/ Incluye Concejalías de Distrito y Concejalías Municipales de Distrito.
A26: Fuente: Tribunal Supremo de Elecciones.

Sheet 1.20
A2: CUADRO 1.20 COSTA RICA: CANDIDATURAS ELECTAS A REGIDURÍAS, SINDICATURAS Y CONCEJALÍAS EN PROPIEDAD
A3: POR SEXO, SEGÚN PROVINCIA Y CANTÓN, ELECCIONES MUNICIPALES FEBRERO 2020
A4: (cifras absolutas y relativas)
A6: PROVINCIA Y CANTÓN | B6: REGIDURÍAS EN PROPIEDAD | G6: SINDICATURAS EN PROPIEDAD | L6: CONCEJALÍAS EN PROPIEDAD 1/
B7: TOTAL | C7: MUJERES | E7: HOMBRES | G7: TOTAL | H7: MUJERES | J7: HOMBRES | L7: TOTAL | M7: MUJERES | O7: HOMBRES
C8: Absoluto | D8: % | E8: Absoluto | F8: % | H8: Absoluto | I8: % | J8: Absoluto | K8: % | M8: Absoluto | N8: % | O8: Absoluto | P8: %
A10: COSTA RICA | B10: =+C10+E10 -> 508 | C10: =+C11+C32+C49+C58+C69+C81+C93 -> 207 | D10: =+C10/$B10*100 -> 40.7480315 | E10: =+E11+E32+E49+E58+E69+E81+E93 -> 301 | F10: =+E10/$B10*100 -> 59.2519685 | G10: =+H10+J10 -> 486 | H10: =+H11+H32+H49+H58+H69+H81+H93 -> 171 | I10: =+H10/$G10*100 -> 35.18518519 | J10: =+J11+J32+J49+J58+J69+J81+J93 -> 315 | K10: =+J10/$G10*100 -> 64.81481481 | L10: =+M10+O10 -> 1944 | M10: =+M11+M32+M49+M58+M69+M81+M93 -> 927 | N10: =+M10/$L10*100 -> 47.68518519 | O10: =+O11+O32+O49+O58+O69+O81+O93 -> 1017 | P10: =+O10/$L10*100 -> 52.31481481
A11: SAN JOSÉ | B11: =+C11+E11 -> 138 | C11: =SUM(C12:C31) -> 56 | D11: =+C11/$B11*100 -> 40.57971014 | E11: =SUM(E12:E31) -> 82 | F11: =+E11/$B11*100 -> 59.42028986 | G11: =+H11+J11 -> 123 | H11: =SUM(H12:H31) -> 52 | I11: =+H11/$G11*100 -> 42.27642276 | J11: =SUM(J12:J31) -> 71 | K11: =+J11/$G11*100 -> 57.72357724 | L11: =+M11+O11 -> 492 | M11: =SUM(M12:M31) -> 234 | N11: =+M11/$L11*100 -> 47.56097561 | O11: =SUM(O12:O31) -> 258 | P11: =+O11/$L11*100 -> 52.43902439
A12: SAN JOSÉ | B12: =+C12+E12 -> 11 | C12: 4 | D12: =+C12/$B12*100 -> 36.36363636 | E12: 7 | F12: =+E12/$B12*100 -> 63.63636364 | G12: =+H12+J12 -> 11 | H12: 7 | I12: =+H12/$G12*100 -> 63.63636364 | J12: 4 | K12: =+J12/$G12*100 -> 36.36363636 | L12: =+M12+O12 -> 44 | M12: 22 | N12: =+M12/$L12*100 -> 50 | O12: 22 | P12: =+O12/$L12*100 -> 50
A13: ESCAZÚ | B13: 7 | C13: 2 | D13: =+C13/$B13*100 -> 28.57142857 | E13: 5 | F13: =+E13/$B13*100 -> 71.42857143 | G13: 3 | H13: 1 | I13: =+H13/$G13*100 -> 33.33333333 | J13: 2 | K13: =+J13/$G13*100 -> 66.66666667 | L13: 12 | M13: 6 | N13: =+M13/$L13*100 -> 50 | O13: 6 | P13: =+O13/$L13*100 -> 50
A14: DESAMPARADOS | B14: 11 | C14: 4 | D14: 36.36363636 | E14: 7 | F14: 63.63636364 | G14: 13 | H14: 6 | I14: 46.15384615 | J14: 7 | K14: 53.84615385 | L14: 52 | M14: 23 | N14: 44.23076923 | O14: 29 | P14: 55.76923077
A15: PURISCAL | B15: 5 | C15: 2 | D15: 40 | E15: 3 | F15: 60 | G15: 9 | H15: 3 | I15: 33.33333333 | J15: 6 | K15: 66.66666667 | L15: 36 | M15: 17 | N15: 47.22222222 | O15: 19 | P15: 52.77777778
A16: TARRAZÚ | B16: 5 | C16: 2 | D16: 40 | E16: 3 | F16: 60 | G16: 3 | H16: 0 | I16: 0 | J16: 3 | K16: 100 | L16: 12 | M16: 6 | N16: 50 | O16: 6 | P16: 50
A17: ASERRÍ | B17: 7 | C17: 3 | D17: 42.85714286 | E17: 4 | F17: 57.14285714 | G17: 7 | H17: 2 | I17: 28.57142857 | J17: 5 | K17: 71.42857143 | L17: 28 | M17: 12 | N17: 42.85714286 | O17: 16 | P17: 57.14285714
A18: MORA | B18: 5 | C18: 1 | D18: 20 | E18: 4 | F18: 80 | G18: 7 | H18: 3 | I18: 42.85714286 | J18: 4 | K18: 57.14285714 | L18: 28 | M18: 13 | N18: 46.42857143 | O18: 15 | P18: 53.57142857
A19: GOICOECHEA | B19: 9 | C19: 4 | D19: 44.44444444 | E19: 5 | F19: 55.55555556 | G19: 7 | H19: 4 | I19: 57.14285714 | J19: 3 | K19: 42.85714286 | L19: 28 | M19: 12 | N19: 42.85714286 | O19: 16 | P19: 57.14285714
A20: SANTA ANA | B20: 7 | C20: 3 | D20: 42.85714286 | E20: 4 | F20: 57.14285714 | G20: 6 | H20: 2 | I20: 33.33333333 | J20: 4 | K20: 66.66666667 | L20: 24 | M20: 12 | N20: 50 | O20: 12 | P20: 50
A21: ALAJUELITA | B21: 7 | C21: 3 | D21: 42.85714286 | E21: 4 | F21: 57.14285714 | G21: 5 | H21: 2 | I21: 40 | J21: 3 | K21: 60 | L21: 20 | M21: 10 | N21: 50 | O21: 10 | P21: 50
A22: VÁZQUEZ DE CORONADO | B22: 7 | C22: 4 | D22: 57.14285714 | E22: 3 | F22: 42.85714286 | G22: 5 | H22: 1 | I22: 20 | J22: 4 | K22: 80 | L22: 20 | M22: 8 | N22: 40 | O22: 12 | P22: 60
A23: ACOSTA | B23: 5 | C23: 2 | D23: 40 | E23: 3 | F23: 60 | G23: 5 | H23: 2 | I23: 40 | J23: 3 | K23: 60 | L23: 20 | M23: 10 | N23: 50 | O23: 10 | P23: 50
A24: TIBÁS | B24: 7 | C24: 4 | D24: 57.14285714 | E24: 3 | F24: 42.85714286 | G24: 5 | H24: 5 | I24: 100 | J24: 0 | K24: 0 | L24: 20 | M24: 11 | N24: 55 | O24: 9 | P24: 45
A25: MORAVIA | B25: 7 | C25: 3 | D25: 42.85714286 | E25: 4 | F25: 57.14285714 | G25: 3 | H25: 2 | I25: 66.66666667 | J25: 1 | K25: 33.33333333 | L25: 12 | M25: 6 | N25: 50 | O25: 6 | P25: 50
A26: MONTES DE OCA | B26: 7 | C26: 3 | D26: 42.85714286 | E26: 4 | F26: 57.14285714 | G26: 4 | H26: 2 | I26: 50 | J26: 2 | K26: 50 | L26: 16 | M26: 9 | N26: 56.25 | O26: 7 | P26: 43.75
A27: TURRUBARES | B27: 5 | C27: 2 | D27: 40 | E27: 3 | F27: 60 | G27: 5 | H27: 3 | I27: 60 | J27: 2 | K27: 40 | L27: 20 | M27: 11 | N27: 55 | O27: 9 | P27: 45
A28: DOTA | B28: 5 | C28: 2 | D28: 40 | E28: 3 | F28: 60 | G28: 3 | H28: 1 | I28: 33.33333333 | J28: 2 | K28: 66.66666667 | L28: 12 | M28: 5 | N28: 41.66666667 | O28: 7 | P28: 58.33333333
A29: CURRIDABAT | B29: 7 | C29: 3 | D29: 42.85714286 | E29: 4 | F29: 57.14285714 | G29: 4 | H29: 2 | I29: 50 | J29: 2 | K29: 50 | L29: 16 | M29: 7 | N29: 43.75 | O29: 9 | P29: 56.25
A30: PÉREZ ZELEDÓN | B30: 9 | C30: 3 | D30: 33.33333333 | E30: 6 | F30: 66.66666667 | G30: 12 | H30: 2 | I30: 16.66666667 | J30: 10 | K30: 83.33333333 | L30: 48 | M30: 20 | N30: 41.66666667 | O30: 28 | P30: 58.33333333
A31: LEÓN CORTÉS CASTRO | B31: 5 | C31: 2 | D31: 40 | E31: 3 | F31: =+E31/$B31*100 -> 60 | G31: 6 | H31: 2 | I31: 33.33333333 | J31: 4 | K31: 66.66666667 | L31: 24 | M31: 14 | N31: 58.33333333 | O31: 10 | P31: 41.66666667
A32: ALAJUELA | B32: =+C32+E32 -> 96 | C32: 41 | D32: =+C32/$B32*100 -> 42.70833333 | E32: 55 | F32: =+E32/$B32*100 -> 57.29166667 | G32: =+H32+J32 -> 116 | H32: 43 | I32: =+H32/$G32*100 -> 37.06896552 | J32: 73 | K32: =+J32/$G32*100 -> 62.93103448 | L32: 464 | M32: 226 | N32: 48.70689655 | O32: 238 | P32: =+O32/$L32*100 -> 51.29310345
A33: ALAJUELA | B33: 11 | C33: 5 | D33: =+C33/$B33*100 -> 45.45454545 | E33: 6 | F33: =+E33/$B33*100 -> 54.54545455 | G33: 14 | H33: 4 | I33: =+H33/$G33*100 -> 28.57142857 | J33: 10 | K33: =+J33/$G33*100 -> 71.42857143 | L33: 56 | M33: 29 | N33: =+M33/$L33*100 -> 51.78571429 | O33: 27 | P33: =+O33/$L33*100 -> 48.21428571
A34: SAN RAMÓN | B34: 7 | C34: 3 | D34: 42.85714286 | E34: 4 | F34: =+E34/$B34*100 -> 57.14285714 | G34: 14 | H34: 5 | I34: 35.71428571 | J34: 9 | K34: 64.28571429 | L34: 56 | M34: 29 | N34: 51.78571429 | O34: 27 | P34: 48.21428571
A35: GRECIA | B35: 7 | C35: 2 | D35: 28.57142857 | E35: 5 | F35: 71.42857143 | G35: 7 | H35: 3 | I35: 42.85714286 | J35: 4 | K35: 57.14285714 | L35: 28 | M35: 15 | N35: 53.57142857 | O35: 13 | P35: 46.42857143
A36: SAN MATEO | B36: 5 | C36: 2 | D36: 40 | E36: 3 | F36: 60 | G36: 4 | H36: 3 | I36: 75 | J36: 1 | K36: 25 | L36: 16 | M36: 7 | N36: 43.75 | O36: 9 | P36: 56.25
A37: ATENAS | B37: 5 | C37: 1 | D37: 20 | E37: 4 | F37: 80 | G37: 8 | H37: 1 | I37: 12.5 | J37: 7 | K37: 87.5 | L37: 32 | M37: 13 | N37: 40.625 | O37: 19 | P37: 59.375
A38: NARANJO | B38: 5 | C38: 2 | D38: 40 | E38: 3 | F38: 60 | G38: 8 | H38: 2 | I38: 25 | J38: 6 | K38: 75 | L38: 32 | M38: 17 | N38: 53.125 | O38: 15 | P38: 46.875
A39: PALMARES | B39: 5 | C39: 1 | D39: 20 | E39: 4 | F39: 80 | G39: 7 | H39: 3 | I39: 42.85714286 | J39: 4 | K39: 57.14285714 | L39: 28 | M39: 16 | N39: 57.14285714 | O39: 12 | P39: 42.85714286
A40: POÁS | B40: 5 | C40: 3 | D40: 60 | E40: 2 | F40: 40 | G40: 5 | H40: 2 | I40: 40 | J40: 3 | K40: 60 | L40: 20 | M40: 11 | N40: 55 | O40: 9 | P40: 45
A41: OROTINA | B41: 5 | C41: 2 | D41: 40 | E41: 3 | F41: 60 | G41: 5 | H41: 3 | I41: 60 | J41: 2 | K41: 40 | L41: 20 | M41: 11 | N41: 55 | O41: 9 | P41: 45
A42: SAN CARLOS | B42: 9 | C42: 4 | D42: 44.44444444 | E42: 5 | F42: 55.55555556 | G42: 13 | H42: 6 | I42: 46.15384615 | J42: 7 | K42: 53.84615385 | L42: 52 | M42: 25 | N42: 48.07692308 | O42: 27 | P42: 51.92307692
A43: ZARCERO | B43: 5 | C43: 2 | D43: 40 | E43: 3 | F43: 60 | G43: 7 | H43: 3 | I43: 42.85714286 | J43: 4 | K43: 57.14285714 | L43: 28 | M43: 12 | N43: 42.85714286 | O43: 16 | P43: 57.14285714
A44: SARCHÍ | B44: 5 | C44: 3 | D44: 60 | E44: 2 | F44: 40 | G44: 5 | H44: 2 | I44: 40 | J44: 3 | K44: 60 | L44: 20 | M44: 7 | N44: 35 | O44: 13 | P44: 65
A45: UPALA | B45: 7 | C45: 3 | D45: 42.85714286 | E45: 4 | F45: 57.14285714 | G45: 8 | H45: 4 | I45: 50 | J45: 4 | K45: 50 | L45: 32 | M45: 15 | N45: 46.875 | O45: 17 | P45: 53.125
A46: LOS CHILES | B46: 5 | C46: 2 | D46: 40 | E46: 3 | F46: 60 | G46: 4 | H46: 1 | I46: 25 | J46: 3 | K46: 75 | L46: 16 | M46: 8 | N46: 50 | O46: 8 | P46: 50
A47: GUATUSO | B47: 5 | C47: 3 | D47: 60 | E47: 2 | F47: 40 | G47: 4 | H47: 1 | I47: 25 | J47: 3 | K47: 75 | L47: 16 | M47: 5 | N47: 31.25 | O47: 11 | P47: 68.75
A48: RIO CUARTO | B48: 5 | C48: 3 | D48: 60 | E48: 2 | F48: 40 | G48: 3 | H48: 0 | I48: 0 | J48: 3 | K48: 100 | L48: 12 | M48: 6 | N48: 50 | O48: 6 | P48: 50
A49: CARTAGO | B49: =+C49+E49 -> 52 | C49: 19 | D49: =+C49/$B49*100 -> 36.53846154 | E49: 33 | F49: =+E49/$B49*100 -> 63.46153846 | G49: =+H49+J49 -> 51 | H49: 13 | I49: =+H49/$G49*100 -> 25.49019608 | J49: 38 | K49: =+J49/$G49*100 -> 74.50980392 | L49: =+M49+O49 -> 204 | M49: 103 | N49: =+M49/$L49*100 -> 50.49019608 | O49: 101 | P49: =+O49/$L49*100 -> 49.50980392
A50: CARTAGO | B50: 9 | C50: 4 | D50: =+C50/$B50*100 -> 44.44444444 | E50: 5 | F50: =+E50/$B50*100 -> 55.55555556 | G50: 11 | H50: 4 | I50: =+H50/$G50*100 -> 36.36363636 | J50: 7 | K50: =+J50/$G50*100 -> 63.63636364 | L50: 44 | M50: 22 | N50: =+M50/$L50*100 -> 50 | O50: 22 | P50: =+O50/$L50*100 -> 50
A51: PARAÍSO | B51: 7 | C51: 2 | D51: =+C51/$B51*100 -> 28.57142857 | E51: 5 | F51: =+E51/$B51*100 -> 71.42857143 | G51: 5 | H51: 0 | I51: 0 | J51: 5 | K51: 100 | L51: 20 | M51: 10 | N51: 50 | O51: 10 | P51: 50
A52: LA UNIÓN | B52: 9 | C52: 3 | D52: 33.33333333 | E52: 6 | F52: 66.66666667 | G52: 8 | H52: 3 | I52: 37.5 | J52: 5 | K52: 62.5 | L52: 32 | M52: 17 | N52: 53.125 | O52: 15 | P52: 46.875
A53: JIMÉNEZ | B53: 5 | C53: 3 | D53: 60 | E53: 2 | F53: 40 | G53: 3 | H53: 1 | I53: 33.33333333 | J53: 2 | K53: 66.66666667 | L53: 12 | M53: 5 | N53: 41.66666667 | O53: 7 | P53: 58.33333333
A54: TURRIALBA | B54: 7 | C54: 1 | D54: 14.28571429 | E54: 6 | F54: 85.71428571 | G54: 12 | H54: 2 | I54: 16.66666667 | J54: 10 | K54: 83.33333333 | L54: 48 | M54: 24 | N54: 50 | O54: 24 | P54: 50
A55: ALVARADO | B55: 5 | C55: 2 | D55: 40 | E55: 3 | F55: 60 | G55: 3 | H55: 1 | I55: 33.33333333 | J55: 2 | K55: 66.66666667 | L55: 12 | M55: 7 | N55: 58.33333333 | O55: 5 | P55: 41.66666667
A56: OREAMUNO | B56: 5 | C56: 2 | D56: 40 | E56: 3 | F56: 60 | G56: 5 | H56: 0 | I56: 0 | J56: 5 | K56: 100 | L56: 20 | M56: 11 | N56: 55 | O56: 9 | P56: 45
A57: EL GUARCO | B57: 5 | C57: 2 | D57: =+C57/$B57*100 -> 40 | E57: 3 | F57: 60 | G57: 4 | H57: 2 | I57: 50 | J57: 2 | K57: 50 | L57: 16 | M57: 7 | N57: 43.75 | O57: 9 | P57: 56.25
A58: HEREDIA | B58: =+C58+E58 -> 58 | C58: 26 | D58: =+C58/$B58*100 -> 44.82758621 | E58: 32 | F58: =+E58/$B58*100 -> 55.17241379 | G58: 47 | H58: 17 | I58: 36.17021277 | J58: 30 | K58: 63.82978723 | L58: 188 | M58: 88 | N58: 46.80851064 | O58: 100 | P58: 53.19148936
A59: HEREDIA | B59: 9 | C59: 5 | D59: =+C59/$B59*100 -> 55.55555556 | E59: 4 | F59: =+E59/$B59*100 -> 44.44444444 | G59: 5 | H59: 1 | I59: 20 | J59: 4 | K59: 80 | L59: 20 | M59: 7 | N59: 35 | O59: 13 | P59: 65
A60: BARVA | B60: 5 | C60: 4 | D60: =+C60/$B60*100 -> 80 | E60: 1 | F60: =+E60/$B60*100 -> 20 | G60: 6 | H60: 3 | I60: 50 | J60: 3 | K60: 50 | L60: 24 | M60: 13 | N60: 54.16666667 | O60: 11 | P60: 45.83333333
A61: SANTO DOMINGO | B61: 5 | C61: 2 | D61: 40 | E61: 3 | F61: 60 | G61: 8 | H61: 3 | I61: 37.5 | J61: 5 | K61: 62.5 | L61: 32 | M61: 17 | N61: 53.125 | O61: 15 | P61: 46.875
A62: SANTA BÁRBARA | B62: 5 | C62: 1 | D62: 20 | E62: 4 | F62: 80 | G62: 6 | H62: 3 | I62: 50 | J62: 3 | K62: 50 | L62: 24 | M62: 10 | N62: 41.66666667 | O62: 14 | P62: 58.33333333
A63: SAN RAFAEL | B63: 7 | C63: 3 | D63: 42.85714286 | E63: 4 | F63: 57.14285714 | G63: 5 | H63: 3 | I63: 60 | J63: 2 | K63: 40 | L63: 20 | M63: 10 | N63: 50 | O63: 10 | P63: 50
A64: SAN ISIDRO | B64: 5 | C64: 2 | D64: 40 | E64: 3 | F64: 60 | G64: 4 | H64: 0 | I64: 0 | J64: 4 | K64: 100 | L64: 16 | M64: 6 | N64: 37.5 | O64: 10 | P64: 62.5
A65: BELÉN | B65: 5 | C65: 2 | D65: 40 | E65: 3 | F65: 60 | G65: 3 | H65: 2 | I65: 66.66666667 | J65: 1 | K65: 33.33333333 | L65: 12 | M65: 6 | N65: 50 | O65: 6 | P65: 50
A66: FLORES | B66: 5 | C66: 2 | D66: 40 | E66: 3 | F66: 60 | G66: 3 | H66: 1 | I66: 33.33333333 | J66: 2 | K66: 66.66666667 | L66: 12 | M66: 6 | N66: 50 | O66: 6 | P66: 50
A67: SAN PABLO | B67: 5 | C67: 2 | D67: 40 | E67: 3 | F67: 60 | G67: 2 | H67: 1 | I67: 50 | J67: 1 | K67: 50 | L67: 8 | M67: 5 | N67: 62.5 | O67: 3 | P67: 37.5
A68: SARAPIQUÍ | B68: 7 | C68: 3 | D68: 42.85714286 | E68: 4 | F68: 57.14285714 | G68: 5 | H68: 0 | I68: 0 | J68: 5 | K68: 100 | L68: 20 | M68: 8 | N68: 40 | O68: 12 | P68: 60
A69: GUANACASTE | B69: 61 | C69: 23 | D69: =+C69/$B69*100 -> 37.70491803 | E69: 38 | F69: =+E69/$B69*100 -> 62.29508197 | G69: 60 | H69: 16 | I69: 26.66666667 | J69: 44 | K69: 73.33333333 | L69: 240 | M69: 106 | N69: 44.16666667 | O69: 134 | P69: 55.83333333
A70: LIBERIA | B70: 7 | C70: 1 | D70: =+C70/$B70*100 -> 14.28571429 | E70: 6 | F70: =+E70/$B70*100 -> 85.71428571 | G70: 5 | H70: 1 | I70: 20 | J70: 4 | K70: =+J70/$G70*100 -> 80 | L70: 20 | M70: 11 | N70: 55 | O70: 9 | P70: 45
A71: NICOYA | B71: 7 | C71: 2 | D71: =+C71/$B71*100 -> 28.57142857 | E71: 5 | F71: =+E71/$B71*100 -> 71.42857143 | G71: 7 | H71: 1 | I71: 14.28571429 | J71: 6 | K71: 85.71428571 | L71: 28 | M71: 12 | N71: 42.85714286 | O71: 16 | P71: 57.14285714
A72: SANTA CRUZ | B72: 7 | C72: 3 | D72: 42.85714286 | E72: 4 | F72: 57.14285714 | G72: 9 | H72: 3 | I72: 33.33333333 | J72: 6 | K72: 66.66666667 | L72: 36 | M72: 17 | N72: 47.22222222 | O72: 19 | P72: 52.77777778
A73: BAGACES | B73: 5 | C73: 2 | D73: 40 | E73: 3 | F73: 60 | G73: 4 | H73: 2 | I73: 50 | J73: 2 | K73: 50 | L73: 16 | M73: 7 | N73: 43.75 | O73: 9 | P73: 56.25
A74: CARRILLO | B74: 5 | C74: 2 | D74: 40 | E74: 3 | F74: 60 | G74: 4 | H74: 2 | I74: 50 | J74: 2 | K74: 50 | L74: 16 | M74: 5 | N74: 31.25 | O74: 11 | P74: 68.75
A75: CAÑAS | B75: 5 | C75: 1 | D75: 20 | E75: 4 | F75: 80 | G75: 5 | H75: 0 | I75: 0 | J75: 5 | K75: 100 | L75: 20 | M75: 11 | N75: 55 | O75: 9 | P75: 45
A76: ABANGARES | B76: 5 | C76: 3 | D76: 60 | E76: 2 | F76: 40 | G76: 4 | H76: 0 | I76: 0 | J76: 4 | K76: 100 | L76: 16 | M76: 5 | N76: 31.25 | O76: 11 | P76: 68.75
A77: TILARÁN | B77: =+C77+E77 -> 5 | C77: 2 | D77: 40 | E77: 3 | F77: 60 | G77: =+H77+J77 -> 7 | H77: 1 | I77: 14.28571429 | J77: 6 | K77: 85.71428571 | L77: =+M77+O77 -> 28 | M77: 11 | N77: 39.28571429 | O77: 17 | P77: 60.71428571
A78: NANDAYURE | B78: 5 | C78: 3 | D78: 60 | E78: 2 | F78: 40 | G78: 6 | H78: 1 | I78: =+H78/$G78*100 -> 16.66666667 | J78: 5 | K78: =+J78/$G78*100 -> 83.33333333 | L78: 24 | M78: 8 | N78: =+M78/$L78*100 -> 33.33333333 | O78: 16 | P78: =+O78/$L78*100 -> 66.66666667
A79: LA CRUZ | B79: 5 | C79: 2 | D79: 40 | E79: 3 | F79: 60 | G79: 4 | H79: 3 | I79: 75 | J79: 1 | K79: 25 | L79: 16 | M79: 8 | N79: 50 | O79: 8 | P79: 50
A80: HOJANCHA | B80: 5 | C80: 2 | D80: 40 | E80: 3 | F80: 60 | G80: 5 | H80: 2 | I80: 40 | J80: 3 | K80: 60 | L80: 20 | M80: 11 | N80: 55 | O80: 9 | P80: 45
A81: PUNTARENAS | B81: 63 | C81: 27 | D81: =+C81/$B81*100 -> 42.85714286 | E81: 36 | F81: =+E81/$B81*100 -> 57.14285714 | G81: 59 | H81: 15 | I81: 25.42372881 | J81: 44 | K81: 74.57627119 | L81: 236 | M81: 112 | N81: 47.45762712 | O81: 124 | P81: 52.54237288
A82: PUNTARENAS | B82: 9 | C82: 3 | D82: =+C82/$B82*100 -> 33.33333333 | E82: 6 | F82: =+E82/$B82*100 -> 66.66666667 | G82: 15 | H82: 5 | I82: 33.33333333 | J82: 10 | K82: 66.66666667 | L82: 60 | M82: 32 | N82: 53.33333333 | O82: 28 | P82: 46.66666667
A83: ESPARZA | B83: 5 | C83: 2 | D83: =+C83/$B83*100 -> 40 | E83: 3 | F83: =+E83/$B83*100 -> 60 | G83: 6 | H83: 2 | I83: 33.33333333 | J83: 4 | K83: 66.66666667 | L83: 24 | M83: 10 | N83: 41.66666667 | O83: 14 | P83: 58.33333333
A84: BUENOS AIRES | B84: 7 | C84: 2 | D84: 28.57142857 | E84: 5 | F84: 71.42857143 | G84: 9 | H84: 0 | I84: 0 | J84: 9 | K84: 100 | L84: 36 | M84: 15 | N84: 41.66666667 | O84: 21 | P84: 58.33333333
A85: MONTES DE ORO | B85: 5 | C85: 2 | D85: 40 | E85: 3 | F85: 60 | G85: 3 | H85: 1 | I85: 33.33333333 | J85: 2 | K85: 66.66666667 | L85: 12 | M85: 6 | N85: 50 | O85: 6 | P85: 50
A86: OSA | B86: 5 | C86: 3 | D86: 60 | E86: 2 | F86: 40 | G86: 6 | H86: 1 | I86: 16.66666667 | J86: 5 | K86: 83.33333333 | L86: 24 | M86: 13 | N86: 54.16666667 | O86: 11 | P86: 45.83333333
A87: AGUIRRE | B87: 5 | C87: 2 | D87: 40 | E87: 3 | F87: 60 | G87: 3 | H87: 1 | I87: 33.33333333 | J87: 2 | K87: 66.66666667 | L87: 12 | M87: 5 | N87: 41.66666667 | O87: 7 | P87: 58.33333333
A88: GOLFITO | B88: 5 | C88: 2 | D88: 40 | E88: 3 | F88: 60 | G88: 4 | H88: 2 | I88: 50 | J88: 2 | K88: 50 | L88: 16 | M88: 9 | N88: 56.25 | O88: 7 | P88: 43.75
A89: COTO BRUS | B89: 5 | C89: 3 | D89: 60 | E89: 2 | F89: 40 | G89: 6 | H89: 2 | I89: 33.33333333 | J89: 4 | K89: 66.66666667 | L89: 24 | M89: 9 | N89: 37.5 | O89: 15 | P89: 62.5
A90: PARRITA | B90: 5 | C90: 2 | D90: 40 | E90: 3 | F90: 60 | G90: 1 | H90: 0 | I90: 0 | J90: 1 | K90: 100 | L90: 4 | M90: 3 | N90: 75 | O90: 1 | P90: 25
A91: CORREDORES | B91: 7 | C91: 4 | D91: 57.14285714 | E91: 3 | F91: 42.85714286 | G91: 4 | H91: 0 | I91: 0 | J91: 4 | K91: 100 | L91: 16 | M91: 7 | N91: 43.75 | O91: 9 | P91: 56.25
A92: GARABITO | B92: 5 | C92: 2 | D92: 40 | E92: 3 | F92: 60 | G92: 2 | H92: 1 | I92: 50 | J92: 1 | K92: 50 | L92: 8 | M92: 3 | N92: 37.5 | O92: 5 | P92: 62.5
A93: LIMÓN | B93: 40 | C93: 15 | D93: 37.5 | E93: 25 | F93: 62.5 | G93: 30 | H93: 15 | I93: 50 | J93: 15 | K93: 50 | L93: 120 | M93: 58 | N93: 48.33333333 | O93: 62 | P93: 51.66666667
A94: LIMÓN | B94: 7 | C94: 3 | D94: 42.85714286 | E94: 4 | F94: 57.14285714 | G94: 4 | H94: 3 | I94: 75 | J94: 1 | K94: 25 | L94: 16 | M94: 4 | N94: 25 | O94: 12 | P94: 75
A95: POCOCÍ | B95: 9 | C95: 1 | D95: 11.11111111 | E95: 8 | F95: 88.88888889 | G95: 7 | H95: 4 | I95: 57.14285714 | J95: 3 | K95: 42.85714286 | L95: 28 | M95: 13 | N95: 46.42857143 | O95: 15 | P95: 53.57142857
A96: SIQUIRRES | B96: 7 | C96: 4 | D96: 57.14285714 | E96: 3 | F96: 42.85714286 | G96: 7 | H96: 2 | I96: 28.57142857 | J96: 5 | K96: 71.42857143 | L96: 28 | M96: 17 | N96: 60.71428571 | O96: 11 | P96: 39.28571429
A97: TALAMANCA | B97: 5 | C97: 2 | D97: 40 | E97: 3 | F97: 60 | G97: 4 | H97: 2 | I97: 50 | J97: 2 | K97: 50 | L97: 16 | M97: 7 | N97: 43.75 | O97: 9 | P97: 56.25
A98: MATINA | B98: 5 | C98: 2 | D98: 40 | E98: 3 | F98: 60 | G98: 3 | H98: 2 | I98: 66.66666667 | J98: 1 | K98: 33.33333333 | L98: 12 | M98: 7 | N98: 58.33333333 | O98: 5 | P98: 41.66666667
A99: GUÁCIMO | B99: 7 | C99: 3 | D99: 42.85714286 | E99: 4 | F99: 57.14285714 | G99: 5 | H99: 2 | I99: 40 | J99: 3 | K99: 60 | L99: 20 | M99: 10 | N99: 50 | O99: 10 | P99: 50
A102: 1/ Incluye Concejalías de Distrito y Concejalías Municipales de Distrito.
A103: Fuente: Tribunal Supremo de Elecciones.

Sheet G1.3
A3: GRÁFICO 3 COSTA RICA: DISTRIBUCIÓN DE REGIDURÍAS EN PROPIEDAD, POR SEXO Y GRUPOS DE EDAD. ELECCIONES MUNICIPALES, 7 DE FEBRERO 2020
A6: HOMBRES | B6: MUJERES
A8: 5 | B8: -3 | C8: 18 - 24 | D8: =CONCATENATE(C8," ") -> 18 - 24
A9: 11 | B9: -8 | C9: 25 - 29 | D9: 25 - 29
A10: 27 | B10: -22 | C10: 30 - 34 | D10: 30 - 34
A11: 34 | B11: -28 | C11: 35 - 39 | D11: 35 - 39
A12: 37 | B12: -39 | C12: 40 - 44 | D12: 40 - 44
A13: 38 | B13: -23 | C13: 45 - 49 | D13: 45 - 49
A14: 46 | B14: -28 | C14: 50 - 54 | D14: 50 - 54
A15: 47 | B15: -25 | C15: 55 - 59 | D15: 55 - 59
A16: 25 | B16: -17 | C16: 60 - 64 | D16: 60 - 64
A17: 24 | B17: -12 | C17: 65 - 69 | D17: 65 - 69
A18: 7 | B18: -2 | C18: 70 Y MÁS | D18: 70 Y MÁS
A20: =SUM(A8:A19) -> 301 | B20: =SUM(B8:B19) -> -207
L21: =CONCATENATE(K21," ") -> 
A28: FUENTE: Tribunal Supremo de Elecciones.

Sheet G1.4
A3: GRÁFICO 4 COSTA RICA: DISTRIBUCIÓN DE SINDICATURAS EN PROPIEDAD, POR SEXO Y GRUPOS DE EDAD. ELECCIONES MUNICIPALES, 7 DE FEBRERO 2020
A5: HOMBRES | B5: MUJERES
A7: 9 | B7: -3 | C7: 18 - 24 | D7: =CONCATENATE(C7," ") -> 18 - 24
A8: 13 | B8: -8 | C8: 25 - 29 | D8: 25 - 29
A9: 25 | B9: -22 | C9: 30 - 34 | D9: 30 - 34
A10: 24 | B10: -28 | C10: 35 - 39 | D10: 35 - 39
A11: 32 | B11: -39 | C11: 40 - 44 | D11: 40 - 44
A12: 48 | B12: -23 | C12: 45 - 49 | D12: 45 - 49
A13: 48 | B13: -28 | C13: 50 - 54 | D13: 50 - 54
A14: 40 | B14: -25 | C14: 55 - 59 | D14: 55 - 59
A15: 26 | B15: -17 | C15: 60 - 64 | D15: 60 - 64
A16: 25 | B16: -12 | C16: 65 - 69 | D16: 65 - 69
A17: 25 | B17: -2 | C17: 70 Y MÁS | D17: 70 Y MÁS
A19: =SUM(A7:A18) -> 315 | B19: =SUM(B7:B18) -> -207
L20: =CONCATENATE(K20," ") -> 
A27: FUENTE: Tribunal Supremo de Elecciones.

Sheet G1.5
A3: GRÁFICO 5 COSTA RICA: DISTRIBUCIÓN DE CONCEJALÍAS EN PROPIEDAD 1/ POR SEXO Y GRUPOS DE EDAD, ELECCIONES MUNICIPALES, 7 DE FEBRERO 2020
A6: HOMBRES | B6: MUJERES
A8: 58 | B8: -86 | C8: 18 - 24 | D8: =CONCATENATE(C8," ") -> 18 - 24
A9: 73 | B9: -97 | C9: 25 - 29 | D9: 25 - 29
A10: 97 | B10: -118 | C10: 30 - 34 | D10: 30 - 34
A11: 106 | B11: -112 | C11: 35 - 39 | D11: 35 - 39
A12: 95 | B12: -127 | C12: 40 - 44 | D12: 40 - 44
A13: 111 | B13: -109 | C13: 45 - 49 | D13: 45 - 49
A14: 127 | B14: -93 | C14: 50 - 54 | D14: 50 - 54
A15: 130 | B15: -75 | C15: 55 - 59 | D15: 55 - 59
A16: 100 | B16: -66 | C16: 60 - 64 | D16: 60 - 64
A17: 69 | B17: -23 | C17: 65 - 69 | D17: 65 - 69
A18: 51 | B18: -21 | C18: 70 Y MÁS | D18: 70 Y MÁS
A20: =SUM(A8:A19) -> 1017 | B20: =SUM(B8:B19) -> -927
A29: 1/ Incluye Concejalías de Distrito y Concejalías Municipales de Distrito.
A30: FUENTE: Tribunal Supremo de Elecciones.

Sheet 2.1
A2: CUADRO 2.1 COSTA RICA: JUNTAS, ELECTORADO, PARTICIPACIÓN, VOTOS POR PARTIDO, NULOS, BLANCOS Y ABSTENCIONISMO
A3: PARA ALCALDÍAS Y VICEALCALDÍAS, POR PROVINCIA, ELECCIONES MUNICIPALES FEBRERO 2020
A5: JUNTAS, ELECTORADO, PARTICIPACIÓN, VOTOS POR PARTIDO, NULOS, BLANCOS Y ABSTENCIONISMO | B5: TOTAL | C5: PROVINCIA
C6: SAN JOSÉ | D6: ALAJUELA | E6: CARTAGO | F6: HEREDIA | G6: GUANACASTE | H6: PUNTARENAS | I6: LIMÓN
A8: JUNTAS | B8: 5755 | C8: 1769 | D8: 1137 | E8: 646 | F8: 521 | G8: 529 | H8: 662 | I8: 491
A9: ELECTORADO | B9: 3398338 | C9: 1139637 | D9: 657581 | E9: 399445 | F9: 344730 | G9: 250563 | H9: 322563 | I9: 283819
A10: VOTOS RECIBIDOS | B10: 1232164 | C10: 359635 | D10: 254343 | E10: 154657 | F10: 116299 | G10: 110732 | H10: 134456 | I10: 102042
A11: PORCENTAJE DE PARTICIPACIÓN | B11: =+B10/B9*100 -> 36.25784133 | C11: =+C10/C9*100 -> 31.55697823 | D11: 38.67858104 | E11: 38.71797119 | F11: 33.73625736 | G11: 44.19327674 | H11: 41.6836401 | I11: 35.95319552
A12: VOTOS POR PARTIDO | B12: 1207814 | C12: 353910 | D12: 249748 | E12: 151423 | F12: 114497 | G12: 108069 | H12: 131199 | I12: 98968
A13: ACCESIBILIDAD SIN EXCLUSIÓN | B13: 4880 | C13: 0 | D13: 0 | E13: 4168 | F13: 0 | G13: 0 | H13: 45 | I13: 667
A14: ACCIÓN CANTONAL SIQUIRRES INDEPENDIENTE | B14: 345 | C14: 0 | D14: 0 | E14: 0 | F14: 0 | G14: 0 | H14: 0 | I14: 345
A15: ACCIÓN CIUDADANA | B15: 83123 | C15: 23146 | D15: 16014 | E15: 22087 | F15: 8336 | G15: 7172 | H15: 4513 | I15: 1855
A16: ACCIÓN NARANJEÑA | B16: 308 | C16: 0 | D16: 308 | E16: 0 | F16: 0 | G16: 0 | H16: 0 | I16: 0
A17: ACTUEMOS YA | B17: 6738 | C17: 0 | D17: 0 | E17: 6738 | F17: 0 | G17: 0 | H17: 0 | I17: 0
A18: ACUERDO DE ALIANZA DE QUEPOS | B18: 337 | C18: 0 | D18: 0 | E18: 0 | F18: 0 | G18: 0 | H18: 337 | I18: 0
A19: ALIANZA DEMÓCRATA CRISTIANA | B19: 34903 | C19: 1815 | D19: 806 | E19: 22086 | F19: 1206 | G19: 0 | H19: 2552 | I19: 6438
A20: ALIANZA POR PALMARES | B20: 1652 | C20: 0 | D20: 1652 | E20: 0 | F20: 0 | G20: 0 | H20: 0 | I20: 0
A21: ALIANZA POR SAN JOSÉ | B21: 4795 | C21: 4795 | D21: 0 | E21: 0 | F21: 0 | G21: 0 | H21: 0 | I21: 0
A22: ALIANZA POR SARCHÍ | B22: 1769 | C22: 0 | D22: 1769 | E22: 0 | F22: 0 | G22: 0 | H22: 0 | I22: 0
A23: ALIANZA SOCIAL POR LA UNIÓN | B23: 1827 | C23: 0 | D23: 0 | E23: 1827 | F23: 0 | G23: 0 | H23: 0 | I23: 0
A24: ANTICORRUPCIÓN COSTARRICENSE | B24: 563 | C24: 563 | D24: 0 | E24: 0 | F24: 0 | G24: 0 | H24: 0 | I24: 0
A25: AUTÉNTICO LABRADOR DE CORONADO | B25: 2905 | C25: 2905 | D25: 0 | E25: 0 | F25: 0 | G25: 0 | H25: 0 | I25: 0
A26: AUTÉNTICO LIMONENSE | B26: 5653 | C26: 0 | D26: 0 | E26: 0 | F26: 0 | G26: 0 | H26: 0 | I26: 5653
A27: AUTÉNTICO NICOYANO | B27: 1974 | C27: 0 | D27: 0 | E27: 0 | F27: 0 | G27: 1974 | H27: 0 | I27: 0
A28: AUTÉNTICO SANTACRUCEÑO | B28: 5636 | C28: 0 | D28: 0 | E28: 0 | F28: 0 | G28: 5636 | H28: 0 | I28: 0
A29: AUTÉNTICO SIQUIRREÑO | B29: 849 | C29: 0 | D29: 0 | E29: 0 | F29: 0 | G29: 0 | H29: 0 | I29: 849
A30: AVANCE ISIDREÑO | B30: 483 | C30: 0 | D30: 0 | E30: 0 | F30: 483 | G30: 0 | H30: 0 | I30: 0
A31: AVANCE MONTES DE OCA | B31: 1022 | C31: 1022 | D31: 0 | E31: 0 | F31: 0 | G31: 0 | H31: 0 | I31: 0
A32: AVANTE POCOCÍ | B32: 633 | C32: 0 | D32: 0 | E32: 0 | F32: 0 | G32: 0 | H32: 0 | I32: 633
A33: BARVA UNIDA | B33: 427 | C33: 0 | D33: 0 | E33: 0 | F33: 427 | G33: 0 | H33: 0 | I33: 0
A34: CANTONAL DE CARRILLO | B34: 2082 | C34: 0 | D34: 0 | E34: 0 | F34: 0 | G34: 2082 | H34: 0 | I34: 0
A35: COALICIÓN ALIANZA POR NICOYA | B35: 1881 | C35: 0 | D35: 0 | E35: 0 | F35: 0 | G35: 1881 | H35: 0 | I35: 0
A36: COALICIÓN ASERRÍ DE TODOS | B36: 1285 | C36: 1285 | D36: 0 | E36: 0 | F36: 0 | G36: 0 | H36: 0 | I36: 0
A37: COALICIÓN GENTE MONTES DE OCA | B37: 4508 | C37: 4508 | D37: 0 | E37: 0 | F37: 0 | G37: 0 | H37: 0 | I37: 0
A38: COALICIÓN JUNTOS | B38: 4159 | C38: 4159 | D38: 0 | E38: 0 | F38: 0 | G38: 0 | H38: 0 | I38: 0
A39: COALICIÓN UNIDAD POR FLORES | B39: 2051 | C39: 0 | D39: 0 | E39: 0 | F39: 2051 | G39: 0 | H39: 0 | I39: 0
A40: COALICIÓN UNIÓN BELEMITA | B40: 2123 | C40: 0 | D40: 0 | E40: 0 | F40: 2123 | G40: 0 | H40: 0 | I40: 0
A41: COMUNAL UNIDO | B41: 8604 | C41: 8604 | D41: 0 | E41: 0 | F41: 0 | G41: 0 | H41: 0 | I41: 0
A42: CURRIDABAT SIGLO XXI | B42: 5341 | C42: 5341 | D42: 0 | E42: 0 | F42: 0 | G42: 0 | H42: 0 | I42: 0
A43: DEL SOL | B43: 3122 | C43: 3122 | D43: 0 | E43: 0 | F43: 0 | G43: 0 | H43: 0 | I43: 0
A44: DESARROLLO TALAMANQUEÑO | B44: 776 | C44: 0 | D44: 0 | E44: 0 | F44: 0 | G44: 0 | H44: 0 | I44: 776
A45: DESPERTAR ALAJUELENSE | B45: 5921 | C45: 0 | D45: 5921 | E45: 0 | F45: 0 | G45: 0 | H45: 0 | I45: 0
A46: ECOLÓGICO COMUNAL COSTARRICENSE | B46: 1983 | C46: 1983 | D46: 0 | E46: 0 | F46: 0 | G46: 0 | H46: 0 | I46: 0
A47: FRENTE AMPLIO | B47: 24974 | C47: 8805 | D47: 4014 | E47: 3986 | F47: 4940 | G47: 813 | H47: 146 | I47: 2270
A48: FUERZA SARCHISEÑA | B48: 391 | C48: 0 | D48: 391 | E48: 0 | F48: 0 | G48: 0 | H48: 0 | I48: 0
A49: GOICOECHEA EN ACCIÓN | B49: 467 | C49: 467 | D49: 0 | E49: 0 | F49: 0 | G49: 0 | H49: 0 | I49: 0
A50: GUANACASTE PRIMERO | B50: 936 | C50: 0 | D50: 0 | E50: 0 | F50: 0 | G50: 936 | H50: 0 | I50: 0
A51: INNOVACIÓN CANTONAL | B51: 480 | C51: 480 | D51: 0 | E51: 0 | F51: 0 | G51: 0 | H51: 0 | I51: 0
A52: INTEGRACIÓN NACIONAL | B52: 28379 | C52: 3889 | D52: 2691 | E52: 6153 | F52: 487 | G52: 5844 | H52: 7356 | I52: 1959
A53: IZQUIERDA COSTARRICENSE | B53: 343 | C53: 0 | D53: 0 | E53: 0 | F53: 0 | G53: 0 | H53: 0 | I53: 343
A54: JUSTICIA SOCIAL | B54: 1190 | C54: 0 | D54: 0 | E54: 0 | F54: 0 | G54: 0 | H54: 1190 | I54: 0
A55: JUSTICIA SOCIAL COSTARRICENSE | B55: 5769 | C55: 0 | D55: 0 | E55: 0 | F55: 0 | G55: 0 | H55: 0 | I55: 5769
A56: LA FUERZA DE LA UNIÓN | B56: 185 | C56: 0 | D56: 0 | E56: 185 | F56: 0 | G56: 0 | H56: 0 | I56: 0
A57: LA GRAN NICOYA | B57: 4968 | C57: 0 | D57: 0 | E57: 0 | F57: 0 | G57: 4968 | H57: 0 | I57: 0
A58: LIBERACIÓN NACIONAL | B58: 374990 | C58: 103339 | D58: 91960 | E58: 32500 | F58: 39656 | G58: 33069 | H58: 50391 | I58: 24075
A59: LIBERAL PROGRESISTA | B59: 4209 | C59: 1043 | D59: 1879 | E59: 1287 | F59: 0 | G59: 0 | H59: 0 | I59: 0
A60: MOVIMIENTO AVANCE SANTO DOMINGO | B60: 4046 | C60: 0 | D60: 0 | E60: 0 | F60: 4046 | G60: 0 | H60: 0 | I60: 0
A61: NANDAYURE PROGRESA | B61: 1802 | C61: 0 | D61: 0 | E61: 0 | F61: 0 | G61: 1802 | H61: 0 | I61: 0
A62: NUESTRO PUEBLO | B62: 13430 | C62: 13430 | D62: 0 | E62: 0 | F62: 0 | G62: 0 | H62: 0 | I62: 0
A63: NUEVA GENERACIÓN | B63: 55972 | C63: 26795 | D63: 8845 | E63: 6745 | F63: 2906 | G63: 3301 | H63: 2495 | I63: 4885
A64: NUEVA MAYORÍA GRIEGA | B64: 3738 | C64: 0 | D64: 3738 | E64: 0 | F64: 0 | G64: 0 | H64: 0 | I64: 0
A65: NUEVA REPUBLICA | B65: 65213 | C65: 18250 | D65: 15074 | E65: 3420 | F65: 8063 | G65: 4095 | H65: 10883 | I65: 5428
A66: PALMARES PRIMERO | B66: 3743 | C66: 0 | D66: 3743 | E66: 0 | F66: 0 | G66: 0 | H66: 0 | I66: 0
A67: PROGRESER | B67: 6200 | C67: 0 | D67: 6200 | E67: 0 | F67: 0 | G67: 0 | H67: 0 | I67: 0
A68: PUEBLO GARABITO | B68: 1409 | C68: 0 | D68: 0 | E68: 0 | F68: 0 | G68: 0 | H68: 1409 | I68: 0
A69: PURISCAL EN MARCHA | B69: 643 | C69: 643 | D69: 0 | E69: 0 | F69: 0 | G69: 0 | H69: 0 | I69: 0
A70: RECUPERANDO VALORES | B70: 7305 | C70: 0 | D70: 0 | E70: 0 | F70: 0 | G70: 0 | H70: 0 | I70: 7305
A71: RENOVACIÓN COSTARRICENSE | B71: 3386 | C71: 1434 | D71: 0 | E71: 0 | F71: 922 | G71: 254 | H71: 289 | I71: 487
A72: REPUBLICANO SOCIAL CRISTIANO | B72: 50689 | C72: 11894 | D72: 14687 | E72: 3007 | F72: 6862 | G72: 2774 | H72: 9138 | I72: 2327
A73: RESCATE CANTONAL LA UNIÓN | B73: 2002 | C73: 0 | D73: 0 | E73: 2002 | F73: 0 | G73: 0 | H73: 0 | I73: 0
A74: RESTAURACIÓN NACIONAL | B74: 47617 | C74: 13034 | D74: 4655 | E74: 7554 | F74: 1866 | G74: 4806 | H74: 7485 | I74: 8217
A75: RESTAURACIÓN PARRITEÑA | B75: 308 | C75: 0 | D75: 0 | E75: 0 | F75: 0 | G75: 0 | H75: 308 | I75: 0
A76: SENTIR HEREDIA | B76: 2224 | C76: 0 | D76: 0 | E76: 0 | F76: 2224 | G76: 0 | H76: 0 | I76: 0
A77: SOMOS MORAVIA | B77: 6862 | C77: 6862 | D77: 0 | E77: 0 | F77: 0 | G77: 0 | H77: 0 | I77: 0
A78: SOMOS SARCHÍ | B78: 1747 | C78: 0 | D78: 1747 | E78: 0 | F78: 0 | G78: 0 | H78: 0 | I78: 0
A79: TARRAZÚ PRIMERO | B79: 178 | C79: 178 | D79: 0 | E79: 0 | F79: 0 | G79: 0 | H79: 0 | I79: 0
A80: TERRA ESCAZÚ | B80: 2218 | C80: 2218 | D80: 0 | E80: 0 | F80: 0 | G80: 0 | H80: 0 | I80: 0
A81: TODOS POR GOICOECHEA | B81: 2164 | C81: 2164 | D81: 0 | E81: 0 | F81: 0 | G81: 0 | H81: 0 | I81: 0
A82: TURRIALBA PRIMERO | B82: 2427 | C82: 0 | D82: 0 | E82: 2427 | F82: 0 | G82: 0 | H82: 0 | I82: 0
A83: ÚNICO ABANGAREÑO | B83: 462 | C83: 0 | D83: 0 | E83: 0 | F83: 0 | G83: 462 | H83: 0 | I83: 0
A84: UNIDAD SOCIAL CRISTIANA | B84: 212659 | C84: 58260 | D84: 56804 | E84: 15480 | F84: 24243 | G84: 18351 | H84: 24426 | I84: 15095
A85: UNIDOS PARA EL DESARROLLO | B85: 2926 | C85: 2926 | D85: 0 | E85: 0 | F85: 0 | G85: 0 | H85: 0 | I85: 0
A86: UNIDOS PODEMOS | B86: 31166 | C86: 7624 | D86: 3457 | E86: 6680 | F86: 2336 | G86: 4491 | H86: 3485 | I86: 3093
A87: UNIDOS POR ESCAZÚ | B87: 1084 | C87: 1084 | D87: 0 | E87: 0 | F87: 0 | G87: 0 | H87: 0 | I87: 0
A88: UNIÓN ATENIENSE | B88: 1772 | C88: 0 | D88: 1772 | E88: 0 | F88: 0 | G88: 0 | H88: 0 | I88: 0
A89: UNIÓN DE PUNTARENENSES EMPRENDEDORES | B89: 4751 | C89: 0 | D89: 0 | E89: 0 | F89: 0 | G89: 0 | H89: 4751 | I89: 0
A90: UNIÓN DOMINGUEÑA | B90: 1320 | C90: 0 | D90: 0 | E90: 0 | F90: 1320 | G90: 0 | H90: 0 | I90: 0
A91: UNIÓN GRIEGA | B91: 1621 | C91: 0 | D91: 1621 | E91: 0 | F91: 0 | G91: 0 | H91: 0 | I91: 0
A92: UNIÓN GUANACASTECA | B92: 3358 | C92: 0 | D92: 0 | E92: 0 | F92: 0 | G92: 3358 | H92: 0 | I92: 0
A93: UNIÓN GUARQUEÑO | B93: 1659 | C93: 0 | D93: 0 | E93: 1659 | F93: 0 | G93: 0 | H93: 0 | I93: 0
A94: VERDE ECOLOGISTA | B94: 1432 | C94: 0 | D94: 0 | E94: 1432 | F94: 0 | G94: 0 | H94: 0 | I94: 0
A95: YO SOY EL CAMBIO | B95: 499 | C95: 0 | D95: 0 | E95: 0 | F95: 0 | G95: 0 | H95: 0 | I95: 499
A96: YUNTA PROGRESISTA ESCAZUCEÑA | B96: 5843 | C96: 5843 | D96: 0 | E96: 0 | F96: 0 | G96: 0 | H96: 0 | I96: 0
A97: VOTOS NULOS | B97: 17123 | C97: 4022 | D97: 3214 | E97: 2259 | F97: 1306 | G97: 1910 | H97: 2353 | I97: 2059
A98: VOTOS BLANCOS | B98: 7227 | C98: 1703 | D98: 1381 | E98: 975 | F98: 496 | G98: 753 | H98: 904 | I98: 1015
A99: ABSTENCIONISMO | B99: 2166174 | C99: 780002 | D99: 403238 | E99: 244788 | F99: 228431 | G99: 139831 | H99: 188107 | I99: 181777
A100: PORCENTAJE DE ABSTENCIONISMO | B100: =+B99/B9*100 -> 63.74215867 | C100: =+C99/C9*100 -> 68.44302177 | D100: 61.32141896 | E100: 61.28202881 | F100: 66.26374264 | G100: 55.80672326 | H100: 58.3163599 | I100: 64.04680448
A103: Fuente: Tribunal Supremo de Elecciones.

Sheet 2.2
A2: CUADRO 2.2 PROVINCIA SAN JOSÉ: JUNTAS, ELECTORADO, PARTICIPACIÓN, VOTOS POR PARTIDO, NULOS, BLANCOS Y ABSTENCIONISMO PARA ALCALDÍAS
A3: POR CANTÓN, ELECCIONES MUNICIPALES FEBRERO 2020
A5: JUNTAS, ELECTORADO, PARTICIPACIÓN, VOTOS POR PARTIDO, NULOS, BLANCOS Y ABSTENCIONISMO | B5: TOTAL | C5: CANTÓN
C6: SAN JOSÉ | D6: ESCAZÚ | E6: DESAMPARADOS | F6: PURISCAL | G6: TARRAZÚ | H6: ASERRÍ | I6: MORA | J6: GOICOECHEA | K6: SANTA ANA | L6: ALAJUELITA | M6: VÁZQUEZ DE CORONADO | N6: ACOSTA | O6: TIBÁS | P6: MORAVIA | Q6: MONTES DE OCA | R6: TURRUBARES | S6: DOTA | T6: CURRIDABAT | U6: PÉREZ ZELEDÓN | V6: LEÓN CORTÉS CASTRO
A8: JUNTAS | B8: 1769 | C8: 337 | D8: 68 | E8: 241 | F8: 63 | G8: 26 | H8: 70 | I8: 41 | J8: 128 | K8: 54 | L8: 73 | M8: 78 | N8: 40 | O8: 79 | P8: 64 | Q8: 61 | R8: 15 | S8: 13 | T8: 72 | U8: 222 | V8: 24
A9: ELECTORADO | B9: 1139637 | C9: 237239 | D9: 48909 | E9: 163719 | F9: 29170 | G9: 12455 | H9: 43971 | I9: 22339 | J9: 91511 | K9: 37125 | L9: 51812 | M9: 55001 | N9: 17156 | O9: 56487 | P9: 45154 | Q9: 43075 | R9: 4835 | S9: 5674 | T9: 50222 | U9: 114455 | V9: 9328
A10: VOTOS RECIBIDOS | B10: 359635 | C10: 60045 | D10: 20621 | E10: 44772 | F10: 12639 | G10: 5423 | H10: 13027 | I10: 9160 | J10: 24697 | K10: 15909 | L10: 16643 | M10: 16661 | N10: 8053 | O10: 16236 | P10: 14388 | Q10: 13349 | R10: 3335 | S10: 3117 | T10: 14838 | U10: 42821 | V10: 3901
A11: PORCENTAJE DE PARTICIPACIÓN | B11: =+B10/B9*100 -> 31.55697823 | C11: =+C10/C9*100 -> 25.30991953 | D11: 42.16197428 | E11: 27.3468565 | F11: 43.32876243 | G11: 43.54074669 | H11: 29.62634464 | I11: 41.00452124 | J11: 26.98801237 | K11: 42.85252525 | L11: 32.12190226 | M11: 30.29217651 | N11: 46.93984612 | O11: 28.7428966 | P11: 31.86428666 | Q11: 30.99013349 | R11: 68.9762151 | S11: 54.93479027 | T11: 29.54482099 | U11: 37.41295706 | V11: 41.8203259
A12: VOTOS POR PARTIDO | B12: 353910 | C12: 59177 | D12: 20353 | E12: 44105 | F12: 12329 | G12: 5333 | H12: 12742 | I12: 8982 | J12: 24236 | K12: 15782 | L12: 16397 | M12: 16500 | N12: 7887 | O12: 16039 | P12: 14240 | Q12: 13195 | R12: 3264 | S12: 3055 | T12: 14627 | U12: 41962 | V12: 3705
A13: ACCIÓN CIUDADANA | B13: 23146 | C13: 8580 | D13: 0 | E13: 1147 | F13: 1671 | G13: 0 | H13: 0 | I13: 0 | J13: 3291 | K13: 0 | L13: 0 | M13: 0 | N13: 5768 | O13: 1321 | P13: 881 | Q13: 0 | R13: 0 | S13: 0 | T13: 0 | U13: 487 | V13: 0
A14: ALIANZA DEMÓCRATA CRISTIANA | B14: 1815 | C14: 980 | D14: 0 | E14: 0 | F14: 0 | G14: 0 | H14: 0 | I14: 0 | J14: 509 | K14: 326 | L14: 0 | M14: 0 | N14: 0 | O14: 0 | P14: 0 | Q14: 0 | R14: 0 | S14: 0 | T14: 0 | U14: 0 | V14: 0
A15: ALIANZA POR SAN JOSÉ | B15: 4795 | C15: 4795 | D15: 0 | E15: 0 | F15: 0 | G15: 0 | H15: 0 | I15: 0 | J15: 0 | K15: 0 | L15: 0 | M15: 0 | N15: 0 | O15: 0 | P15: 0 | Q15: 0 | R15: 0 | S15: 0 | T15: 0 | U15: 0 | V15: 0
A16: ANTICORRUPCIÓN COSTARRICENSE | B16: 563 | C16: 563 | D16: 0 | E16: 0 | F16: 0 | G16: 0 | H16: 0 | I16: 0 | J16: 0 | K16: 0 | L16: 0 | M16: 0 | N16: 0 | O16: 0 | P16: 0 | Q16: 0 | R16: 0 | S16: 0 | T16: 0 | U16: 0 | V16: 0
A17: AUTÉNTICO LABRADOR DE CORONADO | B17: 2905 | C17: 0 | D17: 0 | E17: 0 | F17: 0 | G17: 0 | H17: 0 | I17: 0 | J17: 0 | K17: 0 | L17: 0 | M17: 2905 | N17: 0 | O17: 0 | P17: 0 | Q17: 0 | R17: 0 | S17: 0 | T17: 0 | U17: 0 | V17: 0
A18: AVANCE MONTES DE OCA | B18: 1022 | C18: 0 | D18: 0 | E18: 0 | F18: 0 | G18: 0 | H18: 0 | I18: 0 | J18: 0 | K18: 0 | L18: 0 | M18: 0 | N18: 0 | O18: 0 | P18: 0 | Q18: 1022 | R18: 0 | S18: 0 | T18: 0 | U18: 0 | V18: 0
A19: COALICIÓN ASERRÍ DE TODOS | B19: 1285 | C19: 0 | D19: 0 | E19: 0 | F19: 0 | G19: 0 | H19: 1285 | I19: 0 | J19: 0 | K19: 0 | L19: 0 | M19: 0 | N19: 0 | O19: 0 | P19: 0 | Q19: 0 | R19: 0 | S19: 0 | T19: 0 | U19: 0 | V19: 0
A20: COALICIÓN GENTE MONTES DE OCA | B20: 4508 | C20: 0 | D20: 0 | E20: 0 | F20: 0 | G20: 0 | H20: 0 | I20: 0 | J20: 0 | K20: 0 | L20: 0 | M20: 0 | N20: 0 | O20: 0 | P20: 0 | Q20: 4508 | R20: 0 | S20: 0 | T20: 0 | U20: 0 | V20: 0
A21: COALICIÓN JUNTOS | B21: 4159 | C21: 4159 | D21: 0 | E21: 0 | F21: 0 | G21: 0 | H21: 0 | I21: 0 | J21: 0 | K21: 0 | L21: 0 | M21: 0 | N21: 0 | O21: 0 | P21: 0 | Q21: 0 | R21: 0 | S21: 0 | T21: 0 | U21: 0 | V21: 0
A22: COMUNAL UNIDO | B22: 8604 | C22: 773 | D22: 0 | E22: 303 | F22: 2154 | G22: 0 | H22: 0 | I22: 1180 | J22: 377 | K22: 250 | L22: 411 | M22: 0 | N22: 0 | O22: 0 | P22: 0 | Q22: 0 | R22: 2362 | S22: 0 | T22: 794 | U22: 0 | V22: 0
A23: CURRIDABAT SIGLO XXI | B23: 5341 | C23: 0 | D23: 0 | E23: 0 | F23: 0 | G23: 0 | H23: 0 | I23: 0 | J23: 0 | K23: 0 | L23: 0 | M23: 0 | N23: 0 | O23: 0 | P23: 0 | Q23: 0 | R23: 0 | S23: 0 | T23: 5341 | U23: 0 | V23: 0
A24: DEL SOL | B24: 3122 | C24: 0 | D24: 0 | E24: 0 | F24: 0 | G24: 0 | H24: 0 | I24: 0 | J24: 0 | K24: 3122 | L24: 0 | M24: 0 | N24: 0 | O24: 0 | P24: 0 | Q24: 0 | R24: 0 | S24: 0 | T24: 0 | U24: 0 | V24: 0
A25: ECOLÓGICO COMUNAL COSTARRICENSE | B25: 1983 | C25: 0 | D25: 0 | E25: 1983 | F25: 0 | G25: 0 | H25: 0 | I25: 0 | J25: 0 | K25: 0 | L25: 0 | M25: 0 | N25: 0 | O25: 0 | P25: 0 | Q25: 0 | R25: 0 | S25: 0 | T25: 0 | U25: 0 | V25: 0
A26: FRENTE AMPLIO | B26: 8805 | C26: 0 | D26: 0 | E26: 1348 | F26: 0 | G26: 187 | H26: 812 | I26: 87 | J26: 877 | K26: 0 | L26: 0 | M26: 614 | N26: 0 | O26: 0 | P26: 582 | Q26: 1207 | R26: 0 | S26: 0 | T26: 0 | U26: 3091 | V26: 0
A27: GOICOECHEA EN ACCIÓN | B27: 467 | C27: 0 | D27: 0 | E27: 0 | F27: 0 | G27: 0 | H27: 0 | I27: 0 | J27: 467 | K27: 0 | L27: 0 | M27: 0 | N27: 0 | O27: 0 | P27: 0 | Q27: 0 | R27: 0 | S27: 0 | T27: 0 | U27: 0 | V27: 0
A28: INNOVACIÓN CANTONAL | B28: 480 | C28: 480 | D28: 0 | E28: 0 | F28: 0 | G28: 0 | H28: 0 | I28: 0 | J28: 0 | K28: 0 | L28: 0 | M28: 0 | N28: 0 | O28: 0 | P28: 0 | Q28: 0 | R28: 0 | S28: 0 | T28: 0 | U28: 0 | V28: 0
A29: INTEGRACIÓN NACIONAL | B29: 3889 | C29: 1506 | D29: 0 | E29: 378 | F29: 348 | G29: 0 | H29: 0 | I29: 0 | J29: 952 | K29: 0 | L29: 340 | M29: 365 | N29: 0 | O29: 0 | P29: 0 | Q29: 0 | R29: 0 | S29: 0 | T29: 0 | U29: 0 | V29: 0
A30: LIBERACIÓN NACIONAL | B30: 103339 | C30: 22301 | D30: 1114 | E30: 21298 | F30: 3552 | G30: 407 | H30: 6487 | I30: 499 | J30: 4987 | K30: 5454 | L30: 731 | M30: 2730 | N30: 1893 | O30: 10825 | P30: 2451 | Q30: 2137 | R30: 859 | S30: 2160 | T30: 2842 | U30: 7347 | V30: 3265
A31: LIBERAL PROGRESISTA | B31: 1043 | C31: 0 | D31: 0 | E31: 207 | F31: 0 | G31: 0 | H31: 0 | I31: 0 | J31: 255 | K31: 402 | L31: 179 | M31: 0 | N31: 0 | O31: 0 | P31: 0 | Q31: 0 | R31: 0 | S31: 0 | T31: 0 | U31: 0 | V31: 0
A32: NUESTRO PUEBLO | B32: 13430 | C32: 1135 | D32: 220 | E32: 7198 | F32: 0 | G32: 0 | H32: 627 | I32: 111 | J32: 401 | K32: 197 | L32: 0 | M32: 0 | N32: 0 | O32: 908 | P32: 0 | Q32: 407 | R32: 0 | S32: 0 | T32: 341 | U32: 1885 | V32: 0
A33: NUEVA GENERACIÓN | B33: 26795 | C33: 0 | D33: 8309 | E33: 656 | F33: 0 | G33: 895 | H33: 1093 | I33: 3589 | J33: 1459 | K33: 0 | L33: 9444 | M33: 0 | N33: 0 | O33: 0 | P33: 1296 | Q33: 0 | R33: 0 | S33: 0 | T33: 54 | U33: 0 | V33: 0
A34: NUEVA REPUBLICA | B34: 18250 | C34: 3501 | D34: 164 | E34: 2810 | F34: 214 | G34: 0 | H34: 1536 | I34: 0 | J34: 1310 | K34: 810 | L34: 900 | M34: 1144 | N34: 153 | O34: 534 | P34: 562 | Q34: 270 | R34: 0 | S34: 0 | T34: 531 | U34: 3811 | V34: 0
A35: PURISCAL EN MARCHA | B35: 643 | C35: 0 | D35: 0 | E35: 0 | F35: 643 | G35: 0 | H35: 0 | I35: 0 | J35: 0 | K35: 0 | L35: 0 | M35: 0 | N35: 0 | O35: 0 | P35: 0 | Q35: 0 | R35: 0 | S35: 0 | T35: 0 | U35: 0 | V35: 0
A36: RENOVACIÓN COSTARRICENSE | B36: 1434 | C36: 0 | D36: 0 | E36: 0 | F36: 0 | G36: 0 | H36: 0 | I36: 0 | J36: 1434 | K36: 0 | L36: 0 | M36: 0 | N36: 0 | O36: 0 | P36: 0 | Q36: 0 | R36: 0 | S36: 0 | T36: 0 | U36: 0 | V36: 0
A37: REPUBLICANO SOCIAL CRISTIANO | B37: 11894 | C37: 2407 | D37: 0 | E37: 556 | F37: 0 | G37: 500 | H37: 0 | I37: 0 | J37: 646 | K37: 316 | L37: 946 | M37: 4813 | N37: 0 | O37: 0 | P37: 206 | Q37: 1504 | R37: 0 | S37: 0 | T37: 0 | U37: 0 | V37: 0
A38: RESTAURACIÓN NACIONAL | B38: 13034 | C38: 2461 | D38: 113 | E38: 960 | F38: 249 | G38: 47 | H38: 533 | I38: 82 | J38: 897 | K38: 167 | L38: 2112 | M38: 442 | N38: 73 | O38: 399 | P38: 471 | Q38: 424 | R38: 43 | S38: 0 | T38: 1208 | U38: 1913 | V38: 440
A39: SOMOS MORAVIA | B39: 6862 | C39: 0 | D39: 0 | E39: 0 | F39: 0 | G39: 0 | H39: 0 | I39: 0 | J39: 0 | K39: 0 | L39: 0 | M39: 0 | N39: 0 | O39: 0 | P39: 6862 | Q39: 0 | R39: 0 | S39: 0 | T39: 0 | U39: 0 | V39: 0
A40: TARRAZÚ PRIMERO | B40: 178 | C40: 0 | D40: 0 | E40: 0 | F40: 0 | G40: 178 | H40: 0 | I40: 0 | J40: 0 | K40: 0 | L40: 0 | M40: 0 | N40: 0 | O40: 0 | P40: 0 | Q40: 0 | R40: 0 | S40: 0 | T40: 0 | U40: 0 | V40: 0
A41: TERRA ESCAZÚ | B41: 2218 | C41: 0 | D41: 2218 | E41: 0 | F41: 0 | G41: 0 | H41: 0 | I41: 0 | J41: 0 | K41: 0 | L41: 0 | M41: 0 | N41: 0 | O41: 0 | P41: 0 | Q41: 0 | R41: 0 | S41: 0 | T41: 0 | U41: 0 | V41: 0
A42: TODOS POR GOICOECHEA | B42: 2164 | C42: 0 | D42: 0 | E42: 0 | F42: 0 | G42: 0 | H42: 0 | I42: 0 | J42: 2164 | K42: 0 | L42: 0 | M42: 0 | N42: 0 | O42: 0 | P42: 0 | Q42: 0 | R42: 0 | S42: 0 | T42: 0 | U42: 0 | V42: 0
A43: UNIDAD SOCIAL CRISTIANA | B43: 58260 | C43: 4731 | D43: 1064 | E43: 1553 | F43: 3189 | G43: 3119 | H43: 0 | I43: 508 | J43: 3384 | K43: 4484 | L43: 1334 | M43: 3487 | N43: 0 | O43: 1747 | P43: 602 | Q43: 1716 | R43: 0 | S43: 895 | T43: 3516 | U43: 22931 | V43: 0
A44: UNIDOS PARA EL DESARROLLO | B44: 2926 | C44: 0 | D44: 0 | E44: 0 | F44: 0 | G44: 0 | H44: 0 | I44: 2926 | J44: 0 | K44: 0 | L44: 0 | M44: 0 | N44: 0 | O44: 0 | P44: 0 | Q44: 0 | R44: 0 | S44: 0 | T44: 0 | U44: 0 | V44: 0
A45: UNIDOS PODEMOS | B45: 7624 | C45: 805 | D45: 224 | E45: 3708 | F45: 309 | G45: 0 | H45: 369 | I45: 0 | J45: 826 | K45: 254 | L45: 0 | M45: 0 | N45: 0 | O45: 305 | P45: 327 | Q45: 0 | R45: 0 | S45: 0 | T45: 0 | U45: 497 | V45: 0
A46: UNIDOS POR ESCAZÚ | B46: 1084 | C46: 0 | D46: 1084 | E46: 0 | F46: 0 | G46: 0 | H46: 0 | I46: 0 | J46: 0 | K46: 0 | L46: 0 | M46: 0 | N46: 0 | O46: 0 | P46: 0 | Q46: 0 | R46: 0 | S46: 0 | T46: 0 | U46: 0 | V46: 0
A47: YUNTA PROGRESISTA ESCAZUCEÑA | B47: 5843 | C47: 0 | D47: 5843 | E47: 0 | F47: 0 | G47: 0 | H47: 0 | I47: 0 | J47: 0 | K47: 0 | L47: 0 | M47: 0 | N47: 0 | O47: 0 | P47: 0 | Q47: 0 | R47: 0 | S47: 0 | T47: 0 | U47: 0 | V47: 0
A48: VOTOS NULOS | B48: 4022 | C48: 642 | D48: 212 | E48: 480 | F48: 200 | G48: 63 | H48: 202 | I48: 126 | J48: 291 | K48: 100 | L48: 174 | M48: 120 | N48: 108 | O48: 156 | P48: 116 | Q48: 121 | R48: 38 | S48: 36 | T48: 158 | U48: 568 | V48: 111
A49: VOTOS EN BLANCO | B49: 1703 | C49: 226 | D49: 56 | E49: 187 | F49: 110 | G49: 27 | H49: 83 | I49: 52 | J49: 170 | K49: 27 | L49: 72 | M49: 41 | N49: 58 | O49: 41 | P49: 32 | Q49: 33 | R49: 33 | S49: 26 | T49: 53 | U49: 291 | V49: 85
A50: ABSTENCIONISMO | B50: 780002 | C50: 177194 | D50: 28288 | E50: 118947 | F50: 16531 | G50: 7032 | H50: 30944 | I50: 13179 | J50: 66814 | K50: 21216 | L50: 35169 | M50: 38340 | N50: 9103 | O50: 40251 | P50: 30766 | Q50: 29726 | R50: 1500 | S50: 2557 | T50: 35384 | U50: 71634 | V50: 5427
A51: PORCENTAJE DE ABSTENCIONISMO | B51: =+B50/B9*100 -> 68.44302177 | C51: =+C50/C9*100 -> 74.69008047 | D51: 57.83802572 | E51: 72.6531435 | F51: 56.67123757 | G51: 56.45925331 | H51: 70.37365536 | I51: 58.99547876 | J51: 73.01198763 | K51: 57.14747475 | L51: 67.87809774 | M51: 69.70782349 | N51: 53.06015388 | O51: 71.2571034 | P51: 68.13571334 | Q51: 69.00986651 | R51: 31.0237849 | S51: 45.06520973 | T51: 70.45517901 | U51: 62.58704294 | V51: 58.1796741
A54: Fuente: Tribunal Supremo de Elecciones.

Sheet 2.3
A2: CUADRO 2.3 PROVINCIA ALAJUELA: JUNTAS, ELECTORADO, PARTICIPACIÓN, VOTOS POR PARTIDO, NULOS, BLANCOS Y ABSTENCIONISMO PARA ALCALDÍAS
A3: POR CANTÓN, ELECCIONES MUNICIPALES FEBRERO 2020
A5: JUNTAS, ELECTORADO, PARTICIPACIÓN, VOTOS POR PARTIDO, NULOS, BLANCOS Y ABSTENCIONISMO | B5: TOTAL | C5: CANTÓN
C6: ALAJUELA | D6: SAN RAMÓN | E6: GRECIA | F6: SAN MATEO | G6: ATENAS | H6: NARANJO | I6: PALMARES | J6: POÁS | K6: OROTINA | L6: SAN CARLOS | M6: ZARCERO | N6: SARCHÍ | O6: UPALA | P6: LOS CHILES | Q6: GUATUSO | R6: RÍO CUARTO
A8: JUNTAS | B8: 1137 | C8: 325 | D8: 114 | E8: 89 | F8: 12 | G8: 38 | H8: 56 | I8: 49 | J8: 36 | K8: 28 | L8: 207 | M8: 21 | N8: 28 | O8: 64 | P8: 28 | Q8: 26 | R8: 16
A9: ELECTORADO | B9: 657581 | C9: 210118 | D9: 66233 | E9: 55270 | F9: 4811 | G9: 21154 | H9: 32709 | I9: 29557 | J9: 22742 | K9: 16274 | L9: 113376 | M9: 9278 | N9: 15107 | O9: 30030 | P9: 13027 | Q9: 11426 | R9: 6469
A10: VOTOS RECIBIDOS | B10: 254343 | C10: 63089 | D10: 25700 | E10: 22077 | F10: 3246 | G10: 11674 | H10: 14411 | I10: 13674 | J10: 9804 | K10: 7789 | L10: 43700 | M10: 4438 | N10: 7359 | O10: 12517 | P10: 5197 | Q10: 5523 | R10: 4145
A11: PORCENTAJE DE PARTICIPACIÓN | B11: =+B10/B9*100 -> 38.67858104 | C11: =+C10/C9*100 -> 30.02550948 | D11: 38.80240967 | E11: 39.94391171 | F11: 67.47038038 | G11: 55.18578047 | H11: 44.05821028 | I11: 46.26315255 | J11: 43.10966494 | K11: 47.86161976 | L11: 38.54431273 | M11: 47.83358482 | N11: 48.71251738 | O11: 41.68165168 | P11: 39.89406617 | Q11: 48.33712585 | R11: 64.07481836
A12: VOTOS POR PARTIDO | B12: 249748 | C12: 62044 | D12: 25134 | E12: 21695 | F12: 3185 | G12: 11497 | H12: 14158 | I12: 13403 | J12: 9641 | K12: 7685 | L12: 42987 | M12: 4384 | N12: 7226 | O12: 12189 | P12: 5055 | Q12: 5379 | R12: 4086
A13: ACCIÓN CIUDADANA | B13: 16014 | C13: 6112 | D13: 2082 | E13: 0 | F13: 0 | G13: 713 | H13: 445 | I13: 989 | J13: 0 | K13: 0 | L13: 4860 | M13: 0 | N13: 0 | O13: 0 | P13: 282 | Q13: 0 | R13: 531
A14: ACCIÓN NARANJEÑA | B14: 308 | C14: 0 | D14: 0 | E14: 0 | F14: 0 | G14: 0 | H14: 308 | I14: 0 | J14: 0 | K14: 0 | L14: 0 | M14: 0 | N14: 0 | O14: 0 | P14: 0 | Q14: 0 | R14: 0
A15: ALIANZA DEMÓCRATA CRISTIANA | B15: 806 | C15: 0 | D15: 0 | E15: 0 | F15: 0 | G15: 0 | H15: 0 | I15: 0 | J15: 0 | K15: 0 | L15: 806 | M15: 0 | N15: 0 | O15: 0 | P15: 0 | Q15: 0 | R15: 0
A16: ALIANZA POR PALMARES | B16: 1652 | C16: 0 | D16: 0 | E16: 0 | F16: 0 | G16: 0 | H16: 0 | I16: 1652 | J16: 0 | K16: 0 | L16: 0 | M16: 0 | N16: 0 | O16: 0 | P16: 0 | Q16: 0 | R16: 0
A17: ALIANZA POR SARCHÍ | B17: 1769 | C17: 0 | D17: 0 | E17: 0 | F17: 0 | G17: 0 | H17: 0 | I17: 0 | J17: 0 | K17: 0 | L17: 0 | M17: 0 | N17: 1769 | O17: 0 | P17: 0 | Q17: 0 | R17: 0
A18: DESPERTAR ALAJUELENSE | B18: 5921 | C18: 5921 | D18: 0 | E18: 0 | F18: 0 | G18: 0 | H18: 0 | I18: 0 | J18: 0 | K18: 0 | L18: 0 | M18: 0 | N18: 0 | O18: 0 | P18: 0 | Q18: 0 | R18: 0
A19: FRENTE AMPLIO | B19: 4014 | C19: 1386 | D19: 772 | E19: 585 | F19: 233 | G19: 0 | H19: 0 | I19: 58 | J19: 0 | K19: 0 | L19: 980 | M19: 0 | N19: 0 | O19: 0 | P19: 0 | Q19: 0 | R19: 0
A20: FUERZA SARCHISEÑA | B20: 391 | C20: 0 | D20: 0 | E20: 0 | F20: 0 | G20: 0 | H20: 0 | I20: 0 | J20: 0 | K20: 0 | L20: 0 | M20: 0 | N20: 391 | O20: 0 | P20: 0 | Q20: 0 | R20: 0
A21: INTEGRACIÓN NACIONAL | B21: 2691 | C21: 560 | D21: 1469 | E21: 163 | F21: 0 | G21: 0 | H21: 452 | I21: 0 | J21: 0 | K21: 0 | L21: 0 | M21: 0 | N21: 0 | O21: 0 | P21: 0 | Q21: 47 | R21: 0
A22: LIBERACIÓN NACIONAL | B22: 91960 | C22: 20177 | D22: 16473 | E22: 4546 | F22: 1610 | G22: 2378 | H22: 985 | I22: 2746 | J22: 2637 | K22: 2700 | L22: 22385 | M22: 3117 | N22: 668 | O22: 3842 | P22: 2897 | Q22: 3053 | R22: 1746
A23: LIBERAL PROGRESISTA | B23: 1879 | C23: 0 | D23: 0 | E23: 0 | F23: 0 | G23: 0 | H23: 0 | I23: 0 | J23: 0 | K23: 1879 | L23: 0 | M23: 0 | N23: 0 | O23: 0 | P23: 0 | Q23: 0 | R23: 0
A24: NUEVA GENERACIÓN | B24: 8845 | C24: 2421 | D24: 0 | E24: 2535 | F24: 21 | G24: 1286 | H24: 831 | I24: 49 | J24: 0 | K24: 141 | L24: 1043 | M24: 245 | N24: 273 | O24: 0 | P24: 0 | Q24: 0 | R24: 0
A25: NUEVA MAYORÍA GRIEGA | B25: 3738 | C25: 0 | D25: 0 | E25: 3738 | F25: 0 | G25: 0 | H25: 0 | I25: 0 | J25: 0 | K25: 0 | L25: 0 | M25: 0 | N25: 0 | O25: 0 | P25: 0 | Q25: 0 | R25: 0
A26: NUEVA REPUBLICA | B26: 15074 | C26: 5133 | D26: 1024 | E26: 1744 | F26: 29 | G26: 959 | H26: 420 | I26: 439 | J26: 451 | K26: 263 | L26: 1728 | M26: 85 | N26: 697 | O26: 1259 | P26: 352 | Q26: 247 | R26: 244
A27: PALMARES PRIMERO | B27: 3743 | C27: 0 | D27: 0 | E27: 0 | F27: 0 | G27: 0 | H27: 0 | I27: 3743 | J27: 0 | K27: 0 | L27: 0 | M27: 0 | N27: 0 | O27: 0 | P27: 0 | Q27: 0 | R27: 0
A28: PROGRESER | B28: 6200 | C28: 0 | D28: 0 | E28: 0 | F28: 0 | G28: 0 | H28: 0 | I28: 0 | J28: 0 | K28: 0 | L28: 6200 | M28: 0 | N28: 0 | O28: 0 | P28: 0 | Q28: 0 | R28: 0
A29: REPUBLICANO SOCIAL CRISTIANO | B29: 14687 | C29: 4659 | D29: 0 | E29: 1430 | F29: 0 | G29: 545 | H29: 176 | I29: 0 | J29: 1570 | K29: 0 | L29: 1263 | M29: 0 | N29: 0 | O29: 959 | P29: 1420 | Q29: 1485 | R29: 1180
A30: RESTAURACIÓN NACIONAL | B30: 4655 | C30: 1605 | D30: 481 | E30: 748 | F30: 19 | G30: 69 | H30: 87 | I30: 293 | J30: 203 | K30: 111 | L30: 0 | M30: 41 | N30: 95 | O30: 279 | P30: 104 | Q30: 394 | R30: 126
A31: SOMOS SARCHÍ | B31: 1747 | C31: 0 | D31: 0 | E31: 0 | F31: 0 | G31: 0 | H31: 0 | I31: 0 | J31: 0 | K31: 0 | L31: 0 | M31: 0 | N31: 1747 | O31: 0 | P31: 0 | Q31: 0 | R31: 0
A32: UNIDAD SOCIAL CRISTIANA | B32: 56804 | C32: 13124 | D32: 2833 | E32: 4585 | F32: 1270 | G32: 3202 | H32: 10454 | I32: 3434 | J32: 4311 | K32: 2591 | L32: 3374 | M32: 0 | N32: 1586 | O32: 5850 | P32: 0 | Q32: 0 | R32: 190
A33: UNIDOS PODEMOS | B33: 3457 | C33: 946 | D33: 0 | E33: 0 | F33: 3 | G33: 573 | H33: 0 | I33: 0 | J33: 469 | K33: 0 | L33: 348 | M33: 896 | N33: 0 | O33: 0 | P33: 0 | Q33: 153 | R33: 69
A34: UNIÓN ATENIENSE | B34: 1772 | C34: 0 | D34: 0 | E34: 0 | F34: 0 | G34: 1772 | H34: 0 | I34: 0 | J34: 0 | K34: 0 | L34: 0 | M34: 0 | N34: 0 | O34: 0 | P34: 0 | Q34: 0 | R34: 0
A35: UNIÓN GRIEGA | B35: 1621 | C35: 0 | D35: 0 | E35: 1621 | F35: 0 | G35: 0 | H35: 0 | I35: 0 | J35: 0 | K35: 0 | L35: 0 | M35: 0 | N35: 0 | O35: 0 | P35: 0 | Q35: 0 | R35: 0
A36: VOTOS NULOS | B36: 3214 | C36: 735 | D36: 395 | E36: 272 | F36: 50 | G36: 139 | H36: 186 | I36: 191 | J36: 116 | K36: 75 | L36: 456 | M36: 39 | N36: 83 | O36: 225 | P36: 109 | Q36: 100 | R36: 43
A37: VOTOS EN BLANCO | B37: 1381 | C37: 310 | D37: 171 | E37: 110 | F37: 11 | G37: 38 | H37: 67 | I37: 80 | J37: 47 | K37: 29 | L37: 257 | M37: 15 | N37: 50 | O37: 103 | P37: 33 | Q37: 44 | R37: 16
A38: ABSTENCIONISMO | B38: 403238 | C38: 147029 | D38: 40533 | E38: 33193 | F38: 1565 | G38: 9480 | H38: 18298 | I38: 15883 | J38: 12938 | K38: 8485 | L38: 69676 | M38: 4840 | N38: 7748 | O38: 17513 | P38: 7830 | Q38: 5903 | R38: 2324
A39: PORCENTAJE DE ABSTENCIONISMO | B39: =+B38/B9*100 -> 61.32141896 | C39: =+C38/C9*100 -> 69.97449052 | D39: 61.19759033 | E39: 60.05608829 | F39: 32.52961962 | G39: 44.81421953 | H39: 55.94178972 | I39: 53.73684745 | J39: 56.89033506 | K39: 52.13838024 | L39: 61.45568727 | M39: 52.16641518 | N39: 51.28748262 | O39: 58.31834832 | P39: 60.10593383 | Q39: 51.66287415 | R39: 35.92518164
A42: Fuente: Tribunal Supremo de Elecciones.

Sheet 2.4
A2: CUADRO 2.4 PROVINCIA CARTAGO: JUNTAS, ELECTORADO, PARTICIPACIÓN, VOTOS POR PARTIDO, NULOS, BLANCOS Y ABSTENCIONISMO
A3: PARA ALCALDÍAS, POR CANTÓN, ELECCIONES MUNICIPALES FEBRERO 2020
A5: JUNTAS, ELECTORADO, PARTICIPACIÓN, VOTOS POR PARTIDO, NULOS, BLANCOS Y ABSTENCIONISMO | B5: TOTAL | C5: CANTÓN
C6: CARTAGO | D6: PARAÍSO | E6: LA UNIÓN | F6: JIMÉNEZ | G6: TURRIALBA | H6: ALVARADO | I6: OREAMUNO | J6: EL GUARCO
A8: JUNTAS | B8: 646 | C8: 185 | D8: 76 | E8: 106 | F8: 26 | G8: 121 | H8: 22 | I8: 55 | J8: 55
A9: ELECTORADO | B9: 399445 | C9: 125036 | D9: 48167 | E9: 72609 | F9: 12404 | G9: 58384 | H9: 11066 | I9: 37179 | J9: 34600
A10: VOTOS RECIBIDOS | B10: 154657 | C10: 51949 | D10: 18773 | E10: 23258 | F10: 6445 | G10: 21309 | H10: 4893 | I10: 13496 | J10: 14534
A11: PORCENTAJE DE PARTICIPACIÓN | B11: =+B10/B9*100 -> 38.71797119 | C11: =+C10/C9*100 -> 41.5472344 | D11: 38.97481678 | E11: 32.03184178 | F11: 51.95904547 | G11: 36.49801315 | H11: 44.21651907 | I11: 36.30006186 | J11: 42.00578035
A12: VOTOS POR PARTIDO | B12: 151423 | C12: 51019 | D12: 18278 | E12: 22875 | F12: 6281 | G12: 20801 | H12: 4777 | I12: 13165 | J12: 14227
A13: ACCESIBILIDAD SIN EXCLUSIÓN | B13: 4168 | C13: 0 | D13: 4168 | E13: 0 | F13: 0 | G13: 0 | H13: 0 | I13: 0 | J13: 0
A14: ACCIÓN CIUDADANA | B14: 22087 | C14: 9648 | D14: 721 | E14: 1946 | F14: 0 | G14: 5422 | H14: 1106 | I14: 2160 | J14: 1084
A15: ACTUEMOS YA | B15: 6738 | C15: 2742 | D15: 852 | E15: 693 | F15: 447 | G15: 0 | H15: 36 | I15: 1830 | J15: 138
A16: ALIANZA DEMÓCRATA CRISTIANA | B16: 22086 | C16: 17001 | D16: 1124 | E16: 910 | F16: 0 | G16: 1648 | H16: 0 | I16: 1403 | J16: 0
A17: ALIANZA SOCIAL POR LA UNIÓN | B17: 1827 | C17: 0 | D17: 0 | E17: 1827 | F17: 0 | G17: 0 | H17: 0 | I17: 0 | J17: 0
A18: FRENTE AMPLIO | B18: 3986 | C18: 903 | D18: 2143 | E18: 940 | F18: 0 | G18: 0 | H18: 0 | I18: 0 | J18: 0
A19: INTEGRACIÓN NACIONAL | B19: 6153 | C19: 325 | D19: 975 | E19: 4431 | F19: 0 | G19: 0 | H19: 299 | I19: 0 | J19: 123
A20: LA FUERZA DE LA UNIÓN | B20: 185 | C20: 0 | D20: 0 | E20: 185 | F20: 0 | G20: 0 | H20: 0 | I20: 0 | J20: 0
A21: LIBERACIÓN NACIONAL | B21: 32500 | C21: 8578 | D21: 4801 | E21: 4587 | F21: 2010 | G21: 3227 | H21: 2023 | I21: 2105 | J21: 5169
A22: LIBERAL PROGRESISTA | B22: 1287 | C22: 0 | D22: 293 | E22: 0 | F22: 994 | G22: 0 | H22: 0 | I22: 0 | J22: 0
A23: NUEVA GENERACIÓN | B23: 6745 | C23: 0 | D23: 0 | E23: 615 | F23: 0 | G23: 4827 | H23: 982 | I23: 0 | J23: 321
A24: NUEVA REPUBLICA | B24: 3420 | C24: 880 | D24: 151 | E24: 1594 | F24: 66 | G24: 544 | H24: 0 | I24: 185 | J24: 0
A25: REPUBLICANO SOCIAL CRISTIANO | B25: 3007 | C25: 778 | D25: 0 | E25: 390 | F25: 1639 | G25: 0 | H25: 0 | I25: 200 | J25: 0
A26: RESCATE CANTONAL LA UNIÓN | B26: 2002 | C26: 0 | D26: 0 | E26: 2002 | F26: 0 | G26: 0 | H26: 0 | I26: 0 | J26: 0
A27: RESTAURACIÓN NACIONAL | B27: 7554 | C27: 4077 | D27: 748 | E27: 411 | F27: 34 | G27: 214 | H27: 0 | I27: 1465 | J27: 605
A28: TURRIALBA PRIMERO | B28: 2427 | C28: 0 | D28: 0 | E28: 0 | F28: 0 | G28: 2427 | H28: 0 | I28: 0 | J28: 0
A29: UNIDAD SOCIAL CRISTIANA | B29: 15480 | C29: 4500 | D29: 1353 | E29: 2074 | F29: 476 | G29: 1493 | H29: 0 | I29: 1176 | J29: 4408
A30: UNIDOS PODEMOS | B30: 6680 | C30: 1066 | D30: 862 | E30: 116 | F30: 567 | G30: 653 | H30: 253 | I30: 2522 | J30: 641
A31: UNIÓN GUARQUEÑO | B31: 1659 | C31: 0 | D31: 0 | E31: 0 | F31: 0 | G31: 0 | H31: 0 | I31: 0 | J31: 1659
A32: VERDE ECOLOGISTA | B32: 1432 | C32: 521 | D32: 87 | E32: 154 | F32: 48 | G32: 346 | H32: 78 | I32: 119 | J32: 79
A33: VOTOS NULOS | B33: 2259 | C33: 648 | D33: 359 | E33: 295 | F33: 113 | G33: 316 | H33: 52 | I33: 250 | J33: 226
A34: VOTOS EN BLANCO | B34: 975 | C34: 282 | D34: 136 | E34: 88 | F34: 51 | G34: 192 | H34: 64 | I34: 81 | J34: 81
A35: ABSTENCIONISMO | B35: 244788 | C35: 73087 | D35: 29394 | E35: 49351 | F35: 5959 | G35: 37075 | H35: 6173 | I35: 23683 | J35: 20066
A36: PORCENTAJE DE ABSTENCIONISMO | B36: =+B35/B9*100 -> 61.28202881 | C36: =+C35/C9*100 -> 58.4527656 | D36: 61.02518322 | E36: 67.96815822 | F36: 48.04095453 | G36: 63.50198685 | H36: 55.78348093 | I36: 63.69993814 | J36: 57.99421965
A39: Fuente: Tribunal Supremo de Elecciones.

Sheet 2.5
A2: CUADRO 2.5 PROVINCIA HEREDIA: JUNTAS, ELECTORADO, PARTICIPACIÓN, VOTOS POR PARTIDO, NULOS, BLANCOS Y ABSTENCIONISMO
A3: PARA ALCALDÍAS, POR CANTÓN, ELECCIONES MUNICIPALES FEBRERO 2020
A5: JUNTAS, ELECTORADO, PARTICIPACIÓN, VOTOS POR PARTIDO, NULOS, BLANCOS Y ABSTENCIONISMO | B5: TOTAL | C5: CANTÓN
C6: HEREDIA | D6: BARVA | E6: SANTO DOMINGO | F6: SANTA BÁRBARA | G6: SAN RAFAEL | H6: SAN ISIDRO | I6: BELÉN | J6: FLORES | K6: SAN PABLO | L6: SARAPIQUÍ
A8: JUNTAS | B8: 521 | C8: 139 | D8: 53 | E8: 52 | F8: 42 | G8: 54 | H8: 26 | I8: 27 | J8: 24 | K8: 32 | L8: 72
A9: ELECTORADO | B9: 344730 | C9: 99320 | D9: 33992 | E9: 35439 | F9: 27612 | G9: 36956 | H9: 16647 | I9: 19306 | J9: 17393 | K9: 22755 | L9: 35310
A10: VOTOS RECIBIDOS | B10: 116299 | C10: 26590 | D10: 12869 | E10: 12434 | F10: 10192 | G10: 11971 | H10: 6034 | I10: 8217 | J10: 6715 | K10: 8190 | L10: 13087
A11: PORCENTAJE DE PARTICIPACIÓN | B11: =+B10/B9*100 -> 33.73625736 | C11: =+C10/C9*100 -> 26.77204994 | D11: 37.85890798 | E11: 35.08564011 | F11: 36.91148776 | G11: 32.39257495 | H11: 36.24677119 | I11: 42.56189786 | J11: 38.60748577 | K11: 35.99208965 | L11: 37.06315491
A12: VOTOS POR PARTIDO | B12: 114497 | C12: 26263 | D12: 12677 | E12: 12223 | F12: 10020 | G12: 11812 | H12: 5949 | I12: 8106 | J12: 6620 | K12: 8090 | L12: 12737
A13: ACCIÓN CIUDADANA | B13: 8336 | C13: 1880 | D13: 1162 | E13: 572 | F13: 411 | G13: 785 | H13: 378 | I13: 319 | J13: 0 | K13: 1209 | L13: 1620
A14: ALIANZA DEMÓCRATA CRISTIANA | B14: 1206 | C14: 0 | D14: 0 | E14: 0 | F14: 1206 | G14: 0 | H14: 0 | I14: 0 | J14: 0 | K14: 0 | L14: 0
A15: AVANCE ISIDREÑO | B15: 483 | C15: 0 | D15: 0 | E15: 0 | F15: 0 | G15: 0 | H15: 483 | I15: 0 | J15: 0 | K15: 0 | L15: 0
A16: BARVA UNIDA | B16: 427 | C16: 0 | D16: 427 | E16: 0 | F16: 0 | G16: 0 | H16: 0 | I16: 0 | J16: 0 | K16: 0 | L16: 0
A17: COALICIÓN UNIDAD POR FLORES | B17: 2051 | C17: 0 | D17: 0 | E17: 0 | F17: 0 | G17: 0 | H17: 0 | I17: 0 | J17: 2051 | K17: 0 | L17: 0
A18: COALICIÓN UNIÓN BELEMITA | B18: 2123 | C18: 0 | D18: 0 | E18: 0 | F18: 0 | G18: 0 | H18: 0 | I18: 2123 | J18: 0 | K18: 0 | L18: 0
A19: FRENTE AMPLIO | B19: 4940 | C19: 1383 | D19: 2328 | E19: 0 | F19: 361 | G19: 868 | H19: 0 | I19: 0 | J19: 0 | K19: 0 | L19: 0
A20: INTEGRACIÓN NACIONAL | B20: 487 | C20: 397 | D20: 0 | E20: 0 | F20: 0 | G20: 0 | H20: 0 | I20: 0 | J20: 0 | K20: 0 | L20: 90
A21: LIBERACIÓN NACIONAL | B21: 39656 | C21: 13282 | D21: 2189 | E21: 3339 | F21: 3181 | G21: 5324 | H21: 1293 | I21: 1636 | J21: 2476 | K21: 2112 | L21: 4824
A22: MOVIMIENTO AVANCE SANTO DOMINGO | B22: 4046 | C22: 0 | D22: 0 | E22: 4046 | F22: 0 | G22: 0 | H22: 0 | I22: 0 | J22: 0 | K22: 0 | L22: 0
A23: NUEVA GENERACIÓN | B23: 2906 | C23: 0 | D23: 999 | E23: 0 | F23: 957 | G23: 0 | H23: 0 | I23: 0 | J23: 0 | K23: 0 | L23: 950
A24: NUEVA REPUBLICA | B24: 8063 | C24: 1465 | D24: 1112 | E24: 560 | F24: 532 | G24: 717 | H24: 151 | I24: 167 | J24: 246 | K24: 879 | L24: 2234
A25: RENOVACIÓN COSTARRICENSE | B25: 922 | C25: 0 | D25: 0 | E25: 0 | F25: 0 | G25: 0 | H25: 0 | I25: 0 | J25: 0 | K25: 0 | L25: 922
A26: REPUBLICANO SOCIAL CRISTIANO | B26: 6862 | C26: 556 | D26: 2812 | E26: 0 | F26: 1318 | G26: 120 | H26: 21 | I26: 114 | J26: 1640 | K26: 0 | L26: 281
A27: RESTAURACIÓN NACIONAL | B27: 1866 | C27: 429 | D27: 192 | E27: 288 | F27: 126 | G27: 127 | H27: 54 | I27: 52 | J27: 144 | K27: 115 | L27: 339
A28: SENTIR HEREDIA | B28: 2224 | C28: 2224 | D28: 0 | E28: 0 | F28: 0 | G28: 0 | H28: 0 | I28: 0 | J28: 0 | K28: 0 | L28: 0
A29: UNIDAD SOCIAL CRISTIANA | B29: 24243 | C29: 4647 | D29: 1108 | E29: 1833 | F29: 1723 | G29: 3392 | H29: 3070 | I29: 3695 | J29: 0 | K29: 3775 | L29: 1000
A30: UNIDOS PODEMOS | B30: 2336 | C30: 0 | D30: 348 | E30: 265 | F30: 205 | G30: 479 | H30: 499 | I30: 0 | J30: 63 | K30: 0 | L30: 477
A31: UNIÓN DOMINGUEÑA | B31: 1320 | C31: 0 | D31: 0 | E31: 1320 | F31: 0 | G31: 0 | H31: 0 | I31: 0 | J31: 0 | K31: 0 | L31: 0
A32: VOTOS NULOS | B32: 1306 | C32: 230 | D32: 146 | E32: 147 | F32: 117 | G32: 125 | H32: 63 | I32: 88 | J32: 75 | K32: 78 | L32: 237
A33: VOTOS EN BLANCO | B33: 496 | C33: 97 | D33: 46 | E33: 64 | F33: 55 | G33: 34 | H33: 22 | I33: 23 | J33: 20 | K33: 22 | L33: 113
A34: ABSTENCIONISMO | B34: 228431 | C34: 72730 | D34: 21123 | E34: 23005 | F34: 17420 | G34: 24985 | H34: 10613 | I34: 11089 | J34: 10678 | K34: 14565 | L34: 22223
A35: PORCENTAJE DE ABSTENCIONISMO | B35: =+B34/B9*100 -> 66.26374264 | C35: =+C34/C9*100 -> 73.22795006 | D35: 62.14109202 | E35: 64.91435989 | F35: 63.08851224 | G35: 67.60742505 | H35: 63.75322881 | I35: 57.43810214 | J35: 61.39251423 | K35: 64.00791035 | L35: 62.93684509
A38: Fuente: Tribunal Supremo de Elecciones.

Sheet 2.6
A2: CUADRO 2.6 PROVINCIA GUANACASTE: JUNTAS, ELECTORADO, PARTICIPACIÓN, VOTOS POR PARTIDO, NULOS, BLANCOS Y ABSTENCIONISMO
A3: PARA ALCALDÍAS, POR CANTÓN, ELECCIONES MUNICIPALES FEBRERO 2020
A5: JUNTAS, ELECTORADO, PARTICIPACIÓN, VOTOS POR PARTIDO, NULOS, BLANCOS Y ABSTENCIONISMO | B5: TOTAL | C5: CANTÓN
C6: LIBERIA | D6: NICOYA | E6: SANTA CRUZ | F6: BAGACES | G6: CARRILLO | H6: CAÑAS | I6: ABANGARES | J6: TILARÁN | K6: NANDAYURE | L6: LA CRUZ | M6: HOJANCHA
A8: JUNTAS | B8: 529 | C8: 76 | D8: 103 | E8: 86 | F8: 29 | G8: 47 | H8: 37 | I8: 36 | J8: 37 | K8: 29 | L8: 31 | M8: 18
A9: ELECTORADO | B9: 250563 | C9: 47181 | D9: 42477 | E9: 42694 | F9: 14260 | G9: 25517 | H9: 20019 | I9: 14024 | J9: 15470 | K9: 8650 | L9: 14091 | M9: 6180
A10: VOTOS RECIBIDOS | B10: 110732 | C10: 16588 | D10: 18700 | E10: 19312 | F10: 5942 | G10: 11269 | H10: 8141 | I10: 7316 | J10: 7204 | K10: 5541 | L10: 7097 | M10: 3622
A11: PORCENTAJE DE PARTICIPACIÓN | B11: =+B10/B9*100 -> 44.19327674 | C11: =+C10/C9*100 -> 35.15822047 | D11: 44.02382466 | E11: 45.23352227 | F11: 41.66900421 | G11: 44.16271505 | H11: 40.66636695 | I11: 52.16771249 | J11: 46.5675501 | K11: 64.05780347 | L11: 50.36548151 | M11: 58.60841424
A12: VOTOS POR PARTIDO | B12: 108069 | C12: 16271 | D12: 18203 | E12: 18768 | F12: 5771 | G12: 11024 | H12: 7984 | I12: 7118 | J12: 7058 | K12: 5374 | L12: 6938 | M12: 3560
A13: ACCIÓN CIUDADANA | B13: 7172 | C13: 874 | D13: 0 | E13: 2215 | F13: 1266 | G13: 0 | H13: 594 | I13: 192 | J13: 0 | K13: 0 | L13: 106 | M13: 1925
A14: AUTÉNTICO NICOYANO | B14: 1974 | C14: 0 | D14: 1974 | E14: 0 | F14: 0 | G14: 0 | H14: 0 | I14: 0 | J14: 0 | K14: 0 | L14: 0 | M14: 0
A15: AUTÉNTICO SANTACRUCEÑO | B15: 5636 | C15: 0 | D15: 0 | E15: 5636 | F15: 0 | G15: 0 | H15: 0 | I15: 0 | J15: 0 | K15: 0 | L15: 0 | M15: 0
A16: CANTONAL DE CARRILLO | B16: 2082 | C16: 0 | D16: 0 | E16: 0 | F16: 0 | G16: 2082 | H16: 0 | I16: 0 | J16: 0 | K16: 0 | L16: 0 | M16: 0
A17: COALICIÓN ALIANZA POR NICOYA | B17: 1881 | C17: 0 | D17: 1881 | E17: 0 | F17: 0 | G17: 0 | H17: 0 | I17: 0 | J17: 0 | K17: 0 | L17: 0 | M17: 0
A18: FRENTE AMPLIO | B18: 813 | C18: 373 | D18: 0 | E18: 0 | F18: 0 | G18: 0 | H18: 89 | I18: 326 | J18: 0 | K18: 25 | L18: 0 | M18: 0
A19: GUANACASTE PRIMERO | B19: 936 | C19: 0 | D19: 936 | E19: 0 | F19: 0 | G19: 0 | H19: 0 | I19: 0 | J19: 0 | K19: 0 | L19: 0 | M19: 0
A20: INTEGRACIÓN NACIONAL | B20: 5844 | C20: 1398 | D20: 758 | E20: 2361 | F20: 801 | G20: 0 | H20: 0 | I20: 526 | J20: 0 | K20: 0 | L20: 0 | M20: 0
A21: LA GRAN NICOYA | B21: 4968 | C21: 0 | D21: 4968 | E21: 0 | F21: 0 | G21: 0 | H21: 0 | I21: 0 | J21: 0 | K21: 0 | L21: 0 | M21: 0
A22: LIBERACIÓN NACIONAL | B22: 33069 | C22: 3081 | D22: 3608 | E22: 3939 | F22: 936 | G22: 5613 | H22: 4345 | I22: 2104 | J22: 5827 | K22: 1388 | L22: 1085 | M22: 1143
A23: NANDAYURE PROGRESA | B23: 1802 | C23: 0 | D23: 0 | E23: 0 | F23: 0 | G23: 0 | H23: 0 | I23: 0 | J23: 0 | K23: 1802 | L23: 0 | M23: 0
A24: NUEVA GENERACIÓN | B24: 3301 | C24: 0 | D24: 0 | E24: 0 | F24: 0 | G24: 0 | H24: 0 | I24: 614 | J24: 0 | K24: 0 | L24: 2687 | M24: 0
A25: NUEVA REPUBLICA | B25: 4095 | C25: 812 | D25: 620 | E25: 383 | F25: 374 | G25: 898 | H25: 202 | I25: 337 | J25: 0 | K25: 302 | L25: 105 | M25: 62
A26: RENOVACIÓN COSTARRICENSE | B26: 254 | C26: 254 | D26: 0 | E26: 0 | F26: 0 | G26: 0 | H26: 0 | I26: 0 | J26: 0 | K26: 0 | L26: 0 | M26: 0
A27: REPUBLICANO SOCIAL CRISTIANO | B27: 2774 | C27: 2398 | D27: 266 | E27: 110 | F27: 0 | G27: 0 | H27: 0 | I27: 0 | J27: 0 | K27: 0 | L27: 0 | M27: 0
A28: RESTAURACIÓN NACIONAL | B28: 4806 | C28: 561 | D28: 326 | E28: 423 | F28: 425 | G28: 943 | H28: 830 | I28: 257 | J28: 384 | K28: 419 | L28: 215 | M28: 23
A29: ÚNICO ABANGAREÑO | B29: 462 | C29: 0 | D29: 0 | E29: 0 | F29: 0 | G29: 0 | H29: 0 | I29: 462 | J29: 0 | K29: 0 | L29: 0 | M29: 0
A30: UNIDAD SOCIAL CRISTIANA | B30: 18351 | C30: 3417 | D30: 2596 | E30: 3632 | F30: 1459 | G30: 350 | H30: 731 | I30: 1098 | J30: 847 | K30: 1148 | L30: 2666 | M30: 407
A31: UNIDOS PODEMOS | B31: 4491 | C31: 1406 | D31: 0 | E31: 0 | F31: 447 | G31: 0 | H31: 1111 | I31: 1202 | J31: 0 | K31: 290 | L31: 35 | M31: 0
A32: UNIÓN GUANACASTECA | B32: 3358 | C32: 1697 | D32: 270 | E32: 69 | F32: 63 | G32: 1138 | H32: 82 | I32: 0 | J32: 0 | K32: 0 | L32: 39 | M32: 0
A33: VOTOS NULOS | B33: 1910 | C33: 225 | D33: 360 | E33: 404 | F33: 129 | G33: 169 | H33: 117 | I33: 126 | J33: 95 | K33: 136 | L33: 111 | M33: 38
A34: VOTOS EN BLANCO | B34: 753 | C34: 92 | D34: 137 | E34: 140 | F34: 42 | G34: 76 | H34: 40 | I34: 72 | J34: 51 | K34: 31 | L34: 48 | M34: 24
A35: ABSTENCIONISMO | B35: 139831 | C35: 30593 | D35: 23777 | E35: 23382 | F35: 8318 | G35: 14248 | H35: 11878 | I35: 6708 | J35: 8266 | K35: 3109 | L35: 6994 | M35: 2558
A36: PORCENTAJE DE ABSTENCIONISMO | B36: =+B35/B9*100 -> 55.80672326 | C36: =+C35/C9*100 -> 64.84177953 | D36: 55.97617534 | E36: 54.76647773 | F36: 58.33099579 | G36: 55.83728495 | H36: 59.33363305 | I36: 47.83228751 | J36: 53.4324499 | K36: 35.94219653 | L36: 49.63451849 | M36: 41.39158576
A39: Fuente: Tribunal Supremo de Elecciones.

Sheet 2.7
A2: CUADRO 2.7 PROVINCIA PUNTARENAS: JUNTAS, ELECTORADO, PARTICIPACIÓN, VOTOS POR PARTIDO, NULOS, BLANCOS Y ABSTENCIONISMO
A3: PARA ALCALDÍAS, POR CANTÓN, ELECCIONES MUNICIPALES FEBRERO 2020
A5: JUNTAS, ELECTORADO, PARTICIPACIÓN, VOTOS POR PARTIDO, NULOS, BLANCOS Y ABSTENCIONISMO | B5: TOTAL | C5: CANTÓN
C6: PUNTARENAS | D6: ESPARZA | E6: BUENOS AIRES | F6: MONTES DE ORO | G6: OSA | H6: QUEPOS | I6: GOLFITO | J6: COTO BRUS | K6: PARRITA | L6: CORREDORES | M6: GARABITO
A8: JUNTAS | B8: 662 | C8: 174 | D8: 45 | E8: 74 | F8: 23 | G8: 53 | H8: 41 | I8: 64 | J8: 67 | K8: 35 | L8: 64 | M8: 22
A9: ELECTORADO | B9: 322563 | C9: 88794 | D9: 23525 | E9: 32950 | F9: 10587 | G9: 23342 | H9: 20603 | I9: 30734 | J9: 31226 | K9: 12621 | L9: 35404 | M9: 12777
A10: VOTOS RECIBIDOS | B10: 134456 | C10: 35359 | D10: 11201 | E10: 12416 | F10: 5752 | G10: 10456 | H10: 9870 | I10: 11036 | J10: 13654 | K10: 6301 | L10: 12708 | M10: 5703
A11: PORCENTAJE DE PARTICIPACIÓN | B11: =+B10/B$9*100 -> 41.6836401 | C11: =+C10/C9*100 -> 39.82138433 | D11: 47.61317747 | E11: 37.68133536 | F11: 54.33078304 | G11: 44.79479051 | H11: 47.90564481 | I11: 35.90811479 | J11: 43.72638186 | K11: 49.92472863 | L11: 35.89424924 | M11: 44.63489082
A12: VOTOS POR PARTIDO | B12: 131199 | C12: 34417 | D12: 11075 | E12: 12066 | F12: 5613 | G12: 10199 | H12: 9670 | I12: 10673 | J12: 13331 | K12: 6173 | L12: 12398 | M12: 5584
A13: ACCESIBILIDAD SIN EXCLUSIÓN | B13: 45 | C13: 0 | D13: 45 | E13: 0 | F13: 0 | G13: 0 | H13: 0 | I13: 0 | J13: 0 | K13: 0 | L13: 0 | M13: 0
A14: ACCIÓN CIUDADANA | B14: 4513 | C14: 399 | D14: 0 | E14: 0 | F14: 3264 | G14: 0 | H14: 0 | I14: 850 | J14: 0 | K14: 0 | L14: 0 | M14: 0
A15: ACUERDO DE ALIANZA DE QUEPOS | B15: 337 | C15: 0 | D15: 0 | E15: 0 | F15: 0 | G15: 0 | H15: 337 | I15: 0 | J15: 0 | K15: 0 | L15: 0 | M15: 0
A16: ALIANZA DEMÓCRATA CRISTIANA | B16: 2552 | C16: 0 | D16: 0 | E16: 0 | F16: 0 | G16: 2132 | H16: 84 | I16: 278 | J16: 0 | K16: 0 | L16: 0 | M16: 58
A17: FRENTE AMPLIO | B17: 146 | C17: 0 | D17: 0 | E17: 0 | F17: 0 | G17: 0 | H17: 0 | I17: 0 | J17: 0 | K17: 0 | L17: 146 | M17: 0
A18: INTEGRACIÓN NACIONAL | B18: 7356 | C18: 4546 | D18: 0 | E18: 0 | F18: 40 | G18: 145 | H18: 466 | I18: 861 | J18: 0 | K18: 0 | L18: 154 | M18: 1144
A19: JUSTICIA SOCIAL | B19: 1190 | C19: 0 | D19: 0 | E19: 0 | F19: 0 | G19: 0 | H19: 1190 | I19: 0 | J19: 0 | K19: 0 | L19: 0 | M19: 0
A20: LIBERACIÓN NACIONAL | B20: 50391 | C20: 8038 | D20: 6389 | E20: 6651 | F20: 1072 | G20: 4141 | H20: 2934 | I20: 2282 | J20: 6515 | K20: 2339 | L20: 8187 | M20: 1843
A21: NUEVA GENERACIÓN | B21: 2495 | C21: 1504 | D21: 0 | E21: 0 | F21: 0 | G21: 605 | H21: 386 | I21: 0 | J21: 0 | K21: 0 | L21: 0 | M21: 0
A22: NUEVA REPUBLICA | B22: 10883 | C22: 3017 | D22: 523 | E22: 582 | F22: 308 | G22: 505 | H22: 890 | I22: 1124 | J22: 1514 | K22: 586 | L22: 1748 | M22: 86
A23: PUEBLO GARABITO | B23: 1409 | C23: 0 | D23: 0 | E23: 0 | F23: 0 | G23: 0 | H23: 0 | I23: 0 | J23: 0 | K23: 0 | L23: 0 | M23: 1409
A24: RENOVACIÓN COSTARRICENSE | B24: 289 | C24: 0 | D24: 0 | E24: 0 | F24: 0 | G24: 0 | H24: 0 | I24: 0 | J24: 0 | K24: 0 | L24: 289 | M24: 0
A25: REPUBLICANO SOCIAL CRISTIANO | B25: 9138 | C25: 3520 | D25: 1799 | E25: 1084 | F25: 0 | G25: 2464 | H25: 271 | I25: 0 | J25: 0 | K25: 0 | L25: 0 | M25: 0
A26: RESTAURACIÓN NACIONAL | B26: 7485 | C26: 1456 | D26: 138 | E26: 1051 | F26: 44 | G26: 207 | H26: 224 | I26: 2348 | J26: 630 | K26: 365 | L26: 693 | M26: 329
A27: RESTAURACIÓN PARRITEÑA | B27: 308 | C27: 0 | D27: 0 | E27: 0 | F27: 0 | G27: 0 | H27: 0 | I27: 0 | J27: 0 | K27: 308 | L27: 0 | M27: 0
A28: UNIDAD SOCIAL CRISTIANA | B28: 24426 | C28: 7186 | D28: 1494 | E28: 2119 | F28: 885 | G28: 0 | H28: 2888 | I28: 2838 | J28: 4181 | K28: 1430 | L28: 690 | M28: 715
A29: UNIDOS PODEMOS | B29: 3485 | C29: 0 | D29: 687 | E29: 579 | F29: 0 | G29: 0 | H29: 0 | I29: 92 | J29: 491 | K29: 1145 | L29: 491 | M29: 0
A30: UNIÓN DE PUNTARENENSES EMPRENDEDORES | B30: 4751 | C30: 4751 | D30: 0 | E30: 0 | F30: 0 | G30: 0 | H30: 0 | I30: 0 | J30: 0 | K30: 0 | L30: 0 | M30: 0
A31: VOTOS NULOS | B31: 2353 | C31: 663 | D31: 95 | E31: 227 | F31: 104 | G31: 195 | H31: 145 | I31: 276 | J31: 241 | K31: 88 | L31: 222 | M31: 97
A32: VOTOS EN BLANCO | B32: 904 | C32: 279 | D32: 31 | E32: 123 | F32: 35 | G32: 62 | H32: 55 | I32: 87 | J32: 82 | K32: 40 | L32: 88 | M32: 22
A33: ABSTENCIONISMO | B33: 188107 | C33: 53435 | D33: 12324 | E33: 20534 | F33: 4835 | G33: 12886 | H33: 10733 | I33: 19698 | J33: 17572 | K33: 6320 | L33: 22696 | M33: 7074
A34: PORCENTAJE DE ABSTENCIONISMO | B34: =+B33/B$9*100 -> 58.3163599 | C34: =+C33/C$9*100 -> 60.17861567 | D34: 52.38682253 | E34: 62.31866464 | F34: 45.66921696 | G34: 55.20520949 | H34: 52.09435519 | I34: 64.09188521 | J34: 56.27361814 | K34: 50.07527137 | L34: 64.10575076 | M34: 55.36510918
A37: Fuente: Tribunal Supremo de Elecciones.

Sheet 2.8
A2: CUADRO 2.8 PROVINCIA LIMÓN: JUNTAS, ELECTORADO, PARTICIPACIÓN, VOTOS POR PARTIDO, NULOS, BLANCOS Y ABSTENCIONISMO
A3: PARA ALCALDÍAS, POR CANTÓN, ELECCIONES MUNICIPALES FEBRERO 2020
A5: JUNTAS, ELECTORADO, PARTICIPACIÓN, VOTOS POR PARTIDO, NULOS, BLANCOS Y ABSTENCIONISMO | B5: TOTAL | C5: CANTÓN
C6: LIMÓN | D6: POCOCÍ | E6: SIQUIRRES | F6: TALAMANCA | G6: MATINA | H6: GUÁCIMO
A8: JUNTAS | B8: 491 | C8: 119 | D8: 158 | E8: 76 | F8: 45 | G8: 42 | H8: 51
A9: ELECTORADO | B9: 283819 | C9: 70890 | D9: 95813 | E9: 41285 | F9: 22666 | G9: 22937 | H9: 30228
A10: VOTOS RECIBIDOS | B10: 102042 | C10: 24618 | D10: 30555 | E10: 13366 | F10: 11950 | G10: 10609 | H10: 10944
A11: PORCENTAJE DE PARTICIPACIÓN | B11: =+B10/B$9*100 -> 35.95319552 | C11: =+C10/C9*100 -> 34.7270419 | D11: 31.89024454 | E11: 32.37495458 | F11: 52.72213889 | G11: 46.25277935 | H11: 36.20484319
A12: VOTOS POR PARTIDO | B12: 98968 | C12: 23932 | D12: 29591 | E12: 12963 | F12: 11602 | G12: 10240 | H12: 10640
A13: ACCESIBILIDAD SIN EXCLUSIÓN | B13: 667 | C13: 0 | D13: 0 | E13: 265 | F13: 0 | G13: 402 | H13: 0
A14: ACCIÓN CANTONAL SIQUIRRES INDEPENDIENTE | B14: 345 | C14: 0 | D14: 0 | E14: 345 | F14: 0 | G14: 0 | H14: 0
A15: ACCIÓN CIUDADANA | B15: 1855 | C15: 0 | D15: 1795 | E15: 0 | F15: 60 | G15: 0 | H15: 0
A16: ALIANZA DEMÓCRATA CRISTIANA | B16: 6438 | C16: 4566 | D16: 1872 | E16: 0 | F16: 0 | G16: 0 | H16: 0
A17: AUTÉNTICO LIMONENSE | B17: 5653 | C17: 5432 | D17: 0 | E17: 0 | F17: 0 | G17: 221 | H17: 0
A18: AUTÉNTICO SIQUIRREÑO | B18: 849 | C18: 0 | D18: 0 | E18: 849 | F18: 0 | G18: 0 | H18: 0
A19: AVANTE POCOCÍ | B19: 633 | C19: 0 | D19: 633 | E19: 0 | F19: 0 | G19: 0 | H19: 0
A20: DESARROLLO TALAMANQUEÑO | B20: 776 | C20: 0 | D20: 0 | E20: 0 | F20: 776 | G20: 0 | H20: 0
A21: FRENTE AMPLIO | B21: 2270 | C21: 0 | D21: 644 | E21: 1222 | F21: 260 | G21: 0 | H21: 144
A22: INTEGRACIÓN NACIONAL | B22: 1959 | C22: 0 | D22: 1798 | E22: 0 | F22: 0 | G22: 0 | H22: 161
A23: IZQUIERDA COSTARRICENSE | B23: 343 | C23: 57 | D23: 145 | E23: 32 | F23: 24 | G23: 10 | H23: 75
A24: JUSTICIA SOCIAL COSTARRICENSE | B24: 5769 | C24: 2309 | D24: 0 | E24: 747 | F24: 0 | G24: 164 | H24: 2549
A25: LIBERACIÓN NACIONAL | B25: 24075 | C25: 2945 | D25: 4797 | E25: 7745 | F25: 2354 | G25: 3292 | H25: 2942
A26: NUEVA GENERACIÓN | B26: 4885 | C26: 1995 | D26: 1119 | E26: 0 | F26: 1675 | G26: 96 | H26: 0
A27: NUEVA REPUBLICA | B27: 5428 | C27: 837 | D27: 2726 | E27: 623 | F27: 456 | G27: 260 | H27: 526
A28: RECUPERANDO VALORES | B28: 7305 | C28: 111 | D28: 6176 | E28: 602 | F28: 0 | G28: 0 | H28: 416
A29: RENOVACIÓN COSTARRICENSE | B29: 487 | C29: 0 | D29: 0 | E29: 0 | F29: 0 | G29: 0 | H29: 487
A30: REPUBLICANO SOCIAL CRISTIANO | B30: 2327 | C30: 953 | D30: 700 | E30: 181 | F30: 0 | G30: 493 | H30: 0
A31: RESTAURACIÓN NACIONAL | B31: 8217 | C31: 3768 | D31: 1981 | E31: 234 | F31: 567 | G31: 1120 | H31: 547
A32: UNIDAD SOCIAL CRISTIANA | B32: 15095 | C32: 703 | D32: 4285 | E32: 0 | F32: 5430 | G32: 3598 | H32: 1079
A33: UNIDOS PODEMOS | B33: 3093 | C33: 256 | D33: 421 | E33: 118 | F33: 0 | G33: 584 | H33: 1714
A34: YO SOY EL CAMBIO | B34: 499 | C34: 0 | D34: 499 | E34: 0 | F34: 0 | G34: 0 | H34: 0
A35: VOTOS NULOS | B35: 2059 | C35: 445 | D35: 616 | E35: 285 | F35: 207 | G35: 277 | H35: 229
A36: VOTOS EN BLANCO | B36: 1015 | C36: 241 | D36: 348 | E36: 118 | F36: 141 | G36: 92 | H36: 75
A37: ABSTENCIONISMO | B37: 181777 | C37: 46272 | D37: 65258 | E37: 27919 | F37: 10716 | G37: 12328 | H37: 19284
A38: PORCENTAJE DE ABSTENCIONISMO | B38: =+B37/B$9*100 -> 64.04680448 | C38: =+C37/C$9*100 -> 65.2729581 | D38: 68.10975546 | E38: 67.62504542 | F38: 47.27786111 | G38: 53.74722065 | H38: 63.79515681
A41: Fuente: Tribunal Supremo de Elecciones.

Sheet 2.9
A2: CUADRO 2.9 CANTÓN SAN JOSÉ: JUNTAS, ELECTORADO, PARTICIPACIÓN, VOTOS POR PARTIDO, NULOS, BLANCOS Y ABSTENCIONISMO PARA ALCALDÍAS Y VICEALCALDÍAS
A3: SEGÚN DISTRITO ADMINISTRATIVO Y ELECTORAL, ELECCIONES MUNICIPALES FEBRERO 2020
A5: DISTRITO ADMINISTRATIVO Y ELECTORAL | B5: JUNTAS | C5: ELECTORADO | D5: VOTOS RECIBIDOS | X5: ABSTENCIONISMO
D6: TOTAL GENERAL | E6: % PARTICIPACIÓN | F6: VOTOS POR PARTIDO | V6: VOTOS NULOS | W6: VOTOS BLANCOS | X6: ABSOLUTO | Y6: %
F7: TOTAL | G7: ACCIÓN CIUDADANA | H7: ALIANZA DEMÓCRATA CRISTIANA | I7: ALIANZA POR SAN JOSÉ | J7: ANTICORRUPCIÓN COSTARRICENSE | K7: COALICIÓN JUNTOS | L7: COMUNAL UNIDO | M7: INNOVACIÓN CANTONAL | N7: INTEGRACIÓN NACIONAL | O7: LIBERACIÓN NACIONAL | P7: NUESTRO PUEBLO | Q7: NUEVA REPÚBLICA | R7: REPUBLICANO SOCIAL CRISTIANO | S7: RESTAURACIÓN NACIONAL | T7: UNIDAD SOCIAL CRISTIANA | U7: UNIDOS PODEMOS
A8: TOTAL CANTÓN | B8: =+B9+B12+B15+B21+B26+B29+B32+B40+B43+B48+B53 -> 337 | C8: =+C9+C12+C15+C21+C26+C29+C32+C40+C43+C48+C53 -> 237239 | D8: 60045 | E8: =+D8/C8*100 -> 25.30991953 | F8: 59177 | G8: 8580 | H8: 980 | I8: 4795 | J8: 563 | K8: 4159 | L8: 773 | M8: 480 | N8: 1506 | O8: 22301 | P8: 1135 | Q8: 3501 | R8: 2407 | S8: 2461 | T8: 4731 | U8: 805 | V8: 642 | W8: 226 | X8: 177194 | Y8: =+X8/C8*100 -> 74.69008047
A9: DISTRITO 1 CARMEN | B9: 8 | C9: 5149 | D9: 1327 | E9: 25.77199456 | F9: 1311 | G9: 391 | H9: 11 | I9: 259 | J9: 11 | K9: 67 | L9: 11 | M9: 5 | N9: 21 | O9: 323 | P9: 8 | Q9: 37 | R9: 23 | S9: 38 | T9: 98 | U9: 8 | V9: 14 | W9: 2 | X9: 3822 | Y9: =+X9/C9*100 -> 74.22800544
A10: CARMEN | B10: 2 | C10: 1248 | D10: 323 | E10: 25.88141026 | F10: 318 | G10: 111 | H10: 2 | I10: 58 | J10: 4 | K10: 16 | L10: 4 | M10: 0 | N10: 5 | O10: 68 | P10: 2 | Q10: 12 | R10: 1 | S10: 11 | T10: 23 | U10: 1 | V10: 4 | W10: 1 | X10: 925 | Y10: =+X10/C10*100 -> 74.11858974
A11: ARANJUEZ | B11: 6 | C11: 3901 | D11: 1004 | E11: 25.73699052 | F11: 993 | G11: 280 | H11: 9 | I11: 201 | J11: 7 | K11: 51 | L11: 7 | M11: 5 | N11: 16 | O11: 255 | P11: 6 | Q11: 25 | R11: 22 | S11: 27 | T11: 75 | U11: 7 | V11: 10 | W11: 1 | X11: 2897 | Y11: 74.26300948
A12: DISTRITO 2 MERCED | B12: 15 | C12: 10107 | D12: 2548 | E12: 25.21025032 | F12: 2498 | G12: 359 | H12: 35 | I12: 351 | J12: 19 | K12: 128 | L12: 57 | M12: 10 | N12: 36 | O12: 962 | P12: 84 | Q12: 98 | R12: 70 | S12: 86 | T12: 162 | U12: 41 | V12: 38 | W12: 12 | X12: 7559 | Y12: 74.78974968
A13: BARRIO MÉXICO | B13: 12 | C13: 8512 | D13: 2028 | E13: 23.82518797 | F13: 1981 | G13: 249 | H13: 30 | I13: 285 | J13: 18 | K13: 74 | L13: 50 | M13: 6 | N13: 27 | O13: 807 | P13: 72 | Q13: 80 | R13: 57 | S13: 75 | T13: 136 | U13: 15 | V13: 36 | W13: 11 | X13: 6484 | Y13: 76.17481203
A14: PITAHAYA | B14: 3 | C14: 1595 | D14: 520 | E14: 32.60188088 | F14: 517 | G14: 110 | H14: 5 | I14: 66 | J14: 1 | K14: 54 | L14: 7 | M14: 4 | N14: 9 | O14: 155 | P14: 12 | Q14: 18 | R14: 13 | S14: 11 | T14: 26 | U14: 26 | V14: 2 | W14: 1 | X14: 1075 | Y14: 67.39811912
A15: DISTRITO 3 HOSPITAL | B15: 28 | C15: 18508 | D15: 4469 | E15: 24.14631511 | F15: 4382 | G15: 502 | H15: 69 | I15: 295 | J15: 39 | K15: 222 | L15: 56 | M15: 35 | N15: 187 | O15: 2000 | P15: 79 | Q15: 267 | R15: 199 | S15: 155 | T15: 202 | U15: 75 | V15: 66 | W15: 21 | X15: 14039 | Y15: 75.85368489
A16: HOSPITAL | B16: 3 | C16: 1660 | D16: 288 | E16: 17.34939759 | F16: 286 | G16: 37 | H16: 4 | I16: 27 | J16: 6 | K16: 11 | L16: 0 | M16: 2 | N16: 11 | O16: 115 | P16: 8 | Q16: 32 | R16: 9 | S16: 10 | T16: 14 | U16: 0 | V16: 1 | W16: 1 | X16: 1372 | Y16: 82.65060241
A17: CRISTO REY | B17: 6 | C17: 4348 | D17: 1190 | E17: 27.36890524 | F17: 1173 | G17: 60 | H17: 20 | I17: 47 | J17: 6 | K17: 51 | L17: 34 | M17: 5 | N17: 90 | O17: 626 | P17: 11 | Q17: 78 | R17: 77 | S17: 30 | T17: 35 | U17: 3 | V17: 16 | W17: 1 | X17: 3158 | Y17: 72.63109476
A18: OMAR DENGO | B18: 13 | C18: 9395 | D18: 2121 | E18: 22.57583821 | F18: 2067 | G18: 270 | H18: 33 | I18: 141 | J18: 15 | K18: 130 | L18: 16 | M18: 25 | N18: 64 | O18: 936 | P18: 46 | Q18: 98 | R18: 99 | S18: 87 | T18: 94 | U18: 13 | V18: 40 | W18: 14 | X18: 7274 | Y18: 77.42416179
A19: SAN BOSCO | B19: 4 | C19: 2766 | D19: 847 | E19: 30.62183659 | F19: 834 | G19: 135 | H19: 12 | I19: 80 | J19: 11 | K19: 30 | L19: 6 | M19: 3 | N19: 21 | O19: 315 | P19: 11 | Q19: 57 | R19: 12 | S19: 26 | T19: 57 | U19: 58 | V19: 9 | W19: 4 | X19: 1919 | Y19: 69.37816341
A20: C P CRISTO REY | B20: 2 | C20: 339 | D20: 23 | E20: 6.784660767 | F20: 22 | G20: 0 | H20: 0 | I20: 0 | J20: 1 | K20: 0 | L20: 0 | M20: 0 | N20: 1 | O20: 8 | P20: 3 | Q20: 2 | R20: 2 | S20: 2 | T20: 2 | U20: 1 | V20: 0 | W20: 1 | X20: 316 | Y20: 93.21533923
A21: DISTRITO 4 CATEDRAL | B21: 22 | C21: 15365 | D21: 3817 | E21: 24.84217377 | F21: 3767 | G21: 718 | H21: 62 | I21: 286 | J21: 23 | K21: 266 | L21: 74 | M21: 14 | N21: 103 | O21: 1241 | P21: 57 | Q21: 239 | R21: 101 | S21: 171 | T21: 386 | U21: 26 | V21: 32 | W21: 18 | X21: 11548 | Y21: 75.15782623
A22: CATEDRAL | B22: 3 | C22: 1555 | D22: 333 | E22: 21.414791 | F22: 328 | G22: 85 | H22: 11 | I22: 37 | J22: 2 | K22: 18 | L22: 12 | M22: 1 | N22: 15 | O22: 75 | P22: 8 | Q22: 15 | R22: 12 | S22: 14 | T22: 22 | U22: 1 | V22: 4 | W22: 1 | X22: 1222 | Y22: 78.585209
A23: GONZÁLEZ VÍQUEZ | B23: 9 | C23: 6704 | D23: 1477 | E23: 22.03162291 | F23: 1461 | G23: 221 | H23: 20 | I23: 105 | J23: 4 | K23: 93 | L23: 30 | M23: 0 | N23: 33 | O23: 494 | P23: 31 | Q23: 121 | R23: 45 | S23: 52 | T23: 199 | U23: 13 | V23: 10 | W23: 6 | X23: 5227 | Y23: 77.96837709
A24: NACIONES UNIDAS | B24: 3 | C24: 1861 | D24: 490 | E24: 26.32993015 | F24: 487 | G24: 144 | H24: 14 | I24: 15 | J24: 6 | K24: 22 | L24: 4 | M24: 2 | N24: 15 | O24: 160 | P24: 6 | Q24: 42 | R24: 11 | S24: 8 | T24: 36 | U24: 2 | V24: 2 | W24: 1 | X24: 1371 | Y24: 73.67006985
A25: BARRIO LUJÁN | B25: 7 | C25: 5245 | D25: 1517 | E25: 28.9227836 | F25: 1491 | G25: 268 | H25: 17 | I25: 129 | J25: 11 | K25: 133 | L25: 28 | M25: 11 | N25: 40 | O25: 512 | P25: 12 | Q25: 61 | R25: 33 | S25: 97 | T25: 129 | U25: 10 | V25: 16 | W25: 10 | X25: 3728 | Y25: 71.0772164
A26: DISTRITO 5 ZAPOTE | B26: 25 | C26: 18461 | D26: 5026 | E26: 27.22496073 | F26: 4972 | G26: 925 | H26: 93 | I26: 452 | J26: 22 | K26: 738 | L26: 48 | M26: 11 | N26: 114 | O26: 1569 | P26: 55 | Q26: 216 | R26: 120 | S26: 124 | T26: 387 | U26: 98 | V26: 36 | W26: 18 | X26: 13435 | Y26: 72.77503927
A27: ZAPOTE | B27: 18 | C27: 13307 | D27: 3514 | E27: 26.40715413 | F27: 3478 | G27: 534 | H27: 72 | I27: 263 | J27: 18 | K27: 604 | L27: 21 | M27: 6 | N27: 69 | O27: 1147 | P27: 46 | Q27: 144 | R27: 71 | S27: 102 | T27: 293 | U27: 88 | V27: 25 | W27: 11 | X27: 9793 | Y27: 73.59284587
A28: CÓRDOBA | B28: 7 | C28: 5154 | D28: 1512 | E28: 29.33643772 | F28: 1494 | G28: 391 | H28: 21 | I28: 189 | J28: 4 | K28: 134 | L28: 27 | M28: 5 | N28: 45 | O28: 422 | P28: 9 | Q28: 72 | R28: 49 | S28: 22 | T28: 94 | U28: 10 | V28: 11 | W28: 7 | X28: 3642 | Y28: 70.66356228
A29: DISTRITO 6 SAN FRANCISCO DE DOS RÍOS | B29: 26 | C29: 18338 | D29: 5270 | E29: 28.73813938 | F29: 5191 | G29: 1097 | H29: 240 | I29: 425 | J29: 31 | K29: 451 | L29: 38 | M29: 22 | N29: 192 | O29: 1507 | P29: 72 | Q29: 246 | R29: 357 | S29: 114 | T29: 321 | U29: 78 | V29: 55 | W29: 24 | X29: 13068 | Y29: 71.26186062
A30: SAN FRANCISCO DE DOS RÍOS | B30: 16 | C30: 11487 | D30: 3262 | E30: 28.39731871 | F30: 3213 | G30: 690 | H30: 119 | I30: 268 | J30: 23 | K30: 267 | L30: 24 | M30: 17 | N30: 113 | O30: 932 | P30: 42 | Q30: 146 | R30: 219 | S30: 72 | T30: 235 | U30: 46 | V30: 33 | W30: 16 | X30: 8225 | Y30: 71.60268129
A31: SANTA MARTA | B31: 10 | C31: 6851 | D31: 2008 | E31: 29.30958984 | F31: 1978 | G31: 407 | H31: 121 | I31: 157 | J31: 8 | K31: 184 | L31: 14 | M31: 5 | N31: 79 | O31: 575 | P31: 30 | Q31: 100 | R31: 138 | S31: 42 | T31: 86 | U31: 32 | V31: 22 | W31: 8 | X31: 4843 | Y31: 70.69041016
A32: DISTRITO 7 URUCA | B32: 27 | C32: 17091 | D32: 4191 | E32: 24.52167808 | F32: 4122 | G32: 778 | H32: 44 | I32: 189 | J32: 23 | K32: 258 | L32: 39 | M32: 11 | N32: 68 | O32: 1424 | P32: 207 | Q32: 221 | R32: 243 | S32: 233 | T32: 321 | U32: 63 | V32: 46 | W32: 23 | X32: 12900 | Y32: 75.47832192
A33: URUCA | B33: 4 | C33: 2886 | D33: 562 | E33: 19.47331947 | F33: 558 | G33: 184 | H33: 4 | I33: 31 | J33: 2 | K33: 30 | L33: 2 | M33: 1 | N33: 20 | O33: 173 | P33: 5 | Q33: 21 | R33: 10 | S33: 22 | T33: 44 | U33: 9 | V33: 4 | W33: 0 | X33: 2324 | Y33: 80.52668053
A34: LA CAJA | B34: 5 | C34: 3045 | D34: 836 | E34: 27.45484401 | F34: 825 | G34: 315 | H34: 10 | I34: 85 | J34: 7 | K34: 33 | L34: 6 | M34: 3 | N34: 15 | O34: 213 | P34: 7 | Q34: 27 | R34: 24 | S34: 22 | T34: 34 | U34: 24 | V34: 7 | W34: 4 | X34: 2209 | Y34: 72.54515599
A35: CORAZÓN DE JESÚS | B35: 2 | C35: 951 | D35: 284 | E35: 29.86330179 | F35: 277 | G35: 13 | H35: 1 | I35: 1 | J35: 0 | K35: 2 | L35: 2 | M35: 1 | N35: 1 | O35: 146 | P35: 0 | Q35: 8 | R35: 55 | S35: 21 | T35: 26 | U35: 0 | V35: 5 | W35: 2 | X35: 667 | Y35: 70.13669821
A36: ROSITER CARBALLO [LAS BRISAS] | B36: 2 | C36: 1071 | D36: 469 | E36: 43.79084967 | F36: 460 | G36: 14 | H36: 1 | I36: 6 | J36: 5 | K36: 14 | L36: 1 | M36: 1 | N36: 8 | O36: 214 | P36: 2 | Q36: 28 | R36: 97 | S36: 34 | T36: 20 | U36: 15 | V36: 6 | W36: 3 | X36: 602 | Y36: 56.20915033
A37: LA CARPIO | B37: 8 | C37: 5541 | D37: 917 | E37: 16.54935932 | F37: 896 | G37: 39 | H37: 12 | I37: 12 | J37: 3 | K37: 116 | L37: 4 | M37: 1 | N37: 8 | O37: 266 | P37: 184 | Q37: 77 | R37: 39 | S37: 86 | T37: 41 | U37: 8 | V37: 14 | W37: 7 | X37: 4624 | Y37: 83.45064068
A38: PEREGRINA | B38: 5 | C38: 3468 | D38: 1103 | E38: 31.80507497 | F38: 1088 | G38: 210 | H38: 15 | I38: 54 | J38: 6 | K38: 63 | L38: 24 | M38: 4 | N38: 15 | O38: 403 | P38: 9 | Q38: 60 | R38: 18 | S38: 48 | T38: 152 | U38: 7 | V38: 8 | W38: 7 | X38: 2365 | Y38: 68.19492503
A39: C S M CAPEMCOL | B39: 1 | C39: 129 | D39: 20 | E39: 15.50387597 | F39: 18 | G39: 3 | H39: 1 | I39: 0 | J39: 0 | K39: 0 | L39: 0 | M39: 0 | N39: 1 | O39: 9 | P39: 0 | Q39: 0 | R39: 0 | S39: 0 | T39: 4 | U39: 0 | V39: 2 | W39: 0 | X39: 109 | Y39: 84.49612403
A40: DISTRITO 8 MATA REDONDA | B40: 11 | C40: 7812 | D40: 2201 | E40: 28.17460317 | F40: 2168 | G40: 600 | H40: 21 | I40: 213 | J40: 6 | K40: 90 | L40: 16 | M40: 1 | N40: 53 | O40: 771 | P40: 17 | Q40: 90 | R40: 86 | S40: 46 | T40: 119 | U40: 39 | V40: 22 | W40: 11 | X40: 5611 | Y40: 71.82539683
A41: MATA REDONDA | B41: 5 | C41: 3601 | D41: 962 | E41: 26.71480144 | F41: 953 | G41: 306 | H41: 8 | I41: 96 | J41: 2 | K41: 33 | L41: 9 | M41: 1 | N41: 28 | O41: 323 | P41: 7 | Q41: 38 | R41: 19 | S41: 16 | T41: 46 | U41: 21 | V41: 6 | W41: 3 | X41: 2639 | Y41: 73.28519856
A42: PERPETUO SOCORRO | B42: 6 | C42: 4211 | D42: 1239 | E42: 29.42293992 | F42: 1215 | G42: 294 | H42: 13 | I42: 117 | J42: 4 | K42: 57 | L42: 7 | M42: 0 | N42: 25 | O42: 448 | P42: 10 | Q42: 52 | R42: 67 | S42: 30 | T42: 73 | U42: 18 | V42: 16 | W42: 8 | X42: 2972 | Y42: 70.57706008
A43: DISTRITO 9 PAVAS | B43: 70 | C43: 51395 | D43: 13336 | E43: 25.94804942 | F43: 13148 | G43: 1481 | H43: 149 | I43: 918 | J43: 158 | K43: 547 | L43: 194 | M43: 21 | N43: 309 | O43: 5398 | P43: 149 | Q43: 911 | R43: 303 | S43: 701 | T43: 1839 | U43: 70 | V43: 155 | W43: 33 | X43: 38059 | Y43: 74.05195058
A44: PAVAS | B44: 20 | C44: 14798 | D44: 4166 | E44: 28.15245303 | F44: 4120 | G44: 952 | H44: 60 | I44: 401 | J44: 40 | K44: 220 | L44: 42 | M44: 8 | N44: 95 | O44: 1360 | P44: 31 | Q44: 195 | R44: 76 | S44: 246 | T44: 365 | U44: 29 | V44: 40 | W44: 6 | X44: 10632 | Y44: 71.84754697
A45: RINCÓN GRANDE | B45: 29 | C45: 21118 | D45: 5115 | E45: 24.22104366 | F45: 5033 | G45: 133 | H45: 43 | I45: 264 | J45: 58 | K45: 132 | L45: 56 | M45: 7 | N45: 73 | O45: 2503 | P45: 73 | Q45: 454 | R45: 90 | S45: 148 | T45: 967 | U45: 32 | V45: 65 | W45: 17 | X45: 16003 | Y45: 75.77895634
A46: MARÍA REINA | B46: 8 | C46: 5849 | D46: 1647 | E46: 28.1586596 | F46: 1626 | G46: 309 | H46: 25 | I46: 149 | J46: 18 | K46: 96 | L46: 10 | M46: 5 | N46: 33 | O46: 600 | P46: 21 | Q46: 92 | R46: 36 | S46: 92 | T46: 137 | U46: 3 | V46: 15 | W46: 6 | X46: 4202 | Y46: 71.8413404
A47: VILLA ESPERANZA | B47: 13 | C47: 9630 | D47: 2408 | E47: 25.00519211 | F47: 2369 | G47: 87 | H47: 21 | I47: 104 | J47: 42 | K47: 99 | L47: 86 | M47: 1 | N47: 108 | O47: 935 | P47: 24 | Q47: 170 | R47: 101 | S47: 215 | T47: 370 | U47: 6 | V47: 35 | W47: 4 | X47: 7222 | Y47: 74.99480789
A48: DISTRITO 10 HATILLO | B48: 61 | C48: 44248 | D48: 10293 | E48: 23.26206834 | F48: 10151 | G48: 855 | H48: 127 | I48: 841 | J48: 99 | K48: 731 | L48: 127 | M48: 288 | N48: 299 | O48: 4359 | P48: 269 | Q48: 606 | R48: 505 | S48: 512 | T48: 399 | U48: 134 | V48: 97 | W48: 45 | X48: 33955 | Y48: 76.73793166
A49: HATILLO | B49: 23 | C49: 17035 | D49: 4206 | E49: 24.69034341 | F49: 4144 | G49: 455 | H49: 55 | I49: 304 | J49: 30 | K49: 315 | L49: 45 | M49: 163 | N49: 131 | O49: 1688 | P49: 140 | Q49: 218 | R49: 229 | S49: 164 | T49: 160 | U49: 47 | V49: 38 | W49: 24 | X49: 12829 | Y49: 75.30965659
A50: SAGRADA FAMILIA | B50: 9 | C50: 6334 | D50: 1255 | E50: 19.81370382 | F50: 1233 | G50: 56 | H50: 11 | I50: 151 | J50: 2 | K50: 77 | L50: 25 | M50: 12 | N50: 12 | O50: 598 | P50: 19 | Q50: 72 | R50: 59 | S50: 51 | T50: 78 | U50: 10 | V50: 20 | W50: 2 | X50: 5079 | Y50: 80.18629618
A51: HATILLO 8 | B51: 22 | C51: 15836 | D51: 3528 | E51: 22.27835312 | F51: 3491 | G51: 277 | H51: 39 | I51: 162 | J51: 36 | K51: 280 | L51: 50 | M51: 88 | N51: 135 | O51: 1589 | P51: 69 | Q51: 214 | R51: 173 | S51: 213 | T51: 104 | U51: 62 | V51: 25 | W51: 12 | X51: 12308 | Y51: 77.72164688
A52: COLONIA 15 DE SETIEMBRE | B52: 7 | C52: 5043 | D52: 1304 | E52: 25.85762443 | F52: 1283 | G52: 67 | H52: 22 | I52: 224 | J52: 31 | K52: 59 | L52: 7 | M52: 25 | N52: 21 | O52: 484 | P52: 41 | Q52: 102 | R52: 44 | S52: 84 | T52: 57 | U52: 15 | V52: 14 | W52: 7 | X52: 3739 | Y52: 74.14237557
A53: DISTRITO 11 SAN SEBASTIÁN | B53: 44 | C53: 30765 | D53: 7567 | E53: 24.59613197 | F53: 7467 | G53: 874 | H53: 129 | I53: 566 | J53: 132 | K53: 661 | L53: 113 | M53: 62 | N53: 124 | O53: 2747 | P53: 138 | Q53: 570 | R53: 400 | S53: 281 | T53: 497 | U53: 173 | V53: 81 | W53: 19 | X53: 23198 | Y53: 75.40386803
A54: SAN SEBASTIÁN | B54: 16 | C54: 11360 | D54: 2849 | E54: 25.07922535 | F54: 2816 | G54: 296 | H54: 46 | I54: 292 | J54: 52 | K54: 175 | L54: 38 | M54: 38 | N54: 43 | O54: 1125 | P54: 50 | Q54: 220 | R54: 87 | S54: 99 | T54: 199 | U54: 56 | V54: 29 | W54: 4 | X54: 8511 | Y54: 74.92077465
A55: PASO ANCHO SUR | B55: 14 | C55: 9780 | D55: 2295 | E55: 23.46625767 | F55: 2259 | G55: 269 | H55: 42 | I55: 112 | J55: 34 | K55: 257 | L55: 42 | M55: 9 | N55: 44 | O55: 782 | P55: 28 | Q55: 169 | R55: 158 | S55: 106 | T55: 177 | U55: 30 | V55: 29 | W55: 7 | X55: 7485 | Y55: 76.53374233
A56: PASO ANCHO NORTE | B56: 9 | C56: 6101 | D56: 1490 | E56: 24.42222586 | F56: 1472 | G56: 178 | H56: 26 | I56: 99 | J56: 40 | K56: 130 | L56: 20 | M56: 6 | N56: 29 | O56: 538 | P56: 34 | Q56: 110 | R56: 81 | S56: 48 | T56: 69 | U56: 64 | V56: 12 | W56: 6 | X56: 4611 | Y56: 75.57777414
A57: COLONIA KENNEDY | B57: 5 | C57: 3524 | D57: 933 | E57: 26.47559591 | F57: 920 | G57: 131 | H57: 15 | I57: 63 | J57: 6 | K57: 99 | L57: 13 | M57: 9 | N57: 8 | O57: 302 | P57: 26 | Q57: 71 | R57: 74 | S57: 28 | T57: 52 | U57: 23 | V57: 11 | W57: 2 | X57: 2591 | Y57: 73.52440409
A60: Fuente: Tribunal Supremo de Elecciones.

Sheet 2.10
A2: CUADRO 2.10 CANTÓN ESCAZÚ: JUNTAS, ELECTORADO, PARTICIPACIÓN, VOTOS POR PARTIDO, NULOS, BLANCOS Y ABSTENCIONISMO PARA ALCALDÍAS Y VICEALCALDÍAS
A3: SEGÚN DISTRITO ADMINISTRATIVO Y ELECTORAL, ELECCIONES MUNICIPALES FEBRERO 2020
A5: DISTRITO ADMINISTRATIVO Y ELECTORAL | B5: JUNTAS | C5: ELECTORADO | D5: VOTOS RECIBIDOS | S5: ABSTENCIONISMO
D6: TOTAL GENERAL | E6: % PARTICIPACIÓN | F6: VOTOS POR PARTIDO | Q6: VOTOS NULOS | R6: VOTOS BLANCOS | S6: ABSOLUTO | T6: %
F7: TOTAL | G7: LIBERACIÓN NACIONAL | H7: NUESTRO PUEBLO | I7: NUEVA GENERACIÓN | J7: NUEVA REPÚBLICA | K7: RESTAURACIÓN NACIONAL | L7: TERRA ESCAZÚ | M7: UNIDAD SOCIAL CRISTIANA | N7: UNIDOS PODEMOS | O7: UNIDOS POR ESCAZÚ | P7: YUNTA PROGRESISTA ESCAZUCEÑA
A8: TOTAL CANTÓN | B8: =+B9+B11+B15 -> 68 | C8: =+C9+C11+C15 -> 48909 | D8: 20621 | E8: =+D8/C8*100 -> 42.16197428 | F8: 20353 | G8: 1114 | H8: 220 | I8: 8309 | J8: 164 | K8: 113 | L8: 2218 | M8: 1064 | N8: 224 | O8: 1084 | P8: 5843 | Q8: 212 | R8: 56 | S8: 28288 | T8: =+S8/C8*100 -> 57.83802572
A9: DISTRITO 1 ESCAZÚ | B9: 17 | C9: 12554 | D9: 5988 | E9: 47.69794488 | F9: 5907 | G9: 318 | H9: 66 | I9: 2470 | J9: 52 | K9: 31 | L9: 722 | M9: 198 | N9: 57 | O9: 453 | P9: 1540 | Q9: 67 | R9: 14 | S9: 6566 | T9: =+S9/C9*100 -> 52.30205512
A10: ESCAZÚ | B10: 17 | C10: 12554 | D10: 5988 | E10: 47.69794488 | F10: 5907 | G10: 318 | H10: 66 | I10: 2470 | J10: 52 | K10: 31 | L10: 722 | M10: 198 | N10: 57 | O10: 453 | P10: 1540 | Q10: 67 | R10: 14 | S10: 6566 | T10: =+S10/C10*100 -> 52.30205512
A11: DISTRITO 2 SAN ANTONIO | B11: 22 | C11: 15931 | D11: 7281 | E11: 45.70334568 | F11: 7166 | G11: 211 | H11: 101 | I11: 3396 | J11: 45 | K11: 34 | L11: 581 | M11: 212 | N11: 109 | O11: 317 | P11: 2160 | Q11: 90 | R11: 25 | S11: 8650 | T11: 54.29665432
A12: SAN ANTONIO | B12: 17 | C12: 12451 | D12: 5677 | E12: 45.59473135 | F12: 5588 | G12: 176 | H12: 76 | I12: 2634 | J12: 38 | K12: 26 | L12: 478 | M12: 153 | N12: 78 | O12: 254 | P12: 1675 | Q12: 71 | R12: 18 | S12: 6774 | T12: 54.40526865
A13: BEBEDERO O SAN FRANCISCO | B13: 1 | C13: 608 | D13: 278 | E13: 45.72368421 | F13: 272 | G13: 7 | H13: 1 | I13: 116 | J13: 0 | K13: 1 | L13: 8 | M13: 14 | N13: 9 | O13: 18 | P13: 98 | Q13: 4 | R13: 2 | S13: 330 | T13: 54.27631579
A14: CARMEN [CHIVERRAL] | B14: 4 | C14: 2872 | D14: 1326 | E14: 46.16991643 | F14: 1306 | G14: 28 | H14: 24 | I14: 646 | J14: 7 | K14: 7 | L14: 95 | M14: 45 | N14: 22 | O14: 45 | P14: 387 | Q14: 15 | R14: 5 | S14: 1546 | T14: 53.83008357
A15: DISTRITO 3 SAN RAFAEL | B15: 29 | C15: 20424 | D15: 7352 | E15: 35.99686643 | F15: 7280 | G15: 585 | H15: 53 | I15: 2443 | J15: 67 | K15: 48 | L15: 915 | M15: 654 | N15: 58 | O15: 314 | P15: 2143 | Q15: 55 | R15: 17 | S15: 13072 | T15: 64.00313357
A16: SAN RAFAEL | B16: 13 | C16: 9682 | D16: 3279 | E16: 33.86696963 | F16: 3251 | G16: 279 | H16: 18 | I16: 796 | J16: 28 | K16: 23 | L16: 524 | M16: 378 | N16: 16 | O16: 182 | P16: 1007 | Q16: 22 | R16: 6 | S16: 6403 | T16: 66.13303037
A17: GUACHIPELÍN [SAN GABRIEL] | B17: 9 | C17: 6422 | D17: 2388 | E17: 37.18467767 | F17: 2361 | G17: 196 | H17: 28 | I17: 987 | J17: 29 | K17: 7 | L17: 196 | M17: 164 | N17: 26 | O17: 49 | P17: 679 | Q17: 22 | R17: 5 | S17: 4034 | T17: 62.81532233
A18: BELO HORIZONTE NORTE | B18: 6 | C18: 4272 | D18: 1664 | E18: 38.95131086 | F18: 1649 | G18: 106 | H18: 7 | I18: 659 | J18: 10 | K18: 16 | L18: 191 | M18: 109 | N18: 15 | O18: 83 | P18: 453 | Q18: 11 | R18: 4 | S18: 2608 | T18: 61.04868914
A19: H A MAGDALA | B19: 1 | C19: 48 | D19: 21 | E19: 43.75 | F19: 19 | G19: 4 | H19: 0 | I19: 1 | J19: 0 | K19: 2 | L19: 4 | M19: 3 | N19: 1 | O19: 0 | P19: 4 | Q19: 0 | R19: 2 | S19: 27 | T19: 56.25
A21: Fuente: Tribunal Supremo de Elecciones.

Sheet 2.11
A2: CUADRO 2.11 CANTÓN DESAMPARADOS: JUNTAS, ELECTORADO, PARTICIPACIÓN, VOTOS POR PARTIDO, NULOS, BLANCOS Y ABSTENCIONISMO PARA ALCALDÍAS Y VICEALCALDÍAS
A3: SEGÚN DISTRITO ADMINISTRATIVO Y ELECTORAL, ELECCIONES MUNICIPALES FEBRERO 2020
A5: DISTRITO ADMINISTRATIVO Y ELECTORAL | B5: JUNTAS | C5: ELECTORADO | D5: VOTOS RECIBIDOS | W5: ABSTENCIONISMO
D6: TOTAL GENERAL | E6: % PARTICIPACIÓN | F6: VOTOS POR PARTIDO | U6: VOTOS NULOS | V6: VOTOS BLANCOS | W6: ABSOLUTO | X6: %
F7: TOTAL | G7: ACCIÓN CIUDADANA | H7: COMUNAL UNIDO | I7: ECOLÓGICO COMUNAL COSTARRICENSE | J7: FRENTE AMPLIO | K7: INTEGRACIÓN NACIONAL | L7: LIBERACIÓN NACIONAL | M7: LIBERAL PROGRESISTA | N7: NUESTRO PUEBLO | O7: NUEVA GENERACIÓN | P7: NUEVA REPÚBLICA | Q7: REPUBLICANO SOCIAL CRISTIANO | R7: RESTAURACIÓN NACIONAL | S7: UNIDAD SOCIAL CRISTIANA | T7: UNIDOS PODEMOS
A8: TOTAL CANTÓN | B8: =SUM(B9:B61)/2 -> 241 | C8: =SUM(C9:C61)/2 -> 163719 | D8: 44772 | E8: =+D8/C8*100 -> 27.3468565 | F8: 44105 | G8: =SUM(G9:G61)/2 -> 1147 | H8: =SUM(H9:H61)/2 -> 303 | I8: =SUM(I9:I61)/2 -> 1983 | J8: =SUM(J9:J61)/2 -> 1348 | K8: =SUM(K9:K61)/2 -> 378 | L8: =SUM(L9:L61)/2 -> 21298 | M8: =SUM(M9:M61)/2 -> 207 | N8: =SUM(N9:N61)/2 -> 7198 | O8: =SUM(O9:O61)/2 -> 656 | P8: =SUM(P9:P61)/2 -> 2810 | Q8: =SUM(Q9:Q61)/2 -> 556 | R8: =SUM(R9:R61)/2 -> 960 | S8: =SUM(S9:S61)/2 -> 1553 | T8: =SUM(T9:T61)/2 -> 3708 | U8: =SUM(U9:U61)/2 -> 480 | V8: =SUM(V9:V61)/2 -> 187 | W8: =SUM(W9:W61)/2 -> 118947 | X8: =+W8/C8*100 -> 72.6531435
A9: DISTRITO 1 DESAMPARADOS | B9: 44 | C9: 31049 | D9: 8115 | E9: 26.13610744 | F9: 8021 | G9: 260 | H9: 80 | I9: 494 | J9: 296 | K9: 52 | L9: 3846 | M9: 49 | N9: 966 | O9: 259 | P9: 551 | Q9: 67 | R9: 135 | S9: 363 | T9: 603 | U9: 67 | V9: 27 | W9: 22934 | X9: =+W9/C9*100 -> 73.86389256
A10: DESAMPARADOS | B10: 14 | C10: 9916 | D10: 3050 | E10: 30.75837031 | F10: 3020 | G10: 120 | H10: 43 | I10: 157 | J10: 127 | K10: 10 | L10: 1613 | M10: 21 | N10: 302 | O10: 41 | P10: 177 | Q10: 24 | R10: 42 | S10: 127 | T10: 216 | U10: 22 | V10: 8 | W10: 6866 | X10: =+W10/C10*100 -> 69.24162969
A11: CALLE FALLAS | B11: 20 | C11: 14533 | D11: 3526 | E11: 24.26202436 | F11: 3477 | G11: 90 | H11: 29 | I11: 262 | J11: 114 | K11: 29 | L11: 1511 | M11: 21 | N11: 496 | O11: 189 | P11: 240 | Q11: 29 | R11: 68 | S11: 168 | T11: 231 | U11: 33 | V11: 16 | W11: 11007 | X11: 75.73797564
A12: SAN JERÓNIMO | B12: 9 | C12: 6537 | D12: 1493 | E12: 22.83922289 | F12: 1481 | G12: 50 | H12: 8 | I12: 75 | J12: 54 | K12: 13 | L12: 685 | M12: 7 | N12: 168 | O12: 29 | P12: 134 | Q12: 13 | R12: 25 | S12: 65 | T12: 155 | U12: 10 | V12: 2 | W12: 5044 | X12: 77.16077711
A13: H A OFELIA CARVAJAL DE NARANJO | B13: 1 | C13: 63 | D13: 46 | E13: 73.01587302 | F13: 43 | G13: 0 | H13: 0 | I13: 0 | J13: 1 | K13: 0 | L13: 37 | M13: 0 | N13: 0 | O13: 0 | P13: 0 | Q13: 1 | R13: 0 | S13: 3 | T13: 1 | U13: 2 | V13: 1 | W13: 17 | X13: 26.98412698
A14: DISTRITO 2 SAN MIGUEL | B14: 44 | C14: 29419 | D14: 8597 | E14: 29.22261124 | F14: 8476 | G14: 106 | H14: 42 | I14: 193 | J14: 175 | K14: 94 | L14: 4361 | M14: 23 | N14: 1629 | O14: 97 | P14: 643 | Q14: 145 | R14: 131 | S14: 204 | T14: 633 | U14: 87 | V14: 34 | W14: 20822 | X14: 70.77738876
A15: SAN MIGUEL | B15: 13 | C15: 9153 | D15: 2344 | E15: 25.60908992 | F15: 2306 | G15: 34 | H15: 15 | I15: 44 | J15: 52 | K15: 22 | L15: 1000 | M15: 7 | N15: 604 | O15: 21 | P15: 162 | Q15: 50 | R15: 39 | S15: 71 | T15: 185 | U15: 27 | V15: 11 | W15: 6809 | X15: 74.39091008
A16: JERICÓ | B16: 2 | C16: 987 | D16: 462 | E16: 46.80851064 | F16: 456 | G16: 7 | H16: 2 | I16: 2 | J16: 12 | K16: 4 | L16: 365 | M16: 2 | N16: 18 | O16: 3 | P16: 14 | Q16: 0 | R16: 2 | S16: 7 | T16: 18 | U16: 3 | V16: 3 | W16: 525 | X16: 53.19148936
A17: HIGUITO | B17: 13 | C17: 9545 | D17: 2791 | E17: 29.24044002 | F17: 2762 | G17: 32 | H17: 14 | I17: 54 | J17: 44 | K17: 37 | L17: 1509 | M17: 8 | N17: 460 | O17: 47 | P17: 300 | Q17: 12 | R17: 52 | S17: 49 | T17: 144 | U17: 22 | V17: 7 | W17: 6754 | X17: 70.75955998
A18: PACAYA | B18: 1 | C18: 94 | D18: 69 | E18: 73.40425532 | F18: 69 | G18: 0 | H18: 0 | I18: 0 | J18: 0 | K18: 0 | L18: 55 | M18: 0 | N18: 2 | O18: 0 | P18: 4 | Q18: 0 | R18: 0 | S18: 1 | T18: 7 | U18: 0 | V18: 0 | W18: 25 | X18: 26.59574468
A19: EL LLANO | B19: 5 | C19: 3409 | D19: 1113 | E19: 32.64887064 | F19: 1101 | G19: 15 | H19: 5 | I19: 17 | J19: 33 | K19: 7 | L19: 677 | M19: 4 | N19: 149 | O19: 19 | P19: 66 | Q19: 10 | R19: 10 | S19: 21 | T19: 68 | U19: 10 | V19: 2 | W19: 2296 | X19: 67.35112936
A20: MANZANO [MANZANILLO] | B20: 1 | C20: 181 | D20: 92 | E20: 50.82872928 | F20: 91 | G20: 3 | H20: 0 | I20: 0 | J20: 1 | K20: 0 | L20: 72 | M20: 0 | N20: 6 | O20: 0 | P20: 1 | Q20: 3 | R20: 1 | S20: 2 | T20: 2 | U20: 0 | V20: 1 | W20: 89 | X20: 49.17127072
A21: LAS LOMAS | B21: 2 | C21: 945 | D21: 321 | E21: 33.96825397 | F21: 315 | G21: 2 | H21: 1 | I21: 2 | J21: 9 | K21: 1 | L21: 195 | M21: 0 | N21: 69 | O21: 0 | P21: 12 | Q21: 1 | R21: 3 | S21: 4 | T21: 16 | U21: 3 | V21: 3 | W21: 624 | X21: 66.03174603
A22: LA CAPRI | B22: 7 | C22: 5105 | D22: 1405 | E22: 27.52203722 | F22: 1376 | G22: 13 | H22: 5 | I22: 74 | J22: 24 | K22: 23 | L22: 488 | M22: 2 | N22: 321 | O22: 7 | P22: 84 | Q22: 69 | R22: 24 | S22: 49 | T22: 193 | U22: 22 | V22: 7 | W22: 3700 | X22: 72.47796278
A23: DISTRITO 3 SAN JUAN DE DIOS | B23: 18 | C23: 13354 | D23: 2935 | E23: 21.97843343 | F23: 2897 | G23: 69 | H23: 31 | I23: 127 | J23: 45 | K23: 16 | L23: 1233 | M23: 10 | N23: 685 | O23: 19 | P23: 177 | Q23: 26 | R23: 76 | S23: 154 | T23: 229 | U23: 29 | V23: 9 | W23: 10419 | X23: 78.02156657
A24: SAN JUAN DE DIOS | B24: 18 | C24: 13354 | D24: 2935 | E24: 21.97843343 | F24: 2897 | G24: 69 | H24: 31 | I24: 127 | J24: 45 | K24: 16 | L24: 1233 | M24: 10 | N24: 685 | O24: 19 | P24: 177 | Q24: 26 | R24: 76 | S24: 154 | T24: 229 | U24: 29 | V24: 9 | W24: 10419 | X24: 78.02156657
A25: DISTRITO 4 SAN RAFAEL ARRIBA | B25: 19 | C25: 11806 | D25: 3033 | E25: 25.69032695 | F25: 2984 | G25: 83 | H25: 17 | I25: 127 | J25: 99 | K25: 21 | L25: 1408 | M25: 15 | N25: 359 | O25: 40 | P25: 183 | Q25: 17 | R25: 49 | S25: 145 | T25: 421 | U25: 35 | V25: 14 | W25: 8773 | X25: 74.30967305
A26: SAN RAFAEL ARRIBA | B26: 16 | C26: 11359 | D26: 2934 | E26: 25.82973853 | F26: 2894 | G26: 80 | H26: 15 | I26: 125 | J26: 97 | K26: 19 | L26: 1375 | M26: 12 | N26: 359 | O26: 31 | P26: 172 | Q26: 14 | R26: 41 | S26: 133 | T26: 421 | U26: 27 | V26: 13 | W26: 8425 | X26: 74.17026147
A27: C P VILMA CURLING RIVERA | B27: 1 | C27: 374 | D27: 79 | E27: 21.12299465 | F27: 73 | G27: 2 | H27: 1 | I27: 0 | J27: 2 | K27: 1 | L27: 30 | M27: 3 | N27: 0 | O27: 4 | P27: 10 | Q27: 1 | R27: 7 | S27: 12 | T27: 0 | U27: 5 | V27: 1 | W27: 295 | X27: 78.87700535
A28: H A SAN CAYETANO | B28: 1 | C28: 43 | D28: 9 | E28: 20.93023256 | F28: 8 | G28: 0 | H28: 1 | I28: 1 | J28: 0 | K28: 1 | L28: 2 | M28: 0 | N28: 0 | O28: 0 | P28: 1 | Q28: 2 | R28: 0 | S28: 0 | T28: 0 | U28: 1 | V28: 0 | W28: 34 | X28: 79.06976744
A29: H A CG MANANTIAL DE VIDA SAN RAFAEL | B29: 1 | C29: 30 | D29: 11 | E29: 36.66666667 | F29: 9 | G29: 1 | H29: 0 | I29: 1 | J29: 0 | K29: 0 | L29: 1 | M29: 0 | N29: 0 | O29: 5 | P29: 0 | Q29: 0 | R29: 1 | S29: 0 | T29: 0 | U29: 2 | V29: 0 | W29: 19 | X29: 63.33333333
A30: DISTRITO 5 SAN ANTONIO | B30: 13 | C30: 9373 | D30: 2638 | E30: 28.14467086 | F30: 2602 | G30: 122 | H30: 14 | I30: 258 | J30: 153 | K30: 11 | L30: 1108 | M30: 15 | N30: 227 | O30: 45 | P30: 166 | Q30: 72 | R30: 33 | S30: 91 | T30: 287 | U30: 22 | V30: 14 | W30: 6735 | X30: 71.85532914
A31: SAN ANTONIO | B31: 13 | C31: 9373 | D31: 2638 | E31: 28.14467086 | F31: 2602 | G31: 122 | H31: 14 | I31: 258 | J31: 153 | K31: 11 | L31: 1108 | M31: 15 | N31: 227 | O31: 45 | P31: 166 | Q31: 72 | R31: 33 | S31: 91 | T31: 287 | U31: 22 | V31: 14 | W31: 6735 | X31: 71.85532914
A32: DISTRITO 6 FRAILES | B32: 6 | C32: 3032 | D32: 1273 | E32: 41.98548813 | F32: 1248 | G32: 29 | H32: 9 | I32: 21 | J32: 8 | K32: 2 | L32: 930 | M32: 0 | N32: 104 | O32: 1 | P32: 20 | Q32: 1 | R32: 14 | S32: 27 | T32: 82 | U32: 12 | V32: 13 | W32: 1759 | X32: 58.01451187
A33: FRAILES | B33: 3 | C33: 1897 | D33: 750 | E33: 39.53610965 | F33: 736 | G33: 25 | H33: 5 | I33: 20 | J33: 6 | K33: 1 | L33: 491 | M33: 0 | N33: 85 | O33: 1 | P33: 11 | Q33: 1 | R33: 8 | S33: 19 | T33: 63 | U33: 6 | V33: 8 | W33: 1147 | X33: 60.46389035
A34: BUSTAMANTE O ALCIRA | B34: 2 | C34: 923 | D34: 410 | E34: 44.42036836 | F34: 401 | G34: 4 | H34: 4 | I34: 1 | J34: 2 | K34: 1 | L34: 343 | M34: 0 | N34: 9 | O34: 0 | P34: 9 | Q34: 0 | R34: 4 | S34: 8 | T34: 16 | U34: 5 | V34: 4 | W34: 513 | X34: 55.57963164
A35: VIOLETA [RINCÓN MORALES] | B35: 1 | C35: 212 | D35: 113 | E35: 53.30188679 | F35: 111 | G35: 0 | H35: 0 | I35: 0 | J35: 0 | K35: 0 | L35: 96 | M35: 0 | N35: 10 | O35: 0 | P35: 0 | Q35: 0 | R35: 2 | S35: 0 | T35: 3 | U35: 1 | V35: 1 | W35: 99 | X35: 46.69811321
A36: DISTRITO 7 PATARRÁ | B36: 10 | C36: 7171 | D36: 2101 | E36: 29.29856366 | F36: 2053 | G36: 49 | H36: 6 | I36: 112 | J36: 78 | K36: 24 | L36: 901 | M36: 15 | N36: 436 | O36: 18 | P36: 138 | Q36: 40 | R36: 37 | S36: 86 | T36: 113 | U36: 33 | V36: 15 | W36: 5070 | X36: 70.70143634
A37: PATARRÁ | B37: 5 | C37: 3437 | D37: 1134 | E37: 32.99389002 | F37: 1111 | G37: 32 | H37: 3 | I37: 67 | J37: 42 | K37: 9 | L37: 546 | M37: 5 | N37: 200 | O37: 10 | P37: 56 | Q37: 33 | R37: 14 | S37: 52 | T37: 42 | U37: 15 | V37: 8 | W37: 2303 | X37: 67.00610998
A38: GUATUSO | B38: 5 | C38: 3734 | D38: 967 | E38: 25.89716122 | F38: 942 | G38: 17 | H38: 3 | I38: 45 | J38: 36 | K38: 15 | L38: 355 | M38: 10 | N38: 236 | O38: 8 | P38: 82 | Q38: 7 | R38: 23 | S38: 34 | T38: 71 | U38: 18 | V38: 7 | W38: 2767 | X38: 74.10283878
A39: DISTRITO 8 SAN CRISTÓBAL | B39: 7 | C39: 3306 | D39: 1543 | E39: 46.67271627 | F39: 1514 | G39: 68 | H39: 11 | I39: 13 | J39: 6 | K39: 8 | L39: 1010 | M39: 3 | N39: 308 | O39: 6 | P39: 5 | Q39: 4 | R39: 5 | S39: 19 | T39: 48 | U39: 18 | V39: 11 | W39: 1763 | X39: 53.32728373
A40: SAN CRISTÓBAL SUR | B40: 2 | C40: 904 | D40: 441 | E40: 48.78318584 | F40: 433 | G40: 41 | H40: 4 | I40: 5 | J40: 2 | K40: 5 | L40: 252 | M40: 2 | N40: 91 | O40: 4 | P40: 1 | Q40: 2 | R40: 2 | S40: 11 | T40: 11 | U40: 4 | V40: 4 | W40: 463 | X40: 51.21681416
A41: SAN CRISTÓBAL NORTE | B41: 2 | C41: 889 | D41: 484 | E41: 54.4431946 | F41: 479 | G41: 0 | H41: 2 | I41: 0 | J41: 0 | K41: 1 | L41: 411 | M41: 0 | N41: 31 | O41: 0 | P41: 0 | Q41: 1 | R41: 2 | S41: 2 | T41: 29 | U41: 3 | V41: 2 | W41: 405 | X41: 45.5568054
A42: CRISTO REY | B42: 2 | C42: 1046 | D42: 434 | E42: 41.49139579 | F42: 424 | G42: 25 | H42: 3 | I42: 5 | J42: 1 | K42: 2 | L42: 206 | M42: 1 | N42: 168 | O42: 1 | P42: 3 | Q42: 1 | R42: 1 | S42: 2 | T42: 5 | U42: 7 | V42: 3 | W42: 612 | X42: 58.50860421
A43: EMPALME ARRIBA GUARIA [PARTE OESTE] | B43: 1 | C43: 467 | D43: 184 | E43: 39.40042827 | F43: 178 | G43: 2 | H43: 2 | I43: 3 | J43: 3 | K43: 0 | L43: 141 | M43: 0 | N43: 18 | O43: 1 | P43: 1 | Q43: 0 | R43: 0 | S43: 4 | T43: 3 | U43: 4 | V43: 2 | W43: 283 | X43: 60.59957173
A44: DISTRITO 9 ROSARIO | B44: 8 | C44: 3134 | D44: 1284 | E44: 40.97000638 | F44: 1261 | G44: 18 | H44: 6 | I44: 10 | J44: 8 | K44: 9 | L44: 863 | M44: 0 | N44: 238 | O44: 4 | P44: 18 | Q44: 2 | R44: 8 | S44: 7 | T44: 70 | U44: 16 | V44: 7 | W44: 1850 | X44: 59.02999362
A45: ROSARIO | B45: 3 | C45: 1540 | D45: 598 | E45: 38.83116883 | F45: 589 | G45: 6 | H45: 3 | I45: 4 | J45: 3 | K45: 5 | L45: 396 | M45: 0 | N45: 112 | O45: 2 | P45: 6 | Q45: 0 | R45: 4 | S45: 3 | T45: 45 | U45: 4 | V45: 5 | W45: 942 | X45: 61.16883117
A46: GUADARRAMA | B46: 1 | C46: 339 | D46: 115 | E46: 33.92330383 | F46: 113 | G46: 1 | H46: 0 | I46: 0 | J46: 0 | K46: 1 | L46: 71 | M46: 0 | N46: 40 | O46: 0 | P46: 0 | Q46: 0 | R46: 0 | S46: 0 | T46: 0 | U46: 2 | V46: 0 | W46: 224 | X46: 66.07669617
A47: LA JOYA | B47: 1 | C47: 169 | D47: 64 | E47: 37.86982249 | F47: 63 | G47: 0 | H47: 0 | I47: 0 | J47: 1 | K47: 0 | L47: 48 | M47: 0 | N47: 12 | O47: 0 | P47: 0 | Q47: 0 | R47: 0 | S47: 0 | T47: 2 | U47: 1 | V47: 0 | W47: 105 | X47: 62.13017751
A48: TRINIDAD [PARTE ESTE] | B48: 1 | C48: 724 | D48: 253 | E48: 34.94475138 | F48: 246 | G48: 5 | H48: 2 | I48: 5 | J48: 2 | K48: 1 | L48: 132 | M48: 0 | N48: 60 | O48: 0 | P48: 10 | Q48: 1 | R48: 3 | S48: 2 | T48: 23 | U48: 7 | V48: 0 | W48: 471 | X48: 65.05524862
A49: LLANO BONITO | B49: 1 | C49: 133 | D49: 97 | E49: 72.93233083 | F49: 94 | G49: 1 | H49: 0 | I49: 0 | J49: 0 | K49: 0 | L49: 86 | M49: 0 | N49: 5 | O49: 0 | P49: 0 | Q49: 0 | R49: 1 | S49: 1 | T49: 0 | U49: 1 | V49: 2 | W49: 36 | X49: 27.06766917
A50: CHIROGRES | B50: 1 | C50: 229 | D50: 157 | E50: 68.55895197 | F50: 156 | G50: 5 | H50: 1 | I50: 1 | J50: 2 | K50: 2 | L50: 130 | M50: 0 | N50: 9 | O50: 2 | P50: 2 | Q50: 1 | R50: 0 | S50: 1 | T50: 0 | U50: 1 | V50: 0 | W50: 72 | X50: 31.44104803
A51: DISTRITO 10 DAMAS | B51: 13 | C51: 9335 | D51: 2682 | E51: 28.73058382 | F51: 2631 | G51: 83 | H51: 16 | I51: 158 | J51: 111 | K51: 23 | L51: 1247 | M51: 14 | N51: 330 | O51: 43 | P51: 210 | Q51: 15 | R51: 65 | S51: 113 | T51: 203 | U51: 38 | V51: 13 | W51: 6653 | X51: 71.26941618
A52: FÁTIMA DE DAMAS | B52: 4 | C52: 2682 | D52: 861 | E52: 32.10290828 | F52: 843 | G52: 34 | H52: 3 | I52: 71 | J52: 38 | K52: 4 | L52: 419 | M52: 6 | N52: 94 | O52: 11 | P52: 55 | Q52: 9 | R52: 15 | S52: 52 | T52: 32 | U52: 11 | V52: 7 | W52: 1821 | X52: 67.89709172
A53: SAN LORENZO | B53: 9 | C53: 6653 | D53: 1821 | E53: 27.37111078 | F53: 1788 | G53: 49 | H53: 13 | I53: 87 | J53: 73 | K53: 19 | L53: 828 | M53: 8 | N53: 236 | O53: 32 | P53: 155 | Q53: 6 | R53: 50 | S53: 61 | T53: 171 | U53: 27 | V53: 6 | W53: 4832 | X53: 72.62888922
A54: DISTRITO 11 SAN RAFAEL ABAJO | B54: 23 | C54: 16465 | D54: 3550 | E54: 21.56088673 | F54: 3498 | G54: 115 | H54: 25 | I54: 107 | J54: 127 | K54: 35 | L54: 1589 | M54: 30 | N54: 513 | O54: 37 | P54: 253 | Q54: 120 | R54: 203 | S54: 151 | T54: 193 | U54: 41 | V54: 11 | W54: 12915 | X54: 78.43911327
A55: SAN RAFAEL ABAJO | B55: 15 | C55: 11099 | D55: 2282 | E55: 20.56041085 | F55: 2244 | G55: 83 | H55: 14 | I55: 77 | J55: 85 | K55: 18 | L55: 1020 | M55: 18 | N55: 337 | O55: 24 | P55: 147 | Q55: 58 | R55: 122 | S55: 110 | T55: 131 | U55: 31 | V55: 7 | W55: 8817 | X55: 79.43958915
A56: VALENCIA | B56: 8 | C56: 5366 | D56: 1268 | E56: 23.63026463 | F56: 1254 | G56: 32 | H56: 11 | I56: 30 | J56: 42 | K56: 17 | L56: 569 | M56: 12 | N56: 176 | O56: 13 | P56: 106 | Q56: 62 | R56: 81 | S56: 41 | T56: 62 | U56: 10 | V56: 4 | W56: 4098 | X56: 76.36973537
A57: DISTRITO 12 GRAVILIAS | B57: 18 | C57: 12969 | D57: 4270 | E57: 32.92466651 | F57: 4219 | G57: 113 | H57: 21 | I57: 310 | J57: 196 | K57: 58 | L57: 1963 | M57: 33 | N57: 563 | O57: 50 | P57: 243 | Q57: 26 | R57: 63 | S57: 135 | T57: 445 | U57: 39 | V57: 12 | W57: 8699 | X57: 67.07533349
A58: GRAVILIAS | B58: 10 | C58: 7305 | D58: 2377 | E58: 32.53935661 | F58: 2346 | G58: 74 | H58: 15 | I58: 126 | J58: 76 | K58: 46 | L58: 1227 | M58: 19 | N58: 286 | O58: 27 | P58: 159 | Q58: 13 | R58: 43 | S58: 70 | T58: 165 | U58: 24 | V58: 7 | W58: 4928 | X58: 67.46064339
A59: EL PORVENIR | B59: 8 | C59: 5664 | D59: 1893 | E59: 33.42161017 | F59: 1873 | G59: 39 | H59: 6 | I59: 184 | J59: 120 | K59: 12 | L59: 736 | M59: 14 | N59: 277 | O59: 23 | P59: 84 | Q59: 13 | R59: 20 | S59: 65 | T59: 280 | U59: 15 | V59: 5 | W59: 3771 | X59: 66.57838983
A60: DISTRITO 13 LOS GUIDO | B60: 18 | C60: 13306 | D60: 2751 | E60: 20.67488351 | F60: 2701 | G60: 32 | H60: 25 | I60: 53 | J60: 46 | K60: 25 | L60: 839 | M60: 0 | N60: 840 | O60: 37 | P60: 203 | Q60: 21 | R60: 141 | S60: 58 | T60: 381 | U60: 43 | V60: 7 | W60: 10555 | X60: 79.32511649
A61: LOS GUIDO | B61: 18 | C61: 13306 | D61: 2751 | E61: 20.67488351 | F61: 2701 | G61: 32 | H61: 25 | I61: 53 | J61: 46 | K61: 25 | L61: 839 | M61: 0 | N61: 840 | O61: 37 | P61: 203 | Q61: 21 | R61: 141 | S61: 58 | T61: 381 | U61: 43 | V61: 7 | W61: 10555 | X61: 79.32511649
A64: Fuente: Tribunal Supremo de Elecciones.

Sheet 2.12
A2: CUADRO 2.12 CANTÓN PURISCAL: JUNTAS, ELECTORADO, PARTICIPACIÓN, VOTOS POR PARTIDO, NULOS, BLANCOS Y ABSTENCIONISMO PARA ALCALDÍAS Y VICEALCALDÍAS
A3: SEGÚN DISTRITO ADMINISTRATIVO Y ELECTORAL, ELECCIONES MUNICIPALES FEBRERO 2020
A5: DISTRITO ADMINISTRATIVO Y ELECTORAL | B5: JUNTAS | C5: ELECTORADO | D5: VOTOS RECIBIDOS | R5: ABSTENCIONISMO
D6: TOTAL GENRAL | E6: % PARTICIPACIÓN | F6: VOTOS POR PARTIDO | P6: VOTOS NULOS | Q6: VOTOS BLANCOS | R6: ABSOLUTO | S6: %
B7: JUNTAS | F7: TOTAL | G7: ACCIÓN CIUDADANA | H7: COMUNAL UNIDO | I7: INTEGRACIÓN NACIONAL | J7: LIBERACIÓN NACIONAL | K7: NUEVA REPÚBLICA | L7: PURISCAL EN MARCHA | M7: RESTAURACIÓN NACIONAL | N7: UNIDAD SOCIAL CRISTIANA | O7: UNIDOS PODEMOS
A8: TOTAL CANTÓN | B8: =+B9+B16+B27+B32+B35+B38+B41+B43+B46 -> 63 | C8: =+C9+C16+C27+C32+C35+C38+C41+C43+C46 -> 29170 | D8: 12639 | E8: =+D8/C8*100 -> 43.32876243 | F8: 12329 | G8: 1671 | H8: 2154 | I8: 348 | J8: 3552 | K8: 214 | L8: 643 | M8: 249 | N8: 3189 | O8: 309 | P8: 200 | Q8: 110 | R8: 16531 | S8: =+R8/C8*100 -> 56.67123757
A9: DISTRITO 1 SANTIAGO | B9: 18 | C9: 10768 | D9: 4568 | E9: 42.42199108 | F9: 4500 | G9: 594 | H9: 726 | I9: 190 | J9: 1195 | K9: 96 | L9: 150 | M9: 103 | N9: 1295 | O9: 151 | P9: 50 | Q9: 18 | R9: 6200 | S9: =+R9/C9*100 -> 57.57800892
A10: SANTIAGO | B10: 12 | C10: 8315 | D10: 3473 | E10: 41.76788936 | F10: 3429 | G10: 477 | H10: 533 | I10: 116 | J10: 930 | K10: 79 | L10: 116 | M10: 92 | N10: 977 | O10: 109 | P10: 32 | Q10: 12 | R10: 4842 | S10: =+R10/C10*100 -> 58.23211064
A11: POZOS | B11: 2 | C11: 923 | D11: 342 | E11: 37.05308776 | F11: 333 | G11: 19 | H11: 43 | I11: 31 | J11: 67 | K11: 4 | L11: 6 | M11: 3 | N11: 159 | O11: 1 | P11: 9 | Q11: 0 | R11: 581 | S11: 62.94691224
A12: CARIT | B12: 1 | C12: 743 | D12: 385 | E12: 51.81695828 | F12: 380 | G12: 57 | H12: 105 | I12: 12 | J12: 95 | K12: 4 | L12: 7 | M12: 4 | N12: 66 | O12: 30 | P12: 3 | Q12: 2 | R12: 358 | S12: 48.18304172
A13: BAJO BADILLA | B13: 1 | C13: 76 | D13: 27 | E13: 35.52631579 | F13: 27 | G13: 0 | H13: 0 | I13: 24 | J13: 3 | K13: 0 | L13: 0 | M13: 0 | N13: 0 | O13: 0 | P13: 0 | Q13: 0 | R13: 49 | S13: 64.47368421
A14: H A CORAZÓN DE JESÚS | B14: 1 | C14: 43 | D14: 17 | E14: 39.53488372 | F14: 14 | G14: 2 | H14: 3 | I14: 0 | J14: 6 | K14: 1 | L14: 1 | M14: 0 | N14: 0 | O14: 1 | P14: 2 | Q14: 1 | R14: 26 | S14: 60.46511628
A15: SANTA CECILIA | B15: 1 | C15: 668 | D15: 324 | E15: 48.50299401 | F15: 317 | G15: 39 | H15: 42 | I15: 7 | J15: 94 | K15: 8 | L15: 20 | M15: 4 | N15: 93 | O15: 10 | P15: 4 | Q15: 3 | R15: 344 | S15: 51.49700599
A16: DISTRITO 2 MERCEDES SUR | B16: 12 | C16: 4722 | D16: 2026 | E16: 42.9055485 | F16: 1975 | G16: 349 | H16: 269 | I16: 45 | J16: 639 | K16: 18 | L16: 85 | M16: 25 | N16: 516 | O16: 29 | P16: 36 | Q16: 15 | R16: 2696 | S16: 57.0944515
A17: MERCEDES SUR | B17: 1 | C17: 555 | D17: 266 | E17: 47.92792793 | F17: 255 | G17: 47 | H17: 22 | I17: 4 | J17: 121 | K17: 1 | L17: 13 | M17: 3 | N17: 42 | O17: 2 | P17: 5 | Q17: 6 | R17: 289 | S17: 52.07207207
A18: MERCEDES NORTE | B18: 2 | C18: 1428 | D18: 577 | E18: 40.40616246 | F18: 561 | G18: 64 | H18: 83 | I18: 11 | J18: 201 | K18: 5 | L18: 27 | M18: 6 | N18: 154 | O18: 10 | P18: 13 | Q18: 3 | R18: 851 | S18: 59.59383754
A19: BOCANA | B19: 1 | C19: 109 | D19: 44 | E19: 40.36697248 | F19: 43 | G19: 3 | H19: 7 | I19: 3 | J19: 10 | K19: 0 | L19: 2 | M19: 0 | N19: 18 | O19: 0 | P19: 1 | Q19: 0 | R19: 65 | S19: 59.63302752
A20: JILGUERAL | B20: 1 | C20: 165 | D20: 83 | E20: 50.3030303 | F20: 81 | G20: 7 | H20: 13 | I20: 1 | J20: 28 | K20: 1 | L20: 1 | M20: 0 | N20: 30 | O20: 0 | P20: 2 | Q20: 0 | R20: 82 | S20: 49.6969697
A21: TÚFARES | B21: 1 | C21: 83 | D21: 51 | E21: 61.44578313 | F21: 49 | G21: 15 | H21: 7 | I21: 1 | J21: 13 | K21: 0 | L21: 0 | M21: 1 | N21: 12 | O21: 0 | P21: 0 | Q21: 2 | R21: 32 | S21: 38.55421687
A22: SALITRALES | B22: 1 | C22: 173 | D22: 81 | E22: 46.82080925 | F22: 79 | G22: 11 | H22: 7 | I22: 0 | J22: 29 | K22: 1 | L22: 1 | M22: 0 | N22: 30 | O22: 0 | P22: 2 | Q22: 0 | R22: 92 | S22: 53.17919075
A23: ALTO LA PALMA | B23: 1 | C23: 295 | D23: 141 | E23: 47.79661017 | F23: 139 | G23: 22 | H23: 20 | I23: 5 | J23: 31 | K23: 1 | L23: 11 | M23: 1 | N23: 48 | O23: 0 | P23: 2 | Q23: 0 | R23: 154 | S23: 52.20338983
A24: LLANO GRANDE | B24: 1 | C24: 117 | D24: 43 | E24: 36.75213675 | F24: 42 | G24: 9 | H24: 4 | I24: 0 | J24: 12 | K24: 1 | L24: 3 | M24: 0 | N24: 13 | O24: 0 | P24: 1 | Q24: 0 | R24: 74 | S24: 63.24786325
A25: SANTA MARTA | B25: 1 | C25: 363 | D25: 167 | E25: 46.00550964 | F25: 166 | G25: 22 | H25: 14 | I25: 1 | J25: 52 | K25: 2 | L25: 9 | M25: 1 | N25: 64 | O25: 1 | P25: 0 | Q25: 1 | R25: 196 | S25: 53.99449036
A26: CERBATANA | B26: 2 | C26: 1434 | D26: 573 | E26: 39.958159 | F26: 560 | G26: 149 | H26: 92 | I26: 19 | J26: 142 | K26: 6 | L26: 18 | M26: 13 | N26: 105 | O26: 16 | P26: 10 | Q26: 3 | R26: 861 | S26: 60.041841
A27: DISTRITO 3 BARBACOAS | B27: 7 | C27: 3800 | D27: 1559 | E27: 41.02631579 | F27: 1520 | G27: 135 | H27: 346 | I27: 49 | J27: 427 | K27: 45 | L27: 85 | M27: 34 | N27: 351 | O27: 48 | P27: 22 | Q27: 17 | R27: 2241 | S27: 58.97368421
A28: BARBACOAS [SAN ISIDRO] | B28: 2 | C28: 1354 | D28: 564 | E28: 41.65435746 | F28: 551 | G28: 62 | H28: 136 | I28: 18 | J28: 98 | K28: 31 | L28: 14 | M28: 17 | N28: 141 | O28: 34 | P28: 5 | Q28: 8 | R28: 790 | S28: 58.34564254
A29: PIEDADES | B29: 2 | C29: 879 | D29: 358 | E29: 40.72810011 | F29: 346 | G29: 32 | H29: 98 | I29: 17 | J29: 63 | K29: 5 | L29: 17 | M29: 4 | N29: 105 | O29: 5 | P29: 7 | Q29: 5 | R29: 521 | S29: 59.27189989
A30: SAN JUAN | B30: 2 | C30: 1169 | D30: 450 | E30: 38.49443969 | F30: 446 | G30: 33 | H30: 98 | I30: 12 | J30: 209 | K30: 8 | L30: 10 | M30: 10 | N30: 59 | O30: 7 | P30: 3 | Q30: 1 | R30: 719 | S30: 61.50556031
A31: CORTEZAL | B31: 1 | C31: 398 | D31: 187 | E31: 46.98492462 | F31: 177 | G31: 8 | H31: 14 | I31: 2 | J31: 57 | K31: 1 | L31: 44 | M31: 3 | N31: 46 | O31: 2 | P31: 7 | Q31: 3 | R31: 211 | S31: 53.01507538
A32: DISTRITO 4 GRIFO ALTO | B32: 3 | C32: 1002 | D32: 606 | E32: 60.47904192 | F32: 582 | G32: 46 | H32: 112 | I32: 9 | J32: 181 | K32: 8 | L32: 32 | M32: 49 | N32: 138 | O32: 7 | P32: 9 | Q32: 15 | R32: 396 | S32: 39.52095808
A33: GRIFO ALTO | B33: 2 | C33: 856 | D33: 514 | E33: 60.04672897 | F33: 494 | G33: 33 | H33: 98 | I33: 8 | J33: 150 | K33: 6 | L33: 30 | M33: 47 | N33: 115 | O33: 7 | P33: 9 | Q33: 11 | R33: 342 | S33: 39.95327103
A34: GRIFO BAJO | B34: 1 | C34: 146 | D34: 92 | E34: 63.01369863 | F34: 88 | G34: 13 | H34: 14 | I34: 1 | J34: 31 | K34: 2 | L34: 2 | M34: 2 | N34: 23 | O34: 0 | P34: 0 | Q34: 4 | R34: 54 | S34: 36.98630137
A35: DISTRITO 5 SAN RAFAEL | B35: 3 | C35: 1344 | D35: 670 | E35: 49.85119048 | F35: 652 | G35: 44 | H35: 120 | I35: 3 | J35: 231 | K35: 2 | L35: 14 | M35: 9 | N35: 197 | O35: 32 | P35: 11 | Q35: 7 | R35: 674 | S35: 50.14880952
A36: SAN RAFAEL ARRIBA | B36: 2 | C36: 1002 | D36: 476 | E36: 47.50499002 | F36: 463 | G36: 40 | H36: 84 | I36: 3 | J36: 174 | K36: 2 | L36: 8 | M36: 9 | N36: 112 | O36: 31 | P36: 8 | Q36: 5 | R36: 526 | S36: 52.49500998
A37: FLORALIA | B37: 1 | C37: 342 | D37: 194 | E37: 56.7251462 | F37: 189 | G37: 4 | H37: 36 | I37: 0 | J37: 57 | K37: 0 | L37: 6 | M37: 0 | N37: 85 | O37: 1 | P37: 3 | Q37: 2 | R37: 148 | S37: 43.2748538
A38: DISTRITO 6 CANDELARITA | B38: 3 | C38: 1453 | D38: 581 | E38: 39.98623538 | F38: 561 | G38: 30 | H38: 63 | I38: 8 | J38: 249 | K38: 6 | L38: 21 | M38: 5 | N38: 171 | O38: 8 | P38: 12 | Q38: 8 | R38: 872 | S38: 60.01376462
A39: CANDELARITA | B39: 2 | C39: 771 | D39: 277 | E39: 35.92736706 | F39: 268 | G39: 18 | H39: 21 | I39: 4 | J39: 147 | K39: 5 | L39: 8 | M39: 3 | N39: 57 | O39: 5 | P39: 5 | Q39: 4 | R39: 494 | S39: 64.07263294
A40: PEDERNAL O SAN PEDRO | B40: 1 | C40: 682 | D40: 304 | E40: 44.57478006 | F40: 293 | G40: 12 | H40: 42 | I40: 4 | J40: 102 | K40: 1 | L40: 13 | M40: 2 | N40: 114 | O40: 3 | P40: 7 | Q40: 4 | R40: 378 | S40: 55.42521994
A41: DISTRITO 7 DESAMPARADITOS | B41: 1 | C41: 606 | D41: 354 | E41: 58.41584158 | F41: 345 | G41: 35 | H41: 158 | I41: 4 | J41: 67 | K41: 4 | L41: 6 | M41: 5 | N41: 60 | O41: 6 | P41: 3 | Q41: 6 | R41: 252 | S41: 41.58415842
A42: DESAMPARADITOS | B42: 1 | C42: 606 | D42: 354 | E42: 58.41584158 | F42: 345 | G42: 35 | H42: 158 | I42: 4 | J42: 67 | K42: 4 | L42: 6 | M42: 5 | N42: 60 | O42: 6 | P42: 3 | Q42: 6 | R42: 252 | S42: 41.58415842
A43: DISTRITO 8 SAN ANTONIO | B43: 6 | C43: 3260 | D43: 1249 | E43: 38.31288344 | F43: 1214 | G43: 232 | H43: 233 | I43: 23 | J43: 366 | K43: 30 | L43: 127 | M43: 14 | N43: 174 | O43: 15 | P43: 26 | Q43: 9 | R43: 2011 | S43: 61.68711656
A44: SAN ANTONIO | B44: 5 | C44: 3021 | D44: 1132 | E44: 37.47103608 | F44: 1102 | G44: 188 | H44: 218 | I44: 23 | J44: 350 | K44: 30 | L44: 96 | M44: 12 | N44: 171 | O44: 14 | P44: 22 | Q44: 8 | R44: 1889 | S44: 62.52896392
A45: CHARCÓN [RÍO VIEJO] | B45: 1 | C45: 239 | D45: 117 | E45: 48.9539749 | F45: 112 | G45: 44 | H45: 15 | I45: 0 | J45: 16 | K45: 0 | L45: 31 | M45: 2 | N45: 3 | O45: 1 | P45: 4 | Q45: 1 | R45: 122 | S45: 51.0460251
A46: DISTRITO 9 CHIRES | B46: 10 | C46: 2215 | D46: 1026 | E46: 46.32054176 | F46: 980 | G46: 206 | H46: 127 | I46: 17 | J46: 197 | K46: 5 | L46: 123 | M46: 5 | N46: 287 | O46: 13 | P46: 31 | Q46: 15 | R46: 1189 | S46: 53.67945824
A47: GUARUMAL | B47: 1 | C47: 196 | D47: 98 | E47: 50 | F47: 93 | G47: 21 | H47: 24 | I47: 0 | J47: 17 | K47: 0 | L47: 22 | M47: 0 | N47: 8 | O47: 1 | P47: 2 | Q47: 3 | R47: 98 | S47: 50
A48: ZAPATÓN [SAN CARLOS] | B48: 1 | C48: 365 | D48: 150 | E48: 41.09589041 | F48: 140 | G48: 3 | H48: 4 | I48: 1 | J48: 19 | K48: 1 | L48: 12 | M48: 1 | N48: 98 | O48: 1 | P48: 6 | Q48: 4 | R48: 215 | S48: 58.90410959
A49: GAMALOTILLO | B49: 1 | C49: 259 | D49: 133 | E49: 51.35135135 | F49: 126 | G49: 18 | H49: 5 | I49: 8 | J49: 16 | K49: 0 | L49: 15 | M49: 0 | N49: 64 | O49: 0 | P49: 4 | Q49: 3 | R49: 126 | S49: 48.64864865
A50: LOS ÁNGELES | B50: 1 | C50: 129 | D50: 51 | E50: 39.53488372 | F50: 48 | G50: 11 | H50: 4 | I50: 2 | J50: 8 | K50: 0 | L50: 7 | M50: 0 | N50: 16 | O50: 0 | P50: 3 | Q50: 0 | R50: 78 | S50: 60.46511628
A51: LA GLORIA | B51: 1 | C51: 665 | D51: 338 | E51: 50.82706767 | F51: 333 | G51: 130 | H51: 51 | I51: 4 | J51: 86 | K51: 3 | L51: 22 | M51: 1 | N51: 32 | O51: 4 | P51: 3 | Q51: 2 | R51: 327 | S51: 49.17293233
A52: MASTATAL | B52: 1 | C52: 111 | D52: 60 | E52: 54.05405405 | F52: 58 | G52: 8 | H52: 7 | I52: 0 | J52: 13 | K52: 1 | L52: 11 | M52: 0 | N52: 14 | O52: 4 | P52: 1 | Q52: 1 | R52: 51 | S52: 45.94594595
A53: SAN MARTÍN | B53: 1 | C53: 96 | D53: 32 | E53: 33.33333333 | F53: 32 | G53: 3 | H53: 4 | I53: 0 | J53: 5 | K53: 0 | L53: 6 | M53: 0 | N53: 12 | O53: 2 | P53: 0 | Q53: 0 | R53: 64 | S53: 66.66666667
A54: SAN MIGUEL | B54: 1 | C54: 145 | D54: 59 | E54: 40.68965517 | F54: 52 | G54: 3 | H54: 0 | I54: 0 | J54: 4 | K54: 0 | L54: 20 | M54: 1 | N54: 24 | O54: 0 | P54: 6 | Q54: 1 | R54: 86 | S54: 59.31034483
A55: VISTA DE MAR NORTE | B55: 1 | C55: 209 | D55: 93 | E55: 44.49760766 | F55: 86 | G55: 9 | H55: 27 | I55: 2 | J55: 25 | K55: 0 | L55: 4 | M55: 1 | N55: 17 | O55: 1 | P55: 6 | Q55: 1 | R55: 116 | S55: 55.50239234
A56: BAJO REY | B56: 1 | C56: 40 | D56: 12 | E56: 30 | F56: 12 | G56: 0 | H56: 1 | I56: 0 | J56: 4 | K56: 0 | L56: 4 | M56: 1 | N56: 2 | O56: 0 | P56: 0 | Q56: 0 | R56: 28 | S56: 70
A59: Fuente: Tribunal Supremo de Elecciones.

Sheet 2.13
A2: CUADRO 2.13 CANTÓN TARRAZÚ: JUNTAS, ELECTORADO, PARTICIPACIÓN, VOTOS POR PARTIDO, NULOS, BLANCOS Y ABSTENCIONISMO
A3: PARA ALCALDÍAS Y VICEALCALDÍAS, SEGÚN DISTRITO ADMINISTRATIVO Y ELECTORAL, ELECCIONES MUNICIPALES FEBRERO 2020
A5: DISTRITO ADMINISTRATIVO Y ELECTORAL | B5: JUNTAS | C5: ELECTORADO | D5: VOTOS RECIBIDOS | P5: ABSTENCIONISMO
D6: TOTAL GENERAL | E6: % PARTICIPACIÓN | F6: VOTOS POR PARTIDO | N6: VOTOS NULOS | O6: VOTOS BLANCOS | P6: ABSOLUTO | Q6: %
B7: JUNTAS | F7: TOTAL | G7: FRENTE AMPLIO | H7: LIBERACIÓN NACIONAL | I7: NUEVA GENERACIÓN | J7: REPUBLICANO SOCIAL CRISTIANO | K7: RESTAURACIÓN NACIONAL | L7: TARRAZÚ PRIMERO | M7: UNIDAD SOCIAL CRISTIANA
A8: TOTAL CANTÓN | B8: =SUM(B9:B25)/2 -> 26 | C8: =SUM(C9:C25)/2 -> 12455 | D8: =SUM(D9:D25)/2 -> 5423 | E8: =+D8/C8*100 -> 43.54074669 | F8: =SUM(F9:F25)/2 -> 5333 | G8: 187 | H8: 407 | I8: 895 | J8: 500 | K8: 47 | L8: 178 | M8: 3119 | N8: 63 | O8: 27 | P8: 7032 | Q8: =+P8/C8*100 -> 56.45925331
A9: DISTRITO 1 SAN MARCOS | B9: 13 | C9: 7923 | D9: 3468 | E9: 43.77129875 | F9: 3418 | G9: 157 | H9: 302 | I9: 643 | J9: 377 | K9: 20 | L9: 106 | M9: 1813 | N9: 35 | O9: 15 | P9: 4455 | Q9: =+P9/C9*100 -> 56.22870125
A10: SAN MARCOS | B10: 7 | C10: 5043 | D10: 2293 | E10: 45.46896688 | F10: 2267 | G10: 89 | H10: 156 | I10: 509 | J10: 227 | K10: 10 | L10: 72 | M10: 1204 | N10: 21 | O10: 5 | P10: 2750 | Q10: 54.53103312
A11: SAN PEDRO | B11: 1 | C11: 463 | D11: 227 | E11: 49.02807775 | F11: 223 | G11: 2 | H11: 22 | I11: 25 | J11: 38 | K11: 0 | L11: 5 | M11: 131 | N11: 4 | O11: 0 | P11: 236 | Q11: 50.97192225
A12: GUADALUPE | B12: 2 | C12: 1148 | D12: 438 | E12: 38.1533101 | F12: 434 | G12: 50 | H12: 31 | I12: 56 | J12: 19 | K12: 4 | L12: 24 | M12: 250 | N12: 2 | O12: 2 | P12: 710 | Q12: 61.8466899
A13: RODEO NORTE | B13: 2 | C13: 1224 | D13: 480 | E13: 39.21568627 | F13: 468 | G13: 14 | H13: 86 | I13: 51 | J13: 93 | K13: 2 | L13: 5 | M13: 217 | N13: 6 | O13: 6 | P13: 744 | Q13: 60.78431373
A14: H A LOS SANTOS | B14: 1 | C14: 45 | D14: 30 | E14: 66.66666667 | F14: 26 | G14: 2 | H14: 7 | I14: 2 | J14: 0 | K14: 4 | L14: 0 | M14: 11 | N14: 2 | O14: 2 | P14: 15 | Q14: 33.33333333
A15: DISTRITO 2 SAN LORENZO | B15: 10 | C15: 3078 | D15: 1282 | E15: 41.65042235 | F15: 1255 | G15: 22 | H15: 71 | I15: 125 | J15: 95 | K15: 9 | L15: 37 | M15: 896 | N15: 17 | O15: 10 | P15: 1796 | Q15: 58.34957765
A16: SAN MARTÍN | B16: 1 | C16: 124 | D16: 51 | E16: 41.12903226 | F16: 46 | G16: 0 | H16: 0 | I16: 1 | J16: 1 | K16: 0 | L16: 2 | M16: 42 | N16: 0 | O16: 5 | P16: 73 | Q16: 58.87096774
A17: SAN LORENZO | B17: 4 | C17: 2296 | D17: 905 | E17: 39.41637631 | F17: 887 | G17: 21 | H17: 54 | I17: 105 | J17: 80 | K17: 6 | L17: 29 | M17: 592 | N17: 14 | O17: 4 | P17: 1391 | Q17: 60.58362369
A18: ESQUIPULAS | B18: 1 | C18: 25 | D18: 8 | E18: 32 | F18: 8 | G18: 0 | H18: 0 | I18: 4 | J18: 0 | K18: 1 | L18: 2 | M18: 1 | N18: 0 | O18: 0 | P18: 17 | Q18: 68
A19: SAN MIGUEL O SALADO | B19: 1 | C19: 128 | D19: 51 | E19: 39.84375 | F19: 50 | G19: 1 | H19: 5 | I19: 3 | J19: 8 | K19: 1 | L19: 0 | M19: 32 | N19: 1 | O19: 0 | P19: 77 | Q19: 60.15625
A20: ZAPOTAL | B20: 1 | C20: 192 | D20: 113 | E20: 58.85416667 | F20: 111 | G20: 0 | H20: 2 | I20: 7 | J20: 1 | K20: 0 | L20: 0 | M20: 101 | N20: 2 | O20: 0 | P20: 79 | Q20: 41.14583333
A21: NÁPOLES | B21: 1 | C21: 264 | D21: 116 | E21: 43.93939394 | F21: 115 | G21: 0 | H21: 1 | I21: 5 | J21: 4 | K21: 1 | L21: 3 | M21: 101 | N21: 0 | O21: 1 | P21: 148 | Q21: 56.06060606
A22: QUEBRADA ARROYO | B22: 1 | C22: 49 | D22: 38 | E22: 77.55102041 | F22: 38 | G22: 0 | H22: 9 | I22: 0 | J22: 1 | K22: 0 | L22: 1 | M22: 27 | N22: 0 | O22: 0 | P22: 11 | Q22: 22.44897959
A23: DISTRITO 3 SAN CARLOS | B23: 3 | C23: 1454 | D23: 673 | E23: 46.28610729 | F23: 660 | G23: 8 | H23: 34 | I23: 127 | J23: 28 | K23: 18 | L23: 35 | M23: 410 | N23: 11 | O23: 2 | P23: 781 | Q23: 53.71389271
A24: SAN CARLOS | B24: 2 | C24: 901 | D24: 409 | E24: 45.39400666 | F24: 400 | G24: 8 | H24: 24 | I24: 106 | J24: 11 | K24: 2 | L24: 35 | M24: 214 | N24: 7 | O24: 2 | P24: 492 | Q24: 54.60599334
A25: SAN JERÓNIMO | B25: 1 | C25: 553 | D25: 264 | E25: 47.73960217 | F25: 260 | G25: 0 | H25: 10 | I25: 21 | J25: 17 | K25: 16 | L25: 0 | M25: 196 | N25: 4 | O25: 0 | P25: 289 | Q25: 52.26039783
A28: Fuente: Tribunal Supremo de Elecciones.

Sheet 2.14
A2: CUADRO 2.14 CANTÓN ASERRÍ: JUNTAS, ELECTORADO, PARTICIPACIÓN, VOTOS POR PARTIDO, NULOS, BLANCOS Y ABSTENCIONISMO PARA ALCALDÍAS Y VICEALCALDÍAS
A3: SEGÚN DISTRITO ADMINISTRATIVO Y ELECTORAL, ELECCIONES MUNICIPALES FEBRERO 2020
A5: DISTRITO ADMINISTRATIVO Y ELECTORAL | B5: JUNTAS | C5: ELECTORADO | D5: VOTOS RECIBIDOS | Q5: ABSTENCIONISMO
D6: VOTOS RECIBIDOS | E6: % PARTICIPACIÓN | F6: VOTOS POR PARTIDO | O6: VOTOS NULOS | P6: VOTOS BLANCOS | Q6: ABSOLUTO | R6: %
B7: JUNTAS | F7: TOTAL | G7: COALICIÓN ASERRÍ DE TODOS | H7: FRENTE AMPLIO | I7: LIBERACIÓN NACIONAL | J7: NUESTRO PUEBLO | K7: NUEVA GENERACIÓN | L7: NUEVA REPÚBLICA | M7: RESTAURACIÓN NACIONAL | N7: UNIDOS PODEMOS
A8: TOTAL CANTÓN | B8: =SUM(B9:B37)/2 -> 70 | C8: =SUM(C9:C37)/2 -> 43971 | D8: 13027 | E8: =+D8/C8*100 -> 29.62634464 | F8: =SUM(F9:F37)/2 -> 12742 | G8: =SUM(G9:G37)/2 -> 1285 | H8: =SUM(H9:H37)/2 -> 812 | I8: =SUM(I9:I37)/2 -> 6487 | J8: =SUM(J9:J37)/2 -> 627 | K8: =SUM(K9:K37)/2 -> 1093 | L8: =SUM(L9:L37)/2 -> 1536 | M8: =SUM(M9:M37)/2 -> 533 | N8: =SUM(N9:N37)/2 -> 369 | O8: =SUM(O9:O37)/2 -> 202 | P8: =SUM(P9:P37)/2 -> 83 | Q8: =SUM(Q9:Q37)/2 -> 30944 | R8: =+Q8/C8*100 -> 70.37365536
A9: DISTRITO 1 ASERRÍ | B9: 35 | C9: 24752 | D9: 6560 | E9: 26.50290886 | F9: 6435 | G9: 521 | H9: 554 | I9: 2823 | J9: 327 | K9: 793 | L9: 913 | M9: 425 | N9: 79 | O9: 89 | P9: 36 | Q9: 18192 | R9: =+Q9/C9*100 -> 73.49709114
A10: ASERRÍ | B10: 26 | C10: 18963 | D10: 5278 | E10: 27.83314876 | F10: 5190 | G10: 406 | H10: 444 | I10: 2347 | J10: 283 | K10: 675 | L10: 625 | M10: 357 | N10: 53 | O10: 66 | P10: 22 | Q10: 13685 | R10: 72.16685124
A11: POÁS | B11: 8 | C11: 5747 | D11: 1258 | E11: 21.88968157 | F11: 1227 | G11: 113 | H11: 110 | I11: 469 | J11: 40 | K11: 118 | L11: 283 | M11: 68 | N11: 26 | O11: 23 | P11: 8 | Q11: 4489 | R11: 78.11031843
A12: H A SAN FRANCISCO DE ASÍS | B12: 1 | C12: 42 | D12: 24 | E12: 57.14285714 | F12: 18 | G12: 2 | H12: 0 | I12: 7 | J12: 4 | K12: 0 | L12: 5 | M12: 0 | N12: 0 | O12: 0 | P12: 6 | Q12: 18 | R12: 42.85714286
A13: DISTRITO 2 TARBACA | B13: 4 | C13: 1818 | D13: 746 | E13: 41.03410341 | F13: 726 | G13: 107 | H13: 19 | I13: 514 | J13: 6 | K13: 20 | L13: 20 | M13: 5 | N13: 35 | O13: 12 | P13: 8 | Q13: 1072 | R13: 58.96589659
A14: TARBACA O PRAGA | B14: 2 | C14: 1347 | D14: 505 | E14: 37.49072012 | F14: 496 | G14: 47 | H14: 16 | I14: 370 | J14: 5 | K14: 14 | L14: 17 | M14: 5 | N14: 22 | O14: 7 | P14: 2 | Q14: 842 | R14: 62.50927988
A15: EL TIGRE | B15: 1 | C15: 185 | D15: 108 | E15: 58.37837838 | F15: 104 | G15: 0 | H15: 1 | I15: 96 | J15: 1 | K15: 5 | L15: 0 | M15: 0 | N15: 1 | O15: 2 | P15: 2 | Q15: 77 | R15: 41.62162162
A16: CEDRAL | B16: 1 | C16: 286 | D16: 133 | E16: 46.5034965 | F16: 126 | G16: 60 | H16: 2 | I16: 48 | J16: 0 | K16: 1 | L16: 3 | M16: 0 | N16: 12 | O16: 3 | P16: 4 | Q16: 153 | R16: 53.4965035
A17: DISTRITO 3 VUELTA DE JORCO | B17: 9 | C17: 5201 | D17: 1801 | E17: 34.62795616 | F17: 1746 | G17: 236 | H17: 57 | I17: 984 | J17: 115 | K17: 53 | L17: 66 | M17: 26 | N17: 209 | O17: 39 | P17: 16 | Q17: 3400 | R17: 65.37204384
A18: JOCOTAL ABAJO | B18: 1 | C18: 224 | D18: 116 | E18: 51.78571429 | F18: 114 | G18: 6 | H18: 0 | I18: 99 | J18: 2 | K18: 3 | L18: 1 | M18: 2 | N18: 1 | O18: 2 | P18: 0 | Q18: 108 | R18: 48.21428571
A19: VUELTA DE JORCO | B19: 5 | C19: 3463 | D19: 1111 | E19: 32.08200982 | F19: 1078 | G19: 152 | H19: 45 | I19: 497 | J19: 86 | K19: 41 | L19: 42 | M19: 15 | N19: 200 | O19: 23 | P19: 10 | Q19: 2352 | R19: 67.91799018
A20: MONTE REDONDO | B20: 1 | C20: 697 | D20: 241 | E20: 34.57675753 | F20: 227 | G20: 68 | H20: 6 | I20: 110 | J20: 18 | K20: 2 | L20: 12 | M20: 5 | N20: 6 | O20: 9 | P20: 5 | Q20: 456 | R20: 65.42324247
